Workbook

Sheet Index
A1: =Inputs!$D$6&" - Introduction and Index" -> Força Açoreana, S.A.: Azores Photovoltaic Energy Venture - Introduction and Index
B4: Overview | I4: Worksheet Navigation
B6: Project Name: | D6: Azores Photovoltaic Energy Venture | J6: Inputs | L6: Inputs | P6: Summary | R6: Project Summary Information | S6: Calculations | U6: Production Calculations
B7: Project Developer: | D7: Força Açoreana, S.A. | L7: General | R7: Key Project Information | U7: Electricity Production
B8: Location: | D8: =Inputs!D7 -> Velas, Sao Jorge, Azores | L8: Timing | R8: Sources and Uses
B9: Projections by: | D9: R. Bercuvitz | F9: rbercuvitz@bell.net | L9: Electricity Production | R9: Financial Metrics
L10: Revenues | R10: Key Dates
L11: Capital Expenses Monthly Breakdown | R11: Error Checks | S11: Calculations | U11: Debt
L12: Reserve Accounts | R12: Summary Financials | U12: Subordinated Debt
L13: Financing | R13: Project Spend Curve (chart) | U13: Senior Debt
L14: Depreciation and Tax | R14: Debt Service Coverage (chart) | U14: Amortization Table
R15: Senior Debt Amortization (chart) | U15: Debt Covenants
R16: Equity Cash Flow (chart)
L17: Cell Style Guide | U17: Equity
J18: 1234 | L18: Input (project-specific) | P18: Timeline | R18: Project Timeline | U18: Equity Drawdown Detail
J19: 1234 | L19: Input reference from another sheet | R19: Timeline | U19: Dividend Detail
J20: 1234 | L20: Calculation | U20: IRR Calculation
J21: 1234 | L21: Sum or Max Reference Calculation | P21: AFS | R21: Annual Financial Statements
J22: OK | L22: Positive Error Check Result | R22: Income Statement | U22: Startup Costs
J23: NO | L23: Negative Error Check Result | R23: Balance Sheet | U23: Startup Costs
R24: Cash Flow Statement
R25: Cash Waterfall | U25: Capital Expenses
U26: Capital Expense Detail & Assumptions
P27: QFS | R27: Quarterly Financial Statements | U27: Construction Labor
R28: Income Statement
R29: Balance Sheet | U29: Revenues
R30: Cash Flow Statement | U30: Revenue Calculations (Electricity)
R31: Cash Waterfall
U32: Operating Expenses
P33: MFS | R33: Monthly Financial Statements | U33: Operating Expenses
R34: Income Statement | U34: Payroll and Staffing
R35: Balance Sheet | U35: Monthly Expenses
R36: Cash Flow Statement
R37: Cash Waterfall | U37: Other Calculations
U38: Flags and Timing
U39: Indexation Factors
U40: Uses of Funds
U41: Sources of Funds
U42: Working Capital
U43: Depreciation
U44: Taxes
U45: Retained Earnings

Sheet AFS
A1: =Inputs!$D$6&" - Annual Financial Statements" -> Força Açoreana, S.A.: Azores Photovoltaic Energy Venture - Annual Financial Statements
C2: Year | D2: 2028-2045 | E2: 2045-2053 | H2: 2028-2053 | I2: =YEAR(I3) -> 2026 | J2: =YEAR(J3) -> 2027 | K2: 2028 | L2: 2029 | M2: 2030 | N2: 2031 | O2: 2032 | P2: 2033 | Q2: 2034 | R2: 2035 | S2: 2036 | T2: 2037 | U2: 2038 | V2: 2039 | W2: 2040 | X2: 2041 | Y2: 2042 | Z2: 2043 | AA2: 2044 | AB2: 2045 | AC2: 2046 | AD2: 2047 | AE2: 2048 | AF2: 2049 | AG2: 2050 | AH2: 2051 | AI2: 2052 | AJ2: 2053
C3: Period End | D3: 17.5 Years | E3: 7.5 Years | H3: 2053-06-30 | I3: 2026-12-31 | J3: =I3+365 -> 2027-12-31 | K3: =J3+365 -> 2028-12-30 | L3: =K3+366 -> 2029-12-31 | M3: =L3+365 -> 2030-12-31 | N3: 2031-12-31 | O3: 2032-12-30 | P3: =O3+366 -> 2033-12-31 | Q3: 2034-12-31 | R3: 2035-12-31 | S3: 2036-12-30 | T3: =S3+366 -> 2037-12-31 | U3: 2038-12-31 | V3: 2039-12-31 | W3: 2040-12-30 | X3: =W3+366 -> 2041-12-31 | Y3: 2042-12-31 | Z3: 2043-12-31 | AA3: 2044-12-30 | AB3: =AA3+366 -> 2045-12-31 | AC3: 2046-12-31 | AD3: 2047-12-31 | AE3: 2048-12-30 | AF3: =AE3+366 -> 2049-12-31 | AG3: 2050-12-31 | AH3: 2051-12-31 | AI3: 2052-12-30 | AJ3: =AI3+182 -> 2053-06-30
A4: · | B4: Income Statement | F4: Unit
A5: =Summary!$C$49 -> OK
C6: =Calculations!C351 -> Revenues | H6: Project Lifetime
C7: Electricity Produced | D7: =SUM(K7:AA7)+AB7/2 -> 97598263.21 | E7: =H7-D7 -> 40494662.6 | F7: Kwh | H7: =SUM(I7:AT7) -> 138092925.8 | I7: =SUMIF(Calculations!$I$8:$QJ$8, I$2, Calculations!$I210:$QJ210) -> 0 | J7: =SUMIF(Calculations!$I$8:$QJ$8, J$2, Calculations!$I210:$QJ210) -> 0 | K7: =SUMIF(Calculations!$I$8:$QJ$8, K$2, Calculations!$I215:$QJ215) -> 3092082.775 | L7: =SUMIF(Calculations!$I$8:$QJ$8, L$2, Calculations!$I215:$QJ215) -> 6177772.441 | M7: =SUMIF(Calculations!$I$8:$QJ$8, M$2, Calculations!$I215:$QJ215) -> 6121634.04 | N7: =SUMIF(Calculations!$I$8:$QJ$8, N$2, Calculations!$I215:$QJ215) -> 6060697.496 | O7: =SUMIF(Calculations!$I$8:$QJ$8, O$2, Calculations!$I215:$QJ215) -> 6000367.533 | P7: =SUMIF(Calculations!$I$8:$QJ$8, P$2, Calculations!$I215:$QJ215) -> 5940638.112 | Q7: =SUMIF(Calculations!$I$8:$QJ$8, Q$2, Calculations!$I215:$QJ215) -> 5881503.255 | R7: =SUMIF(Calculations!$I$8:$QJ$8, R$2, Calculations!$I215:$QJ215) -> 5822957.044 | S7: =SUMIF(Calculations!$I$8:$QJ$8, S$2, Calculations!$I215:$QJ215) -> 5764993.619 | T7: =SUMIF(Calculations!$I$8:$QJ$8, T$2, Calculations!$I215:$QJ215) -> 5707607.179 | U7: =SUMIF(Calculations!$I$8:$QJ$8, U$2, Calculations!$I215:$QJ215) -> 5650791.981 | V7: =SUMIF(Calculations!$I$8:$QJ$8, V$2, Calculations!$I215:$QJ215) -> 5594542.338 | W7: =SUMIF(Calculations!$I$8:$QJ$8, W$2, Calculations!$I215:$QJ215) -> 5538852.62 | X7: =SUMIF(Calculations!$I$8:$QJ$8, X$2, Calculations!$I215:$QJ215) -> 5483717.254 | Y7: =SUMIF(Calculations!$I$8:$QJ$8, Y$2, Calculations!$I215:$QJ215) -> 5429130.722 | Z7: =SUMIF(Calculations!$I$8:$QJ$8, Z$2, Calculations!$I215:$QJ215) -> 5375087.56 | AA7: =SUMIF(Calculations!$I$8:$QJ$8, AA$2, Calculations!$I215:$QJ215) -> 5321582.359 | AB7: =SUMIF(Calculations!$I$8:$QJ$8, AB$2, Calculations!$I215:$QJ215) -> 5268609.765 | AC7: =SUMIF(Calculations!$I$8:$QJ$8, AC$2, Calculations!$I215:$QJ215) -> 5216164.476 | AD7: =SUMIF(Calculations!$I$8:$QJ$8, AD$2, Calculations!$I215:$QJ215) -> 5164241.243 | AE7: =SUMIF(Calculations!$I$8:$QJ$8, AE$2, Calculations!$I215:$QJ215) -> 5112834.868 | AF7: =SUMIF(Calculations!$I$8:$QJ$8, AF$2, Calculations!$I215:$QJ215) -> 5061940.208 | AG7: =SUMIF(Calculations!$I$8:$QJ$8, AG$2, Calculations!$I215:$QJ215) -> 5011552.168 | AH7: =SUMIF(Calculations!$I$8:$QJ$8, AH$2, Calculations!$I215:$QJ215) -> 4961665.706 | AI7: =SUMIF(Calculations!$I$8:$QJ$8, AI$2, Calculations!$I215:$QJ215) -> 4912275.828 | AJ7: =SUMIF(Calculations!$I$8:$QJ$8, AJ$2, Calculations!$I215:$QJ215) -> 2419683.219
C8: Electricity Sold | D8: =SUM(K8:AA8)+AB8/2 -> 110389816.6 | E8: =H8-D8 -> 48086921.5 | F8: Kwh | H8: =SUM(I8:AT8) -> 158476738.1 | I8: =SUMIF(Calculations!$I$8:$QJ$8, I$2, Calculations!$I215:$QJ215) -> 0 | J8: =SUMIF(Calculations!$I$8:$QJ$8, J$2, Calculations!$I215:$QJ215) -> 0 | K8: =SUMIF(Calculations!$I$8:$QJ$8, K$2, Calculations!$I218:$QJ218)+SUMIF(Calculations!$I$8:$QJ$8, K$2, Calculations!$I225:$QJ225) -> 3590213.842 | L8: =SUMIF(Calculations!$I$8:$QJ$8, L$2, Calculations!$I218:$QJ218)+SUMIF(Calculations!$I$8:$QJ$8, L$2, Calculations!$I225:$QJ225) -> 6523938.894 | M8: =SUMIF(Calculations!$I$8:$QJ$8, M$2, Calculations!$I218:$QJ218)+SUMIF(Calculations!$I$8:$QJ$8, M$2, Calculations!$I225:$QJ225) -> 6543603.079 | N8: =SUMIF(Calculations!$I$8:$QJ$8, N$2, Calculations!$I218:$QJ218)+SUMIF(Calculations!$I$8:$QJ$8, N$2, Calculations!$I225:$QJ225) -> 6563659.952 | O8: =SUMIF(Calculations!$I$8:$QJ$8, O$2, Calculations!$I218:$QJ218)+SUMIF(Calculations!$I$8:$QJ$8, O$2, Calculations!$I225:$QJ225) -> 6588770.682 | P8: =SUMIF(Calculations!$I$8:$QJ$8, P$2, Calculations!$I218:$QJ218)+SUMIF(Calculations!$I$8:$QJ$8, P$2, Calculations!$I225:$QJ225) -> 6603321.989 | Q8: =SUMIF(Calculations!$I$8:$QJ$8, Q$2, Calculations!$I218:$QJ218)+SUMIF(Calculations!$I$8:$QJ$8, Q$2, Calculations!$I225:$QJ225) -> 6596679.279 | R8: =SUMIF(Calculations!$I$8:$QJ$8, R$2, Calculations!$I218:$QJ218)+SUMIF(Calculations!$I$8:$QJ$8, R$2, Calculations!$I225:$QJ225) -> 6575620.309 | S8: =SUMIF(Calculations!$I$8:$QJ$8, S$2, Calculations!$I218:$QJ218)+SUMIF(Calculations!$I$8:$QJ$8, S$2, Calculations!$I225:$QJ225) -> 6552805.25 | T8: =SUMIF(Calculations!$I$8:$QJ$8, T$2, Calculations!$I218:$QJ218)+SUMIF(Calculations!$I$8:$QJ$8, T$2, Calculations!$I225:$QJ225) -> 6522283.531 | U8: =SUMIF(Calculations!$I$8:$QJ$8, U$2, Calculations!$I218:$QJ218)+SUMIF(Calculations!$I$8:$QJ$8, U$2, Calculations!$I225:$QJ225) -> 6495449.661 | V8: =SUMIF(Calculations!$I$8:$QJ$8, V$2, Calculations!$I218:$QJ218)+SUMIF(Calculations!$I$8:$QJ$8, V$2, Calculations!$I225:$QJ225) -> 6459147.305 | W8: =SUMIF(Calculations!$I$8:$QJ$8, W$2, Calculations!$I218:$QJ218)+SUMIF(Calculations!$I$8:$QJ$8, W$2, Calculations!$I225:$QJ225) -> 6427524.284 | X8: =SUMIF(Calculations!$I$8:$QJ$8, X$2, Calculations!$I218:$QJ218)+SUMIF(Calculations!$I$8:$QJ$8, X$2, Calculations!$I225:$QJ225) -> 6378956.996 | Y8: =SUMIF(Calculations!$I$8:$QJ$8, Y$2, Calculations!$I218:$QJ218)+SUMIF(Calculations!$I$8:$QJ$8, Y$2, Calculations!$I225:$QJ225) -> 6332102.482 | Z8: =SUMIF(Calculations!$I$8:$QJ$8, Z$2, Calculations!$I218:$QJ218)+SUMIF(Calculations!$I$8:$QJ$8, Z$2, Calculations!$I225:$QJ225) -> 6287660.512 | AA8: =SUMIF(Calculations!$I$8:$QJ$8, AA$2, Calculations!$I218:$QJ218)+SUMIF(Calculations!$I$8:$QJ$8, AA$2, Calculations!$I225:$QJ225) -> 6247707.281 | AB8: =SUMIF(Calculations!$I$8:$QJ$8, AB$2, Calculations!$I218:$QJ218)+SUMIF(Calculations!$I$8:$QJ$8, AB$2, Calculations!$I225:$QJ225) -> 6200742.596 | AC8: =SUMIF(Calculations!$I$8:$QJ$8, AC$2, Calculations!$I218:$QJ218)+SUMIF(Calculations!$I$8:$QJ$8, AC$2, Calculations!$I225:$QJ225) -> 6158257.926 | AD8: =SUMIF(Calculations!$I$8:$QJ$8, AD$2, Calculations!$I218:$QJ218)+SUMIF(Calculations!$I$8:$QJ$8, AD$2, Calculations!$I225:$QJ225) -> 6116417.075 | AE8: =SUMIF(Calculations!$I$8:$QJ$8, AE$2, Calculations!$I218:$QJ218)+SUMIF(Calculations!$I$8:$QJ$8, AE$2, Calculations!$I225:$QJ225) -> 6073670.658 | AF8: =SUMIF(Calculations!$I$8:$QJ$8, AF$2, Calculations!$I218:$QJ218)+SUMIF(Calculations!$I$8:$QJ$8, AF$2, Calculations!$I225:$QJ225) -> 6021617.883 | AG8: =SUMIF(Calculations!$I$8:$QJ$8, AG$2, Calculations!$I218:$QJ218)+SUMIF(Calculations!$I$8:$QJ$8, AG$2, Calculations!$I225:$QJ225) -> 5973859.268 | AH8: =SUMIF(Calculations!$I$8:$QJ$8, AH$2, Calculations!$I218:$QJ218)+SUMIF(Calculations!$I$8:$QJ$8, AH$2, Calculations!$I225:$QJ225) -> 5926727.743 | AI8: =SUMIF(Calculations!$I$8:$QJ$8, AI$2, Calculations!$I218:$QJ218)+SUMIF(Calculations!$I$8:$QJ$8, AI$2, Calculations!$I225:$QJ225) -> 5883717.867 | AJ8: =SUMIF(Calculations!$I$8:$QJ$8, AJ$2, Calculations!$I218:$QJ218)+SUMIF(Calculations!$I$8:$QJ$8, AJ$2, Calculations!$I225:$QJ225) -> 2832281.778
C9: Average PPA Price | D9: =(D13-D12)/D8 -> 0.19169 | E9: =(E13-E12)/E8 -> 0.19169 | H9: =(H13-H12)/H8 -> 0.19169 | K9: =(K13-K12)/K8 -> 0.19169 | L9: 0.19169 | M9: 0.19169 | N9: 0.19169 | O9: 0.19169 | P9: 0.19169 | Q9: 0.19169 | R9: 0.19169 | S9: 0.19169 | T9: 0.19169 | U9: 0.19169 | V9: 0.19169 | W9: 0.19169 | X9: 0.19169 | Y9: 0.19169 | Z9: 0.19169 | AA9: 0.19169 | AB9: 0.19169 | AC9: 0.19169 | AD9: 0.19169 | AE9: 0.19169 | AF9: 0.19169 | AG9: 0.19169 | AH9: 0.19169 | AI9: 0.19169 | AJ9: 0.19169
C10: =Calculations!C352 -> Production Sold | D10: =SUM(K10:AA10)+AB10/2 -> 16050094.45 | E10: =H10-D10 -> 7162172.419 | F10: EUR | H10: =SUM(I10:AT10) -> 23212266.87 | I10: =SUMIF(Calculations!$I$8:$QJ$8, I$2, Calculations!$I352:$QJ352) -> 0 | J10: =SUMIF(Calculations!$I$8:$QJ$8, J$2, Calculations!$I352:$QJ352) -> 0 | K10: =SUMIF(Calculations!$I$8:$QJ$8, K$2, Calculations!$I229:$QJ229) -> 523357.823 | L10: =SUMIF(Calculations!$I$8:$QJ$8, L$2, Calculations!$I229:$QJ229) -> 919190.0976 | M10: =SUMIF(Calculations!$I$8:$QJ$8, M$2, Calculations!$I229:$QJ229) -> 927542.452 | N10: =SUMIF(Calculations!$I$8:$QJ$8, N$2, Calculations!$I229:$QJ229) -> 935986.9614 | O10: =SUMIF(Calculations!$I$8:$QJ$8, O$2, Calculations!$I229:$QJ229) -> 944524.4616 | P10: =SUMIF(Calculations!$I$8:$QJ$8, P$2, Calculations!$I229:$QJ229) -> 952651.9184 | Q10: =SUMIF(Calculations!$I$8:$QJ$8, Q$2, Calculations!$I229:$QJ229) -> 955506.8188 | R10: =SUMIF(Calculations!$I$8:$QJ$8, R$2, Calculations!$I229:$QJ229) -> 955371.5321 | S10: =SUMIF(Calculations!$I$8:$QJ$8, S$2, Calculations!$I229:$QJ229) -> 953977.7411 | T10: =SUMIF(Calculations!$I$8:$QJ$8, T$2, Calculations!$I229:$QJ229) -> 952680.616 | U10: =SUMIF(Calculations!$I$8:$QJ$8, U$2, Calculations!$I229:$QJ229) -> 951238.8274 | V10: =SUMIF(Calculations!$I$8:$QJ$8, V$2, Calculations!$I229:$QJ229) -> 947820.0734 | W10: =SUMIF(Calculations!$I$8:$QJ$8, W$2, Calculations!$I229:$QJ229) -> 944497.747 | X10: =SUMIF(Calculations!$I$8:$QJ$8, X$2, Calculations!$I229:$QJ229) -> 939309.9091 | Y10: =SUMIF(Calculations!$I$8:$QJ$8, Y$2, Calculations!$I229:$QJ229) -> 934083.1973 | Z10: =SUMIF(Calculations!$I$8:$QJ$8, Z$2, Calculations!$I229:$QJ229) -> 928951.9175 | AA10: =SUMIF(Calculations!$I$8:$QJ$8, AA$2, Calculations!$I229:$QJ229) -> 923915.5538 | AB10: =SUMIF(Calculations!$I$8:$QJ$8, AB$2, Calculations!$I229:$QJ229) -> 918973.5996 | AC10: =SUMIF(Calculations!$I$8:$QJ$8, AC$2, Calculations!$I229:$QJ229) -> 914125.5579 | AD10: =SUMIF(Calculations!$I$8:$QJ$8, AD$2, Calculations!$I229:$QJ229) -> 909370.9412 | AE10: =SUMIF(Calculations!$I$8:$QJ$8, AE$2, Calculations!$I229:$QJ229) -> 903644.5992 | AF10: =SUMIF(Calculations!$I$8:$QJ$8, AF$2, Calculations!$I229:$QJ229) -> 897475.6299 | AG10: =SUMIF(Calculations!$I$8:$QJ$8, AG$2, Calculations!$I229:$QJ229) -> 891398.7737 | AH10: =SUMIF(Calculations!$I$8:$QJ$8, AH$2, Calculations!$I229:$QJ229) -> 885413.4207 | AI10: =SUMIF(Calculations!$I$8:$QJ$8, AI$2, Calculations!$I229:$QJ229) -> 879518.9702 | AJ10: =SUMIF(Calculations!$I$8:$QJ$8, AJ$2, Calculations!$I229:$QJ229) -> 421737.726
C11: Storage Sold | D11: 5110529.501 | E11: 2055609.563 | F11: EUR | H11: 7166139.064 | I11: =SUMIF(Calculations!$I$8:$QJ$8, I$2, Calculations!$I353:$QJ353) -> 0 | J11: =SUMIF(Calculations!$I$8:$QJ$8, J$2, Calculations!$I353:$QJ353) -> 0 | K11: =SUMIF(Calculations!$I$8:$QJ$8, K$2, Calculations!$I230:$QJ230) -> 164850.2685 | L11: =SUMIF(Calculations!$I$8:$QJ$8, L$2, Calculations!$I230:$QJ230) -> 331383.749 | M11: =SUMIF(Calculations!$I$8:$QJ$8, M$2, Calculations!$I230:$QJ230) -> 326800.8222 | N11: =SUMIF(Calculations!$I$8:$QJ$8, N$2, Calculations!$I230:$QJ230) -> 322201.0148 | O11: =SUMIF(Calculations!$I$8:$QJ$8, O$2, Calculations!$I230:$QJ230) -> 318476.9903 | P11: =SUMIF(Calculations!$I$8:$QJ$8, P$2, Calculations!$I230:$QJ230) -> 313138.8736 | Q11: =SUMIF(Calculations!$I$8:$QJ$8, Q$2, Calculations!$I230:$QJ230) -> 309010.6322 | R11: =SUMIF(Calculations!$I$8:$QJ$8, R$2, Calculations!$I230:$QJ230) -> 305109.125 | S11: =SUMIF(Calculations!$I$8:$QJ$8, S$2, Calculations!$I230:$QJ230) -> 302129.4973 | T11: =SUMIF(Calculations!$I$8:$QJ$8, T$2, Calculations!$I230:$QJ230) -> 297575.914 | U11: =SUMIF(Calculations!$I$8:$QJ$8, U$2, Calculations!$I230:$QJ230) -> 293873.9181 | V11: =SUMIF(Calculations!$I$8:$QJ$8, V$2, Calculations!$I230:$QJ230) -> 290333.8735 | W11: =SUMIF(Calculations!$I$8:$QJ$8, W$2, Calculations!$I230:$QJ230) -> 287594.383 | X11: =SUMIF(Calculations!$I$8:$QJ$8, X$2, Calculations!$I230:$QJ230) -> 283472.3574 | Y11: =SUMIF(Calculations!$I$8:$QJ$8, Y$2, Calculations!$I230:$QJ230) -> 279717.5274 | Z11: =SUMIF(Calculations!$I$8:$QJ$8, Z$2, Calculations!$I230:$QJ230) -> 276329.7261 | AA11: =SUMIF(Calculations!$I$8:$QJ$8, AA$2, Calculations!$I230:$QJ230) -> 273707.4549 | AB11: =SUMIF(Calculations!$I$8:$QJ$8, AB$2, Calculations!$I230:$QJ230) -> 269646.7486 | AC11: =SUMIF(Calculations!$I$8:$QJ$8, AC$2, Calculations!$I230:$QJ230) -> 266350.9039 | AD11: =SUMIF(Calculations!$I$8:$QJ$8, AD$2, Calculations!$I230:$QJ230) -> 263085.0479 | AE11: =SUMIF(Calculations!$I$8:$QJ$8, AE$2, Calculations!$I230:$QJ230) -> 260617.3291 | AF11: =SUMIF(Calculations!$I$8:$QJ$8, AF$2, Calculations!$I230:$QJ230) -> 256808.3022 | AG11: =SUMIF(Calculations!$I$8:$QJ$8, AG$2, Calculations!$I230:$QJ230) -> 253730.3095 | AH11: =SUMIF(Calculations!$I$8:$QJ$8, AH$2, Calculations!$I230:$QJ230) -> 250681.0203 | AI11: =SUMIF(Calculations!$I$8:$QJ$8, AI$2, Calculations!$I230:$QJ230) -> 248330.9078 | AJ11: =SUMIF(Calculations!$I$8:$QJ$8, AJ$2, Calculations!$I230:$QJ230) -> 121182.368
E12: 0
C13: Gross Revenues | D13: 21160623.95 | E13: 9217781.982 | F13: =Calculations!E355 -> EUR | H13: 30378405.93 | I13: =I10+I11+I12 -> 0 | J13: 0 | K13: 688208.0914 | L13: 1250573.847 | M13: 1254343.274 | N13: 1258187.976 | O13: 1263001.452 | P13: 1265790.792 | Q13: 1264517.451 | R13: 1260480.657 | S13: 1256107.238 | T13: 1250256.53 | U13: 1245112.746 | V13: 1238153.947 | W13: 1232092.13 | X13: 1222782.266 | Y13: 1213800.725 | Z13: 1205281.644 | AA13: 1197623.009 | AB13: 1188620.348 | AC13: 1180476.462 | AD13: 1172455.989 | AE13: 1164261.928 | AF13: 1154283.932 | AG13: 1145129.083 | AH13: 1136094.441 | AI13: 1127849.878 | AJ13: 542920.094
C14: less: Cost of Goods Sold | D14: -2994853.704 | E14: =H14-D14 -> -1543727.218 | F14: =Calculations!E355 -> EUR | H14: =SUM(I14:AT14) -> -4538580.922 | I14: =SUMIF(Calculations!$I$8:$QJ$8, I$2, Calculations!$I231:$QJ232) -> 0 | J14: =SUMIF(Calculations!$I$8:$QJ$8, J$2, Calculations!$I231:$QJ232) -> 0 | K14: =SUMIF(Calculations!$I$8:$QJ$8, K$2, Calculations!$I354:$QJ354) -> -104430.0549 | L14: =SUMIF(Calculations!$I$8:$QJ$8, L$2, Calculations!$I354:$QJ354) -> -130711.4533 | M14: =SUMIF(Calculations!$I$8:$QJ$8, M$2, Calculations!$I354:$QJ354) -> -139870.7952 | N14: =SUMIF(Calculations!$I$8:$QJ$8, N$2, Calculations!$I354:$QJ354) -> -149617.3186 | O14: =SUMIF(Calculations!$I$8:$QJ$8, O$2, Calculations!$I354:$QJ354) -> -160174.0035 | P14: =SUMIF(Calculations!$I$8:$QJ$8, P$2, Calculations!$I354:$QJ354) -> -168814.1288 | Q14: =SUMIF(Calculations!$I$8:$QJ$8, Q$2, Calculations!$I354:$QJ354) -> -174630.3825 | R14: =SUMIF(Calculations!$I$8:$QJ$8, R$2, Calculations!$I354:$QJ354) -> -178373.869 | S14: =SUMIF(Calculations!$I$8:$QJ$8, S$2, Calculations!$I354:$QJ354) -> -181982.1393 | T14: =SUMIF(Calculations!$I$8:$QJ$8, T$2, Calculations!$I354:$QJ354) -> -184081.439 | U14: =SUMIF(Calculations!$I$8:$QJ$8, U$2, Calculations!$I354:$QJ354) -> -186800.8353 | V14: =SUMIF(Calculations!$I$8:$QJ$8, V$2, Calculations!$I354:$QJ354) -> -188135.3684 | W14: =SUMIF(Calculations!$I$8:$QJ$8, W$2, Calculations!$I354:$QJ354) -> -190223.9006 | X14: =SUMIF(Calculations!$I$8:$QJ$8, X$2, Calculations!$I354:$QJ354) -> -189535.9971 | Y14: =SUMIF(Calculations!$I$8:$QJ$8, Y$2, Calculations!$I354:$QJ354) -> -189305.9163 | Z14: =SUMIF(Calculations!$I$8:$QJ$8, Z$2, Calculations!$I354:$QJ354) -> -190227.0314 | AA14: =SUMIF(Calculations!$I$8:$QJ$8, AA$2, Calculations!$I354:$QJ354) -> -191873.6013 | AB14: =SUMIF(Calculations!$I$8:$QJ$8, AB$2, Calculations!$I354:$QJ354) -> -192130.9391 | AC14: =SUMIF(Calculations!$I$8:$QJ$8, AC$2, Calculations!$I354:$QJ354) -> -193113.9191 | AD14: =SUMIF(Calculations!$I$8:$QJ$8, AD$2, Calculations!$I354:$QJ354) -> -194117.7114 | AE14: =SUMIF(Calculations!$I$8:$QJ$8, AE$2, Calculations!$I354:$QJ354) -> -195098.2539 | AF14: =SUMIF(Calculations!$I$8:$QJ$8, AF$2, Calculations!$I354:$QJ354) -> -194383.1316 | AG14: =SUMIF(Calculations!$I$8:$QJ$8, AG$2, Calculations!$I354:$QJ354) -> -194366.2772 | AH14: =SUMIF(Calculations!$I$8:$QJ$8, AH$2, Calculations!$I354:$QJ354) -> -194370.5996 | AI14: =SUMIF(Calculations!$I$8:$QJ$8, AI$2, Calculations!$I354:$QJ354) -> -195046.44 | AJ14: =SUMIF(Calculations!$I$8:$QJ$8, AJ$2, Calculations!$I354:$QJ354) -> -87165.41605
C15: =Calculations!C356 -> less: Operating Expenses | D15: -5696030.205 | E15: -3400580.028 | F15: =Calculations!E356 -> EUR | H15: -9096610.233 | I15: =SUMIF(Calculations!$I$8:$QJ$8, I$2, Calculations!$I356:$QJ356) -> 0 | J15: =SUMIF(Calculations!$I$8:$QJ$8, J$2, Calculations!$I356:$QJ356) -> 0 | K15: =SUMIF(Calculations!$I$8:$QJ$8, K$2, Calculations!$I356:$QJ356) -> -168984.2984 | L15: =SUMIF(Calculations!$I$8:$QJ$8, L$2, Calculations!$I356:$QJ356) -> -315997.8339 | M15: =SUMIF(Calculations!$I$8:$QJ$8, M$2, Calculations!$I356:$QJ356) -> -322496.1625 | N15: =SUMIF(Calculations!$I$8:$QJ$8, N$2, Calculations!$I356:$QJ356) -> -324024.406 | O15: =SUMIF(Calculations!$I$8:$QJ$8, O$2, Calculations!$I356:$QJ356) -> -327226.9917 | P15: =SUMIF(Calculations!$I$8:$QJ$8, P$2, Calculations!$I356:$QJ356) -> -328709.5861 | Q15: =SUMIF(Calculations!$I$8:$QJ$8, Q$2, Calculations!$I356:$QJ356) -> -330340.6577 | R15: =SUMIF(Calculations!$I$8:$QJ$8, R$2, Calculations!$I356:$QJ356) -> -332002.2372 | S15: =SUMIF(Calculations!$I$8:$QJ$8, S$2, Calculations!$I356:$QJ356) -> -333835.2309 | T15: =SUMIF(Calculations!$I$8:$QJ$8, T$2, Calculations!$I356:$QJ356) -> -335455.398 | U15: =SUMIF(Calculations!$I$8:$QJ$8, U$2, Calculations!$I356:$QJ356) -> -337255.044 | V15: =SUMIF(Calculations!$I$8:$QJ$8, V$2, Calculations!$I356:$QJ356) -> -339095.0097 | W15: =SUMIF(Calculations!$I$8:$QJ$8, W$2, Calculations!$I356:$QJ356) -> -341117.9937 | X15: =SUMIF(Calculations!$I$8:$QJ$8, X$2, Calculations!$I356:$QJ356) -> -342922.9192 | Y15: =SUMIF(Calculations!$I$8:$QJ$8, Y$2, Calculations!$I356:$QJ356) -> -344907.9521 | Z15: =SUMIF(Calculations!$I$8:$QJ$8, Z$2, Calculations!$I356:$QJ356) -> -346933.2117 | AA15: =SUMIF(Calculations!$I$8:$QJ$8, AA$2, Calculations!$I356:$QJ356) -> -349146.5356 | AB15: =SUMIF(Calculations!$I$8:$QJ$8, AB$2, Calculations!$I356:$QJ356) -> -351157.4734 | AC15: =SUMIF(Calculations!$I$8:$QJ$8, AC$2, Calculations!$I356:$QJ356) -> -353359.2403 | AD15: =SUMIF(Calculations!$I$8:$QJ$8, AD$2, Calculations!$I356:$QJ356) -> -355622.667 | AE15: =SUMIF(Calculations!$I$8:$QJ$8, AE$2, Calculations!$I356:$QJ356) -> -358074.1974 | AF15: =SUMIF(Calculations!$I$8:$QJ$8, AF$2, Calculations!$I356:$QJ356) -> -360326.5621 | AG15: =SUMIF(Calculations!$I$8:$QJ$8, AG$2, Calculations!$I356:$QJ356) -> -362775.628 | AH15: =SUMIF(Calculations!$I$8:$QJ$8, AH$2, Calculations!$I356:$QJ356) -> -365292.4702 | AI15: =SUMIF(Calculations!$I$8:$QJ$8, AI$2, Calculations!$I356:$QJ356) -> -368009.137 | AJ15: =SUMIF(Calculations!$I$8:$QJ$8, AJ$2, Calculations!$I356:$QJ356) -> -701541.3889
C16: =Calculations!C357 -> EBITDA | D16: 12469740.04 | E16: 4273474.736 | F16: =Calculations!E357 -> EUR | H16: 16743214.78 | I16: =SUM(I13:I15) -> 0 | J16: 0 | K16: 414793.7381 | L16: 803864.5594 | M16: 791976.3165 | N16: 784546.2515 | O16: 775600.4568 | P16: 768267.0772 | Q16: 759546.4108 | R16: 750104.5509 | S16: 740289.8683 | T16: 730719.6929 | U16: 721056.8662 | V16: 710923.5688 | W16: 700750.2358 | X16: 690323.3502 | Y16: 679586.8564 | Z16: 668121.4005 | AA16: 656602.8717 | AB16: 645331.9357 | AC16: 634003.3024 | AD16: 622715.6108 | AE16: 611089.477 | AF16: 599574.2383 | AG16: 587987.1779 | AH16: 576431.3712 | AI16: 564794.3011 | AJ16: =SUM(AJ13:AJ15) -> -245786.7109
D17: 0 | E17: 0
C18: =Calculations!C359 -> less: Depreciation and Amortization | D18: -6478725.636 | E18: -1232756.342 | F18: =Calculations!E359 -> EUR | H18: =SUM(I18:AT18) -> -7711481.978 | I18: =SUMIF(Calculations!$I$8:$QJ$8, I$2, Calculations!$I359:$QJ359) -> 0 | J18: =SUMIF(Calculations!$I$8:$QJ$8, J$2, Calculations!$I359:$QJ359) -> 0 | K18: =SUMIF(Calculations!$I$8:$QJ$8, K$2, Calculations!$I359:$QJ359) -> -299487.9763 | L18: =SUMIF(Calculations!$I$8:$QJ$8, L$2, Calculations!$I359:$QJ359) -> -598975.9527 | M18: =SUMIF(Calculations!$I$8:$QJ$8, M$2, Calculations!$I359:$QJ359) -> -598975.9527 | N18: =SUMIF(Calculations!$I$8:$QJ$8, N$2, Calculations!$I359:$QJ359) -> -598975.9527 | O18: =SUMIF(Calculations!$I$8:$QJ$8, O$2, Calculations!$I359:$QJ359) -> -598975.9527 | P18: =SUMIF(Calculations!$I$8:$QJ$8, P$2, Calculations!$I359:$QJ359) -> -587925.9527 | Q18: =SUMIF(Calculations!$I$8:$QJ$8, Q$2, Calculations!$I359:$QJ359) -> -576875.9527 | R18: =SUMIF(Calculations!$I$8:$QJ$8, R$2, Calculations!$I359:$QJ359) -> -471357.7543 | S18: =SUMIF(Calculations!$I$8:$QJ$8, S$2, Calculations!$I359:$QJ359) -> -365839.5559 | T18: =SUMIF(Calculations!$I$8:$QJ$8, T$2, Calculations!$I359:$QJ359) -> -365839.5559 | U18: =SUMIF(Calculations!$I$8:$QJ$8, U$2, Calculations!$I359:$QJ359) -> -290727.5116 | V18: =SUMIF(Calculations!$I$8:$QJ$8, V$2, Calculations!$I359:$QJ359) -> -216055.4673 | W18: =SUMIF(Calculations!$I$8:$QJ$8, W$2, Calculations!$I359:$QJ359) -> -216055.4673 | X18: =SUMIF(Calculations!$I$8:$QJ$8, X$2, Calculations!$I359:$QJ359) -> -153923.6958 | Y18: =SUMIF(Calculations!$I$8:$QJ$8, Y$2, Calculations!$I359:$QJ359) -> -153923.6958 | Z18: =SUMIF(Calculations!$I$8:$QJ$8, Z$2, Calculations!$I359:$QJ359) -> -153923.6958 | AA18: =SUMIF(Calculations!$I$8:$QJ$8, AA$2, Calculations!$I359:$QJ359) -> -153923.6958 | AB18: =SUMIF(Calculations!$I$8:$QJ$8, AB$2, Calculations!$I359:$QJ359) -> -153923.6958 | AC18: =SUMIF(Calculations!$I$8:$QJ$8, AC$2, Calculations!$I359:$QJ359) -> -154105.9326 | AD18: =SUMIF(Calculations!$I$8:$QJ$8, AD$2, Calculations!$I359:$QJ359) -> -154105.9326 | AE18: =SUMIF(Calculations!$I$8:$QJ$8, AE$2, Calculations!$I359:$QJ359) -> -154105.9326 | AF18: =SUMIF(Calculations!$I$8:$QJ$8, AF$2, Calculations!$I359:$QJ359) -> -154105.9326 | AG18: =SUMIF(Calculations!$I$8:$QJ$8, AG$2, Calculations!$I359:$QJ359) -> -154105.9326 | AH18: =SUMIF(Calculations!$I$8:$QJ$8, AH$2, Calculations!$I359:$QJ359) -> -154105.9326 | AI18: =SUMIF(Calculations!$I$8:$QJ$8, AI$2, Calculations!$I359:$QJ359) -> -154105.9326 | AJ18: =SUMIF(Calculations!$I$8:$QJ$8, AJ$2, Calculations!$I359:$QJ359) -> -77052.9663
C19: =Calculations!C360 -> EBIT | D19: 5991014.404 | E19: 3040718.393 | F19: =Calculations!E360 -> EUR | H19: =SUM(I19:AT19) -> 9031732.797 | I19: =I16+I18 -> 0 | J19: =J16+J18 -> 0 | K19: 115305.7618 | L19: 204888.6067 | M19: 193000.3638 | N19: 185570.2988 | O19: 176624.5041 | P19: 180341.1245 | Q19: 182670.4581 | R19: 278746.7967 | S19: 374450.3124 | T19: 364880.1371 | U19: 430329.3546 | V19: 494868.1016 | W19: 484694.7686 | X19: 536399.6543 | Y19: 525663.1605 | Z19: 514197.7047 | AA19: 502679.1759 | AB19: 491408.2399 | AC19: 479897.3698 | AD19: 468609.6782 | AE19: 456983.5444 | AF19: 445468.3057 | AG19: 433881.2453 | AH19: 422325.4386 | AI19: 410688.3685 | AJ19: =AJ16+AJ18 -> -322839.6773
D20: 0 | E20: 0
C21: =Calculations!C362 -> less: Senior Debt Interest Expense | D21: -2399382.572 | E21: -9647.408112 | F21: =Calculations!E362 -> EUR | H21: =SUM(I21:AT21) -> -2409029.98 | I21: =SUMIF(Calculations!$I$8:$QJ$8, I$2, Calculations!$I362:$QJ362) -> 0 | J21: =SUMIF(Calculations!$I$8:$QJ$8, J$2, Calculations!$I362:$QJ362) -> 0 | K21: =SUMIF(Calculations!$I$8:$QJ$8, K$2, Calculations!$I362:$QJ362) -> -114588.9894 | L21: =SUMIF(Calculations!$I$8:$QJ$8, L$2, Calculations!$I362:$QJ362) -> -224095.1736 | M21: =SUMIF(Calculations!$I$8:$QJ$8, M$2, Calculations!$I362:$QJ362) -> -215819.5134 | N21: =SUMIF(Calculations!$I$8:$QJ$8, N$2, Calculations!$I362:$QJ362) -> -207077.0408 | O21: =SUMIF(Calculations!$I$8:$QJ$8, O$2, Calculations!$I362:$QJ362) -> -197841.4241 | P21: =SUMIF(Calculations!$I$8:$QJ$8, P$2, Calculations!$I362:$QJ362) -> -188084.846 | Q21: =SUMIF(Calculations!$I$8:$QJ$8, Q$2, Calculations!$I362:$QJ362) -> -177777.9203 | R21: =SUMIF(Calculations!$I$8:$QJ$8, R$2, Calculations!$I362:$QJ362) -> -166889.6029 | S21: =SUMIF(Calculations!$I$8:$QJ$8, S$2, Calculations!$I362:$QJ362) -> -155387.0988 | T21: =SUMIF(Calculations!$I$8:$QJ$8, T$2, Calculations!$I362:$QJ362) -> -143235.763 | U21: =SUMIF(Calculations!$I$8:$QJ$8, U$2, Calculations!$I362:$QJ362) -> -130398.9964 | V21: =SUMIF(Calculations!$I$8:$QJ$8, V$2, Calculations!$I362:$QJ362) -> -116838.1353 | W21: =SUMIF(Calculations!$I$8:$QJ$8, W$2, Calculations!$I362:$QJ362) -> -102512.335 | X21: =SUMIF(Calculations!$I$8:$QJ$8, X$2, Calculations!$I362:$QJ362) -> -87378.44694 | Y21: =SUMIF(Calculations!$I$8:$QJ$8, Y$2, Calculations!$I362:$QJ362) -> -71390.88865 | Z21: =SUMIF(Calculations!$I$8:$QJ$8, Z$2, Calculations!$I362:$QJ362) -> -54501.50642 | AA21: =SUMIF(Calculations!$I$8:$QJ$8, AA$2, Calculations!$I362:$QJ362) -> -36659.43026 | AB21: =SUMIF(Calculations!$I$8:$QJ$8, AB$2, Calculations!$I362:$QJ362) -> -17810.92077 | AC21: =SUMIF(Calculations!$I$8:$QJ$8, AC$2, Calculations!$I362:$QJ362) -> -741.9477284 | AD21: =SUMIF(Calculations!$I$8:$QJ$8, AD$2, Calculations!$I362:$QJ362) -> 0 | AE21: =SUMIF(Calculations!$I$8:$QJ$8, AE$2, Calculations!$I362:$QJ362) -> 0 | AF21: =SUMIF(Calculations!$I$8:$QJ$8, AF$2, Calculations!$I362:$QJ362) -> 0 | AG21: =SUMIF(Calculations!$I$8:$QJ$8, AG$2, Calculations!$I362:$QJ362) -> 0 | AH21: =SUMIF(Calculations!$I$8:$QJ$8, AH$2, Calculations!$I362:$QJ362) -> 0 | AI21: =SUMIF(Calculations!$I$8:$QJ$8, AI$2, Calculations!$I362:$QJ362) -> 0 | AJ21: =SUMIF(Calculations!$I$8:$QJ$8, AJ$2, Calculations!$I362:$QJ362) -> 0
C22: =Calculations!C363 -> less: Subordinated Debt Interest Expense | D22: -3033171.019 | E22: 429220.7376 | F22: =Calculations!E363 -> EUR | H22: =SUM(I22:AT22) -> -2603950.281 | I22: =SUMIF(Calculations!$I$8:$QJ$8, I$2, Calculations!$I363:$QJ363) -> 0 | J22: 0 | K22: =SUMIF(Calculations!$I$8:$QJ$8, K$2, Calculations!$I363:$QJ363) -> -125796.7595 | L22: =SUMIF(Calculations!$I$8:$QJ$8, L$2, Calculations!$I363:$QJ363) -> -248184.4118 | M22: =SUMIF(Calculations!$I$8:$QJ$8, M$2, Calculations!$I363:$QJ363) -> -243516.0362 | N22: =SUMIF(Calculations!$I$8:$QJ$8, N$2, Calculations!$I363:$QJ363) -> -238255.5937 | O22: =SUMIF(Calculations!$I$8:$QJ$8, O$2, Calculations!$I363:$QJ363) -> -232327.9954 | P22: =SUMIF(Calculations!$I$8:$QJ$8, P$2, Calculations!$I363:$QJ363) -> -225648.6293 | Q22: =SUMIF(Calculations!$I$8:$QJ$8, Q$2, Calculations!$I363:$QJ363) -> -218122.1524 | R22: =SUMIF(Calculations!$I$8:$QJ$8, R$2, Calculations!$I363:$QJ363) -> -209641.1298 | S22: =SUMIF(Calculations!$I$8:$QJ$8, S$2, Calculations!$I363:$QJ363) -> -200084.5013 | T22: =SUMIF(Calculations!$I$8:$QJ$8, T$2, Calculations!$I363:$QJ363) -> -189315.853 | U22: =SUMIF(Calculations!$I$8:$QJ$8, U$2, Calculations!$I363:$QJ363) -> -177181.4706 | V22: =SUMIF(Calculations!$I$8:$QJ$8, V$2, Calculations!$I363:$QJ363) -> -163508.1449 | W22: =SUMIF(Calculations!$I$8:$QJ$8, W$2, Calculations!$I363:$QJ363) -> -148100.6991 | X22: =SUMIF(Calculations!$I$8:$QJ$8, X$2, Calculations!$I363:$QJ363) -> -130739.2036 | Y22: =SUMIF(Calculations!$I$8:$QJ$8, Y$2, Calculations!$I363:$QJ363) -> -111175.8359 | Z22: =SUMIF(Calculations!$I$8:$QJ$8, Z$2, Calculations!$I363:$QJ363) -> -89131.34352 | AA22: =SUMIF(Calculations!$I$8:$QJ$8, AA$2, Calculations!$I363:$QJ363) -> -64291.05771 | AB22: =SUMIF(Calculations!$I$8:$QJ$8, AB$2, Calculations!$I363:$QJ363) -> -36300.40191 | AC22: =SUMIF(Calculations!$I$8:$QJ$8, AC$2, Calculations!$I363:$QJ363) -> -4759.830339 | AD22: =SUMIF(Calculations!$I$8:$QJ$8, AD$2, Calculations!$I363:$QJ363) -> 30780.87517 | AE22: =SUMIF(Calculations!$I$8:$QJ$8, AE$2, Calculations!$I363:$QJ363) -> 70829.03173 | AF22: =SUMIF(Calculations!$I$8:$QJ$8, AF$2, Calculations!$I363:$QJ363) -> 115956.2969 | AG22: =SUMIF(Calculations!$I$8:$QJ$8, AG$2, Calculations!$I363:$QJ363) -> 166806.8289 | AH22: =SUMIF(Calculations!$I$8:$QJ$8, AH$2, Calculations!$I363:$QJ363) -> 67757.73612 | AI22: =SUMIF(Calculations!$I$8:$QJ$8, AI$2, Calculations!$I363:$QJ363) -> 0 | AJ22: =SUMIF(Calculations!$I$8:$QJ$8, AJ$2, Calculations!$I363:$QJ363) -> 0
C23: =Calculations!C364 -> add: Interest on Reserve Accounts | D23: 0 | E23: 0 | F23: =Calculations!E364 -> EUR | H23: =SUM(I23:AT23) -> 0 | I23: =SUMIF(Calculations!$I$8:$QJ$8, I$2, Calculations!$I364:$QJ364) -> 0 | J23: =SUMIF(Calculations!$I$8:$QJ$8, J$2, Calculations!$I364:$QJ364) -> 0 | K23: =SUMIF(Calculations!$I$8:$QJ$8, K$2, Calculations!$I364:$QJ364) -> 0 | L23: =SUMIF(Calculations!$I$8:$QJ$8, L$2, Calculations!$I364:$QJ364) -> 0 | M23: =SUMIF(Calculations!$I$8:$QJ$8, M$2, Calculations!$I364:$QJ364) -> 0 | N23: =SUMIF(Calculations!$I$8:$QJ$8, N$2, Calculations!$I364:$QJ364) -> 0 | O23: =SUMIF(Calculations!$I$8:$QJ$8, O$2, Calculations!$I364:$QJ364) -> 0 | P23: =SUMIF(Calculations!$I$8:$QJ$8, P$2, Calculations!$I364:$QJ364) -> 0 | Q23: =SUMIF(Calculations!$I$8:$QJ$8, Q$2, Calculations!$I364:$QJ364) -> 0 | R23: =SUMIF(Calculations!$I$8:$QJ$8, R$2, Calculations!$I364:$QJ364) -> 0 | S23: =SUMIF(Calculations!$I$8:$QJ$8, S$2, Calculations!$I364:$QJ364) -> 0 | T23: =SUMIF(Calculations!$I$8:$QJ$8, T$2, Calculations!$I364:$QJ364) -> 0 | U23: =SUMIF(Calculations!$I$8:$QJ$8, U$2, Calculations!$I364:$QJ364) -> 0 | V23: =SUMIF(Calculations!$I$8:$QJ$8, V$2, Calculations!$I364:$QJ364) -> 0 | W23: =SUMIF(Calculations!$I$8:$QJ$8, W$2, Calculations!$I364:$QJ364) -> 0 | X23: =SUMIF(Calculations!$I$8:$QJ$8, X$2, Calculations!$I364:$QJ364) -> 0 | Y23: =SUMIF(Calculations!$I$8:$QJ$8, Y$2, Calculations!$I364:$QJ364) -> 0 | Z23: =SUMIF(Calculations!$I$8:$QJ$8, Z$2, Calculations!$I364:$QJ364) -> 0 | AA23: =SUMIF(Calculations!$I$8:$QJ$8, AA$2, Calculations!$I364:$QJ364) -> 0 | AB23: =SUMIF(Calculations!$I$8:$QJ$8, AB$2, Calculations!$I364:$QJ364) -> 0 | AC23: =SUMIF(Calculations!$I$8:$QJ$8, AC$2, Calculations!$I364:$QJ364) -> 0 | AD23: =SUMIF(Calculations!$I$8:$QJ$8, AD$2, Calculations!$I364:$QJ364) -> 0 | AE23: =SUMIF(Calculations!$I$8:$QJ$8, AE$2, Calculations!$I364:$QJ364) -> 0 | AF23: =SUMIF(Calculations!$I$8:$QJ$8, AF$2, Calculations!$I364:$QJ364) -> 0 | AG23: =SUMIF(Calculations!$I$8:$QJ$8, AG$2, Calculations!$I364:$QJ364) -> 0 | AH23: =SUMIF(Calculations!$I$8:$QJ$8, AH$2, Calculations!$I364:$QJ364) -> 0 | AI23: =SUMIF(Calculations!$I$8:$QJ$8, AI$2, Calculations!$I364:$QJ364) -> 0 | AJ23: =SUMIF(Calculations!$I$8:$QJ$8, AJ$2, Calculations!$I364:$QJ364) -> 0
C24: =Calculations!C365 -> EBT | D24: 558460.8138 | E24: 3460291.723 | F24: =Calculations!E365 -> EUR | H24: =SUM(I24:AT24) -> 4018752.536 | I24: =I19+SUM(I21:I23) -> 0 | J24: 0 | K24: -125079.9872 | L24: -267390.9788 | M24: -266335.1858 | N24: -259762.3357 | O24: -253544.9154 | P24: -233392.3509 | Q24: -213229.6145 | R24: -97783.93598 | S24: 18978.71243 | T24: 32328.52107 | U24: 122748.8876 | V24: 214521.8214 | W24: 234081.7345 | X24: 318282.0038 | Y24: 343096.436 | Z24: 370564.8547 | AA24: 401728.6879 | AB24: 437296.9172 | AC24: 474395.5918 | AD24: 499390.5534 | AE24: 527812.5761 | AF24: 561424.6026 | AG24: 600688.0742 | AH24: 490083.1747 | AI24: 410688.3685 | AJ24: =AJ19+SUM(AJ21:AJ23) -> -322839.6773
D25: 0 | E25: 0
C26: =Calculations!C367 -> less: Taxes | D26: -275.6754176 | E26: -546210.7679 | F26: =Calculations!E367 -> EUR | H26: =SUM(I26:AT26) -> -546486.4433 | I26: =SUMIF(Calculations!$I$8:$QJ$8, I$2, Calculations!$I367:$QJ367) -> 0 | J26: =SUMIF(Calculations!$I$8:$QJ$8, J$2, Calculations!$I367:$QJ367) -> 0 | K26: =SUMIF(Calculations!$I$8:$QJ$8, K$2, Calculations!$I367:$QJ367) -> -275.6754176 | L26: =SUMIF(Calculations!$I$8:$QJ$8, L$2, Calculations!$I367:$QJ367) -> 0 | M26: =SUMIF(Calculations!$I$8:$QJ$8, M$2, Calculations!$I367:$QJ367) -> 0 | N26: =SUMIF(Calculations!$I$8:$QJ$8, N$2, Calculations!$I367:$QJ367) -> 0 | O26: =SUMIF(Calculations!$I$8:$QJ$8, O$2, Calculations!$I367:$QJ367) -> 0 | P26: =SUMIF(Calculations!$I$8:$QJ$8, P$2, Calculations!$I367:$QJ367) -> 0 | Q26: =SUMIF(Calculations!$I$8:$QJ$8, Q$2, Calculations!$I367:$QJ367) -> 0 | R26: =SUMIF(Calculations!$I$8:$QJ$8, R$2, Calculations!$I367:$QJ367) -> 0 | S26: =SUMIF(Calculations!$I$8:$QJ$8, S$2, Calculations!$I367:$QJ367) -> 0 | T26: =SUMIF(Calculations!$I$8:$QJ$8, T$2, Calculations!$I367:$QJ367) -> 0 | U26: =SUMIF(Calculations!$I$8:$QJ$8, U$2, Calculations!$I367:$QJ367) -> 0 | V26: =SUMIF(Calculations!$I$8:$QJ$8, V$2, Calculations!$I367:$QJ367) -> 0 | W26: =SUMIF(Calculations!$I$8:$QJ$8, W$2, Calculations!$I367:$QJ367) -> 0 | X26: =SUMIF(Calculations!$I$8:$QJ$8, X$2, Calculations!$I367:$QJ367) -> 0 | Y26: =SUMIF(Calculations!$I$8:$QJ$8, Y$2, Calculations!$I367:$QJ367) -> 0 | Z26: =SUMIF(Calculations!$I$8:$QJ$8, Z$2, Calculations!$I367:$QJ367) -> 0 | AA26: =SUMIF(Calculations!$I$8:$QJ$8, AA$2, Calculations!$I367:$QJ367) -> 0 | AB26: =SUMIF(Calculations!$I$8:$QJ$8, AB$2, Calculations!$I367:$QJ367) -> 0 | AC26: =SUMIF(Calculations!$I$8:$QJ$8, AC$2, Calculations!$I367:$QJ367) -> 0 | AD26: =SUMIF(Calculations!$I$8:$QJ$8, AD$2, Calculations!$I367:$QJ367) -> -61593.13309 | AE26: =SUMIF(Calculations!$I$8:$QJ$8, AE$2, Calculations!$I367:$QJ367) -> -93397.13431 | AF26: =SUMIF(Calculations!$I$8:$QJ$8, AF$2, Calculations!$I367:$QJ367) -> -99043.95477 | AG26: =SUMIF(Calculations!$I$8:$QJ$8, AG$2, Calculations!$I367:$QJ367) -> -105640.218 | AH26: =SUMIF(Calculations!$I$8:$QJ$8, AH$2, Calculations!$I367:$QJ367) -> -87976.40815 | AI26: =SUMIF(Calculations!$I$8:$QJ$8, AI$2, Calculations!$I367:$QJ367) -> -73822.21158 | AJ26: =SUMIF(Calculations!$I$8:$QJ$8, AJ$2, Calculations!$I367:$QJ367) -> -24737.70801
C27: =Calculations!C368 -> add: Change in Deferred Tax Asset | D27: 164631.3539 | E27: -86999.13343 | F27: =Calculations!E368 -> EUR | H27: =SUM(I27:AT27) -> 77632.22046 | I27: =SUMIF(Calculations!$I$8:$QJ$8, I$2, Calculations!$I368:$QJ368) -> 0 | J27: 0 | K27: =SUMIF(Calculations!$I$8:$QJ$8, K$2, Calculations!$I368:$QJ368) -> 38305.28333 | L27: =SUMIF(Calculations!$I$8:$QJ$8, L$2, Calculations!$I368:$QJ368) -> 78954.02458 | M27: =SUMIF(Calculations!$I$8:$QJ$8, M$2, Calculations!$I368:$QJ368) -> 78776.65136 | N27: =SUMIF(Calculations!$I$8:$QJ$8, N$2, Calculations!$I368:$QJ368) -> 77672.41255 | O27: =SUMIF(Calculations!$I$8:$QJ$8, O$2, Calculations!$I368:$QJ368) -> 76627.88594 | P27: =SUMIF(Calculations!$I$8:$QJ$8, P$2, Calculations!$I368:$QJ368) -> 75098.65509 | Q27: =SUMIF(Calculations!$I$8:$QJ$8, Q$2, Calculations!$I368:$QJ368) -> 73567.71539 | R27: =SUMIF(Calculations!$I$8:$QJ$8, R$2, Calculations!$I368:$QJ368) -> 71899.89873 | S27: =SUMIF(Calculations!$I$8:$QJ$8, S$2, Calculations!$I368:$QJ368) -> 70010.83113 | T27: =SUMIF(Calculations!$I$8:$QJ$8, T$2, Calculations!$I368:$QJ368) -> 67768.06328 | U27: =SUMIF(Calculations!$I$8:$QJ$8, U$2, Calculations!$I368:$QJ368) -> -2133.884958 | V27: =SUMIF(Calculations!$I$8:$QJ$8, V$2, Calculations!$I368:$QJ368) -> -72336.9845 | W27: =SUMIF(Calculations!$I$8:$QJ$8, W$2, Calculations!$I368:$QJ368) -> -75623.04989 | X27: =SUMIF(Calculations!$I$8:$QJ$8, X$2, Calculations!$I368:$QJ368) -> -79330.55753 | Y27: =SUMIF(Calculations!$I$8:$QJ$8, Y$2, Calculations!$I368:$QJ368) -> -83499.38214 | Z27: =SUMIF(Calculations!$I$8:$QJ$8, Z$2, Calculations!$I368:$QJ368) -> -88114.0765 | AA27: =SUMIF(Calculations!$I$8:$QJ$8, AA$2, Calculations!$I368:$QJ368) -> -93349.60047 | AB27: =SUMIF(Calculations!$I$8:$QJ$8, AB$2, Calculations!$I368:$QJ368) -> -99325.06299 | AC27: =SUMIF(Calculations!$I$8:$QJ$8, AC$2, Calculations!$I368:$QJ368) -> -87939.72099 | AD27: =SUMIF(Calculations!$I$8:$QJ$8, AD$2, Calculations!$I368:$QJ368) -> -27029.1014 | AE27: =SUMIF(Calculations!$I$8:$QJ$8, AE$2, Calculations!$I368:$QJ368) -> 0 | AF27: =SUMIF(Calculations!$I$8:$QJ$8, AF$2, Calculations!$I368:$QJ368) -> 0 | AG27: =SUMIF(Calculations!$I$8:$QJ$8, AG$2, Calculations!$I368:$QJ368) -> 0 | AH27: =SUMIF(Calculations!$I$8:$QJ$8, AH$2, Calculations!$I368:$QJ368) -> 917.8132719 | AI27: =SUMIF(Calculations!$I$8:$QJ$8, AI$2, Calculations!$I368:$QJ368) -> 101.9441541 | AJ27: =SUMIF(Calculations!$I$8:$QJ$8, AJ$2, Calculations!$I368:$QJ368) -> 76612.46303
C28: =Calculations!C369 -> Net Income / (Loss) | D28: 722816.4923 | E28: 2827081.821 | F28: =Calculations!E369 -> EUR | H28: =SUM(I28:AT28) -> 3549898.314 | I28: =I24+SUM(I26:I27) -> 0 | J28: =J24+SUM(J26:J27) -> 0 | K28: -87050.37924 | L28: -188436.9542 | M28: -187558.5344 | N28: -182089.9232 | O28: -176917.0295 | P28: -158293.6958 | Q28: -139661.8991 | R28: -25884.03725 | S28: 88989.54356 | T28: 100096.5843 | U28: 120615.0026 | V28: 142184.8369 | W28: 158458.6846 | X28: 238951.4462 | Y28: 259597.0538 | Z28: 282450.7782 | AA28: 308379.0875 | AB28: 337971.8542 | AC28: 386455.8708 | AD28: 410768.3189 | AE28: 434415.4418 | AF28: 462380.6479 | AG28: 495047.8562 | AH28: 403024.5799 | AI28: 336968.101 | AJ28: =AJ24+SUM(AJ26:AJ27) -> -270964.9222
A30: · | B30: Balance Sheet | F30: Unit
B32: Current Assets
C33: =Calculations!C374 -> Unrestricted Cash | F33: =Calculations!E374 -> EUR | I33: =LOOKUP(I$3, Calculations!$I$4:$QJ$4, Calculations!$I374:$QJ374) -> 49893.33765 | J33: =LOOKUP(J$3, Calculations!$I$4:$QJ$4, Calculations!$I374:$QJ374) -> 69197.31009 | K33: =LOOKUP(K$3, Calculations!$I$4:$QJ$4, Calculations!$I374:$QJ374) -> 155614.1484 | L33: =LOOKUP(L$3, Calculations!$I$4:$QJ$4, Calculations!$I374:$QJ374) -> 363747.5432 | M33: =LOOKUP(M$3, Calculations!$I$4:$QJ$4, Calculations!$I374:$QJ374) -> 500858.3094 | N33: =LOOKUP(N$3, Calculations!$I$4:$QJ$4, Calculations!$I374:$QJ374) -> 630528.3942 | O33: =LOOKUP(O$3, Calculations!$I$4:$QJ$4, Calculations!$I374:$QJ374) -> 690586.4403 | P33: =LOOKUP(P$3, Calculations!$I$4:$QJ$4, Calculations!$I374:$QJ374) -> 864612.2349 | Q33: =LOOKUP(Q$3, Calculations!$I$4:$QJ$4, Calculations!$I374:$QJ374) -> 969577.0179 | R33: =LOOKUP(R$3, Calculations!$I$4:$QJ$4, Calculations!$I374:$QJ374) -> 1065113.755 | S33: =LOOKUP(S$3, Calculations!$I$4:$QJ$4, Calculations!$I374:$QJ374) -> 1093318.487 | T33: =LOOKUP(T$3, Calculations!$I$4:$QJ$4, Calculations!$I374:$QJ374) -> 1226957.76 | U33: =LOOKUP(U$3, Calculations!$I$4:$QJ$4, Calculations!$I374:$QJ374) -> 1293417.195 | V33: =LOOKUP(V$3, Calculations!$I$4:$QJ$4, Calculations!$I374:$QJ374) -> 1349733.771 | W33: =LOOKUP(W$3, Calculations!$I$4:$QJ$4, Calculations!$I374:$QJ374) -> 1342446.14 | X33: =LOOKUP(X$3, Calculations!$I$4:$QJ$4, Calculations!$I374:$QJ374) -> 1431565.309 | Y33: =LOOKUP(Y$3, Calculations!$I$4:$QJ$4, Calculations!$I374:$QJ374) -> 1456517.421 | Z33: =LOOKUP(Z$3, Calculations!$I$4:$QJ$4, Calculations!$I374:$QJ374) -> 1469995.137 | AA33: =LOOKUP(AA$3, Calculations!$I$4:$QJ$4, Calculations!$I374:$QJ374) -> 1422545.294 | AB33: =LOOKUP(AB$3, Calculations!$I$4:$QJ$4, Calculations!$I374:$QJ374) -> 1485398.074 | AC33: =LOOKUP(AC$3, Calculations!$I$4:$QJ$4, Calculations!$I374:$QJ374) -> 736111.9935 | AD33: =LOOKUP(AD$3, Calculations!$I$4:$QJ$4, Calculations!$I374:$QJ374) -> 1017569.063 | AE33: =LOOKUP(AE$3, Calculations!$I$4:$QJ$4, Calculations!$I374:$QJ374) -> 1213752.807 | AF33: =LOOKUP(AF$3, Calculations!$I$4:$QJ$4, Calculations!$I374:$QJ374) -> 1470049.382 | AG33: =LOOKUP(AG$3, Calculations!$I$4:$QJ$4, Calculations!$I374:$QJ374) -> 1669756.158 | AH33: =LOOKUP(AH$3, Calculations!$I$4:$QJ$4, Calculations!$I374:$QJ374) -> 3837964.302 | AI33: =LOOKUP(AI$3, Calculations!$I$4:$QJ$4, Calculations!$I374:$QJ374) -> 4293463.499 | AJ33: =LOOKUP(AJ$3, Calculations!$I$4:$QJ$4, Calculations!$I374:$QJ374) -> 3966308.71
C34: =Calculations!C375 -> DSRA | F34: =Calculations!E375 -> EUR | I34: =LOOKUP(I$3, Calculations!$I$4:$QJ$4, Calculations!$I375:$QJ375) -> 0 | J34: =LOOKUP(J$3, Calculations!$I$4:$QJ$4, Calculations!$I375:$QJ375) -> 0 | K34: =LOOKUP(K$3, Calculations!$I$4:$QJ$4, Calculations!$I375:$QJ375) -> 185403.1457 | L34: =LOOKUP(L$3, Calculations!$I$4:$QJ$4, Calculations!$I375:$QJ375) -> 185403.1457 | M34: =LOOKUP(M$3, Calculations!$I$4:$QJ$4, Calculations!$I375:$QJ375) -> 185403.1457 | N34: =LOOKUP(N$3, Calculations!$I$4:$QJ$4, Calculations!$I375:$QJ375) -> 185403.1457 | O34: =LOOKUP(O$3, Calculations!$I$4:$QJ$4, Calculations!$I375:$QJ375) -> 185403.1457 | P34: =LOOKUP(P$3, Calculations!$I$4:$QJ$4, Calculations!$I375:$QJ375) -> 185403.1457 | Q34: =LOOKUP(Q$3, Calculations!$I$4:$QJ$4, Calculations!$I375:$QJ375) -> 185403.1457 | R34: =LOOKUP(R$3, Calculations!$I$4:$QJ$4, Calculations!$I375:$QJ375) -> 185403.1457 | S34: =LOOKUP(S$3, Calculations!$I$4:$QJ$4, Calculations!$I375:$QJ375) -> 185403.1457 | T34: =LOOKUP(T$3, Calculations!$I$4:$QJ$4, Calculations!$I375:$QJ375) -> 185403.1457 | U34: =LOOKUP(U$3, Calculations!$I$4:$QJ$4, Calculations!$I375:$QJ375) -> 185403.1457 | V34: =LOOKUP(V$3, Calculations!$I$4:$QJ$4, Calculations!$I375:$QJ375) -> 185403.1457 | W34: =LOOKUP(W$3, Calculations!$I$4:$QJ$4, Calculations!$I375:$QJ375) -> 185403.1457 | X34: =LOOKUP(X$3, Calculations!$I$4:$QJ$4, Calculations!$I375:$QJ375) -> 185403.1457 | Y34: =LOOKUP(Y$3, Calculations!$I$4:$QJ$4, Calculations!$I375:$QJ375) -> 185403.1457 | Z34: =LOOKUP(Z$3, Calculations!$I$4:$QJ$4, Calculations!$I375:$QJ375) -> 185403.1457 | AA34: =LOOKUP(AA$3, Calculations!$I$4:$QJ$4, Calculations!$I375:$QJ375) -> 185403.1457 | AB34: =LOOKUP(AB$3, Calculations!$I$4:$QJ$4, Calculations!$I375:$QJ375) -> 162621.4521 | AC34: =LOOKUP(AC$3, Calculations!$I$4:$QJ$4, Calculations!$I375:$QJ375) -> 0 | AD34: =LOOKUP(AD$3, Calculations!$I$4:$QJ$4, Calculations!$I375:$QJ375) -> 0 | AE34: =LOOKUP(AE$3, Calculations!$I$4:$QJ$4, Calculations!$I375:$QJ375) -> 0 | AF34: =LOOKUP(AF$3, Calculations!$I$4:$QJ$4, Calculations!$I375:$QJ375) -> 0 | AG34: =LOOKUP(AG$3, Calculations!$I$4:$QJ$4, Calculations!$I375:$QJ375) -> 0 | AH34: =LOOKUP(AH$3, Calculations!$I$4:$QJ$4, Calculations!$I375:$QJ375) -> 0 | AI34: =LOOKUP(AI$3, Calculations!$I$4:$QJ$4, Calculations!$I375:$QJ375) -> 0 | AJ34: =LOOKUP(AJ$3, Calculations!$I$4:$QJ$4, Calculations!$I375:$QJ375) -> 0
C35: =Calculations!C376 -> MMRA | F35: =Calculations!E376 -> EUR | I35: =LOOKUP(I$3, Calculations!$I$4:$QJ$4, Calculations!$I376:$QJ376) -> 0 | J35: =LOOKUP(J$3, Calculations!$I$4:$QJ$4, Calculations!$I376:$QJ376) -> 0 | K35: =LOOKUP(K$3, Calculations!$I$4:$QJ$4, Calculations!$I376:$QJ376) -> 0 | L35: =LOOKUP(L$3, Calculations!$I$4:$QJ$4, Calculations!$I376:$QJ376) -> 0 | M35: =LOOKUP(M$3, Calculations!$I$4:$QJ$4, Calculations!$I376:$QJ376) -> 0 | N35: =LOOKUP(N$3, Calculations!$I$4:$QJ$4, Calculations!$I376:$QJ376) -> 0 | O35: =LOOKUP(O$3, Calculations!$I$4:$QJ$4, Calculations!$I376:$QJ376) -> 0 | P35: =LOOKUP(P$3, Calculations!$I$4:$QJ$4, Calculations!$I376:$QJ376) -> 0 | Q35: =LOOKUP(Q$3, Calculations!$I$4:$QJ$4, Calculations!$I376:$QJ376) -> 0 | R35: =LOOKUP(R$3, Calculations!$I$4:$QJ$4, Calculations!$I376:$QJ376) -> 0 | S35: =LOOKUP(S$3, Calculations!$I$4:$QJ$4, Calculations!$I376:$QJ376) -> 0 | T35: =LOOKUP(T$3, Calculations!$I$4:$QJ$4, Calculations!$I376:$QJ376) -> 0 | U35: =LOOKUP(U$3, Calculations!$I$4:$QJ$4, Calculations!$I376:$QJ376) -> 0 | V35: =LOOKUP(V$3, Calculations!$I$4:$QJ$4, Calculations!$I376:$QJ376) -> 0 | W35: =LOOKUP(W$3, Calculations!$I$4:$QJ$4, Calculations!$I376:$QJ376) -> 0 | X35: =LOOKUP(X$3, Calculations!$I$4:$QJ$4, Calculations!$I376:$QJ376) -> 0 | Y35: =LOOKUP(Y$3, Calculations!$I$4:$QJ$4, Calculations!$I376:$QJ376) -> 0 | Z35: =LOOKUP(Z$3, Calculations!$I$4:$QJ$4, Calculations!$I376:$QJ376) -> 0 | AA35: =LOOKUP(AA$3, Calculations!$I$4:$QJ$4, Calculations!$I376:$QJ376) -> 0 | AB35: =LOOKUP(AB$3, Calculations!$I$4:$QJ$4, Calculations!$I376:$QJ376) -> 0 | AC35: =LOOKUP(AC$3, Calculations!$I$4:$QJ$4, Calculations!$I376:$QJ376) -> 0 | AD35: =LOOKUP(AD$3, Calculations!$I$4:$QJ$4, Calculations!$I376:$QJ376) -> 0 | AE35: =LOOKUP(AE$3, Calculations!$I$4:$QJ$4, Calculations!$I376:$QJ376) -> 0 | AF35: =LOOKUP(AF$3, Calculations!$I$4:$QJ$4, Calculations!$I376:$QJ376) -> 0 | AG35: =LOOKUP(AG$3, Calculations!$I$4:$QJ$4, Calculations!$I376:$QJ376) -> 0 | AH35: =LOOKUP(AH$3, Calculations!$I$4:$QJ$4, Calculations!$I376:$QJ376) -> 0 | AI35: =LOOKUP(AI$3, Calculations!$I$4:$QJ$4, Calculations!$I376:$QJ376) -> 0 | AJ35: =LOOKUP(AJ$3, Calculations!$I$4:$QJ$4, Calculations!$I376:$QJ376) -> 0
C36: =Calculations!C377 -> Accounts Receivable | F36: =Calculations!E377 -> EUR | I36: =LOOKUP(I$3, Calculations!$I$4:$QJ$4, Calculations!$I377:$QJ377) -> 311841.3316 | J36: =LOOKUP(J$3, Calculations!$I$4:$QJ$4, Calculations!$I377:$QJ377) -> 115743.025 | K36: =LOOKUP(K$3, Calculations!$I$4:$QJ$4, Calculations!$I377:$QJ377) -> 159587.7499 | L36: =LOOKUP(L$3, Calculations!$I$4:$QJ$4, Calculations!$I377:$QJ377) -> 115085.9473 | M36: =LOOKUP(M$3, Calculations!$I$4:$QJ$4, Calculations!$I377:$QJ377) -> 114207.8555 | N36: =LOOKUP(N$3, Calculations!$I$4:$QJ$4, Calculations!$I377:$QJ377) -> 113341.7959 | O36: =LOOKUP(O$3, Calculations!$I$4:$QJ$4, Calculations!$I377:$QJ377) -> 156758.0576 | P36: =LOOKUP(P$3, Calculations!$I$4:$QJ$4, Calculations!$I377:$QJ377) -> 111645.4271 | Q36: =LOOKUP(Q$3, Calculations!$I$4:$QJ$4, Calculations!$I377:$QJ377) -> 110489.2924 | R36: =LOOKUP(R$3, Calculations!$I$4:$QJ$4, Calculations!$I377:$QJ377) -> 109320.9063 | S36: =LOOKUP(S$3, Calculations!$I$4:$QJ$4, Calculations!$I377:$QJ377) -> 151672.1568 | T36: =LOOKUP(T$3, Calculations!$I$4:$QJ$4, Calculations!$I377:$QJ377) -> 107018.9096 | U36: =LOOKUP(U$3, Calculations!$I$4:$QJ$4, Calculations!$I377:$QJ377) -> 105885.0687 | V36: =LOOKUP(V$3, Calculations!$I$4:$QJ$4, Calculations!$I377:$QJ377) -> 104762.5144 | W36: =LOOKUP(W$3, Calculations!$I$4:$QJ$4, Calculations!$I377:$QJ377) -> 145452.4701 | X36: =LOOKUP(X$3, Calculations!$I$4:$QJ$4, Calculations!$I377:$QJ377) -> 102550.8172 | Y36: =LOOKUP(Y$3, Calculations!$I$4:$QJ$4, Calculations!$I377:$QJ377) -> 101461.453 | Z36: =LOOKUP(Z$3, Calculations!$I$4:$QJ$4, Calculations!$I377:$QJ377) -> 100382.9327 | AA36: =LOOKUP(AA$3, Calculations!$I$4:$QJ$4, Calculations!$I377:$QJ377) -> 139476.7605 | AB36: =LOOKUP(AB$3, Calculations!$I$4:$QJ$4, Calculations!$I377:$QJ377) -> 98257.9928 | AC36: =LOOKUP(AC$3, Calculations!$I$4:$QJ$4, Calculations!$I377:$QJ377) -> 97211.36063 | AD36: =LOOKUP(AD$3, Calculations!$I$4:$QJ$4, Calculations!$I377:$QJ377) -> 96175.14695 | AE36: =LOOKUP(AE$3, Calculations!$I$4:$QJ$4, Calculations!$I377:$QJ377) -> 133735.4575 | AF36: =LOOKUP(AF$3, Calculations!$I$4:$QJ$4, Calculations!$I377:$QJ377) -> 94133.56123 | AG36: =LOOKUP(AG$3, Calculations!$I$4:$QJ$4, Calculations!$I377:$QJ377) -> 93127.98486 | AH36: =LOOKUP(AH$3, Calculations!$I$4:$QJ$4, Calculations!$I377:$QJ377) -> 92132.41829 | AI36: =LOOKUP(AI$3, Calculations!$I$4:$QJ$4, Calculations!$I377:$QJ377) -> 128219.3662 | AJ36: =LOOKUP(AJ$3, Calculations!$I$4:$QJ$4, Calculations!$I377:$QJ377) -> 190208.3618
C37: =Calculations!C378 -> Total Current Assets | F37: =Calculations!E378 -> EUR | I37: =SUM(I33:I36) -> 361734.6693 | J37: =SUM(J33:J36) -> 184940.3351 | K37: 500605.044 | L37: 664236.6362 | M37: 800469.3106 | N37: 929273.3358 | O37: 1032747.644 | P37: 1161660.808 | Q37: 1265469.456 | R37: 1359837.807 | S37: 1430393.789 | T37: 1519379.816 | U37: 1584705.409 | V37: 1639899.431 | W37: 1673301.756 | X37: 1719519.272 | Y37: 1743382.02 | Z37: 1755781.216 | AA37: 1747425.2 | AB37: 1746277.519 | AC37: 833323.3541 | AD37: 1113744.21 | AE37: 1347488.264 | AF37: 1564182.943 | AG37: =SUM(AG33:AG36) -> 1762884.143 | AH37: 3930096.721 | AI37: 4421682.866 | AJ37: 4156517.072
B39: Non-Current Assets
C40: =Calculations!C381 -> Net Property, Plant and Equipment | F40: =Calculations!E381 -> EUR | I40: =LOOKUP(I$3, Calculations!$I$4:$QJ$4, Calculations!$I381:$QJ381) -> 2885765.331 | J40: =LOOKUP(J$3, Calculations!$I$4:$QJ$4, Calculations!$I381:$QJ381) -> 6495059.665 | K40: =LOOKUP(K$3, Calculations!$I$4:$QJ$4, Calculations!$I381:$QJ381) -> 7765920.746 | L40: =LOOKUP(L$3, Calculations!$I$4:$QJ$4, Calculations!$I381:$QJ381) -> 7117030.13 | M40: =LOOKUP(M$3, Calculations!$I$4:$QJ$4, Calculations!$I381:$QJ381) -> 6518054.178 | N40: =LOOKUP(N$3, Calculations!$I$4:$QJ$4, Calculations!$I381:$QJ381) -> 5919078.225 | O40: =LOOKUP(O$3, Calculations!$I$4:$QJ$4, Calculations!$I381:$QJ381) -> 5370016.935 | P40: =LOOKUP(P$3, Calculations!$I$4:$QJ$4, Calculations!$I381:$QJ381) -> 4732176.32 | Q40: =LOOKUP(Q$3, Calculations!$I$4:$QJ$4, Calculations!$I381:$QJ381) -> 4155300.367 | R40: =LOOKUP(R$3, Calculations!$I$4:$QJ$4, Calculations!$I381:$QJ381) -> 3683942.613 | S40: =LOOKUP(S$3, Calculations!$I$4:$QJ$4, Calculations!$I381:$QJ381) -> 3348589.687 | T40: =LOOKUP(T$3, Calculations!$I$4:$QJ$4, Calculations!$I381:$QJ381) -> 2952263.501 | U40: =LOOKUP(U$3, Calculations!$I$4:$QJ$4, Calculations!$I381:$QJ381) -> 2661535.989 | V40: =LOOKUP(V$3, Calculations!$I$4:$QJ$4, Calculations!$I381:$QJ381) -> 2445480.522 | W40: =LOOKUP(W$3, Calculations!$I$4:$QJ$4, Calculations!$I381:$QJ381) -> 2247429.677 | X40: =LOOKUP(X$3, Calculations!$I$4:$QJ$4, Calculations!$I381:$QJ381) -> 2075501.359 | Y40: =LOOKUP(Y$3, Calculations!$I$4:$QJ$4, Calculations!$I381:$QJ381) -> 1921577.663 | Z40: =LOOKUP(Z$3, Calculations!$I$4:$QJ$4, Calculations!$I381:$QJ381) -> 1767653.967 | AA40: =LOOKUP(AA$3, Calculations!$I$4:$QJ$4, Calculations!$I381:$QJ381) -> 1626557.246 | AB40: =LOOKUP(AB$3, Calculations!$I$4:$QJ$4, Calculations!$I381:$QJ381) -> 1459806.576 | AC40: =LOOKUP(AC$3, Calculations!$I$4:$QJ$4, Calculations!$I381:$QJ381) -> 2565532.498 | AD40: =LOOKUP(AD$3, Calculations!$I$4:$QJ$4, Calculations!$I381:$QJ381) -> 2411426.565 | AE40: =LOOKUP(AE$3, Calculations!$I$4:$QJ$4, Calculations!$I381:$QJ381) -> 2270162.794 | AF40: =LOOKUP(AF$3, Calculations!$I$4:$QJ$4, Calculations!$I381:$QJ381) -> 2103214.7 | AG40: =LOOKUP(AG$3, Calculations!$I$4:$QJ$4, Calculations!$I381:$QJ381) -> 1949108.767 | AH40: =LOOKUP(AH$3, Calculations!$I$4:$QJ$4, Calculations!$I381:$QJ381) -> 1795002.835 | AI40: =LOOKUP(AI$3, Calculations!$I$4:$QJ$4, Calculations!$I381:$QJ381) -> 1653739.063 | AJ40: =LOOKUP(AJ$3, Calculations!$I$4:$QJ$4, Calculations!$I381:$QJ381) -> 1563843.936
C41: =Calculations!C382 -> Goodwill (net of amortization) | F41: =Calculations!E382 -> EUR | I41: =LOOKUP(I$3, Calculations!$I$4:$QJ$4, Calculations!$I382:$QJ382) -> 0 | J41: =LOOKUP(J$3, Calculations!$I$4:$QJ$4, Calculations!$I382:$QJ382) -> 0 | K41: =LOOKUP(K$3, Calculations!$I$4:$QJ$4, Calculations!$I382:$QJ382) -> 0 | L41: =LOOKUP(L$3, Calculations!$I$4:$QJ$4, Calculations!$I382:$QJ382) -> 0 | M41: =LOOKUP(M$3, Calculations!$I$4:$QJ$4, Calculations!$I382:$QJ382) -> 0 | N41: =LOOKUP(N$3, Calculations!$I$4:$QJ$4, Calculations!$I382:$QJ382) -> 0 | O41: =LOOKUP(O$3, Calculations!$I$4:$QJ$4, Calculations!$I382:$QJ382) -> 0 | P41: =LOOKUP(P$3, Calculations!$I$4:$QJ$4, Calculations!$I382:$QJ382) -> 0 | Q41: =LOOKUP(Q$3, Calculations!$I$4:$QJ$4, Calculations!$I382:$QJ382) -> 0 | R41: =LOOKUP(R$3, Calculations!$I$4:$QJ$4, Calculations!$I382:$QJ382) -> 0 | S41: =LOOKUP(S$3, Calculations!$I$4:$QJ$4, Calculations!$I382:$QJ382) -> 0 | T41: =LOOKUP(T$3, Calculations!$I$4:$QJ$4, Calculations!$I382:$QJ382) -> 0 | U41: =LOOKUP(U$3, Calculations!$I$4:$QJ$4, Calculations!$I382:$QJ382) -> 0 | V41: =LOOKUP(V$3, Calculations!$I$4:$QJ$4, Calculations!$I382:$QJ382) -> 0 | W41: =LOOKUP(W$3, Calculations!$I$4:$QJ$4, Calculations!$I382:$QJ382) -> 0 | X41: =LOOKUP(X$3, Calculations!$I$4:$QJ$4, Calculations!$I382:$QJ382) -> 0 | Y41: =LOOKUP(Y$3, Calculations!$I$4:$QJ$4, Calculations!$I382:$QJ382) -> 0 | Z41: =LOOKUP(Z$3, Calculations!$I$4:$QJ$4, Calculations!$I382:$QJ382) -> 0 | AA41: =LOOKUP(AA$3, Calculations!$I$4:$QJ$4, Calculations!$I382:$QJ382) -> 0 | AB41: =LOOKUP(AB$3, Calculations!$I$4:$QJ$4, Calculations!$I382:$QJ382) -> 0 | AC41: =LOOKUP(AC$3, Calculations!$I$4:$QJ$4, Calculations!$I382:$QJ382) -> 0 | AD41: =LOOKUP(AD$3, Calculations!$I$4:$QJ$4, Calculations!$I382:$QJ382) -> 0 | AE41: =LOOKUP(AE$3, Calculations!$I$4:$QJ$4, Calculations!$I382:$QJ382) -> 0 | AF41: =LOOKUP(AF$3, Calculations!$I$4:$QJ$4, Calculations!$I382:$QJ382) -> 0 | AG41: =LOOKUP(AG$3, Calculations!$I$4:$QJ$4, Calculations!$I382:$QJ382) -> 0 | AH41: =LOOKUP(AH$3, Calculations!$I$4:$QJ$4, Calculations!$I382:$QJ382) -> 0 | AI41: =LOOKUP(AI$3, Calculations!$I$4:$QJ$4, Calculations!$I382:$QJ382) -> 0 | AJ41: =LOOKUP(AJ$3, Calculations!$I$4:$QJ$4, Calculations!$I382:$QJ382) -> 0
C42: =Calculations!C383 -> Deferred Tax Asset | F42: =Calculations!E383 -> EUR | I42: =LOOKUP(I$3, Calculations!$I$4:$QJ$4, Calculations!$I383:$QJ383) -> 0 | J42: =LOOKUP(J$3, Calculations!$I$4:$QJ$4, Calculations!$I383:$QJ383) -> 0 | K42: =LOOKUP(K$3, Calculations!$I$4:$QJ$4, Calculations!$I383:$QJ383) -> 22984.90963 | L42: =LOOKUP(L$3, Calculations!$I$4:$QJ$4, Calculations!$I383:$QJ383) -> 117259.3079 | M42: =LOOKUP(M$3, Calculations!$I$4:$QJ$4, Calculations!$I383:$QJ383) -> 196035.9593 | N42: =LOOKUP(N$3, Calculations!$I$4:$QJ$4, Calculations!$I383:$QJ383) -> 273708.3718 | O42: =LOOKUP(O$3, Calculations!$I$4:$QJ$4, Calculations!$I383:$QJ383) -> 335947.4873 | P42: =LOOKUP(P$3, Calculations!$I$4:$QJ$4, Calculations!$I383:$QJ383) -> 425434.9128 | Q42: =LOOKUP(Q$3, Calculations!$I$4:$QJ$4, Calculations!$I383:$QJ383) -> 499002.6282 | R42: =LOOKUP(R$3, Calculations!$I$4:$QJ$4, Calculations!$I383:$QJ383) -> 570902.527 | S42: =LOOKUP(S$3, Calculations!$I$4:$QJ$4, Calculations!$I383:$QJ383) -> 627209.6686 | T42: =LOOKUP(T$3, Calculations!$I$4:$QJ$4, Calculations!$I383:$QJ383) -> 708681.4214 | U42: =LOOKUP(U$3, Calculations!$I$4:$QJ$4, Calculations!$I383:$QJ383) -> 706547.5364 | V42: =LOOKUP(V$3, Calculations!$I$4:$QJ$4, Calculations!$I383:$QJ383) -> 634210.5519 | W42: =LOOKUP(W$3, Calculations!$I$4:$QJ$4, Calculations!$I383:$QJ383) -> 557233.0705 | X42: =LOOKUP(X$3, Calculations!$I$4:$QJ$4, Calculations!$I383:$QJ383) -> 479256.9445 | Y42: =LOOKUP(Y$3, Calculations!$I$4:$QJ$4, Calculations!$I383:$QJ383) -> 395757.5623 | Z42: =LOOKUP(Z$3, Calculations!$I$4:$QJ$4, Calculations!$I383:$QJ383) -> 307643.4858 | AA42: =LOOKUP(AA$3, Calculations!$I$4:$QJ$4, Calculations!$I383:$QJ383) -> 214723.2733 | AB42: =LOOKUP(AB$3, Calculations!$I$4:$QJ$4, Calculations!$I383:$QJ383) -> 114968.8224 | AC42: =LOOKUP(AC$3, Calculations!$I$4:$QJ$4, Calculations!$I383:$QJ383) -> 27029.1014 | AD42: =LOOKUP(AD$3, Calculations!$I$4:$QJ$4, Calculations!$I383:$QJ383) -> 0 | AE42: =LOOKUP(AE$3, Calculations!$I$4:$QJ$4, Calculations!$I383:$QJ383) -> 0 | AF42: =LOOKUP(AF$3, Calculations!$I$4:$QJ$4, Calculations!$I383:$QJ383) -> 0 | AG42: =LOOKUP(AG$3, Calculations!$I$4:$QJ$4, Calculations!$I383:$QJ383) -> 0 | AH42: =LOOKUP(AH$3, Calculations!$I$4:$QJ$4, Calculations!$I383:$QJ383) -> 917.8132719 | AI42: =LOOKUP(AI$3, Calculations!$I$4:$QJ$4, Calculations!$I383:$QJ383) -> 0 | AJ42: =LOOKUP(AJ$3, Calculations!$I$4:$QJ$4, Calculations!$I383:$QJ383) -> 77632.22046
C43: =Calculations!C384 -> Total Non-Current Assets | F43: =Calculations!E384 -> EUR | I43: =SUM(I40:I42) -> 2885765.331 | J43: =SUM(J40:J42) -> 6495059.665 | K43: 7788905.655 | L43: 7234289.438 | M43: 6714090.137 | N43: 6192786.597 | O43: 5705964.422 | P43: 5157611.233 | Q43: 4654302.995 | R43: 4254845.14 | S43: 3975799.355 | T43: 3660944.922 | U43: 3368083.526 | V43: 3079691.074 | W43: 2804662.748 | X43: 2554758.304 | Y43: 2317335.226 | Z43: 2075297.453 | AA43: 1841280.52 | AB43: 1574775.398 | AC43: 2592561.599 | AD43: 2411426.565 | AE43: 2270162.794 | AF43: 2103214.7 | AG43: =SUM(AG40:AG42) -> 1949108.767 | AH43: 1795920.648 | AI43: 1653739.063 | AJ43: 1641476.156
B45: Total Assets | F45: =Calculations!E386 -> EUR | I45: =I37+I43 -> 3247500 | J45: =J37+J43 -> 6680000 | K45: 8289510.699 | L45: 7898526.075 | M45: 7514559.448 | N45: 7122059.933 | O45: 6738712.066 | P45: 6319272.04 | Q45: 5919772.451 | R45: 5614682.947 | S45: 5406193.144 | T45: 5180324.738 | U45: 4952788.935 | V45: 4719590.505 | W45: 4477964.503 | X45: 4274277.575 | Y45: 4060717.245 | Z45: 3831078.669 | AA45: 3588705.72 | AB45: 3321052.917 | AC45: 3425884.953 | AD45: 3525170.775 | AE45: 3617651.058 | AF45: 3667397.643 | AG45: =AG37+AG43 -> 3711992.91 | AH45: 5726017.369 | AI45: 6075421.929 | AJ45: 5797993.228
B47: Current Liabilities
C48: =Calculations!C389 -> Accounts Payable | F48: =Calculations!E389 -> EUR | I48: =LOOKUP(I$3, Calculations!$I$4:$QJ$4, Calculations!$I389:$QJ389) -> 0 | J48: =LOOKUP(J$3, Calculations!$I$4:$QJ$4, Calculations!$I389:$QJ389) -> 0 | K48: =LOOKUP(K$3, Calculations!$I$4:$QJ$4, Calculations!$I389:$QJ389) -> 2210.242029 | L48: =LOOKUP(L$3, Calculations!$I$4:$QJ$4, Calculations!$I389:$QJ389) -> 2265.49808 | M48: =LOOKUP(M$3, Calculations!$I$4:$QJ$4, Calculations!$I389:$QJ389) -> 2322.135532 | N48: =LOOKUP(N$3, Calculations!$I$4:$QJ$4, Calculations!$I389:$QJ389) -> 2380.18892 | O48: =LOOKUP(O$3, Calculations!$I$4:$QJ$4, Calculations!$I389:$QJ389) -> 2439.693643 | P48: =LOOKUP(P$3, Calculations!$I$4:$QJ$4, Calculations!$I389:$QJ389) -> 2500.685984 | Q48: =LOOKUP(Q$3, Calculations!$I$4:$QJ$4, Calculations!$I389:$QJ389) -> 2563.203134 | R48: =LOOKUP(R$3, Calculations!$I$4:$QJ$4, Calculations!$I389:$QJ389) -> 2627.283212 | S48: =LOOKUP(S$3, Calculations!$I$4:$QJ$4, Calculations!$I389:$QJ389) -> 2692.965293 | T48: =LOOKUP(T$3, Calculations!$I$4:$QJ$4, Calculations!$I389:$QJ389) -> 2760.289425 | U48: =LOOKUP(U$3, Calculations!$I$4:$QJ$4, Calculations!$I389:$QJ389) -> 2829.296661 | V48: =LOOKUP(V$3, Calculations!$I$4:$QJ$4, Calculations!$I389:$QJ389) -> 2900.029077 | W48: =LOOKUP(W$3, Calculations!$I$4:$QJ$4, Calculations!$I389:$QJ389) -> 2972.529804 | X48: =LOOKUP(X$3, Calculations!$I$4:$QJ$4, Calculations!$I389:$QJ389) -> 3046.843049 | Y48: =LOOKUP(Y$3, Calculations!$I$4:$QJ$4, Calculations!$I389:$QJ389) -> 3123.014125 | Z48: =LOOKUP(Z$3, Calculations!$I$4:$QJ$4, Calculations!$I389:$QJ389) -> 3201.089478 | AA48: =LOOKUP(AA$3, Calculations!$I$4:$QJ$4, Calculations!$I389:$QJ389) -> 3281.116715 | AB48: =LOOKUP(AB$3, Calculations!$I$4:$QJ$4, Calculations!$I389:$QJ389) -> 3363.144633 | AC48: =LOOKUP(AC$3, Calculations!$I$4:$QJ$4, Calculations!$I389:$QJ389) -> 3447.223249 | AD48: =LOOKUP(AD$3, Calculations!$I$4:$QJ$4, Calculations!$I389:$QJ389) -> 7575.588393 | AE48: =LOOKUP(AE$3, Calculations!$I$4:$QJ$4, Calculations!$I389:$QJ389) -> 10486.10287 | AF48: =LOOKUP(AF$3, Calculations!$I$4:$QJ$4, Calculations!$I389:$QJ389) -> 8722.759397 | AG48: =LOOKUP(AG$3, Calculations!$I$4:$QJ$4, Calculations!$I389:$QJ389) -> 9420.801144 | AH48: =LOOKUP(AH$3, Calculations!$I$4:$QJ$4, Calculations!$I389:$QJ389) -> 6716.484993 | AI48: =LOOKUP(AI$3, Calculations!$I$4:$QJ$4, Calculations!$I389:$QJ389) -> 9081.598264 | AJ48: =LOOKUP(AJ$3, Calculations!$I$4:$QJ$4, Calculations!$I389:$QJ389) -> 12689.16553
C49: =Calculations!C390 -> Accrued Interest: Subordinated Debt | F49: =Calculations!E390 -> EUR | I49: =LOOKUP(I$3, Calculations!$I$4:$QJ$4, Calculations!$I390:$QJ390) -> 0 | J49: =LOOKUP(J$3, Calculations!$I$4:$QJ$4, Calculations!$I390:$QJ390) -> 0 | K49: =LOOKUP(K$3, Calculations!$I$4:$QJ$4, Calculations!$I390:$QJ390) -> 20668.37749 | L49: =LOOKUP(L$3, Calculations!$I$4:$QJ$4, Calculations!$I390:$QJ390) -> 40818.14468 | M49: =LOOKUP(M$3, Calculations!$I$4:$QJ$4, Calculations!$I390:$QJ390) -> 40000.86516 | N49: =LOOKUP(N$3, Calculations!$I$4:$QJ$4, Calculations!$I390:$QJ390) -> 39079.93414 | O49: =LOOKUP(O$3, Calculations!$I$4:$QJ$4, Calculations!$I390:$QJ390) -> 18926.47066 | P49: =LOOKUP(P$3, Calculations!$I$4:$QJ$4, Calculations!$I390:$QJ390) -> 36872.86801 | Q49: =LOOKUP(Q$3, Calculations!$I$4:$QJ$4, Calculations!$I390:$QJ390) -> 35555.22866 | R49: =LOOKUP(R$3, Calculations!$I$4:$QJ$4, Calculations!$I390:$QJ390) -> 34070.47966 | S49: =LOOKUP(S$3, Calculations!$I$4:$QJ$4, Calculations!$I390:$QJ390) -> 16118.12305 | T49: =LOOKUP(T$3, Calculations!$I$4:$QJ$4, Calculations!$I390:$QJ390) -> 30512.19008 | U49: =LOOKUP(U$3, Calculations!$I$4:$QJ$4, Calculations!$I390:$QJ390) -> 28387.85756 | V49: =LOOKUP(V$3, Calculations!$I$4:$QJ$4, Calculations!$I390:$QJ390) -> 25994.1065 | W49: =LOOKUP(W$3, Calculations!$I$4:$QJ$4, Calculations!$I390:$QJ390) -> 11590.43179 | X49: =LOOKUP(X$3, Calculations!$I$4:$QJ$4, Calculations!$I390:$QJ390) -> 20257.33925 | Y49: =LOOKUP(Y$3, Calculations!$I$4:$QJ$4, Calculations!$I390:$QJ390) -> 16832.43496 | Z49: =LOOKUP(Z$3, Calculations!$I$4:$QJ$4, Calculations!$I390:$QJ390) -> 12973.16709 | AA49: =LOOKUP(AA$3, Calculations!$I$4:$QJ$4, Calculations!$I390:$QJ390) -> 4290.769877 | AB49: =LOOKUP(AB$3, Calculations!$I$4:$QJ$4, Calculations!$I390:$QJ390) -> 3724.201317 | AC49: =LOOKUP(AC$3, Calculations!$I$4:$QJ$4, Calculations!$I390:$QJ390) -> -1797.518683 | AD49: =LOOKUP(AD$3, Calculations!$I$4:$QJ$4, Calculations!$I390:$QJ390) -> -8019.530989 | AE49: =LOOKUP(AE$3, Calculations!$I$4:$QJ$4, Calculations!$I390:$QJ390) -> -7477.935419 | AF49: =LOOKUP(AF$3, Calculations!$I$4:$QJ$4, Calculations!$I390:$QJ390) -> -22930.9548 | AG49: =LOOKUP(AG$3, Calculations!$I$4:$QJ$4, Calculations!$I390:$QJ390) -> -31833.21578 | AH49: =LOOKUP(AH$3, Calculations!$I$4:$QJ$4, Calculations!$I390:$QJ390) -> 0 | AI49: =LOOKUP(AI$3, Calculations!$I$4:$QJ$4, Calculations!$I390:$QJ390) -> 0 | AJ49: =LOOKUP(AJ$3, Calculations!$I$4:$QJ$4, Calculations!$I390:$QJ390) -> 0
C50: =Calculations!C391 -> Accrued Interest: Senior Debt | F50: =Calculations!E391 -> EUR | I50: =LOOKUP(I$3, Calculations!$I$4:$QJ$4, Calculations!$I391:$QJ391) -> 0 | J50: =LOOKUP(J$3, Calculations!$I$4:$QJ$4, Calculations!$I391:$QJ391) -> 0 | K50: =LOOKUP(K$3, Calculations!$I$4:$QJ$4, Calculations!$I391:$QJ391) -> 18947.07115 | L50: =LOOKUP(L$3, Calculations!$I$4:$QJ$4, Calculations!$I391:$QJ391) -> 36645.32081 | M50: =LOOKUP(M$3, Calculations!$I$4:$QJ$4, Calculations!$I391:$QJ391) -> 35234.31673 | N50: =LOOKUP(N$3, Calculations!$I$4:$QJ$4, Calculations!$I391:$QJ391) -> 33743.72092 | O50: =LOOKUP(O$3, Calculations!$I$4:$QJ$4, Calculations!$I391:$QJ391) -> 16047.74581 | P50: =LOOKUP(P$3, Calculations!$I$4:$QJ$4, Calculations!$I391:$QJ391) -> 30505.5425 | Q50: =LOOKUP(Q$3, Calculations!$I$4:$QJ$4, Calculations!$I391:$QJ391) -> 28748.20665 | R50: =LOOKUP(R$3, Calculations!$I$4:$QJ$4, Calculations!$I391:$QJ391) -> 26891.74325 | S50: =LOOKUP(S$3, Calculations!$I$4:$QJ$4, Calculations!$I391:$QJ391) -> 12436.77941 | T50: =LOOKUP(T$3, Calculations!$I$4:$QJ$4, Calculations!$I391:$QJ391) -> 22858.75209 | U50: =LOOKUP(U$3, Calculations!$I$4:$QJ$4, Calculations!$I391:$QJ391) -> 20670.07716 | V50: =LOOKUP(V$3, Calculations!$I$4:$QJ$4, Calculations!$I391:$QJ391) -> 18357.94376 | W50: =LOOKUP(W$3, Calculations!$I$4:$QJ$4, Calculations!$I391:$QJ391) -> 7939.499245 | X50: =LOOKUP(X$3, Calculations!$I$4:$QJ$4, Calculations!$I391:$QJ391) -> 13335.05261 | Y50: =LOOKUP(Y$3, Calculations!$I$4:$QJ$4, Calculations!$I391:$QJ391) -> 10609.16617 | Z50: =LOOKUP(Z$3, Calculations!$I$4:$QJ$4, Calculations!$I391:$QJ391) -> 7729.51831 | AA50: =LOOKUP(AA$3, Calculations!$I$4:$QJ$4, Calculations!$I391:$QJ391) -> 2338.359097 | AB50: =LOOKUP(AB$3, Calculations!$I$4:$QJ$4, Calculations!$I391:$QJ391) -> 1473.755665 | AC50: =LOOKUP(AC$3, Calculations!$I$4:$QJ$4, Calculations!$I391:$QJ391) -> 0 | AD50: =LOOKUP(AD$3, Calculations!$I$4:$QJ$4, Calculations!$I391:$QJ391) -> 0 | AE50: =LOOKUP(AE$3, Calculations!$I$4:$QJ$4, Calculations!$I391:$QJ391) -> 0 | AF50: =LOOKUP(AF$3, Calculations!$I$4:$QJ$4, Calculations!$I391:$QJ391) -> 0 | AG50: =LOOKUP(AG$3, Calculations!$I$4:$QJ$4, Calculations!$I391:$QJ391) -> 0 | AH50: =LOOKUP(AH$3, Calculations!$I$4:$QJ$4, Calculations!$I391:$QJ391) -> 0 | AI50: =LOOKUP(AI$3, Calculations!$I$4:$QJ$4, Calculations!$I391:$QJ391) -> 0 | AJ50: =LOOKUP(AJ$3, Calculations!$I$4:$QJ$4, Calculations!$I391:$QJ391) -> 0
C51: =Calculations!C392 -> Income Tax Payable | F51: =Calculations!E392 -> EUR | I51: =LOOKUP(I$3, Calculations!$I$4:$QJ$4, Calculations!$I392:$QJ392) -> 0 | J51: =LOOKUP(J$3, Calculations!$I$4:$QJ$4, Calculations!$I392:$QJ392) -> 0 | K51: =LOOKUP(K$3, Calculations!$I$4:$QJ$4, Calculations!$I392:$QJ392) -> 0 | L51: =LOOKUP(L$3, Calculations!$I$4:$QJ$4, Calculations!$I392:$QJ392) -> 0 | M51: =LOOKUP(M$3, Calculations!$I$4:$QJ$4, Calculations!$I392:$QJ392) -> 0 | N51: =LOOKUP(N$3, Calculations!$I$4:$QJ$4, Calculations!$I392:$QJ392) -> 0 | O51: =LOOKUP(O$3, Calculations!$I$4:$QJ$4, Calculations!$I392:$QJ392) -> 0 | P51: =LOOKUP(P$3, Calculations!$I$4:$QJ$4, Calculations!$I392:$QJ392) -> 0 | Q51: =LOOKUP(Q$3, Calculations!$I$4:$QJ$4, Calculations!$I392:$QJ392) -> 0 | R51: =LOOKUP(R$3, Calculations!$I$4:$QJ$4, Calculations!$I392:$QJ392) -> 0 | S51: =LOOKUP(S$3, Calculations!$I$4:$QJ$4, Calculations!$I392:$QJ392) -> 0 | T51: =LOOKUP(T$3, Calculations!$I$4:$QJ$4, Calculations!$I392:$QJ392) -> 0 | U51: =LOOKUP(U$3, Calculations!$I$4:$QJ$4, Calculations!$I392:$QJ392) -> 0 | V51: =LOOKUP(V$3, Calculations!$I$4:$QJ$4, Calculations!$I392:$QJ392) -> 0 | W51: =LOOKUP(W$3, Calculations!$I$4:$QJ$4, Calculations!$I392:$QJ392) -> 0 | X51: =LOOKUP(X$3, Calculations!$I$4:$QJ$4, Calculations!$I392:$QJ392) -> 0 | Y51: =LOOKUP(Y$3, Calculations!$I$4:$QJ$4, Calculations!$I392:$QJ392) -> 0 | Z51: =LOOKUP(Z$3, Calculations!$I$4:$QJ$4, Calculations!$I392:$QJ392) -> 0 | AA51: =LOOKUP(AA$3, Calculations!$I$4:$QJ$4, Calculations!$I392:$QJ392) -> 0 | AB51: =LOOKUP(AB$3, Calculations!$I$4:$QJ$4, Calculations!$I392:$QJ392) -> 0 | AC51: =LOOKUP(AC$3, Calculations!$I$4:$QJ$4, Calculations!$I392:$QJ392) -> 0 | AD51: =LOOKUP(AD$3, Calculations!$I$4:$QJ$4, Calculations!$I392:$QJ392) -> 164.0008747 | AE51: =LOOKUP(AE$3, Calculations!$I$4:$QJ$4, Calculations!$I392:$QJ392) -> 4489.099017 | AF51: =LOOKUP(AF$3, Calculations!$I$4:$QJ$4, Calculations!$I392:$QJ392) -> 1220.913409 | AG51: =LOOKUP(AG$3, Calculations!$I$4:$QJ$4, Calculations!$I392:$QJ392) -> 1871.099583 | AH51: =LOOKUP(AH$3, Calculations!$I$4:$QJ$4, Calculations!$I392:$QJ392) -> 0 | AI51: =LOOKUP(AI$3, Calculations!$I$4:$QJ$4, Calculations!$I392:$QJ392) -> 2677.556421 | AJ51: =LOOKUP(AJ$3, Calculations!$I$4:$QJ$4, Calculations!$I392:$QJ392) -> 0
C52: =Calculations!C393 -> Current Portion of Subordinated Debt | F52: =Calculations!E393 -> EUR | I52: =LOOKUP(I$3, Calculations!$I$4:$QJ$4, Calculations!$I393:$QJ393) -> 0 | J52: =LOOKUP(J$3, Calculations!$I$4:$QJ$4, Calculations!$I393:$QJ393) -> 0 | K52: =LOOKUP(K$3, Calculations!$I$4:$QJ$4, Calculations!$I393:$QJ393) -> 36084.28225 | L52: =LOOKUP(L$3, Calculations!$I$4:$QJ$4, Calculations!$I393:$QJ393) -> 40660.67244 | M52: =LOOKUP(M$3, Calculations!$I$4:$QJ$4, Calculations!$I393:$QJ393) -> 45817.46344 | N52: =LOOKUP(N$3, Calculations!$I$4:$QJ$4, Calculations!$I393:$QJ393) -> 51628.26463 | O52: =LOOKUP(O$3, Calculations!$I$4:$QJ$4, Calculations!$I393:$QJ393) -> 58176.02084 | P52: =LOOKUP(P$3, Calculations!$I$4:$QJ$4, Calculations!$I393:$QJ393) -> 65554.19644 | Q52: =LOOKUP(Q$3, Calculations!$I$4:$QJ$4, Calculations!$I393:$QJ393) -> 73868.10938 | R52: =LOOKUP(R$3, Calculations!$I$4:$QJ$4, Calculations!$I393:$QJ393) -> 83236.43457 | S52: =LOOKUP(S$3, Calculations!$I$4:$QJ$4, Calculations!$I393:$QJ393) -> 93792.8979 | T52: =LOOKUP(T$3, Calculations!$I$4:$QJ$4, Calculations!$I393:$QJ393) -> 105688.185 | U52: =LOOKUP(U$3, Calculations!$I$4:$QJ$4, Calculations!$I393:$QJ393) -> 119092.0922 | V52: =LOOKUP(V$3, Calculations!$I$4:$QJ$4, Calculations!$I393:$QJ393) -> 134195.9504 | W52: =LOOKUP(W$3, Calculations!$I$4:$QJ$4, Calculations!$I393:$QJ393) -> 151215.3559 | X52: =LOOKUP(X$3, Calculations!$I$4:$QJ$4, Calculations!$I393:$QJ393) -> 170393.248 | Y52: =LOOKUP(Y$3, Calculations!$I$4:$QJ$4, Calculations!$I393:$QJ393) -> 192003.3768 | Z52: =LOOKUP(Z$3, Calculations!$I$4:$QJ$4, Calculations!$I393:$QJ393) -> 216354.2108 | AA52: =LOOKUP(AA$3, Calculations!$I$4:$QJ$4, Calculations!$I393:$QJ393) -> 243793.3401 | AB52: =LOOKUP(AB$3, Calculations!$I$4:$QJ$4, Calculations!$I393:$QJ393) -> 185283.6476 | AC52: =LOOKUP(AC$3, Calculations!$I$4:$QJ$4, Calculations!$I393:$QJ393) -> -89428.79022 | AD52: =LOOKUP(AD$3, Calculations!$I$4:$QJ$4, Calculations!$I393:$QJ393) -> -398981.6412 | AE52: =LOOKUP(AE$3, Calculations!$I$4:$QJ$4, Calculations!$I393:$QJ393) -> -747793.5419 | AF52: =LOOKUP(AF$3, Calculations!$I$4:$QJ$4, Calculations!$I393:$QJ393) -> -1140843.522 | AG52: =LOOKUP(AG$3, Calculations!$I$4:$QJ$4, Calculations!$I393:$QJ393) -> -1583742.079 | AH52: =LOOKUP(AH$3, Calculations!$I$4:$QJ$4, Calculations!$I393:$QJ393) -> 0 | AI52: =LOOKUP(AI$3, Calculations!$I$4:$QJ$4, Calculations!$I393:$QJ393) -> 0 | AJ52: =LOOKUP(AJ$3, Calculations!$I$4:$QJ$4, Calculations!$I393:$QJ393) -> 0
C53: =Calculations!C394 -> Current Portion of Senior Debt | F53: =Calculations!E394 -> EUR | I53: =LOOKUP(I$3, Calculations!$I$4:$QJ$4, Calculations!$I394:$QJ394) -> 135000 | J53: =LOOKUP(J$3, Calculations!$I$4:$QJ$4, Calculations!$I394:$QJ394) -> 16093.5665 | K53: =LOOKUP(K$3, Calculations!$I$4:$QJ$4, Calculations!$I394:$QJ394) -> 145375.4556 | L53: =LOOKUP(L$3, Calculations!$I$4:$QJ$4, Calculations!$I394:$QJ394) -> 153575.774 | M53: =LOOKUP(M$3, Calculations!$I$4:$QJ$4, Calculations!$I394:$QJ394) -> 162238.6548 | N53: =LOOKUP(N$3, Calculations!$I$4:$QJ$4, Calculations!$I394:$QJ394) -> 171390.1902 | O53: =LOOKUP(O$3, Calculations!$I$4:$QJ$4, Calculations!$I394:$QJ394) -> 181057.9441 | P53: =LOOKUP(P$3, Calculations!$I$4:$QJ$4, Calculations!$I394:$QJ394) -> 191271.0353 | Q53: =LOOKUP(Q$3, Calculations!$I$4:$QJ$4, Calculations!$I394:$QJ394) -> 202060.2252 | R53: =LOOKUP(R$3, Calculations!$I$4:$QJ$4, Calculations!$I394:$QJ394) -> 213458.0102 | S53: =LOOKUP(S$3, Calculations!$I$4:$QJ$4, Calculations!$I394:$QJ394) -> 225498.7198 | T53: =LOOKUP(T$3, Calculations!$I$4:$QJ$4, Calculations!$I394:$QJ394) -> 238218.6201 | U53: =LOOKUP(U$3, Calculations!$I$4:$QJ$4, Calculations!$I394:$QJ394) -> 251656.0228 | V53: =LOOKUP(V$3, Calculations!$I$4:$QJ$4, Calculations!$I394:$QJ394) -> 265851.4006 | W53: =LOOKUP(W$3, Calculations!$I$4:$QJ$4, Calculations!$I394:$QJ394) -> 280847.5093 | X53: =LOOKUP(X$3, Calculations!$I$4:$QJ$4, Calculations!$I394:$QJ394) -> 296689.5164 | Y53: =LOOKUP(Y$3, Calculations!$I$4:$QJ$4, Calculations!$I394:$QJ394) -> 313425.1372 | Z53: =LOOKUP(Z$3, Calculations!$I$4:$QJ$4, Calculations!$I394:$QJ394) -> 331104.7786 | AA53: =LOOKUP(AA$3, Calculations!$I$4:$QJ$4, Calculations!$I394:$QJ394) -> 349781.6907 | AB53: =LOOKUP(AB$3, Calculations!$I$4:$QJ$4, Calculations!$I394:$QJ394) -> 160405.7487 | AC53: =LOOKUP(AC$3, Calculations!$I$4:$QJ$4, Calculations!$I394:$QJ394) -> 0 | AD53: =LOOKUP(AD$3, Calculations!$I$4:$QJ$4, Calculations!$I394:$QJ394) -> 0 | AE53: =LOOKUP(AE$3, Calculations!$I$4:$QJ$4, Calculations!$I394:$QJ394) -> 0 | AF53: =LOOKUP(AF$3, Calculations!$I$4:$QJ$4, Calculations!$I394:$QJ394) -> 0 | AG53: =LOOKUP(AG$3, Calculations!$I$4:$QJ$4, Calculations!$I394:$QJ394) -> 0 | AH53: =LOOKUP(AH$3, Calculations!$I$4:$QJ$4, Calculations!$I394:$QJ394) -> 0 | AI53: =LOOKUP(AI$3, Calculations!$I$4:$QJ$4, Calculations!$I394:$QJ394) -> 0 | AJ53: =LOOKUP(AJ$3, Calculations!$I$4:$QJ$4, Calculations!$I394:$QJ394) -> 0
C54: =Calculations!C395 -> Total Current Liabilities | F54: =Calculations!E395 -> EUR | I54: =SUM(I48:I53) -> 135000 | J54: =SUM(J48:J53) -> 16093.5665 | K54: 223285.4285 | L54: 273965.41 | M54: 285613.4357 | N54: 298222.2988 | O54: 276647.8751 | P54: 326704.3283 | Q54: 342794.973 | R54: 360283.9509 | S54: 350539.4855 | T54: 400038.0367 | U54: 422635.3464 | V54: 447299.4304 | W54: 454565.326 | X54: 503721.9992 | Y54: 535993.1292 | Z54: 571362.7642 | AA54: 603485.2765 | AB54: 354250.4979 | AC54: -87779.08565 | AD54: -399261.583 | AE54: -740296.2755 | AF54: -1153830.804 | AG54: =SUM(AG48:AG53) -> -1604283.394 | AH54: 6716.484993 | AI54: 11759.15469 | AJ54: 12689.16553
B56: Non-Current Liabilities
C57: =Calculations!C398 -> Subordinated Debt | F57: =Calculations!E398 -> EUR | I57: =LOOKUP(I$3, Calculations!$I$4:$QJ$4, Calculations!$I398:$QJ398) -> 1037500 | J57: =LOOKUP(J$3, Calculations!$I$4:$QJ$4, Calculations!$I398:$QJ398) -> 2075000 | K57: =LOOKUP(K$3, Calculations!$I$4:$QJ$4, Calculations!$I398:$QJ398) -> 2030753.466 | L57: =LOOKUP(L$3, Calculations!$I$4:$QJ$4, Calculations!$I398:$QJ398) -> 1990092.794 | M57: =LOOKUP(M$3, Calculations!$I$4:$QJ$4, Calculations!$I398:$QJ398) -> 1944275.331 | N57: =LOOKUP(N$3, Calculations!$I$4:$QJ$4, Calculations!$I398:$QJ398) -> 1892647.066 | O57: =LOOKUP(O$3, Calculations!$I$4:$QJ$4, Calculations!$I398:$QJ398) -> 1834471.045 | P57: =LOOKUP(P$3, Calculations!$I$4:$QJ$4, Calculations!$I398:$QJ398) -> 1768916.849 | Q57: =LOOKUP(Q$3, Calculations!$I$4:$QJ$4, Calculations!$I398:$QJ398) -> 1695048.739 | R57: =LOOKUP(R$3, Calculations!$I$4:$QJ$4, Calculations!$I398:$QJ398) -> 1611812.305 | S57: =LOOKUP(S$3, Calculations!$I$4:$QJ$4, Calculations!$I398:$QJ398) -> 1518019.407 | T57: =LOOKUP(T$3, Calculations!$I$4:$QJ$4, Calculations!$I398:$QJ398) -> 1412331.222 | U57: =LOOKUP(U$3, Calculations!$I$4:$QJ$4, Calculations!$I398:$QJ398) -> 1293239.13 | V57: =LOOKUP(V$3, Calculations!$I$4:$QJ$4, Calculations!$I398:$QJ398) -> 1159043.179 | W57: =LOOKUP(W$3, Calculations!$I$4:$QJ$4, Calculations!$I398:$QJ398) -> 1007827.823 | X57: =LOOKUP(X$3, Calculations!$I$4:$QJ$4, Calculations!$I398:$QJ398) -> 837434.5753 | Y57: =LOOKUP(Y$3, Calculations!$I$4:$QJ$4, Calculations!$I398:$QJ398) -> 645431.1985 | Z57: =LOOKUP(Z$3, Calculations!$I$4:$QJ$4, Calculations!$I398:$QJ398) -> 429076.9877 | AA57: =LOOKUP(AA$3, Calculations!$I$4:$QJ$4, Calculations!$I398:$QJ398) -> 185283.6476 | AB57: =LOOKUP(AB$3, Calculations!$I$4:$QJ$4, Calculations!$I398:$QJ398) -> 0 | AC57: =LOOKUP(AC$3, Calculations!$I$4:$QJ$4, Calculations!$I398:$QJ398) -> 0 | AD57: =LOOKUP(AD$3, Calculations!$I$4:$QJ$4, Calculations!$I398:$QJ398) -> 0 | AE57: =LOOKUP(AE$3, Calculations!$I$4:$QJ$4, Calculations!$I398:$QJ398) -> 0 | AF57: =LOOKUP(AF$3, Calculations!$I$4:$QJ$4, Calculations!$I398:$QJ398) -> 0 | AG57: =LOOKUP(AG$3, Calculations!$I$4:$QJ$4, Calculations!$I398:$QJ398) -> 0 | AH57: =LOOKUP(AH$3, Calculations!$I$4:$QJ$4, Calculations!$I398:$QJ398) -> 0 | AI57: =LOOKUP(AI$3, Calculations!$I$4:$QJ$4, Calculations!$I398:$QJ398) -> 0 | AJ57: =LOOKUP(AJ$3, Calculations!$I$4:$QJ$4, Calculations!$I398:$QJ398) -> 0
C58: =Calculations!C399 -> Long-Term Senior Debt | F58: =Calculations!E399 -> EUR | I58: =LOOKUP(I$3, Calculations!$I$4:$QJ$4, Calculations!$I399:$QJ399) -> 0 | J58: =LOOKUP(J$3, Calculations!$I$4:$QJ$4, Calculations!$I399:$QJ399) -> 2513906.433 | K58: =LOOKUP(K$3, Calculations!$I$4:$QJ$4, Calculations!$I399:$QJ399) -> 3988530.978 | L58: =LOOKUP(L$3, Calculations!$I$4:$QJ$4, Calculations!$I399:$QJ399) -> 3834955.204 | M58: =LOOKUP(M$3, Calculations!$I$4:$QJ$4, Calculations!$I399:$QJ399) -> 3672716.549 | N58: =LOOKUP(N$3, Calculations!$I$4:$QJ$4, Calculations!$I399:$QJ399) -> 3501326.359 | O58: =LOOKUP(O$3, Calculations!$I$4:$QJ$4, Calculations!$I399:$QJ399) -> 3320268.415 | P58: =LOOKUP(P$3, Calculations!$I$4:$QJ$4, Calculations!$I399:$QJ399) -> 3128997.379 | Q58: =LOOKUP(Q$3, Calculations!$I$4:$QJ$4, Calculations!$I399:$QJ399) -> 2926937.154 | R58: =LOOKUP(R$3, Calculations!$I$4:$QJ$4, Calculations!$I399:$QJ399) -> 2713479.144 | S58: =LOOKUP(S$3, Calculations!$I$4:$QJ$4, Calculations!$I399:$QJ399) -> 2487980.424 | T58: =LOOKUP(T$3, Calculations!$I$4:$QJ$4, Calculations!$I399:$QJ399) -> 2249761.804 | U58: =LOOKUP(U$3, Calculations!$I$4:$QJ$4, Calculations!$I399:$QJ399) -> 1998105.781 | V58: =LOOKUP(V$3, Calculations!$I$4:$QJ$4, Calculations!$I399:$QJ399) -> 1732254.381 | W58: =LOOKUP(W$3, Calculations!$I$4:$QJ$4, Calculations!$I399:$QJ399) -> 1451406.871 | X58: =LOOKUP(X$3, Calculations!$I$4:$QJ$4, Calculations!$I399:$QJ399) -> 1154717.355 | Y58: =LOOKUP(Y$3, Calculations!$I$4:$QJ$4, Calculations!$I399:$QJ399) -> 841292.218 | Z58: =LOOKUP(Z$3, Calculations!$I$4:$QJ$4, Calculations!$I399:$QJ399) -> 510187.4394 | AA58: =LOOKUP(AA$3, Calculations!$I$4:$QJ$4, Calculations!$I399:$QJ399) -> 160405.7487 | AB58: =LOOKUP(AB$3, Calculations!$I$4:$QJ$4, Calculations!$I399:$QJ399) -> 0 | AC58: =LOOKUP(AC$3, Calculations!$I$4:$QJ$4, Calculations!$I399:$QJ399) -> 0 | AD58: =LOOKUP(AD$3, Calculations!$I$4:$QJ$4, Calculations!$I399:$QJ399) -> 0 | AE58: =LOOKUP(AE$3, Calculations!$I$4:$QJ$4, Calculations!$I399:$QJ399) -> 0 | AF58: =LOOKUP(AF$3, Calculations!$I$4:$QJ$4, Calculations!$I399:$QJ399) -> 0 | AG58: =LOOKUP(AG$3, Calculations!$I$4:$QJ$4, Calculations!$I399:$QJ399) -> 0 | AH58: =LOOKUP(AH$3, Calculations!$I$4:$QJ$4, Calculations!$I399:$QJ399) -> 0 | AI58: =LOOKUP(AI$3, Calculations!$I$4:$QJ$4, Calculations!$I399:$QJ399) -> 0 | AJ58: =LOOKUP(AJ$3, Calculations!$I$4:$QJ$4, Calculations!$I399:$QJ399) -> 0
C59: =Calculations!C400 -> Total Non-Current Liabilities | F59: =Calculations!E400 -> EUR | I59: =SUM(I57:I58) -> 1037500 | J59: 4588906.433 | K59: 6019284.444 | L59: 5825047.998 | M59: 5616991.88 | N59: 5393973.425 | O59: 5154739.46 | P59: 4897914.228 | Q59: 4621985.894 | R59: 4325291.449 | S59: 4005999.831 | T59: 3662093.026 | U59: 3291344.911 | V59: 2891297.56 | W59: 2459234.695 | X59: 1992151.93 | Y59: 1486723.416 | Z59: 939264.4271 | AA59: 345689.3963 | AB59: 0 | AC59: 0 | AD59: 0 | AE59: 0 | AF59: 0 | AG59: 0 | AH59: 0 | AI59: 0 | AJ59: =SUM(AJ57:AJ58) -> 0
B61: Total Liabilities | F61: =Calculations!E402 -> EUR | I61: =I54+I59 -> 1172500 | J61: 4605000 | K61: 6242569.873 | L61: 6099013.408 | M61: 5902605.315 | N61: 5692195.724 | O61: 5431387.335 | P61: 5224618.556 | Q61: 4964780.867 | R61: 4685575.4 | S61: 4356539.317 | T61: 4062131.063 | U61: 3713980.257 | V61: 3338596.99 | W61: 2913800.021 | X61: 2495873.93 | Y61: 2022716.546 | Z61: 1510627.191 | AA61: 949174.6728 | AB61: 354250.4979 | AC61: -87779.08565 | AD61: -399261.583 | AE61: -740296.2755 | AF61: -1153830.804 | AG61: -1604283.394 | AH61: 6716.484993 | AI61: 11759.15469 | AJ61: =AJ54+AJ59 -> 12689.16553
B63: Shareholders' Equity
C64: =Calculations!C405 -> Share Capital | F64: =Calculations!E405 -> EUR | I64: =LOOKUP(I$3, Calculations!$I$4:$QJ$4, Calculations!$I405:$QJ405) -> 2075000 | J64: =LOOKUP(J$3, Calculations!$I$4:$QJ$4, Calculations!$I405:$QJ405) -> 2075000 | K64: =LOOKUP(K$3, Calculations!$I$4:$QJ$4, Calculations!$I405:$QJ405) -> 2075000 | L64: =LOOKUP(L$3, Calculations!$I$4:$QJ$4, Calculations!$I405:$QJ405) -> 2075000 | M64: =LOOKUP(M$3, Calculations!$I$4:$QJ$4, Calculations!$I405:$QJ405) -> 2075000 | N64: =LOOKUP(N$3, Calculations!$I$4:$QJ$4, Calculations!$I405:$QJ405) -> 2075000 | O64: =LOOKUP(O$3, Calculations!$I$4:$QJ$4, Calculations!$I405:$QJ405) -> 2075000 | P64: =LOOKUP(P$3, Calculations!$I$4:$QJ$4, Calculations!$I405:$QJ405) -> 2075000 | Q64: =LOOKUP(Q$3, Calculations!$I$4:$QJ$4, Calculations!$I405:$QJ405) -> 2075000 | R64: =LOOKUP(R$3, Calculations!$I$4:$QJ$4, Calculations!$I405:$QJ405) -> 2075000 | S64: =LOOKUP(S$3, Calculations!$I$4:$QJ$4, Calculations!$I405:$QJ405) -> 2075000 | T64: =LOOKUP(T$3, Calculations!$I$4:$QJ$4, Calculations!$I405:$QJ405) -> 2075000 | U64: =LOOKUP(U$3, Calculations!$I$4:$QJ$4, Calculations!$I405:$QJ405) -> 2075000 | V64: =LOOKUP(V$3, Calculations!$I$4:$QJ$4, Calculations!$I405:$QJ405) -> 2075000 | W64: =LOOKUP(W$3, Calculations!$I$4:$QJ$4, Calculations!$I405:$QJ405) -> 2075000 | X64: =LOOKUP(X$3, Calculations!$I$4:$QJ$4, Calculations!$I405:$QJ405) -> 2075000 | Y64: =LOOKUP(Y$3, Calculations!$I$4:$QJ$4, Calculations!$I405:$QJ405) -> 2075000 | Z64: =LOOKUP(Z$3, Calculations!$I$4:$QJ$4, Calculations!$I405:$QJ405) -> 2075000 | AA64: =LOOKUP(AA$3, Calculations!$I$4:$QJ$4, Calculations!$I405:$QJ405) -> 2075000 | AB64: =LOOKUP(AB$3, Calculations!$I$4:$QJ$4, Calculations!$I405:$QJ405) -> 2075000 | AC64: =LOOKUP(AC$3, Calculations!$I$4:$QJ$4, Calculations!$I405:$QJ405) -> 2075000 | AD64: =LOOKUP(AD$3, Calculations!$I$4:$QJ$4, Calculations!$I405:$QJ405) -> 2075000 | AE64: =LOOKUP(AE$3, Calculations!$I$4:$QJ$4, Calculations!$I405:$QJ405) -> 2075000 | AF64: =LOOKUP(AF$3, Calculations!$I$4:$QJ$4, Calculations!$I405:$QJ405) -> 2075000 | AG64: =LOOKUP(AG$3, Calculations!$I$4:$QJ$4, Calculations!$I405:$QJ405) -> 2075000 | AH64: =LOOKUP(AH$3, Calculations!$I$4:$QJ$4, Calculations!$I405:$QJ405) -> 2075000 | AI64: =LOOKUP(AI$3, Calculations!$I$4:$QJ$4, Calculations!$I405:$QJ405) -> 2075000 | AJ64: =LOOKUP(AJ$3, Calculations!$I$4:$QJ$4, Calculations!$I405:$QJ405) -> 2075000
C65: =Calculations!C406 -> Retained Earnings | F65: =Calculations!E406 -> EUR | I65: =LOOKUP(I$3, Calculations!$I$4:$QJ$4, Calculations!$I406:$QJ406) -> 0 | J65: =LOOKUP(J$3, Calculations!$I$4:$QJ$4, Calculations!$I406:$QJ406) -> 0 | K65: =LOOKUP(K$3, Calculations!$I$4:$QJ$4, Calculations!$I406:$QJ406) -> -28059 | L65: =LOOKUP(L$3, Calculations!$I$4:$QJ$4, Calculations!$I406:$QJ406) -> -275488 | M65: =LOOKUP(M$3, Calculations!$I$4:$QJ$4, Calculations!$I406:$QJ406) -> -463046 | N65: =LOOKUP(N$3, Calculations!$I$4:$QJ$4, Calculations!$I406:$QJ406) -> -645136 | O65: =LOOKUP(O$3, Calculations!$I$4:$QJ$4, Calculations!$I406:$QJ406) -> -767677 | P65: =LOOKUP(P$3, Calculations!$I$4:$QJ$4, Calculations!$I406:$QJ406) -> -980350 | Q65: =LOOKUP(Q$3, Calculations!$I$4:$QJ$4, Calculations!$I406:$QJ406) -> -1120012 | R65: =LOOKUP(R$3, Calculations!$I$4:$QJ$4, Calculations!$I406:$QJ406) -> -1145896 | S65: =LOOKUP(S$3, Calculations!$I$4:$QJ$4, Calculations!$I406:$QJ406) -> -1025349 | T65: =LOOKUP(T$3, Calculations!$I$4:$QJ$4, Calculations!$I406:$QJ406) -> -956809 | U65: =LOOKUP(U$3, Calculations!$I$4:$QJ$4, Calculations!$I406:$QJ406) -> -836195 | V65: =LOOKUP(V$3, Calculations!$I$4:$QJ$4, Calculations!$I406:$QJ406) -> -694010 | W65: =LOOKUP(W$3, Calculations!$I$4:$QJ$4, Calculations!$I406:$QJ406) -> -510840 | X65: =LOOKUP(X$3, Calculations!$I$4:$QJ$4, Calculations!$I406:$QJ406) -> -296599 | Y65: =LOOKUP(Y$3, Calculations!$I$4:$QJ$4, Calculations!$I406:$QJ406) -> -37003 | Z65: =LOOKUP(Z$3, Calculations!$I$4:$QJ$4, Calculations!$I406:$QJ406) -> 245447 | AA65: =LOOKUP(AA$3, Calculations!$I$4:$QJ$4, Calculations!$I406:$QJ406) -> 564527 | AB65: =LOOKUP(AB$3, Calculations!$I$4:$QJ$4, Calculations!$I406:$QJ406) -> 891798 | AC65: =LOOKUP(AC$3, Calculations!$I$4:$QJ$4, Calculations!$I406:$QJ406) -> 1278255 | AD65: =LOOKUP(AD$3, Calculations!$I$4:$QJ$4, Calculations!$I406:$QJ406) -> 1689023 | AE65: =LOOKUP(AE$3, Calculations!$I$4:$QJ$4, Calculations!$I406:$QJ406) -> 2122539 | AF65: =LOOKUP(AF$3, Calculations!$I$4:$QJ$4, Calculations!$I406:$QJ406) -> 2585820 | AG65: =LOOKUP(AG$3, Calculations!$I$4:$QJ$4, Calculations!$I406:$QJ406) -> 3080868 | AH65: =LOOKUP(AH$3, Calculations!$I$4:$QJ$4, Calculations!$I406:$QJ406) -> 3483892 | AI65: =LOOKUP(AI$3, Calculations!$I$4:$QJ$4, Calculations!$I406:$QJ406) -> 3828254 | AJ65: =LOOKUP(AJ$3, Calculations!$I$4:$QJ$4, Calculations!$I406:$QJ406) -> 3549895
C66: =Calculations!C407 -> Rounding | F66: =Calculations!E407 -> 0 | I66: =LOOKUP(I$3, Calculations!$I$4:$QJ$4, Calculations!$I407:$QJ407) -> 0 | J66: =LOOKUP(J$3, Calculations!$I$4:$QJ$4, Calculations!$I407:$QJ407) -> 0 | K66: =LOOKUP(K$3, Calculations!$I$4:$QJ$4, Calculations!$I407:$QJ407) -> -0.1734349458 | L66: =LOOKUP(L$3, Calculations!$I$4:$QJ$4, Calculations!$I407:$QJ407) -> 0.6665780107 | M66: =LOOKUP(M$3, Calculations!$I$4:$QJ$4, Calculations!$I407:$QJ407) -> 0.132169635 | N66: =LOOKUP(N$3, Calculations!$I$4:$QJ$4, Calculations!$I407:$QJ407) -> 0.2089961916 | O66: =LOOKUP(O$3, Calculations!$I$4:$QJ$4, Calculations!$I407:$QJ407) -> 1.730994957 | P66: =LOOKUP(P$3, Calculations!$I$4:$QJ$4, Calculations!$I407:$QJ407) -> 3.483754267 | Q66: =LOOKUP(Q$3, Calculations!$I$4:$QJ$4, Calculations!$I407:$QJ407) -> 3.584610581 | R66: =LOOKUP(R$3, Calculations!$I$4:$QJ$4, Calculations!$I407:$QJ407) -> 3.547358265 | S66: =LOOKUP(S$3, Calculations!$I$4:$QJ$4, Calculations!$I407:$QJ407) -> 2.827714628 | T66: =LOOKUP(T$3, Calculations!$I$4:$QJ$4, Calculations!$I407:$QJ407) -> 2.675258605 | U66: =LOOKUP(U$3, Calculations!$I$4:$QJ$4, Calculations!$I407:$QJ407) -> 3.6778938 | V66: =LOOKUP(V$3, Calculations!$I$4:$QJ$4, Calculations!$I407:$QJ407) -> 3.5148189 | W66: =LOOKUP(W$3, Calculations!$I$4:$QJ$4, Calculations!$I407:$QJ407) -> 4.482666573 | X66: =LOOKUP(X$3, Calculations!$I$4:$QJ$4, Calculations!$I407:$QJ407) -> 2.645639727 | Y66: =LOOKUP(Y$3, Calculations!$I$4:$QJ$4, Calculations!$I407:$QJ407) -> 3.699464263 | Z66: =LOOKUP(Z$3, Calculations!$I$4:$QJ$4, Calculations!$I407:$QJ407) -> 4.477714097 | AA66: =LOOKUP(AA$3, Calculations!$I$4:$QJ$4, Calculations!$I407:$QJ407) -> 4.047202688 | AB66: =LOOKUP(AB$3, Calculations!$I$4:$QJ$4, Calculations!$I407:$QJ407) -> 4.419395845 | AC66: =LOOKUP(AC$3, Calculations!$I$4:$QJ$4, Calculations!$I407:$QJ407) -> 160409.0389 | AD66: =LOOKUP(AD$3, Calculations!$I$4:$QJ$4, Calculations!$I407:$QJ407) -> 160409.3578 | AE66: =LOOKUP(AE$3, Calculations!$I$4:$QJ$4, Calculations!$I407:$QJ407) -> 160408.3332 | AF66: =LOOKUP(AF$3, Calculations!$I$4:$QJ$4, Calculations!$I407:$QJ407) -> 160408.4475 | AG66: =LOOKUP(AG$3, Calculations!$I$4:$QJ$4, Calculations!$I407:$QJ407) -> 160408.3037 | AH66: =LOOKUP(AH$3, Calculations!$I$4:$QJ$4, Calculations!$I407:$QJ407) -> 160408.8835 | AI66: =LOOKUP(AI$3, Calculations!$I$4:$QJ$4, Calculations!$I407:$QJ407) -> 160408.7741 | AJ66: =LOOKUP(AJ$3, Calculations!$I$4:$QJ$4, Calculations!$I407:$QJ407) -> 160409.0623
C67: =Calculations!C408 -> Total Shareholders' Equity | F67: =Calculations!E408 -> EUR | I67: =LOOKUP(I$3, Calculations!$I$4:$QJ$4, Calculations!$I408:$QJ408) -> 2075000 | J67: =LOOKUP(J$3, Calculations!$I$4:$QJ$4, Calculations!$I408:$QJ408) -> 2075000 | K67: =LOOKUP(K$3, Calculations!$I$4:$QJ$4, Calculations!$I408:$QJ408) -> 2046940.827 | L67: =LOOKUP(L$3, Calculations!$I$4:$QJ$4, Calculations!$I408:$QJ408) -> 1799512.667 | M67: =LOOKUP(M$3, Calculations!$I$4:$QJ$4, Calculations!$I408:$QJ408) -> 1611954.132 | N67: =LOOKUP(N$3, Calculations!$I$4:$QJ$4, Calculations!$I408:$QJ408) -> 1429864.209 | O67: =LOOKUP(O$3, Calculations!$I$4:$QJ$4, Calculations!$I408:$QJ408) -> 1307324.731 | P67: =LOOKUP(P$3, Calculations!$I$4:$QJ$4, Calculations!$I408:$QJ408) -> 1094653.484 | Q67: =LOOKUP(Q$3, Calculations!$I$4:$QJ$4, Calculations!$I408:$QJ408) -> 954991.5846 | R67: =LOOKUP(R$3, Calculations!$I$4:$QJ$4, Calculations!$I408:$QJ408) -> 929107.5474 | S67: =LOOKUP(S$3, Calculations!$I$4:$QJ$4, Calculations!$I408:$QJ408) -> 1049653.828 | T67: =LOOKUP(T$3, Calculations!$I$4:$QJ$4, Calculations!$I408:$QJ408) -> 1118193.675 | U67: =LOOKUP(U$3, Calculations!$I$4:$QJ$4, Calculations!$I408:$QJ408) -> 1238808.678 | V67: =LOOKUP(V$3, Calculations!$I$4:$QJ$4, Calculations!$I408:$QJ408) -> 1380993.515 | W67: =LOOKUP(W$3, Calculations!$I$4:$QJ$4, Calculations!$I408:$QJ408) -> 1564164.483 | X67: =LOOKUP(X$3, Calculations!$I$4:$QJ$4, Calculations!$I408:$QJ408) -> 1778403.646 | Y67: =LOOKUP(Y$3, Calculations!$I$4:$QJ$4, Calculations!$I408:$QJ408) -> 2038000.699 | Z67: =LOOKUP(Z$3, Calculations!$I$4:$QJ$4, Calculations!$I408:$QJ408) -> 2320451.478 | AA67: =LOOKUP(AA$3, Calculations!$I$4:$QJ$4, Calculations!$I408:$QJ408) -> 2639531.047 | AB67: =LOOKUP(AB$3, Calculations!$I$4:$QJ$4, Calculations!$I408:$QJ408) -> 2966802.419 | AC67: =LOOKUP(AC$3, Calculations!$I$4:$QJ$4, Calculations!$I408:$QJ408) -> 3513664.039 | AD67: =LOOKUP(AD$3, Calculations!$I$4:$QJ$4, Calculations!$I408:$QJ408) -> 3924432.358 | AE67: =LOOKUP(AE$3, Calculations!$I$4:$QJ$4, Calculations!$I408:$QJ408) -> 4357947.333 | AF67: =LOOKUP(AF$3, Calculations!$I$4:$QJ$4, Calculations!$I408:$QJ408) -> 4821228.447 | AG67: =LOOKUP(AG$3, Calculations!$I$4:$QJ$4, Calculations!$I408:$QJ408) -> 5316276.304 | AH67: =LOOKUP(AH$3, Calculations!$I$4:$QJ$4, Calculations!$I408:$QJ408) -> 5719300.884 | AI67: =LOOKUP(AI$3, Calculations!$I$4:$QJ$4, Calculations!$I408:$QJ408) -> 6063662.774 | AJ67: =LOOKUP(AJ$3, Calculations!$I$4:$QJ$4, Calculations!$I408:$QJ408) -> 5785304.062
B69: Total Liabilities & Shareholders' Equity | F69: =Calculations!E410 -> EUR | I69: =I61+I67 -> 3247500 | J69: =J61+J67 -> 6680000 | K69: 8289510.699 | L69: 7898526.075 | M69: 7514559.448 | N69: 7122059.933 | O69: 6738712.066 | P69: 6319272.04 | Q69: 5919772.451 | R69: 5614682.947 | S69: 5406193.144 | T69: 5180324.738 | U69: 4952788.935 | V69: 4719590.505 | W69: 4477964.503 | X69: 4274277.575 | Y69: 4060717.245 | Z69: 3831078.669 | AA69: 3588705.72 | AB69: 3321052.917 | AC69: 3425884.953 | AD69: 3525170.775 | AE69: 3617651.058 | AF69: 3667397.643 | AG69: =AG61+AG67 -> 3711992.91 | AH69: 5726017.369 | AI69: 6075421.929 | AJ69: 5797993.228
M70: =M45-M69 -> 0 | N70: =N45-N69 -> 0 | O70: =O45-O69 -> 0 | P70: 0 | Q70: 0 | R70: 0 | S70: 0 | T70: 0 | U70: 0 | V70: 0
C71: Balance Check | F71: Check | H71: =IF(COUNTIF(I71:AT71, "NO")>0, "NO", "OK") -> OK | I71: =IF(ROUND(I45-I69, 0)=0, "OK", "NO") -> OK | J71: =IF(ROUND(J45-J69, 0)=0, "OK", "NO") -> OK | K71: OK | L71: OK | M71: OK | N71: OK | O71: OK | P71: OK | Q71: OK | R71: OK | S71: OK | T71: OK | U71: OK | V71: OK | W71: OK | X71: OK | Y71: OK | Z71: OK | AA71: OK | AB71: OK | AC71: OK | AD71: OK | AE71: OK | AF71: OK | AG71: OK | AH71: OK | AI71: OK | AJ71: =IF(ROUND(AJ45-AJ69, 0)=0, "OK", "NO") -> OK
A73: · | B73: Cash Flow Statement | F73: Unit
B75: Operating Activities
C76: =Calculations!C417 -> Net Income | D76: =SUM(K76:AA76)+AB76/2 -> 722816.4923 | E76: =H76-D76 -> 2827081.821 | F76: =Calculations!E417 -> EUR | H76: =SUM(I76:AT76) -> 3549898.314 | I76: =SUMIF(Calculations!$I$8:$QJ$8, I$2, Calculations!$I417:$QJ417) -> 0 | J76: 0 | K76: =SUMIF(Calculations!$I$8:$QJ$8, K$2, Calculations!$I417:$QJ417) -> -87050.37924 | L76: =SUMIF(Calculations!$I$8:$QJ$8, L$2, Calculations!$I417:$QJ417) -> -188436.9542 | M76: =SUMIF(Calculations!$I$8:$QJ$8, M$2, Calculations!$I417:$QJ417) -> -187558.5344 | N76: =SUMIF(Calculations!$I$8:$QJ$8, N$2, Calculations!$I417:$QJ417) -> -182089.9232 | O76: =SUMIF(Calculations!$I$8:$QJ$8, O$2, Calculations!$I417:$QJ417) -> -176917.0295 | P76: =SUMIF(Calculations!$I$8:$QJ$8, P$2, Calculations!$I417:$QJ417) -> -158293.6958 | Q76: =SUMIF(Calculations!$I$8:$QJ$8, Q$2, Calculations!$I417:$QJ417) -> -139661.8991 | R76: =SUMIF(Calculations!$I$8:$QJ$8, R$2, Calculations!$I417:$QJ417) -> -25884.03725 | S76: =SUMIF(Calculations!$I$8:$QJ$8, S$2, Calculations!$I417:$QJ417) -> 88989.54356 | T76: =SUMIF(Calculations!$I$8:$QJ$8, T$2, Calculations!$I417:$QJ417) -> 100096.5843 | U76: =SUMIF(Calculations!$I$8:$QJ$8, U$2, Calculations!$I417:$QJ417) -> 120615.0026 | V76: =SUMIF(Calculations!$I$8:$QJ$8, V$2, Calculations!$I417:$QJ417) -> 142184.8369 | W76: =SUMIF(Calculations!$I$8:$QJ$8, W$2, Calculations!$I417:$QJ417) -> 158458.6846 | X76: =SUMIF(Calculations!$I$8:$QJ$8, X$2, Calculations!$I417:$QJ417) -> 238951.4462 | Y76: =SUMIF(Calculations!$I$8:$QJ$8, Y$2, Calculations!$I417:$QJ417) -> 259597.0538 | Z76: =SUMIF(Calculations!$I$8:$QJ$8, Z$2, Calculations!$I417:$QJ417) -> 282450.7782 | AA76: =SUMIF(Calculations!$I$8:$QJ$8, AA$2, Calculations!$I417:$QJ417) -> 308379.0875 | AB76: =SUMIF(Calculations!$I$8:$QJ$8, AB$2, Calculations!$I417:$QJ417) -> 337971.8542 | AC76: =SUMIF(Calculations!$I$8:$QJ$8, AC$2, Calculations!$I417:$QJ417) -> 386455.8708 | AD76: =SUMIF(Calculations!$I$8:$QJ$8, AD$2, Calculations!$I417:$QJ417) -> 410768.3189 | AE76: =SUMIF(Calculations!$I$8:$QJ$8, AE$2, Calculations!$I417:$QJ417) -> 434415.4418 | AF76: =SUMIF(Calculations!$I$8:$QJ$8, AF$2, Calculations!$I417:$QJ417) -> 462380.6479 | AG76: =SUMIF(Calculations!$I$8:$QJ$8, AG$2, Calculations!$I417:$QJ417) -> 495047.8562 | AH76: =SUMIF(Calculations!$I$8:$QJ$8, AH$2, Calculations!$I417:$QJ417) -> 403024.5799 | AI76: =SUMIF(Calculations!$I$8:$QJ$8, AI$2, Calculations!$I417:$QJ417) -> 336968.101 | AJ76: =SUMIF(Calculations!$I$8:$QJ$8, AJ$2, Calculations!$I417:$QJ417) -> -270964.9222
C77: =Calculations!C418 -> less: Changes in Net Working Capital | D77: 20278.58518 | E77: -197797.7815 | F77: =Calculations!E418 -> EUR | H77: -177519.1963 | I77: =SUMIF(Calculations!$I$8:$QJ$8, I$2, Calculations!$I418:$QJ418) -> -311841.3316 | J77: =SUMIF(Calculations!$I$8:$QJ$8, J$2, Calculations!$I418:$QJ418) -> 196098.3066 | K77: =SUMIF(Calculations!$I$8:$QJ$8, K$2, Calculations!$I418:$QJ418) -> 2601.244299 | L77: =SUMIF(Calculations!$I$8:$QJ$8, L$2, Calculations!$I418:$QJ418) -> 321.3315339 | M77: =SUMIF(Calculations!$I$8:$QJ$8, M$2, Calculations!$I418:$QJ418) -> 934.7292322 | N77: =SUMIF(Calculations!$I$8:$QJ$8, N$2, Calculations!$I418:$QJ418) -> 924.1129752 | O77: =SUMIF(Calculations!$I$8:$QJ$8, O$2, Calculations!$I418:$QJ418) -> 913.6189746 | P77: =SUMIF(Calculations!$I$8:$QJ$8, P$2, Calculations!$I418:$QJ418) -> 903.2469214 | Q77: =SUMIF(Calculations!$I$8:$QJ$8, Q$2, Calculations!$I418:$QJ418) -> 1218.651833 | R77: =SUMIF(Calculations!$I$8:$QJ$8, R$2, Calculations!$I418:$QJ418) -> 1232.466197 | S77: =SUMIF(Calculations!$I$8:$QJ$8, S$2, Calculations!$I418:$QJ418) -> 1222.437741 | T77: =SUMIF(Calculations!$I$8:$QJ$8, T$2, Calculations!$I418:$QJ418) -> 1212.565107 | U77: =SUMIF(Calculations!$I$8:$QJ$8, U$2, Calculations!$I418:$QJ418) -> 1202.848145 | V77: =SUMIF(Calculations!$I$8:$QJ$8, V$2, Calculations!$I418:$QJ418) -> 1193.286741 | W77: =SUMIF(Calculations!$I$8:$QJ$8, W$2, Calculations!$I418:$QJ418) -> 1183.880816 | X77: =SUMIF(Calculations!$I$8:$QJ$8, X$2, Calculations!$I418:$QJ418) -> 1174.63033 | Y77: =SUMIF(Calculations!$I$8:$QJ$8, Y$2, Calculations!$I418:$QJ418) -> 1165.535282 | Z77: =SUMIF(Calculations!$I$8:$QJ$8, Z$2, Calculations!$I418:$QJ418) -> 1156.595707 | AA77: =SUMIF(Calculations!$I$8:$QJ$8, AA$2, Calculations!$I418:$QJ418) -> 1147.811683 | AB77: =SUMIF(Calculations!$I$8:$QJ$8, AB$2, Calculations!$I418:$QJ418) -> 1139.183323 | AC77: =SUMIF(Calculations!$I$8:$QJ$8, AC$2, Calculations!$I418:$QJ418) -> 1130.710786 | AD77: =SUMIF(Calculations!$I$8:$QJ$8, AD$2, Calculations!$I418:$QJ418) -> 5328.579705 | AE77: =SUMIF(Calculations!$I$8:$QJ$8, AE$2, Calculations!$I418:$QJ418) -> 2052.191835 | AF77: =SUMIF(Calculations!$I$8:$QJ$8, AF$2, Calculations!$I418:$QJ418) -> 2193.477426 | AG77: =SUMIF(Calculations!$I$8:$QJ$8, AG$2, Calculations!$I418:$QJ418) -> 2353.804288 | AH77: =SUMIF(Calculations!$I$8:$QJ$8, AH$2, Calculations!$I418:$QJ418) -> -3579.84917 | AI77: =SUMIF(Calculations!$I$8:$QJ$8, AI$2, Calculations!$I418:$QJ418) -> 944.4499432 | AJ77: =SUMIF(Calculations!$I$8:$QJ$8, AJ$2, Calculations!$I418:$QJ418) -> -93047.71294
C78: =Calculations!C419 -> less: Change in Deferred Tax Asset | D78: -164631.3539 | E78: 86999.13343 | F78: =Calculations!E419 -> EUR | H78: -77632.22046 | I78: =SUMIF(Calculations!$I$8:$QJ$8, I$2, Calculations!$I419:$QJ419) -> 0 | J78: 0 | K78: =SUMIF(Calculations!$I$8:$QJ$8, K$2, Calculations!$I419:$QJ419) -> -38305.28333 | L78: =SUMIF(Calculations!$I$8:$QJ$8, L$2, Calculations!$I419:$QJ419) -> -78954.02458 | M78: =SUMIF(Calculations!$I$8:$QJ$8, M$2, Calculations!$I419:$QJ419) -> -78776.65136 | N78: =SUMIF(Calculations!$I$8:$QJ$8, N$2, Calculations!$I419:$QJ419) -> -77672.41255 | O78: =SUMIF(Calculations!$I$8:$QJ$8, O$2, Calculations!$I419:$QJ419) -> -76627.88594 | P78: =SUMIF(Calculations!$I$8:$QJ$8, P$2, Calculations!$I419:$QJ419) -> -75098.65509 | Q78: =SUMIF(Calculations!$I$8:$QJ$8, Q$2, Calculations!$I419:$QJ419) -> -73567.71539 | R78: =SUMIF(Calculations!$I$8:$QJ$8, R$2, Calculations!$I419:$QJ419) -> -71899.89873 | S78: =SUMIF(Calculations!$I$8:$QJ$8, S$2, Calculations!$I419:$QJ419) -> -70010.83113 | T78: =SUMIF(Calculations!$I$8:$QJ$8, T$2, Calculations!$I419:$QJ419) -> -67768.06328 | U78: =SUMIF(Calculations!$I$8:$QJ$8, U$2, Calculations!$I419:$QJ419) -> 2133.884958 | V78: =SUMIF(Calculations!$I$8:$QJ$8, V$2, Calculations!$I419:$QJ419) -> 72336.9845 | W78: =SUMIF(Calculations!$I$8:$QJ$8, W$2, Calculations!$I419:$QJ419) -> 75623.04989 | X78: =SUMIF(Calculations!$I$8:$QJ$8, X$2, Calculations!$I419:$QJ419) -> 79330.55753 | Y78: =SUMIF(Calculations!$I$8:$QJ$8, Y$2, Calculations!$I419:$QJ419) -> 83499.38214 | Z78: =SUMIF(Calculations!$I$8:$QJ$8, Z$2, Calculations!$I419:$QJ419) -> 88114.0765 | AA78: =SUMIF(Calculations!$I$8:$QJ$8, AA$2, Calculations!$I419:$QJ419) -> 93349.60047 | AB78: =SUMIF(Calculations!$I$8:$QJ$8, AB$2, Calculations!$I419:$QJ419) -> 99325.06299 | AC78: =SUMIF(Calculations!$I$8:$QJ$8, AC$2, Calculations!$I419:$QJ419) -> 87939.72099 | AD78: =SUMIF(Calculations!$I$8:$QJ$8, AD$2, Calculations!$I419:$QJ419) -> 27029.1014 | AE78: =SUMIF(Calculations!$I$8:$QJ$8, AE$2, Calculations!$I419:$QJ419) -> 0 | AF78: =SUMIF(Calculations!$I$8:$QJ$8, AF$2, Calculations!$I419:$QJ419) -> 0 | AG78: =SUMIF(Calculations!$I$8:$QJ$8, AG$2, Calculations!$I419:$QJ419) -> 0 | AH78: =SUMIF(Calculations!$I$8:$QJ$8, AH$2, Calculations!$I419:$QJ419) -> -917.8132719 | AI78: =SUMIF(Calculations!$I$8:$QJ$8, AI$2, Calculations!$I419:$QJ419) -> -101.9441541 | AJ78: =SUMIF(Calculations!$I$8:$QJ$8, AJ$2, Calculations!$I419:$QJ419) -> -76612.46303
C79: =Calculations!C420 -> add: Depreciation | D79: 6478725.636 | E79: 1232756.342 | F79: =Calculations!E420 -> EUR | H79: 7711481.978 | I79: =SUMIF(Calculations!$I$8:$QJ$8, I$2, Calculations!$I420:$QJ420) -> 0 | J79: =SUMIF(Calculations!$I$8:$QJ$8, J$2, Calculations!$I420:$QJ420) -> 0 | K79: =SUMIF(Calculations!$I$8:$QJ$8, K$2, Calculations!$I420:$QJ420) -> 299487.9763 | L79: =SUMIF(Calculations!$I$8:$QJ$8, L$2, Calculations!$I420:$QJ420) -> 598975.9527 | M79: =SUMIF(Calculations!$I$8:$QJ$8, M$2, Calculations!$I420:$QJ420) -> 598975.9527 | N79: =SUMIF(Calculations!$I$8:$QJ$8, N$2, Calculations!$I420:$QJ420) -> 598975.9527 | O79: =SUMIF(Calculations!$I$8:$QJ$8, O$2, Calculations!$I420:$QJ420) -> 598975.9527 | P79: =SUMIF(Calculations!$I$8:$QJ$8, P$2, Calculations!$I420:$QJ420) -> 587925.9527 | Q79: =SUMIF(Calculations!$I$8:$QJ$8, Q$2, Calculations!$I420:$QJ420) -> 576875.9527 | R79: =SUMIF(Calculations!$I$8:$QJ$8, R$2, Calculations!$I420:$QJ420) -> 471357.7543 | S79: =SUMIF(Calculations!$I$8:$QJ$8, S$2, Calculations!$I420:$QJ420) -> 365839.5559 | T79: =SUMIF(Calculations!$I$8:$QJ$8, T$2, Calculations!$I420:$QJ420) -> 365839.5559 | U79: =SUMIF(Calculations!$I$8:$QJ$8, U$2, Calculations!$I420:$QJ420) -> 290727.5116 | V79: =SUMIF(Calculations!$I$8:$QJ$8, V$2, Calculations!$I420:$QJ420) -> 216055.4673 | W79: =SUMIF(Calculations!$I$8:$QJ$8, W$2, Calculations!$I420:$QJ420) -> 216055.4673 | X79: =SUMIF(Calculations!$I$8:$QJ$8, X$2, Calculations!$I420:$QJ420) -> 153923.6958 | Y79: =SUMIF(Calculations!$I$8:$QJ$8, Y$2, Calculations!$I420:$QJ420) -> 153923.6958 | Z79: =SUMIF(Calculations!$I$8:$QJ$8, Z$2, Calculations!$I420:$QJ420) -> 153923.6958 | AA79: =SUMIF(Calculations!$I$8:$QJ$8, AA$2, Calculations!$I420:$QJ420) -> 153923.6958 | AB79: =SUMIF(Calculations!$I$8:$QJ$8, AB$2, Calculations!$I420:$QJ420) -> 153923.6958 | AC79: =SUMIF(Calculations!$I$8:$QJ$8, AC$2, Calculations!$I420:$QJ420) -> 154105.9326 | AD79: =SUMIF(Calculations!$I$8:$QJ$8, AD$2, Calculations!$I420:$QJ420) -> 154105.9326 | AE79: =SUMIF(Calculations!$I$8:$QJ$8, AE$2, Calculations!$I420:$QJ420) -> 154105.9326 | AF79: =SUMIF(Calculations!$I$8:$QJ$8, AF$2, Calculations!$I420:$QJ420) -> 154105.9326 | AG79: =SUMIF(Calculations!$I$8:$QJ$8, AG$2, Calculations!$I420:$QJ420) -> 154105.9326 | AH79: =SUMIF(Calculations!$I$8:$QJ$8, AH$2, Calculations!$I420:$QJ420) -> 154105.9326 | AI79: =SUMIF(Calculations!$I$8:$QJ$8, AI$2, Calculations!$I420:$QJ420) -> 154105.9326 | AJ79: =SUMIF(Calculations!$I$8:$QJ$8, AJ$2, Calculations!$I420:$QJ420) -> 77052.9663
C80: =Calculations!C421 -> add: Senior Debt Interest Expense | D80: 2399382.572 | E80: 9647.408112 | F80: =Calculations!E421 -> EUR | H80: 2409029.98 | I80: =SUMIF(Calculations!$I$8:$QJ$8, I$2, Calculations!$I421:$QJ421) -> 0 | J80: =SUMIF(Calculations!$I$8:$QJ$8, J$2, Calculations!$I421:$QJ421) -> 0 | K80: =SUMIF(Calculations!$I$8:$QJ$8, K$2, Calculations!$I421:$QJ421) -> 114588.9894 | L80: =SUMIF(Calculations!$I$8:$QJ$8, L$2, Calculations!$I421:$QJ421) -> 224095.1736 | M80: =SUMIF(Calculations!$I$8:$QJ$8, M$2, Calculations!$I421:$QJ421) -> 215819.5134 | N80: =SUMIF(Calculations!$I$8:$QJ$8, N$2, Calculations!$I421:$QJ421) -> 207077.0408 | O80: =SUMIF(Calculations!$I$8:$QJ$8, O$2, Calculations!$I421:$QJ421) -> 197841.4241 | P80: =SUMIF(Calculations!$I$8:$QJ$8, P$2, Calculations!$I421:$QJ421) -> 188084.846 | Q80: =SUMIF(Calculations!$I$8:$QJ$8, Q$2, Calculations!$I421:$QJ421) -> 177777.9203 | R80: =SUMIF(Calculations!$I$8:$QJ$8, R$2, Calculations!$I421:$QJ421) -> 166889.6029 | S80: =SUMIF(Calculations!$I$8:$QJ$8, S$2, Calculations!$I421:$QJ421) -> 155387.0988 | T80: =SUMIF(Calculations!$I$8:$QJ$8, T$2, Calculations!$I421:$QJ421) -> 143235.763 | U80: =SUMIF(Calculations!$I$8:$QJ$8, U$2, Calculations!$I421:$QJ421) -> 130398.9964 | V80: =SUMIF(Calculations!$I$8:$QJ$8, V$2, Calculations!$I421:$QJ421) -> 116838.1353 | W80: =SUMIF(Calculations!$I$8:$QJ$8, W$2, Calculations!$I421:$QJ421) -> 102512.335 | X80: =SUMIF(Calculations!$I$8:$QJ$8, X$2, Calculations!$I421:$QJ421) -> 87378.44694 | Y80: =SUMIF(Calculations!$I$8:$QJ$8, Y$2, Calculations!$I421:$QJ421) -> 71390.88865 | Z80: =SUMIF(Calculations!$I$8:$QJ$8, Z$2, Calculations!$I421:$QJ421) -> 54501.50642 | AA80: =SUMIF(Calculations!$I$8:$QJ$8, AA$2, Calculations!$I421:$QJ421) -> 36659.43026 | AB80: =SUMIF(Calculations!$I$8:$QJ$8, AB$2, Calculations!$I421:$QJ421) -> 17810.92077 | AC80: =SUMIF(Calculations!$I$8:$QJ$8, AC$2, Calculations!$I421:$QJ421) -> 741.9477284 | AD80: =SUMIF(Calculations!$I$8:$QJ$8, AD$2, Calculations!$I421:$QJ421) -> 0 | AE80: =SUMIF(Calculations!$I$8:$QJ$8, AE$2, Calculations!$I421:$QJ421) -> 0 | AF80: =SUMIF(Calculations!$I$8:$QJ$8, AF$2, Calculations!$I421:$QJ421) -> 0 | AG80: =SUMIF(Calculations!$I$8:$QJ$8, AG$2, Calculations!$I421:$QJ421) -> 0 | AH80: =SUMIF(Calculations!$I$8:$QJ$8, AH$2, Calculations!$I421:$QJ421) -> 0 | AI80: =SUMIF(Calculations!$I$8:$QJ$8, AI$2, Calculations!$I421:$QJ421) -> 0 | AJ80: =SUMIF(Calculations!$I$8:$QJ$8, AJ$2, Calculations!$I421:$QJ421) -> 0
C81: =Calculations!C422 -> add: Subordinated Debt Interest Expense | D81: 3033171.019 | E81: -429220.7376 | F81: =Calculations!E422 -> EUR | H81: 2603950.281 | I81: =SUMIF(Calculations!$I$8:$QJ$8, I$2, Calculations!$I422:$QJ422) -> 0 | J81: =SUMIF(Calculations!$I$8:$QJ$8, J$2, Calculations!$I422:$QJ422) -> 0 | K81: =SUMIF(Calculations!$I$8:$QJ$8, K$2, Calculations!$I422:$QJ422) -> 125796.7595 | L81: =SUMIF(Calculations!$I$8:$QJ$8, L$2, Calculations!$I422:$QJ422) -> 248184.4118 | M81: =SUMIF(Calculations!$I$8:$QJ$8, M$2, Calculations!$I422:$QJ422) -> 243516.0362 | N81: =SUMIF(Calculations!$I$8:$QJ$8, N$2, Calculations!$I422:$QJ422) -> 238255.5937 | O81: =SUMIF(Calculations!$I$8:$QJ$8, O$2, Calculations!$I422:$QJ422) -> 232327.9954 | P81: =SUMIF(Calculations!$I$8:$QJ$8, P$2, Calculations!$I422:$QJ422) -> 225648.6293 | Q81: =SUMIF(Calculations!$I$8:$QJ$8, Q$2, Calculations!$I422:$QJ422) -> 218122.1524 | R81: =SUMIF(Calculations!$I$8:$QJ$8, R$2, Calculations!$I422:$QJ422) -> 209641.1298 | S81: =SUMIF(Calculations!$I$8:$QJ$8, S$2, Calculations!$I422:$QJ422) -> 200084.5013 | T81: =SUMIF(Calculations!$I$8:$QJ$8, T$2, Calculations!$I422:$QJ422) -> 189315.853 | U81: =SUMIF(Calculations!$I$8:$QJ$8, U$2, Calculations!$I422:$QJ422) -> 177181.4706 | V81: =SUMIF(Calculations!$I$8:$QJ$8, V$2, Calculations!$I422:$QJ422) -> 163508.1449 | W81: =SUMIF(Calculations!$I$8:$QJ$8, W$2, Calculations!$I422:$QJ422) -> 148100.6991 | X81: =SUMIF(Calculations!$I$8:$QJ$8, X$2, Calculations!$I422:$QJ422) -> 130739.2036 | Y81: =SUMIF(Calculations!$I$8:$QJ$8, Y$2, Calculations!$I422:$QJ422) -> 111175.8359 | Z81: =SUMIF(Calculations!$I$8:$QJ$8, Z$2, Calculations!$I422:$QJ422) -> 89131.34352 | AA81: =SUMIF(Calculations!$I$8:$QJ$8, AA$2, Calculations!$I422:$QJ422) -> 64291.05771 | AB81: =SUMIF(Calculations!$I$8:$QJ$8, AB$2, Calculations!$I422:$QJ422) -> 36300.40191 | AC81: =SUMIF(Calculations!$I$8:$QJ$8, AC$2, Calculations!$I422:$QJ422) -> 4759.830339 | AD81: =SUMIF(Calculations!$I$8:$QJ$8, AD$2, Calculations!$I422:$QJ422) -> -30780.87517 | AE81: =SUMIF(Calculations!$I$8:$QJ$8, AE$2, Calculations!$I422:$QJ422) -> -70829.03173 | AF81: =SUMIF(Calculations!$I$8:$QJ$8, AF$2, Calculations!$I422:$QJ422) -> -115956.2969 | AG81: =SUMIF(Calculations!$I$8:$QJ$8, AG$2, Calculations!$I422:$QJ422) -> -166806.8289 | AH81: =SUMIF(Calculations!$I$8:$QJ$8, AH$2, Calculations!$I422:$QJ422) -> -67757.73612 | AI81: =SUMIF(Calculations!$I$8:$QJ$8, AI$2, Calculations!$I422:$QJ422) -> 0 | AJ81: =SUMIF(Calculations!$I$8:$QJ$8, AJ$2, Calculations!$I422:$QJ422) -> 0
C82: =Calculations!C423 -> less: Interest on Reserve Accounts | D82: 0 | E82: 0 | F82: =Calculations!E423 -> EUR | H82: 0 | I82: =SUMIF(Calculations!$I$8:$QJ$8, I$2, Calculations!$I423:$QJ423) -> 0 | J82: =SUMIF(Calculations!$I$8:$QJ$8, J$2, Calculations!$I423:$QJ423) -> 0 | K82: =SUMIF(Calculations!$I$8:$QJ$8, K$2, Calculations!$I423:$QJ423) -> 0 | L82: =SUMIF(Calculations!$I$8:$QJ$8, L$2, Calculations!$I423:$QJ423) -> 0 | M82: =SUMIF(Calculations!$I$8:$QJ$8, M$2, Calculations!$I423:$QJ423) -> 0 | N82: =SUMIF(Calculations!$I$8:$QJ$8, N$2, Calculations!$I423:$QJ423) -> 0 | O82: =SUMIF(Calculations!$I$8:$QJ$8, O$2, Calculations!$I423:$QJ423) -> 0 | P82: =SUMIF(Calculations!$I$8:$QJ$8, P$2, Calculations!$I423:$QJ423) -> 0 | Q82: =SUMIF(Calculations!$I$8:$QJ$8, Q$2, Calculations!$I423:$QJ423) -> 0 | R82: =SUMIF(Calculations!$I$8:$QJ$8, R$2, Calculations!$I423:$QJ423) -> 0 | S82: =SUMIF(Calculations!$I$8:$QJ$8, S$2, Calculations!$I423:$QJ423) -> 0 | T82: =SUMIF(Calculations!$I$8:$QJ$8, T$2, Calculations!$I423:$QJ423) -> 0 | U82: =SUMIF(Calculations!$I$8:$QJ$8, U$2, Calculations!$I423:$QJ423) -> 0 | V82: =SUMIF(Calculations!$I$8:$QJ$8, V$2, Calculations!$I423:$QJ423) -> 0 | W82: =SUMIF(Calculations!$I$8:$QJ$8, W$2, Calculations!$I423:$QJ423) -> 0 | X82: =SUMIF(Calculations!$I$8:$QJ$8, X$2, Calculations!$I423:$QJ423) -> 0 | Y82: =SUMIF(Calculations!$I$8:$QJ$8, Y$2, Calculations!$I423:$QJ423) -> 0 | Z82: =SUMIF(Calculations!$I$8:$QJ$8, Z$2, Calculations!$I423:$QJ423) -> 0 | AA82: =SUMIF(Calculations!$I$8:$QJ$8, AA$2, Calculations!$I423:$QJ423) -> 0 | AB82: =SUMIF(Calculations!$I$8:$QJ$8, AB$2, Calculations!$I423:$QJ423) -> 0 | AC82: =SUMIF(Calculations!$I$8:$QJ$8, AC$2, Calculations!$I423:$QJ423) -> 0 | AD82: =SUMIF(Calculations!$I$8:$QJ$8, AD$2, Calculations!$I423:$QJ423) -> 0 | AE82: =SUMIF(Calculations!$I$8:$QJ$8, AE$2, Calculations!$I423:$QJ423) -> 0 | AF82: =SUMIF(Calculations!$I$8:$QJ$8, AF$2, Calculations!$I423:$QJ423) -> 0 | AG82: =SUMIF(Calculations!$I$8:$QJ$8, AG$2, Calculations!$I423:$QJ423) -> 0 | AH82: =SUMIF(Calculations!$I$8:$QJ$8, AH$2, Calculations!$I423:$QJ423) -> 0 | AI82: =SUMIF(Calculations!$I$8:$QJ$8, AI$2, Calculations!$I423:$QJ423) -> 0 | AJ82: =SUMIF(Calculations!$I$8:$QJ$8, AJ$2, Calculations!$I423:$QJ423) -> 0
C83: =Calculations!C424 -> Cash Flows From Operating Activities | D83: 12489742.95 | E83: 3529466.186 | F83: =Calculations!E424 -> EUR | H83: 16019209.14 | I83: =SUM(I76:I82) -> -311841.3316 | J83: =SUM(J76:J82) -> 196098.3066 | K83: =SUM(K76:K82) -> 417119.307 | L83: 804185.8909 | M83: 792911.0457 | N83: 785470.3645 | O83: 776514.0758 | P83: 769170.3241 | Q83: 760765.0626 | R83: 751337.0171 | S83: 741512.306 | T83: 731932.258 | U83: 722259.7143 | V83: 712116.8555 | W83: 701934.1166 | X83: 691497.9805 | Y83: 680752.3916 | Z83: 669277.9962 | AA83: 657750.6834 | AB83: 646471.119 | AC83: 635134.0132 | AD83: 566451.0574 | AE83: 519744.5345 | AF83: 502723.761 | AG83: =SUM(AG76:AG82) -> 484700.7642 | AH83: 484875.1139 | AI83: 491916.5394 | AJ83: -363572.1319
D84: 0 | E84: 0
B85: Investing Activities | D85: 0 | E85: 0
C86: =Calculations!C427 -> Capital Expenditures | D86: -1520434.394 | E86: -7754891.519 | F86: =Calculations!E427 -> EUR | H86: =SUM(I86:AT86) -> -9275325.914 | I86: =SUMIF(Calculations!$I$8:$QJ$8, I$2, Calculations!$I429:$QJ429) -> -2885765.331 | J86: =SUMIF(Calculations!$I$8:$QJ$8, J$2, Calculations!$I429:$QJ429) -> -3609294.334 | K86: =SUMIF(Calculations!$I$8:$QJ$8, K$2, Calculations!$I429:$QJ429) -> -1520434.394 | L86: =SUMIF(Calculations!$I$8:$QJ$8, L$2, Calculations!$I429:$QJ429) -> 0 | M86: =SUMIF(Calculations!$I$8:$QJ$8, M$2, Calculations!$I429:$QJ429) -> 0 | N86: =SUMIF(Calculations!$I$8:$QJ$8, N$2, Calculations!$I429:$QJ429) -> 0 | O86: =SUMIF(Calculations!$I$8:$QJ$8, O$2, Calculations!$I429:$QJ429) -> 0 | P86: =SUMIF(Calculations!$I$8:$QJ$8, P$2, Calculations!$I429:$QJ429) -> 0 | Q86: =SUMIF(Calculations!$I$8:$QJ$8, Q$2, Calculations!$I429:$QJ429) -> 0 | R86: =SUMIF(Calculations!$I$8:$QJ$8, R$2, Calculations!$I429:$QJ429) -> 0 | S86: =SUMIF(Calculations!$I$8:$QJ$8, S$2, Calculations!$I429:$QJ429) -> 0 | T86: =SUMIF(Calculations!$I$8:$QJ$8, T$2, Calculations!$I429:$QJ429) -> 0 | U86: =SUMIF(Calculations!$I$8:$QJ$8, U$2, Calculations!$I429:$QJ429) -> 0 | V86: =SUMIF(Calculations!$I$8:$QJ$8, V$2, Calculations!$I429:$QJ429) -> 0 | W86: =SUMIF(Calculations!$I$8:$QJ$8, W$2, Calculations!$I429:$QJ429) -> 0 | X86: =SUMIF(Calculations!$I$8:$QJ$8, X$2, Calculations!$I429:$QJ429) -> 0 | Y86: =SUMIF(Calculations!$I$8:$QJ$8, Y$2, Calculations!$I429:$QJ429) -> 0 | Z86: =SUMIF(Calculations!$I$8:$QJ$8, Z$2, Calculations!$I429:$QJ429) -> 0 | AA86: =SUMIF(Calculations!$I$8:$QJ$8, AA$2, Calculations!$I429:$QJ429) -> 0 | AB86: =SUMIF(Calculations!$I$8:$QJ$8, AB$2, Calculations!$I429:$QJ429) -> 0 | AC86: =SUMIF(Calculations!$I$8:$QJ$8, AC$2, Calculations!$I429:$QJ429) -> -1259831.855 | AD86: =SUMIF(Calculations!$I$8:$QJ$8, AD$2, Calculations!$I429:$QJ429) -> 0 | AE86: =SUMIF(Calculations!$I$8:$QJ$8, AE$2, Calculations!$I429:$QJ429) -> 0 | AF86: =SUMIF(Calculations!$I$8:$QJ$8, AF$2, Calculations!$I429:$QJ429) -> 0 | AG86: =SUMIF(Calculations!$I$8:$QJ$8, AG$2, Calculations!$I429:$QJ429) -> 0 | AH86: =SUMIF(Calculations!$I$8:$QJ$8, AH$2, Calculations!$I429:$QJ429) -> 0 | AI86: =SUMIF(Calculations!$I$8:$QJ$8, AI$2, Calculations!$I429:$QJ429) -> 0 | AJ86: =SUMIF(Calculations!$I$8:$QJ$8, AJ$2, Calculations!$I429:$QJ429) -> 0
C87: =Calculations!C429 -> Cash Flows From Investing Activities | D87: -1520434.394 | E87: -7754891.519 | F87: =Calculations!E429 -> EUR | H87: =SUM(I87:AT87) -> -9275325.914 | I87: =SUM(I86) -> -2885765.331 | J87: =SUM(J86) -> -3609294.334 | K87: -1520434.394 | L87: 0 | M87: 0 | N87: 0 | O87: 0 | P87: 0 | Q87: 0 | R87: 0 | S87: 0 | T87: 0 | U87: 0 | V87: 0 | W87: 0 | X87: 0 | Y87: 0 | Z87: 0 | AA87: 0 | AB87: 0 | AC87: -1259831.855 | AD87: 0 | AE87: 0 | AF87: 0 | AG87: =SUM(AG86) -> 0 | AH87: 0 | AI87: 0 | AJ87: 0
D88: 0 | E88: 0
B89: Financing Activities | D89: 0 | E89: 0
C90: =Calculations!C432 -> Drawdown of Equity | D90: 0 | E90: 2075000 | F90: =Calculations!E432 -> EUR | H90: =SUM(I90:AT90) -> 2075000 | I90: =SUMIF(Calculations!$I$8:$QJ$8, I$2, Calculations!$I432:$QJ432) -> 2075000 | J90: =SUMIF(Calculations!$I$8:$QJ$8, J$2, Calculations!$I432:$QJ432) -> 0 | K90: =SUMIF(Calculations!$I$8:$QJ$8, K$2, Calculations!$I432:$QJ432) -> 0 | L90: =SUMIF(Calculations!$I$8:$QJ$8, L$2, Calculations!$I432:$QJ432) -> 0 | M90: =SUMIF(Calculations!$I$8:$QJ$8, M$2, Calculations!$I432:$QJ432) -> 0 | N90: =SUMIF(Calculations!$I$8:$QJ$8, N$2, Calculations!$I432:$QJ432) -> 0 | O90: =SUMIF(Calculations!$I$8:$QJ$8, O$2, Calculations!$I432:$QJ432) -> 0 | P90: =SUMIF(Calculations!$I$8:$QJ$8, P$2, Calculations!$I432:$QJ432) -> 0 | Q90: =SUMIF(Calculations!$I$8:$QJ$8, Q$2, Calculations!$I432:$QJ432) -> 0 | R90: =SUMIF(Calculations!$I$8:$QJ$8, R$2, Calculations!$I432:$QJ432) -> 0 | S90: =SUMIF(Calculations!$I$8:$QJ$8, S$2, Calculations!$I432:$QJ432) -> 0 | T90: =SUMIF(Calculations!$I$8:$QJ$8, T$2, Calculations!$I432:$QJ432) -> 0 | U90: =SUMIF(Calculations!$I$8:$QJ$8, U$2, Calculations!$I432:$QJ432) -> 0 | V90: =SUMIF(Calculations!$I$8:$QJ$8, V$2, Calculations!$I432:$QJ432) -> 0 | W90: =SUMIF(Calculations!$I$8:$QJ$8, W$2, Calculations!$I432:$QJ432) -> 0 | X90: =SUMIF(Calculations!$I$8:$QJ$8, X$2, Calculations!$I432:$QJ432) -> 0 | Y90: =SUMIF(Calculations!$I$8:$QJ$8, Y$2, Calculations!$I432:$QJ432) -> 0 | Z90: =SUMIF(Calculations!$I$8:$QJ$8, Z$2, Calculations!$I432:$QJ432) -> 0 | AA90: =SUMIF(Calculations!$I$8:$QJ$8, AA$2, Calculations!$I432:$QJ432) -> 0 | AB90: =SUMIF(Calculations!$I$8:$QJ$8, AB$2, Calculations!$I432:$QJ432) -> 0 | AC90: =SUMIF(Calculations!$I$8:$QJ$8, AC$2, Calculations!$I432:$QJ432) -> 0 | AD90: =SUMIF(Calculations!$I$8:$QJ$8, AD$2, Calculations!$I432:$QJ432) -> 0 | AE90: =SUMIF(Calculations!$I$8:$QJ$8, AE$2, Calculations!$I432:$QJ432) -> 0 | AF90: =SUMIF(Calculations!$I$8:$QJ$8, AF$2, Calculations!$I432:$QJ432) -> 0 | AG90: =SUMIF(Calculations!$I$8:$QJ$8, AG$2, Calculations!$I432:$QJ432) -> 0 | AH90: =SUMIF(Calculations!$I$8:$QJ$8, AH$2, Calculations!$I432:$QJ432) -> 0 | AI90: =SUMIF(Calculations!$I$8:$QJ$8, AI$2, Calculations!$I432:$QJ432) -> 0 | AJ90: =SUMIF(Calculations!$I$8:$QJ$8, AJ$2, Calculations!$I432:$QJ432) -> 0
C91: =Calculations!C433 -> Drawdown of Subordinated Debt | D91: 0 | E91: 2075000 | F91: =Calculations!E433 -> EUR | H91: 2075000 | I91: =SUMIF(Calculations!$I$8:$QJ$8, I$2, Calculations!$I433:$QJ433) -> 1037500 | J91: =SUMIF(Calculations!$I$8:$QJ$8, J$2, Calculations!$I433:$QJ433) -> 1037500 | K91: =SUMIF(Calculations!$I$8:$QJ$8, K$2, Calculations!$I433:$QJ433) -> 0 | L91: =SUMIF(Calculations!$I$8:$QJ$8, L$2, Calculations!$I433:$QJ433) -> 0 | M91: =SUMIF(Calculations!$I$8:$QJ$8, M$2, Calculations!$I433:$QJ433) -> 0 | N91: =SUMIF(Calculations!$I$8:$QJ$8, N$2, Calculations!$I433:$QJ433) -> 0 | O91: =SUMIF(Calculations!$I$8:$QJ$8, O$2, Calculations!$I433:$QJ433) -> 0 | P91: =SUMIF(Calculations!$I$8:$QJ$8, P$2, Calculations!$I433:$QJ433) -> 0 | Q91: =SUMIF(Calculations!$I$8:$QJ$8, Q$2, Calculations!$I433:$QJ433) -> 0 | R91: =SUMIF(Calculations!$I$8:$QJ$8, R$2, Calculations!$I433:$QJ433) -> 0 | S91: =SUMIF(Calculations!$I$8:$QJ$8, S$2, Calculations!$I433:$QJ433) -> 0 | T91: =SUMIF(Calculations!$I$8:$QJ$8, T$2, Calculations!$I433:$QJ433) -> 0 | U91: =SUMIF(Calculations!$I$8:$QJ$8, U$2, Calculations!$I433:$QJ433) -> 0 | V91: =SUMIF(Calculations!$I$8:$QJ$8, V$2, Calculations!$I433:$QJ433) -> 0 | W91: =SUMIF(Calculations!$I$8:$QJ$8, W$2, Calculations!$I433:$QJ433) -> 0 | X91: =SUMIF(Calculations!$I$8:$QJ$8, X$2, Calculations!$I433:$QJ433) -> 0 | Y91: =SUMIF(Calculations!$I$8:$QJ$8, Y$2, Calculations!$I433:$QJ433) -> 0 | Z91: =SUMIF(Calculations!$I$8:$QJ$8, Z$2, Calculations!$I433:$QJ433) -> 0 | AA91: =SUMIF(Calculations!$I$8:$QJ$8, AA$2, Calculations!$I433:$QJ433) -> 0 | AB91: =SUMIF(Calculations!$I$8:$QJ$8, AB$2, Calculations!$I433:$QJ433) -> 0 | AC91: =SUMIF(Calculations!$I$8:$QJ$8, AC$2, Calculations!$I433:$QJ433) -> 0 | AD91: =SUMIF(Calculations!$I$8:$QJ$8, AD$2, Calculations!$I433:$QJ433) -> 0 | AE91: =SUMIF(Calculations!$I$8:$QJ$8, AE$2, Calculations!$I433:$QJ433) -> 0 | AF91: =SUMIF(Calculations!$I$8:$QJ$8, AF$2, Calculations!$I433:$QJ433) -> 0 | AG91: =SUMIF(Calculations!$I$8:$QJ$8, AG$2, Calculations!$I433:$QJ433) -> 0 | AH91: =SUMIF(Calculations!$I$8:$QJ$8, AH$2, Calculations!$I433:$QJ433) -> 0 | AI91: =SUMIF(Calculations!$I$8:$QJ$8, AI$2, Calculations!$I433:$QJ433) -> 0 | AJ91: =SUMIF(Calculations!$I$8:$QJ$8, AJ$2, Calculations!$I433:$QJ433) -> 0
C92: =Calculations!C434 -> Drawdown of Construction Loan | D92: 1620000 | E92: 2530000 | F92: =Calculations!E434 -> EUR | H92: 4150000 | I92: =SUMIF(Calculations!$I$8:$QJ$8, I$2, Calculations!$I434:$QJ434) -> 135000 | J92: =SUMIF(Calculations!$I$8:$QJ$8, J$2, Calculations!$I434:$QJ434) -> 2395000 | K92: =SUMIF(Calculations!$I$8:$QJ$8, K$2, Calculations!$I434:$QJ434) -> 1620000 | L92: =SUMIF(Calculations!$I$8:$QJ$8, L$2, Calculations!$I434:$QJ434) -> 0 | M92: =SUMIF(Calculations!$I$8:$QJ$8, M$2, Calculations!$I434:$QJ434) -> 0 | N92: =SUMIF(Calculations!$I$8:$QJ$8, N$2, Calculations!$I434:$QJ434) -> 0 | O92: =SUMIF(Calculations!$I$8:$QJ$8, O$2, Calculations!$I434:$QJ434) -> 0 | P92: =SUMIF(Calculations!$I$8:$QJ$8, P$2, Calculations!$I434:$QJ434) -> 0 | Q92: =SUMIF(Calculations!$I$8:$QJ$8, Q$2, Calculations!$I434:$QJ434) -> 0 | R92: =SUMIF(Calculations!$I$8:$QJ$8, R$2, Calculations!$I434:$QJ434) -> 0 | S92: =SUMIF(Calculations!$I$8:$QJ$8, S$2, Calculations!$I434:$QJ434) -> 0 | T92: =SUMIF(Calculations!$I$8:$QJ$8, T$2, Calculations!$I434:$QJ434) -> 0 | U92: =SUMIF(Calculations!$I$8:$QJ$8, U$2, Calculations!$I434:$QJ434) -> 0 | V92: =SUMIF(Calculations!$I$8:$QJ$8, V$2, Calculations!$I434:$QJ434) -> 0 | W92: =SUMIF(Calculations!$I$8:$QJ$8, W$2, Calculations!$I434:$QJ434) -> 0 | X92: =SUMIF(Calculations!$I$8:$QJ$8, X$2, Calculations!$I434:$QJ434) -> 0 | Y92: =SUMIF(Calculations!$I$8:$QJ$8, Y$2, Calculations!$I434:$QJ434) -> 0 | Z92: =SUMIF(Calculations!$I$8:$QJ$8, Z$2, Calculations!$I434:$QJ434) -> 0 | AA92: =SUMIF(Calculations!$I$8:$QJ$8, AA$2, Calculations!$I434:$QJ434) -> 0 | AB92: =SUMIF(Calculations!$I$8:$QJ$8, AB$2, Calculations!$I434:$QJ434) -> 0 | AC92: =SUMIF(Calculations!$I$8:$QJ$8, AC$2, Calculations!$I434:$QJ434) -> 0 | AD92: =SUMIF(Calculations!$I$8:$QJ$8, AD$2, Calculations!$I434:$QJ434) -> 0 | AE92: =SUMIF(Calculations!$I$8:$QJ$8, AE$2, Calculations!$I434:$QJ434) -> 0 | AF92: =SUMIF(Calculations!$I$8:$QJ$8, AF$2, Calculations!$I434:$QJ434) -> 0 | AG92: =SUMIF(Calculations!$I$8:$QJ$8, AG$2, Calculations!$I434:$QJ434) -> 0 | AH92: =SUMIF(Calculations!$I$8:$QJ$8, AH$2, Calculations!$I434:$QJ434) -> 0 | AI92: =SUMIF(Calculations!$I$8:$QJ$8, AI$2, Calculations!$I434:$QJ434) -> 0 | AJ92: =SUMIF(Calculations!$I$8:$QJ$8, AJ$2, Calculations!$I434:$QJ434) -> 0
C93: =Calculations!C435 -> Drawdown of Operating Loan | D93: 0 | E93: 0 | F93: =Calculations!E435 -> 0 | H93: 0 | I93: =SUMIF(Calculations!$I$8:$QJ$8, I$2, Calculations!$I435:$QJ435) -> 0 | J93: =SUMIF(Calculations!$I$8:$QJ$8, J$2, Calculations!$I435:$QJ435) -> 0 | K93: =SUMIF(Calculations!$I$8:$QJ$8, K$2, Calculations!$I435:$QJ435) -> 0 | L93: =SUMIF(Calculations!$I$8:$QJ$8, L$2, Calculations!$I435:$QJ435) -> 0 | M93: =SUMIF(Calculations!$I$8:$QJ$8, M$2, Calculations!$I435:$QJ435) -> 0 | N93: =SUMIF(Calculations!$I$8:$QJ$8, N$2, Calculations!$I435:$QJ435) -> 0 | O93: =SUMIF(Calculations!$I$8:$QJ$8, O$2, Calculations!$I435:$QJ435) -> 0 | P93: =SUMIF(Calculations!$I$8:$QJ$8, P$2, Calculations!$I435:$QJ435) -> 0 | Q93: =SUMIF(Calculations!$I$8:$QJ$8, Q$2, Calculations!$I435:$QJ435) -> 0 | R93: =SUMIF(Calculations!$I$8:$QJ$8, R$2, Calculations!$I435:$QJ435) -> 0 | S93: =SUMIF(Calculations!$I$8:$QJ$8, S$2, Calculations!$I435:$QJ435) -> 0 | T93: =SUMIF(Calculations!$I$8:$QJ$8, T$2, Calculations!$I435:$QJ435) -> 0 | U93: =SUMIF(Calculations!$I$8:$QJ$8, U$2, Calculations!$I435:$QJ435) -> 0 | V93: =SUMIF(Calculations!$I$8:$QJ$8, V$2, Calculations!$I435:$QJ435) -> 0 | W93: =SUMIF(Calculations!$I$8:$QJ$8, W$2, Calculations!$I435:$QJ435) -> 0 | X93: =SUMIF(Calculations!$I$8:$QJ$8, X$2, Calculations!$I435:$QJ435) -> 0 | Y93: =SUMIF(Calculations!$I$8:$QJ$8, Y$2, Calculations!$I435:$QJ435) -> 0 | Z93: =SUMIF(Calculations!$I$8:$QJ$8, Z$2, Calculations!$I435:$QJ435) -> 0 | AA93: =SUMIF(Calculations!$I$8:$QJ$8, AA$2, Calculations!$I435:$QJ435) -> 0 | AB93: =SUMIF(Calculations!$I$8:$QJ$8, AB$2, Calculations!$I435:$QJ435) -> 0 | AC93: =SUMIF(Calculations!$I$8:$QJ$8, AC$2, Calculations!$I435:$QJ435) -> 0 | AD93: =SUMIF(Calculations!$I$8:$QJ$8, AD$2, Calculations!$I435:$QJ435) -> 0 | AE93: =SUMIF(Calculations!$I$8:$QJ$8, AE$2, Calculations!$I435:$QJ435) -> 0 | AF93: =SUMIF(Calculations!$I$8:$QJ$8, AF$2, Calculations!$I435:$QJ435) -> 0 | AG93: =SUMIF(Calculations!$I$8:$QJ$8, AG$2, Calculations!$I435:$QJ435) -> 0 | AH93: =SUMIF(Calculations!$I$8:$QJ$8, AH$2, Calculations!$I435:$QJ435) -> 0 | AI93: =SUMIF(Calculations!$I$8:$QJ$8, AI$2, Calculations!$I435:$QJ435) -> 0 | AJ93: =SUMIF(Calculations!$I$8:$QJ$8, AJ$2, Calculations!$I435:$QJ435) -> 0
C94: =Calculations!C436 -> Principal Repayment of Subordinated Debt | D94: -1767819.682 | E94: -307180.3177 | F94: =Calculations!E436 -> EUR | H94: -2075000 | I94: =SUMIF(Calculations!$I$8:$QJ$8, I$2, Calculations!$I436:$QJ436) -> 0 | J94: =SUMIF(Calculations!$I$8:$QJ$8, J$2, Calculations!$I436:$QJ436) -> 0 | K94: =SUMIF(Calculations!$I$8:$QJ$8, K$2, Calculations!$I436:$QJ436) -> -8162.25129 | L94: =SUMIF(Calculations!$I$8:$QJ$8, L$2, Calculations!$I436:$QJ436) -> -36084.28225 | M94: =SUMIF(Calculations!$I$8:$QJ$8, M$2, Calculations!$I436:$QJ436) -> -40660.67244 | N94: =SUMIF(Calculations!$I$8:$QJ$8, N$2, Calculations!$I436:$QJ436) -> -45817.46344 | O94: =SUMIF(Calculations!$I$8:$QJ$8, O$2, Calculations!$I436:$QJ436) -> -51628.26463 | P94: =SUMIF(Calculations!$I$8:$QJ$8, P$2, Calculations!$I436:$QJ436) -> -58176.02084 | Q94: =SUMIF(Calculations!$I$8:$QJ$8, Q$2, Calculations!$I436:$QJ436) -> -65554.19644 | R94: =SUMIF(Calculations!$I$8:$QJ$8, R$2, Calculations!$I436:$QJ436) -> -73868.10938 | S94: =SUMIF(Calculations!$I$8:$QJ$8, S$2, Calculations!$I436:$QJ436) -> -83236.43457 | T94: =SUMIF(Calculations!$I$8:$QJ$8, T$2, Calculations!$I436:$QJ436) -> -93792.8979 | U94: =SUMIF(Calculations!$I$8:$QJ$8, U$2, Calculations!$I436:$QJ436) -> -105688.185 | V94: =SUMIF(Calculations!$I$8:$QJ$8, V$2, Calculations!$I436:$QJ436) -> -119092.0922 | W94: =SUMIF(Calculations!$I$8:$QJ$8, W$2, Calculations!$I436:$QJ436) -> -134195.9504 | X94: =SUMIF(Calculations!$I$8:$QJ$8, X$2, Calculations!$I436:$QJ436) -> -151215.3559 | Y94: =SUMIF(Calculations!$I$8:$QJ$8, Y$2, Calculations!$I436:$QJ436) -> -170393.248 | Z94: =SUMIF(Calculations!$I$8:$QJ$8, Z$2, Calculations!$I436:$QJ436) -> -192003.3768 | AA94: =SUMIF(Calculations!$I$8:$QJ$8, AA$2, Calculations!$I436:$QJ436) -> -216354.2108 | AB94: =SUMIF(Calculations!$I$8:$QJ$8, AB$2, Calculations!$I436:$QJ436) -> -243793.3401 | AC94: =SUMIF(Calculations!$I$8:$QJ$8, AC$2, Calculations!$I436:$QJ436) -> -274712.4378 | AD94: =SUMIF(Calculations!$I$8:$QJ$8, AD$2, Calculations!$I436:$QJ436) -> -309552.851 | AE94: =SUMIF(Calculations!$I$8:$QJ$8, AE$2, Calculations!$I436:$QJ436) -> -348811.9007 | AF94: =SUMIF(Calculations!$I$8:$QJ$8, AF$2, Calculations!$I436:$QJ436) -> -393049.9805 | AG94: =SUMIF(Calculations!$I$8:$QJ$8, AG$2, Calculations!$I436:$QJ436) -> -442898.5561 | AH94: =SUMIF(Calculations!$I$8:$QJ$8, AH$2, Calculations!$I436:$QJ436) -> 1583742.079 | AI94: =SUMIF(Calculations!$I$8:$QJ$8, AI$2, Calculations!$I436:$QJ436) -> 0 | AJ94: =SUMIF(Calculations!$I$8:$QJ$8, AJ$2, Calculations!$I436:$QJ436) -> 0
C95: =Calculations!C437 -> Principal Repayment of Construction Loan | D95: 0 | E95: 0 | F95: =Calculations!E437 -> EUR | H95: 0 | I95: =SUMIF(Calculations!$I$8:$QJ$8, I$2, Calculations!$I437:$QJ437) -> 0 | J95: =SUMIF(Calculations!$I$8:$QJ$8, J$2, Calculations!$I437:$QJ437) -> 0 | K95: =SUMIF(Calculations!$I$8:$QJ$8, K$2, Calculations!$I437:$QJ437) -> 0 | L95: =SUMIF(Calculations!$I$8:$QJ$8, L$2, Calculations!$I437:$QJ437) -> 0 | M95: =SUMIF(Calculations!$I$8:$QJ$8, M$2, Calculations!$I437:$QJ437) -> 0 | N95: =SUMIF(Calculations!$I$8:$QJ$8, N$2, Calculations!$I437:$QJ437) -> 0 | O95: =SUMIF(Calculations!$I$8:$QJ$8, O$2, Calculations!$I437:$QJ437) -> 0 | P95: =SUMIF(Calculations!$I$8:$QJ$8, P$2, Calculations!$I437:$QJ437) -> 0 | Q95: =SUMIF(Calculations!$I$8:$QJ$8, Q$2, Calculations!$I437:$QJ437) -> 0 | R95: =SUMIF(Calculations!$I$8:$QJ$8, R$2, Calculations!$I437:$QJ437) -> 0 | S95: =SUMIF(Calculations!$I$8:$QJ$8, S$2, Calculations!$I437:$QJ437) -> 0 | T95: =SUMIF(Calculations!$I$8:$QJ$8, T$2, Calculations!$I437:$QJ437) -> 0 | U95: =SUMIF(Calculations!$I$8:$QJ$8, U$2, Calculations!$I437:$QJ437) -> 0 | V95: =SUMIF(Calculations!$I$8:$QJ$8, V$2, Calculations!$I437:$QJ437) -> 0 | W95: =SUMIF(Calculations!$I$8:$QJ$8, W$2, Calculations!$I437:$QJ437) -> 0 | X95: =SUMIF(Calculations!$I$8:$QJ$8, X$2, Calculations!$I437:$QJ437) -> 0 | Y95: =SUMIF(Calculations!$I$8:$QJ$8, Y$2, Calculations!$I437:$QJ437) -> 0 | Z95: =SUMIF(Calculations!$I$8:$QJ$8, Z$2, Calculations!$I437:$QJ437) -> 0 | AA95: =SUMIF(Calculations!$I$8:$QJ$8, AA$2, Calculations!$I437:$QJ437) -> 0 | AB95: =SUMIF(Calculations!$I$8:$QJ$8, AB$2, Calculations!$I437:$QJ437) -> 0 | AC95: =SUMIF(Calculations!$I$8:$QJ$8, AC$2, Calculations!$I437:$QJ437) -> 0 | AD95: =SUMIF(Calculations!$I$8:$QJ$8, AD$2, Calculations!$I437:$QJ437) -> 0 | AE95: =SUMIF(Calculations!$I$8:$QJ$8, AE$2, Calculations!$I437:$QJ437) -> 0 | AF95: =SUMIF(Calculations!$I$8:$QJ$8, AF$2, Calculations!$I437:$QJ437) -> 0 | AG95: =SUMIF(Calculations!$I$8:$QJ$8, AG$2, Calculations!$I437:$QJ437) -> 0 | AH95: =SUMIF(Calculations!$I$8:$QJ$8, AH$2, Calculations!$I437:$QJ437) -> 0 | AI95: =SUMIF(Calculations!$I$8:$QJ$8, AI$2, Calculations!$I437:$QJ437) -> 0 | AJ95: =SUMIF(Calculations!$I$8:$QJ$8, AJ$2, Calculations!$I437:$QJ437) -> 0
C96: =Calculations!C438 -> Principal Repayment of Operating Loan | D96: -3814703.406 | E96: -174890.8453 | F96: =Calculations!E438 -> EUR | H96: -3989594.251 | I96: =SUMIF(Calculations!$I$8:$QJ$8, I$2, Calculations!$I438:$QJ438) -> 0 | J96: =SUMIF(Calculations!$I$8:$QJ$8, J$2, Calculations!$I438:$QJ438) -> 0 | K96: =SUMIF(Calculations!$I$8:$QJ$8, K$2, Calculations!$I438:$QJ438) -> -16093.5665 | L96: =SUMIF(Calculations!$I$8:$QJ$8, L$2, Calculations!$I438:$QJ438) -> -145375.4556 | M96: =SUMIF(Calculations!$I$8:$QJ$8, M$2, Calculations!$I438:$QJ438) -> -153575.774 | N96: =SUMIF(Calculations!$I$8:$QJ$8, N$2, Calculations!$I438:$QJ438) -> -162238.6548 | O96: =SUMIF(Calculations!$I$8:$QJ$8, O$2, Calculations!$I438:$QJ438) -> -171390.1902 | P96: =SUMIF(Calculations!$I$8:$QJ$8, P$2, Calculations!$I438:$QJ438) -> -181057.9441 | Q96: =SUMIF(Calculations!$I$8:$QJ$8, Q$2, Calculations!$I438:$QJ438) -> -191271.0353 | R96: =SUMIF(Calculations!$I$8:$QJ$8, R$2, Calculations!$I438:$QJ438) -> -202060.2252 | S96: =SUMIF(Calculations!$I$8:$QJ$8, S$2, Calculations!$I438:$QJ438) -> -213458.0102 | T96: =SUMIF(Calculations!$I$8:$QJ$8, T$2, Calculations!$I438:$QJ438) -> -225498.7198 | U96: =SUMIF(Calculations!$I$8:$QJ$8, U$2, Calculations!$I438:$QJ438) -> -238218.6201 | V96: =SUMIF(Calculations!$I$8:$QJ$8, V$2, Calculations!$I438:$QJ438) -> -251656.0228 | W96: =SUMIF(Calculations!$I$8:$QJ$8, W$2, Calculations!$I438:$QJ438) -> -265851.4006 | X96: =SUMIF(Calculations!$I$8:$QJ$8, X$2, Calculations!$I438:$QJ438) -> -280847.5093 | Y96: =SUMIF(Calculations!$I$8:$QJ$8, Y$2, Calculations!$I438:$QJ438) -> -296689.5164 | Z96: =SUMIF(Calculations!$I$8:$QJ$8, Z$2, Calculations!$I438:$QJ438) -> -313425.1372 | AA96: =SUMIF(Calculations!$I$8:$QJ$8, AA$2, Calculations!$I438:$QJ438) -> -331104.7786 | AB96: =SUMIF(Calculations!$I$8:$QJ$8, AB$2, Calculations!$I438:$QJ438) -> -349781.6907 | AC96: =SUMIF(Calculations!$I$8:$QJ$8, AC$2, Calculations!$I438:$QJ438) -> 0 | AD96: =SUMIF(Calculations!$I$8:$QJ$8, AD$2, Calculations!$I438:$QJ438) -> 0 | AE96: =SUMIF(Calculations!$I$8:$QJ$8, AE$2, Calculations!$I438:$QJ438) -> 0 | AF96: =SUMIF(Calculations!$I$8:$QJ$8, AF$2, Calculations!$I438:$QJ438) -> 0 | AG96: =SUMIF(Calculations!$I$8:$QJ$8, AG$2, Calculations!$I438:$QJ438) -> 0 | AH96: =SUMIF(Calculations!$I$8:$QJ$8, AH$2, Calculations!$I438:$QJ438) -> 0 | AI96: =SUMIF(Calculations!$I$8:$QJ$8, AI$2, Calculations!$I438:$QJ438) -> 0 | AJ96: =SUMIF(Calculations!$I$8:$QJ$8, AJ$2, Calculations!$I438:$QJ438) -> 0
C97: =Calculations!C439 -> Interest Payment on Senior Loan | D97: -2396301.976 | E97: -12728.00378 | F97: =Calculations!E439 -> EUR | H97: -2409029.98 | I97: =SUMIF(Calculations!$I$8:$QJ$8, I$2, Calculations!$I439:$QJ439) -> 0 | J97: =SUMIF(Calculations!$I$8:$QJ$8, J$2, Calculations!$I439:$QJ439) -> 0 | K97: =SUMIF(Calculations!$I$8:$QJ$8, K$2, Calculations!$I439:$QJ439) -> -76608.00636 | L97: =SUMIF(Calculations!$I$8:$QJ$8, L$2, Calculations!$I439:$QJ439) -> -225430.8359 | M97: =SUMIF(Calculations!$I$8:$QJ$8, M$2, Calculations!$I439:$QJ439) -> -217230.5175 | N97: =SUMIF(Calculations!$I$8:$QJ$8, N$2, Calculations!$I439:$QJ439) -> -208567.6367 | O97: =SUMIF(Calculations!$I$8:$QJ$8, O$2, Calculations!$I439:$QJ439) -> -199416.1013 | P97: =SUMIF(Calculations!$I$8:$QJ$8, P$2, Calculations!$I439:$QJ439) -> -189748.3473 | Q97: =SUMIF(Calculations!$I$8:$QJ$8, Q$2, Calculations!$I439:$QJ439) -> -179535.2561 | R97: =SUMIF(Calculations!$I$8:$QJ$8, R$2, Calculations!$I439:$QJ439) -> -168746.0663 | S97: =SUMIF(Calculations!$I$8:$QJ$8, S$2, Calculations!$I439:$QJ439) -> -157348.2813 | T97: =SUMIF(Calculations!$I$8:$QJ$8, T$2, Calculations!$I439:$QJ439) -> -145307.5716 | U97: =SUMIF(Calculations!$I$8:$QJ$8, U$2, Calculations!$I439:$QJ439) -> -132587.6713 | V97: =SUMIF(Calculations!$I$8:$QJ$8, V$2, Calculations!$I439:$QJ439) -> -119150.2687 | W97: =SUMIF(Calculations!$I$8:$QJ$8, W$2, Calculations!$I439:$QJ439) -> -104954.8909 | X97: =SUMIF(Calculations!$I$8:$QJ$8, X$2, Calculations!$I439:$QJ439) -> -89958.78219 | Y97: =SUMIF(Calculations!$I$8:$QJ$8, Y$2, Calculations!$I439:$QJ439) -> -74116.77509 | Z97: =SUMIF(Calculations!$I$8:$QJ$8, Z$2, Calculations!$I439:$QJ439) -> -57381.15428 | AA97: =SUMIF(Calculations!$I$8:$QJ$8, AA$2, Calculations!$I439:$QJ439) -> -39701.5129 | AB97: =SUMIF(Calculations!$I$8:$QJ$8, AB$2, Calculations!$I439:$QJ439) -> -21024.60078 | AC97: =SUMIF(Calculations!$I$8:$QJ$8, AC$2, Calculations!$I439:$QJ439) -> -2215.703393 | AD97: =SUMIF(Calculations!$I$8:$QJ$8, AD$2, Calculations!$I439:$QJ439) -> 0 | AE97: =SUMIF(Calculations!$I$8:$QJ$8, AE$2, Calculations!$I439:$QJ439) -> 0 | AF97: =SUMIF(Calculations!$I$8:$QJ$8, AF$2, Calculations!$I439:$QJ439) -> 0 | AG97: =SUMIF(Calculations!$I$8:$QJ$8, AG$2, Calculations!$I439:$QJ439) -> 0 | AH97: =SUMIF(Calculations!$I$8:$QJ$8, AH$2, Calculations!$I439:$QJ439) -> 0 | AI97: =SUMIF(Calculations!$I$8:$QJ$8, AI$2, Calculations!$I439:$QJ439) -> 0 | AJ97: =SUMIF(Calculations!$I$8:$QJ$8, AJ$2, Calculations!$I439:$QJ439) -> 0
C98: =Calculations!C440 -> Interest Payment on Subordinated Debt | D98: -3026996.694 | E98: 423046.4132 | F98: =Calculations!E440 -> EUR | H98: -2603950.281 | I98: =SUMIF(Calculations!$I$8:$QJ$8, I$2, Calculations!$I440:$QJ440) -> 0 | J98: =SUMIF(Calculations!$I$8:$QJ$8, J$2, Calculations!$I440:$QJ440) -> 0 | K98: =SUMIF(Calculations!$I$8:$QJ$8, K$2, Calculations!$I440:$QJ440) -> -84253.32075 | L98: =SUMIF(Calculations!$I$8:$QJ$8, L$2, Calculations!$I440:$QJ440) -> -248909.7059 | M98: =SUMIF(Calculations!$I$8:$QJ$8, M$2, Calculations!$I440:$QJ440) -> -244333.3157 | N98: =SUMIF(Calculations!$I$8:$QJ$8, N$2, Calculations!$I440:$QJ440) -> -239176.5247 | O98: =SUMIF(Calculations!$I$8:$QJ$8, O$2, Calculations!$I440:$QJ440) -> -233365.7235 | P98: =SUMIF(Calculations!$I$8:$QJ$8, P$2, Calculations!$I440:$QJ440) -> -226817.9673 | Q98: =SUMIF(Calculations!$I$8:$QJ$8, Q$2, Calculations!$I440:$QJ440) -> -219439.7917 | R98: =SUMIF(Calculations!$I$8:$QJ$8, R$2, Calculations!$I440:$QJ440) -> -211125.8788 | S98: =SUMIF(Calculations!$I$8:$QJ$8, S$2, Calculations!$I440:$QJ440) -> -201757.5536 | T98: =SUMIF(Calculations!$I$8:$QJ$8, T$2, Calculations!$I440:$QJ440) -> -191201.0903 | U98: =SUMIF(Calculations!$I$8:$QJ$8, U$2, Calculations!$I440:$QJ440) -> -179305.8032 | V98: =SUMIF(Calculations!$I$8:$QJ$8, V$2, Calculations!$I440:$QJ440) -> -165901.8959 | W98: =SUMIF(Calculations!$I$8:$QJ$8, W$2, Calculations!$I440:$QJ440) -> -150798.0377 | X98: =SUMIF(Calculations!$I$8:$QJ$8, X$2, Calculations!$I440:$QJ440) -> -133778.6323 | Y98: =SUMIF(Calculations!$I$8:$QJ$8, Y$2, Calculations!$I440:$QJ440) -> -114600.7402 | Z98: =SUMIF(Calculations!$I$8:$QJ$8, Z$2, Calculations!$I440:$QJ440) -> -92990.61139 | AA98: =SUMIF(Calculations!$I$8:$QJ$8, AA$2, Calculations!$I440:$QJ440) -> -68639.77735 | AB98: =SUMIF(Calculations!$I$8:$QJ$8, AB$2, Calculations!$I440:$QJ440) -> -41200.64805 | AC98: =SUMIF(Calculations!$I$8:$QJ$8, AC$2, Calculations!$I440:$QJ440) -> -10281.55034 | AD98: =SUMIF(Calculations!$I$8:$QJ$8, AD$2, Calculations!$I440:$QJ440) -> 24558.86286 | AE98: =SUMIF(Calculations!$I$8:$QJ$8, AE$2, Calculations!$I440:$QJ440) -> 63817.91252 | AF98: =SUMIF(Calculations!$I$8:$QJ$8, AF$2, Calculations!$I440:$QJ440) -> 108055.9923 | AG98: =SUMIF(Calculations!$I$8:$QJ$8, AG$2, Calculations!$I440:$QJ440) -> 157904.568 | AH98: =SUMIF(Calculations!$I$8:$QJ$8, AH$2, Calculations!$I440:$QJ440) -> 99590.95189 | AI98: =SUMIF(Calculations!$I$8:$QJ$8, AI$2, Calculations!$I440:$QJ440) -> 0 | AJ98: =SUMIF(Calculations!$I$8:$QJ$8, AJ$2, Calculations!$I440:$QJ440) -> 0
C99: =Calculations!C441 -> Dividends | D99: 0 | E99: 0 | F99: =Calculations!E441 -> EUR | H99: 0 | I99: =SUMIF(Calculations!$I$8:$QJ$8, I$2, Calculations!$I441:$QJ441) -> 0 | J99: =SUMIF(Calculations!$I$8:$QJ$8, J$2, Calculations!$I441:$QJ441) -> 0 | K99: =SUMIF(Calculations!$I$8:$QJ$8, K$2, Calculations!$I441:$QJ441) -> 0 | L99: =SUMIF(Calculations!$I$8:$QJ$8, L$2, Calculations!$I441:$QJ441) -> 0 | M99: =SUMIF(Calculations!$I$8:$QJ$8, M$2, Calculations!$I441:$QJ441) -> 0 | N99: =SUMIF(Calculations!$I$8:$QJ$8, N$2, Calculations!$I441:$QJ441) -> 0 | O99: =SUMIF(Calculations!$I$8:$QJ$8, O$2, Calculations!$I441:$QJ441) -> 0 | P99: =SUMIF(Calculations!$I$8:$QJ$8, P$2, Calculations!$I441:$QJ441) -> 0 | Q99: =SUMIF(Calculations!$I$8:$QJ$8, Q$2, Calculations!$I441:$QJ441) -> 0 | R99: =SUMIF(Calculations!$I$8:$QJ$8, R$2, Calculations!$I441:$QJ441) -> 0 | S99: =SUMIF(Calculations!$I$8:$QJ$8, S$2, Calculations!$I441:$QJ441) -> 0 | T99: =SUMIF(Calculations!$I$8:$QJ$8, T$2, Calculations!$I441:$QJ441) -> 0 | U99: =SUMIF(Calculations!$I$8:$QJ$8, U$2, Calculations!$I441:$QJ441) -> 0 | V99: =SUMIF(Calculations!$I$8:$QJ$8, V$2, Calculations!$I441:$QJ441) -> 0 | W99: =SUMIF(Calculations!$I$8:$QJ$8, W$2, Calculations!$I441:$QJ441) -> 0 | X99: =SUMIF(Calculations!$I$8:$QJ$8, X$2, Calculations!$I441:$QJ441) -> 0 | Y99: =SUMIF(Calculations!$I$8:$QJ$8, Y$2, Calculations!$I441:$QJ441) -> 0 | Z99: =SUMIF(Calculations!$I$8:$QJ$8, Z$2, Calculations!$I441:$QJ441) -> 0 | AA99: =SUMIF(Calculations!$I$8:$QJ$8, AA$2, Calculations!$I441:$QJ441) -> 0 | AB99: =SUMIF(Calculations!$I$8:$QJ$8, AB$2, Calculations!$I441:$QJ441) -> 0 | AC99: =SUMIF(Calculations!$I$8:$QJ$8, AC$2, Calculations!$I441:$QJ441) -> 0 | AD99: =SUMIF(Calculations!$I$8:$QJ$8, AD$2, Calculations!$I441:$QJ441) -> 0 | AE99: =SUMIF(Calculations!$I$8:$QJ$8, AE$2, Calculations!$I441:$QJ441) -> 0 | AF99: =SUMIF(Calculations!$I$8:$QJ$8, AF$2, Calculations!$I441:$QJ441) -> 0 | AG99: =SUMIF(Calculations!$I$8:$QJ$8, AG$2, Calculations!$I441:$QJ441) -> 0 | AH99: =SUMIF(Calculations!$I$8:$QJ$8, AH$2, Calculations!$I441:$QJ441) -> 0 | AI99: =SUMIF(Calculations!$I$8:$QJ$8, AI$2, Calculations!$I441:$QJ441) -> 0 | AJ99: =SUMIF(Calculations!$I$8:$QJ$8, AJ$2, Calculations!$I441:$QJ441) -> 0
C100: =Calculations!C442 -> Change in DSRA | D100: -174012.2989 | E100: 174012.2989 | F100: =Calculations!E442 -> EUR | H100: 0 | I100: =SUMIF(Calculations!$I$8:$QJ$8, I$2, Calculations!$I442:$QJ442) -> 0 | J100: =SUMIF(Calculations!$I$8:$QJ$8, J$2, Calculations!$I442:$QJ442) -> 0 | K100: =SUMIF(Calculations!$I$8:$QJ$8, K$2, Calculations!$I442:$QJ442) -> -185403.1457 | L100: =SUMIF(Calculations!$I$8:$QJ$8, L$2, Calculations!$I442:$QJ442) -> 0 | M100: =SUMIF(Calculations!$I$8:$QJ$8, M$2, Calculations!$I442:$QJ442) -> 0 | N100: =SUMIF(Calculations!$I$8:$QJ$8, N$2, Calculations!$I442:$QJ442) -> 0 | O100: =SUMIF(Calculations!$I$8:$QJ$8, O$2, Calculations!$I442:$QJ442) -> 0 | P100: =SUMIF(Calculations!$I$8:$QJ$8, P$2, Calculations!$I442:$QJ442) -> 0 | Q100: =SUMIF(Calculations!$I$8:$QJ$8, Q$2, Calculations!$I442:$QJ442) -> 0 | R100: =SUMIF(Calculations!$I$8:$QJ$8, R$2, Calculations!$I442:$QJ442) -> 0 | S100: =SUMIF(Calculations!$I$8:$QJ$8, S$2, Calculations!$I442:$QJ442) -> 0 | T100: =SUMIF(Calculations!$I$8:$QJ$8, T$2, Calculations!$I442:$QJ442) -> 0 | U100: =SUMIF(Calculations!$I$8:$QJ$8, U$2, Calculations!$I442:$QJ442) -> 0 | V100: =SUMIF(Calculations!$I$8:$QJ$8, V$2, Calculations!$I442:$QJ442) -> 0 | W100: =SUMIF(Calculations!$I$8:$QJ$8, W$2, Calculations!$I442:$QJ442) -> 0 | X100: =SUMIF(Calculations!$I$8:$QJ$8, X$2, Calculations!$I442:$QJ442) -> 0 | Y100: =SUMIF(Calculations!$I$8:$QJ$8, Y$2, Calculations!$I442:$QJ442) -> 0 | Z100: =SUMIF(Calculations!$I$8:$QJ$8, Z$2, Calculations!$I442:$QJ442) -> 0 | AA100: =SUMIF(Calculations!$I$8:$QJ$8, AA$2, Calculations!$I442:$QJ442) -> 0 | AB100: =SUMIF(Calculations!$I$8:$QJ$8, AB$2, Calculations!$I442:$QJ442) -> 22781.69362 | AC100: =SUMIF(Calculations!$I$8:$QJ$8, AC$2, Calculations!$I442:$QJ442) -> 162621.4521 | AD100: =SUMIF(Calculations!$I$8:$QJ$8, AD$2, Calculations!$I442:$QJ442) -> 0 | AE100: =SUMIF(Calculations!$I$8:$QJ$8, AE$2, Calculations!$I442:$QJ442) -> 0 | AF100: =SUMIF(Calculations!$I$8:$QJ$8, AF$2, Calculations!$I442:$QJ442) -> 0 | AG100: =SUMIF(Calculations!$I$8:$QJ$8, AG$2, Calculations!$I442:$QJ442) -> 0 | AH100: =SUMIF(Calculations!$I$8:$QJ$8, AH$2, Calculations!$I442:$QJ442) -> 0 | AI100: =SUMIF(Calculations!$I$8:$QJ$8, AI$2, Calculations!$I442:$QJ442) -> 0 | AJ100: =SUMIF(Calculations!$I$8:$QJ$8, AJ$2, Calculations!$I442:$QJ442) -> 0
C101: =Calculations!C443 -> Change in MMRA | D101: 0 | E101: 0 | F101: =Calculations!E443 -> EUR | H101: 0 | I101: =SUMIF(Calculations!$I$8:$QJ$8, I$2, Calculations!$I443:$QJ443) -> 0 | J101: =SUMIF(Calculations!$I$8:$QJ$8, J$2, Calculations!$I443:$QJ443) -> 0 | K101: =SUMIF(Calculations!$I$8:$QJ$8, K$2, Calculations!$I443:$QJ443) -> 0 | L101: =SUMIF(Calculations!$I$8:$QJ$8, L$2, Calculations!$I443:$QJ443) -> 0 | M101: =SUMIF(Calculations!$I$8:$QJ$8, M$2, Calculations!$I443:$QJ443) -> 0 | N101: =SUMIF(Calculations!$I$8:$QJ$8, N$2, Calculations!$I443:$QJ443) -> 0 | O101: =SUMIF(Calculations!$I$8:$QJ$8, O$2, Calculations!$I443:$QJ443) -> 0 | P101: =SUMIF(Calculations!$I$8:$QJ$8, P$2, Calculations!$I443:$QJ443) -> 0 | Q101: =SUMIF(Calculations!$I$8:$QJ$8, Q$2, Calculations!$I443:$QJ443) -> 0 | R101: =SUMIF(Calculations!$I$8:$QJ$8, R$2, Calculations!$I443:$QJ443) -> 0 | S101: =SUMIF(Calculations!$I$8:$QJ$8, S$2, Calculations!$I443:$QJ443) -> 0 | T101: =SUMIF(Calculations!$I$8:$QJ$8, T$2, Calculations!$I443:$QJ443) -> 0 | U101: =SUMIF(Calculations!$I$8:$QJ$8, U$2, Calculations!$I443:$QJ443) -> 0 | V101: =SUMIF(Calculations!$I$8:$QJ$8, V$2, Calculations!$I443:$QJ443) -> 0 | W101: =SUMIF(Calculations!$I$8:$QJ$8, W$2, Calculations!$I443:$QJ443) -> 0 | X101: =SUMIF(Calculations!$I$8:$QJ$8, X$2, Calculations!$I443:$QJ443) -> 0 | Y101: =SUMIF(Calculations!$I$8:$QJ$8, Y$2, Calculations!$I443:$QJ443) -> 0 | Z101: =SUMIF(Calculations!$I$8:$QJ$8, Z$2, Calculations!$I443:$QJ443) -> 0 | AA101: =SUMIF(Calculations!$I$8:$QJ$8, AA$2, Calculations!$I443:$QJ443) -> 0 | AB101: =SUMIF(Calculations!$I$8:$QJ$8, AB$2, Calculations!$I443:$QJ443) -> 0 | AC101: =SUMIF(Calculations!$I$8:$QJ$8, AC$2, Calculations!$I443:$QJ443) -> 0 | AD101: =SUMIF(Calculations!$I$8:$QJ$8, AD$2, Calculations!$I443:$QJ443) -> 0 | AE101: =SUMIF(Calculations!$I$8:$QJ$8, AE$2, Calculations!$I443:$QJ443) -> 0 | AF101: =SUMIF(Calculations!$I$8:$QJ$8, AF$2, Calculations!$I443:$QJ443) -> 0 | AG101: =SUMIF(Calculations!$I$8:$QJ$8, AG$2, Calculations!$I443:$QJ443) -> 0 | AH101: =SUMIF(Calculations!$I$8:$QJ$8, AH$2, Calculations!$I443:$QJ443) -> 0 | AI101: =SUMIF(Calculations!$I$8:$QJ$8, AI$2, Calculations!$I443:$QJ443) -> 0 | AJ101: =SUMIF(Calculations!$I$8:$QJ$8, AJ$2, Calculations!$I443:$QJ443) -> 0
C102: =Calculations!C444 -> Initial Funding of Working Capital | D102: 0 | E102: 0 | F102: =Calculations!E444 -> EUR | H102: 0 | I102: =SUMIF(Calculations!$I$8:$QJ$8, I$2, Calculations!$I444:$QJ444) -> 0 | J102: =SUMIF(Calculations!$I$8:$QJ$8, J$2, Calculations!$I444:$QJ444) -> 0 | K102: =SUMIF(Calculations!$I$8:$QJ$8, K$2, Calculations!$I444:$QJ444) -> 0 | L102: =SUMIF(Calculations!$I$8:$QJ$8, L$2, Calculations!$I444:$QJ444) -> 0 | M102: =SUMIF(Calculations!$I$8:$QJ$8, M$2, Calculations!$I444:$QJ444) -> 0 | N102: =SUMIF(Calculations!$I$8:$QJ$8, N$2, Calculations!$I444:$QJ444) -> 0 | O102: =SUMIF(Calculations!$I$8:$QJ$8, O$2, Calculations!$I444:$QJ444) -> 0 | P102: =SUMIF(Calculations!$I$8:$QJ$8, P$2, Calculations!$I444:$QJ444) -> 0 | Q102: =SUMIF(Calculations!$I$8:$QJ$8, Q$2, Calculations!$I444:$QJ444) -> 0 | R102: =SUMIF(Calculations!$I$8:$QJ$8, R$2, Calculations!$I444:$QJ444) -> 0 | S102: =SUMIF(Calculations!$I$8:$QJ$8, S$2, Calculations!$I444:$QJ444) -> 0 | T102: =SUMIF(Calculations!$I$8:$QJ$8, T$2, Calculations!$I444:$QJ444) -> 0 | U102: =SUMIF(Calculations!$I$8:$QJ$8, U$2, Calculations!$I444:$QJ444) -> 0 | V102: =SUMIF(Calculations!$I$8:$QJ$8, V$2, Calculations!$I444:$QJ444) -> 0 | W102: =SUMIF(Calculations!$I$8:$QJ$8, W$2, Calculations!$I444:$QJ444) -> 0 | X102: =SUMIF(Calculations!$I$8:$QJ$8, X$2, Calculations!$I444:$QJ444) -> 0 | Y102: =SUMIF(Calculations!$I$8:$QJ$8, Y$2, Calculations!$I444:$QJ444) -> 0 | Z102: =SUMIF(Calculations!$I$8:$QJ$8, Z$2, Calculations!$I444:$QJ444) -> 0 | AA102: =SUMIF(Calculations!$I$8:$QJ$8, AA$2, Calculations!$I444:$QJ444) -> 0 | AB102: =SUMIF(Calculations!$I$8:$QJ$8, AB$2, Calculations!$I444:$QJ444) -> 0 | AC102: =SUMIF(Calculations!$I$8:$QJ$8, AC$2, Calculations!$I444:$QJ444) -> 0 | AD102: =SUMIF(Calculations!$I$8:$QJ$8, AD$2, Calculations!$I444:$QJ444) -> 0 | AE102: =SUMIF(Calculations!$I$8:$QJ$8, AE$2, Calculations!$I444:$QJ444) -> 0 | AF102: =SUMIF(Calculations!$I$8:$QJ$8, AF$2, Calculations!$I444:$QJ444) -> 0 | AG102: =SUMIF(Calculations!$I$8:$QJ$8, AG$2, Calculations!$I444:$QJ444) -> 0 | AH102: =SUMIF(Calculations!$I$8:$QJ$8, AH$2, Calculations!$I444:$QJ444) -> 0 | AI102: =SUMIF(Calculations!$I$8:$QJ$8, AI$2, Calculations!$I444:$QJ444) -> 0 | AJ102: =SUMIF(Calculations!$I$8:$QJ$8, AJ$2, Calculations!$I444:$QJ444) -> 0
C103: =Calculations!C445 -> Interest on Reserve Accounts | D103: 0 | E103: 0 | F103: =Calculations!E445 -> EUR | H103: 0 | I103: =SUMIF(Calculations!$I$8:$QJ$8, I$2, Calculations!$I445:$QJ445) -> 0 | J103: =SUMIF(Calculations!$I$8:$QJ$8, J$2, Calculations!$I445:$QJ445) -> 0 | K103: =SUMIF(Calculations!$I$8:$QJ$8, K$2, Calculations!$I445:$QJ445) -> 0 | L103: =SUMIF(Calculations!$I$8:$QJ$8, L$2, Calculations!$I445:$QJ445) -> 0 | M103: =SUMIF(Calculations!$I$8:$QJ$8, M$2, Calculations!$I445:$QJ445) -> 0 | N103: =SUMIF(Calculations!$I$8:$QJ$8, N$2, Calculations!$I445:$QJ445) -> 0 | O103: =SUMIF(Calculations!$I$8:$QJ$8, O$2, Calculations!$I445:$QJ445) -> 0 | P103: =SUMIF(Calculations!$I$8:$QJ$8, P$2, Calculations!$I445:$QJ445) -> 0 | Q103: =SUMIF(Calculations!$I$8:$QJ$8, Q$2, Calculations!$I445:$QJ445) -> 0 | R103: =SUMIF(Calculations!$I$8:$QJ$8, R$2, Calculations!$I445:$QJ445) -> 0 | S103: =SUMIF(Calculations!$I$8:$QJ$8, S$2, Calculations!$I445:$QJ445) -> 0 | T103: =SUMIF(Calculations!$I$8:$QJ$8, T$2, Calculations!$I445:$QJ445) -> 0 | U103: =SUMIF(Calculations!$I$8:$QJ$8, U$2, Calculations!$I445:$QJ445) -> 0 | V103: =SUMIF(Calculations!$I$8:$QJ$8, V$2, Calculations!$I445:$QJ445) -> 0 | W103: =SUMIF(Calculations!$I$8:$QJ$8, W$2, Calculations!$I445:$QJ445) -> 0 | X103: =SUMIF(Calculations!$I$8:$QJ$8, X$2, Calculations!$I445:$QJ445) -> 0 | Y103: =SUMIF(Calculations!$I$8:$QJ$8, Y$2, Calculations!$I445:$QJ445) -> 0 | Z103: =SUMIF(Calculations!$I$8:$QJ$8, Z$2, Calculations!$I445:$QJ445) -> 0 | AA103: =SUMIF(Calculations!$I$8:$QJ$8, AA$2, Calculations!$I445:$QJ445) -> 0 | AB103: =SUMIF(Calculations!$I$8:$QJ$8, AB$2, Calculations!$I445:$QJ445) -> 0 | AC103: =SUMIF(Calculations!$I$8:$QJ$8, AC$2, Calculations!$I445:$QJ445) -> 0 | AD103: =SUMIF(Calculations!$I$8:$QJ$8, AD$2, Calculations!$I445:$QJ445) -> 0 | AE103: =SUMIF(Calculations!$I$8:$QJ$8, AE$2, Calculations!$I445:$QJ445) -> 0 | AF103: =SUMIF(Calculations!$I$8:$QJ$8, AF$2, Calculations!$I445:$QJ445) -> 0 | AG103: =SUMIF(Calculations!$I$8:$QJ$8, AG$2, Calculations!$I445:$QJ445) -> 0 | AH103: =SUMIF(Calculations!$I$8:$QJ$8, AH$2, Calculations!$I445:$QJ445) -> 0 | AI103: =SUMIF(Calculations!$I$8:$QJ$8, AI$2, Calculations!$I445:$QJ445) -> 0 | AJ103: =SUMIF(Calculations!$I$8:$QJ$8, AJ$2, Calculations!$I445:$QJ445) -> 0
C104: =Calculations!C446 -> Cash Flows From Financing Activities | D104: -9559834.058 | E104: 6782259.545 | F104: =Calculations!E446 -> EUR | H104: -2777574.512 | I104: =SUM(I90:I103) -> 3247500 | J104: 3432500 | K104: 1249479.709 | L104: -655800.2796 | M104: -655800.2796 | N104: -655800.2796 | O104: -655800.2796 | P104: -655800.2796 | Q104: -655800.2796 | R104: -655800.2796 | S104: -655800.2796 | T104: -655800.2796 | U104: -655800.2796 | V104: -655800.2796 | W104: -655800.2796 | X104: -655800.2796 | Y104: -655800.2796 | Z104: -655800.2796 | AA104: -655800.2796 | AB104: -633018.586 | AC104: -124588.2394 | AD104: -284993.9882 | AE104: -284993.9882 | AF104: -284993.9882 | AG104: -284993.9882 | AH104: 1683333.03 | AI104: 0 | AJ104: =SUM(AJ90:AJ103) -> 0
D105: 0 | E105: 0
B106: Net Movements In Cash | D106: 1409474.498 | E106: 2556834.212 | F106: =Calculations!E448 -> EUR | H106: =SUM(I106:AT106) -> 3966308.71 | I106: =I83+I87+I104 -> 49893.33765 | J106: 19303.97244 | K106: 146164.6218 | L106: 148385.6113 | M106: 137110.7661 | N106: 129670.0849 | O106: 120713.7962 | P106: 113370.0445 | Q106: 104964.783 | R106: 95536.73751 | S106: 85712.02641 | T106: 76131.97843 | U106: 66459.43472 | V106: 56316.57593 | W106: 46133.83701 | X106: 35697.70087 | Y106: 24952.11202 | Z106: 13477.7166 | AA106: 1950.403803 | AB106: 13452.53303 | AC106: -749286.0807 | AD106: 281457.0693 | AE106: 234750.5464 | AF106: 217729.7728 | AG106: 199706.776 | AH106: 2168208.144 | AI106: 491916.5394 | AJ106: =AJ83+AJ87+AJ104 -> -363572.1319
D107: =SUM(K107:AB107) -> 0
B108: Cash Position
C109: =Calculations!C451 -> Beginning of Period | F109: =Calculations!E451 -> EUR | I109: =H110 -> 0 | J109: =I110 -> 49893.33765 | K109: 69197.31009 | L109: 215361.9319 | M109: 363747.5432 | N109: =M110 -> 500858.3094 | O109: 630528.3942 | P109: 751242.1904 | Q109: 864612.2349 | R109: 969577.0179 | S109: 1065113.755 | T109: 1150825.782 | U109: 1226957.76 | V109: 1293417.195 | W109: 1349733.771 | X109: 1395867.608 | Y109: 1431565.309 | Z109: 1456517.421 | AA109: 1469995.137 | AB109: 1471945.541 | AC109: 1485398.074 | AD109: 736111.9935 | AE109: 1017569.063 | AF109: 1252319.609 | AG109: =AF110 -> 1470049.382 | AH109: 1669756.158 | AI109: 3837964.302 | AJ109: 4329880.842
C110: =Calculations!C452 -> End of Period | F110: =Calculations!E452 -> EUR | H110: 0 | I110: =I106+I109 -> 49893.33765 | J110: =J106+J109 -> 69197.31009 | K110: 215361.9319 | L110: 363747.5432 | M110: 500858.3094 | N110: 630528.3942 | O110: 751242.1904 | P110: 864612.2349 | Q110: 969577.0179 | R110: 1065113.755 | S110: 1150825.782 | T110: 1226957.76 | U110: 1293417.195 | V110: 1349733.771 | W110: 1395867.608 | X110: 1431565.309 | Y110: 1456517.421 | Z110: 1469995.137 | AA110: 1471945.541 | AB110: 1485398.074 | AC110: 736111.9935 | AD110: 1017569.063 | AE110: 1252319.609 | AF110: 1470049.382 | AG110: =AG106+AG109 -> 1669756.158 | AH110: 3837964.302 | AI110: 4329880.842 | AJ110: 3966308.71
A112: · | B112: Cash Waterfall | F112: Unit
C114: =Calculations!C459 -> Drawdown of Equity | F114: =Calculations!E459 -> EUR | H114: =SUM(I114:AT114) -> 2075000 | I114: =SUMIF(Calculations!$I$8:$QJ$8, I$2, Calculations!$I459:$QJ459) -> 2075000 | J114: =SUMIF(Calculations!$I$8:$QJ$8, J$2, Calculations!$I459:$QJ459) -> 0 | K114: =SUMIF(Calculations!$I$8:$QJ$8, K$2, Calculations!$I459:$QJ459) -> 0 | L114: =SUMIF(Calculations!$I$8:$QJ$8, L$2, Calculations!$I459:$QJ459) -> 0 | M114: =SUMIF(Calculations!$I$8:$QJ$8, M$2, Calculations!$I459:$QJ459) -> 0 | N114: =SUMIF(Calculations!$I$8:$QJ$8, N$2, Calculations!$I459:$QJ459) -> 0 | O114: =SUMIF(Calculations!$I$8:$QJ$8, O$2, Calculations!$I459:$QJ459) -> 0 | P114: =SUMIF(Calculations!$I$8:$QJ$8, P$2, Calculations!$I459:$QJ459) -> 0 | Q114: =SUMIF(Calculations!$I$8:$QJ$8, Q$2, Calculations!$I459:$QJ459) -> 0 | R114: =SUMIF(Calculations!$I$8:$QJ$8, R$2, Calculations!$I459:$QJ459) -> 0 | S114: =SUMIF(Calculations!$I$8:$QJ$8, S$2, Calculations!$I459:$QJ459) -> 0 | T114: =SUMIF(Calculations!$I$8:$QJ$8, T$2, Calculations!$I459:$QJ459) -> 0 | U114: =SUMIF(Calculations!$I$8:$QJ$8, U$2, Calculations!$I459:$QJ459) -> 0 | V114: =SUMIF(Calculations!$I$8:$QJ$8, V$2, Calculations!$I459:$QJ459) -> 0 | W114: =SUMIF(Calculations!$I$8:$QJ$8, W$2, Calculations!$I459:$QJ459) -> 0 | X114: =SUMIF(Calculations!$I$8:$QJ$8, X$2, Calculations!$I459:$QJ459) -> 0 | Y114: =SUMIF(Calculations!$I$8:$QJ$8, Y$2, Calculations!$I459:$QJ459) -> 0 | Z114: =SUMIF(Calculations!$I$8:$QJ$8, Z$2, Calculations!$I459:$QJ459) -> 0 | AA114: =SUMIF(Calculations!$I$8:$QJ$8, AA$2, Calculations!$I459:$QJ459) -> 0 | AB114: =SUMIF(Calculations!$I$8:$QJ$8, AB$2, Calculations!$I459:$QJ459) -> 0 | AC114: =SUMIF(Calculations!$I$8:$QJ$8, AC$2, Calculations!$I459:$QJ459) -> 0 | AD114: =SUMIF(Calculations!$I$8:$QJ$8, AD$2, Calculations!$I459:$QJ459) -> 0 | AE114: =SUMIF(Calculations!$I$8:$QJ$8, AE$2, Calculations!$I459:$QJ459) -> 0 | AF114: =SUMIF(Calculations!$I$8:$QJ$8, AF$2, Calculations!$I459:$QJ459) -> 0 | AG114: =SUMIF(Calculations!$I$8:$QJ$8, AG$2, Calculations!$I459:$QJ459) -> 0 | AH114: =SUMIF(Calculations!$I$8:$QJ$8, AH$2, Calculations!$I459:$QJ459) -> 0 | AI114: =SUMIF(Calculations!$I$8:$QJ$8, AI$2, Calculations!$I459:$QJ459) -> 0 | AJ114: =SUMIF(Calculations!$I$8:$QJ$8, AJ$2, Calculations!$I459:$QJ459) -> 0
C115: =Calculations!C460 -> Interest on Reserve Accounts | F115: =Calculations!E460 -> EUR | H115: 0 | I115: =SUMIF(Calculations!$I$8:$QJ$8, I$2, Calculations!$I460:$QJ460) -> 0 | J115: =SUMIF(Calculations!$I$8:$QJ$8, J$2, Calculations!$I460:$QJ460) -> 0 | K115: =SUMIF(Calculations!$I$8:$QJ$8, K$2, Calculations!$I460:$QJ460) -> 0 | L115: =SUMIF(Calculations!$I$8:$QJ$8, L$2, Calculations!$I460:$QJ460) -> 0 | M115: =SUMIF(Calculations!$I$8:$QJ$8, M$2, Calculations!$I460:$QJ460) -> 0 | N115: =SUMIF(Calculations!$I$8:$QJ$8, N$2, Calculations!$I460:$QJ460) -> 0 | O115: =SUMIF(Calculations!$I$8:$QJ$8, O$2, Calculations!$I460:$QJ460) -> 0 | P115: =SUMIF(Calculations!$I$8:$QJ$8, P$2, Calculations!$I460:$QJ460) -> 0 | Q115: =SUMIF(Calculations!$I$8:$QJ$8, Q$2, Calculations!$I460:$QJ460) -> 0 | R115: =SUMIF(Calculations!$I$8:$QJ$8, R$2, Calculations!$I460:$QJ460) -> 0 | S115: =SUMIF(Calculations!$I$8:$QJ$8, S$2, Calculations!$I460:$QJ460) -> 0 | T115: =SUMIF(Calculations!$I$8:$QJ$8, T$2, Calculations!$I460:$QJ460) -> 0 | U115: =SUMIF(Calculations!$I$8:$QJ$8, U$2, Calculations!$I460:$QJ460) -> 0 | V115: =SUMIF(Calculations!$I$8:$QJ$8, V$2, Calculations!$I460:$QJ460) -> 0 | W115: =SUMIF(Calculations!$I$8:$QJ$8, W$2, Calculations!$I460:$QJ460) -> 0 | X115: =SUMIF(Calculations!$I$8:$QJ$8, X$2, Calculations!$I460:$QJ460) -> 0 | Y115: =SUMIF(Calculations!$I$8:$QJ$8, Y$2, Calculations!$I460:$QJ460) -> 0 | Z115: =SUMIF(Calculations!$I$8:$QJ$8, Z$2, Calculations!$I460:$QJ460) -> 0 | AA115: =SUMIF(Calculations!$I$8:$QJ$8, AA$2, Calculations!$I460:$QJ460) -> 0 | AB115: =SUMIF(Calculations!$I$8:$QJ$8, AB$2, Calculations!$I460:$QJ460) -> 0 | AC115: =SUMIF(Calculations!$I$8:$QJ$8, AC$2, Calculations!$I460:$QJ460) -> 0 | AD115: =SUMIF(Calculations!$I$8:$QJ$8, AD$2, Calculations!$I460:$QJ460) -> 0 | AE115: =SUMIF(Calculations!$I$8:$QJ$8, AE$2, Calculations!$I460:$QJ460) -> 0 | AF115: =SUMIF(Calculations!$I$8:$QJ$8, AF$2, Calculations!$I460:$QJ460) -> 0 | AG115: =SUMIF(Calculations!$I$8:$QJ$8, AG$2, Calculations!$I460:$QJ460) -> 0 | AH115: =SUMIF(Calculations!$I$8:$QJ$8, AH$2, Calculations!$I460:$QJ460) -> 0 | AI115: =SUMIF(Calculations!$I$8:$QJ$8, AI$2, Calculations!$I460:$QJ460) -> 0 | AJ115: =SUMIF(Calculations!$I$8:$QJ$8, AJ$2, Calculations!$I460:$QJ460) -> 0
C116: =Calculations!C461 -> Cash Flow Available for Debt Service | F116: =Calculations!E461 -> EUR | H116: 18094209.14 | I116: =SUMIF(Calculations!$I$8:$QJ$8, I$2, Calculations!$I461:$QJ461) -> 1763158.668 | J116: =SUMIF(Calculations!$I$8:$QJ$8, J$2, Calculations!$I461:$QJ461) -> 196098.3066 | K116: =SUMIF(Calculations!$I$8:$QJ$8, K$2, Calculations!$I461:$QJ461) -> 417119.307 | L116: =SUMIF(Calculations!$I$8:$QJ$8, L$2, Calculations!$I461:$QJ461) -> 804185.8909 | M116: =SUMIF(Calculations!$I$8:$QJ$8, M$2, Calculations!$I461:$QJ461) -> 792911.0457 | N116: =SUMIF(Calculations!$I$8:$QJ$8, N$2, Calculations!$I461:$QJ461) -> 785470.3645 | O116: =SUMIF(Calculations!$I$8:$QJ$8, O$2, Calculations!$I461:$QJ461) -> 776514.0758 | P116: =SUMIF(Calculations!$I$8:$QJ$8, P$2, Calculations!$I461:$QJ461) -> 769170.3241 | Q116: =SUMIF(Calculations!$I$8:$QJ$8, Q$2, Calculations!$I461:$QJ461) -> 760765.0626 | R116: =SUMIF(Calculations!$I$8:$QJ$8, R$2, Calculations!$I461:$QJ461) -> 751337.0171 | S116: =SUMIF(Calculations!$I$8:$QJ$8, S$2, Calculations!$I461:$QJ461) -> 741512.306 | T116: =SUMIF(Calculations!$I$8:$QJ$8, T$2, Calculations!$I461:$QJ461) -> 731932.258 | U116: =SUMIF(Calculations!$I$8:$QJ$8, U$2, Calculations!$I461:$QJ461) -> 722259.7143 | V116: =SUMIF(Calculations!$I$8:$QJ$8, V$2, Calculations!$I461:$QJ461) -> 712116.8555 | W116: =SUMIF(Calculations!$I$8:$QJ$8, W$2, Calculations!$I461:$QJ461) -> 701934.1166 | X116: =SUMIF(Calculations!$I$8:$QJ$8, X$2, Calculations!$I461:$QJ461) -> 691497.9805 | Y116: =SUMIF(Calculations!$I$8:$QJ$8, Y$2, Calculations!$I461:$QJ461) -> 680752.3916 | Z116: =SUMIF(Calculations!$I$8:$QJ$8, Z$2, Calculations!$I461:$QJ461) -> 669277.9962 | AA116: =SUMIF(Calculations!$I$8:$QJ$8, AA$2, Calculations!$I461:$QJ461) -> 657750.6834 | AB116: =SUMIF(Calculations!$I$8:$QJ$8, AB$2, Calculations!$I461:$QJ461) -> 646471.119 | AC116: =SUMIF(Calculations!$I$8:$QJ$8, AC$2, Calculations!$I461:$QJ461) -> 635134.0132 | AD116: =SUMIF(Calculations!$I$8:$QJ$8, AD$2, Calculations!$I461:$QJ461) -> 566451.0574 | AE116: =SUMIF(Calculations!$I$8:$QJ$8, AE$2, Calculations!$I461:$QJ461) -> 519744.5345 | AF116: =SUMIF(Calculations!$I$8:$QJ$8, AF$2, Calculations!$I461:$QJ461) -> 502723.761 | AG116: =SUMIF(Calculations!$I$8:$QJ$8, AG$2, Calculations!$I461:$QJ461) -> 484700.7642 | AH116: =SUMIF(Calculations!$I$8:$QJ$8, AH$2, Calculations!$I461:$QJ461) -> 484875.1139 | AI116: =SUMIF(Calculations!$I$8:$QJ$8, AI$2, Calculations!$I461:$QJ461) -> 491916.5394 | AJ116: =SUMIF(Calculations!$I$8:$QJ$8, AJ$2, Calculations!$I461:$QJ461) -> -363572.1319
C117: =Calculations!C462 -> less: Senior Debt Interest Expense | F117: =Calculations!E462 -> EUR | H117: -2409029.98 | I117: =SUMIF(Calculations!$I$8:$QJ$8, I$2, Calculations!$I462:$QJ462) -> 0 | J117: =SUMIF(Calculations!$I$8:$QJ$8, J$2, Calculations!$I462:$QJ462) -> 0 | K117: =SUMIF(Calculations!$I$8:$QJ$8, K$2, Calculations!$I462:$QJ462) -> -76608.00636 | L117: =SUMIF(Calculations!$I$8:$QJ$8, L$2, Calculations!$I462:$QJ462) -> -225430.8359 | M117: =SUMIF(Calculations!$I$8:$QJ$8, M$2, Calculations!$I462:$QJ462) -> -217230.5175 | N117: =SUMIF(Calculations!$I$8:$QJ$8, N$2, Calculations!$I462:$QJ462) -> -208567.6367 | O117: =SUMIF(Calculations!$I$8:$QJ$8, O$2, Calculations!$I462:$QJ462) -> -199416.1013 | P117: =SUMIF(Calculations!$I$8:$QJ$8, P$2, Calculations!$I462:$QJ462) -> -189748.3473 | Q117: =SUMIF(Calculations!$I$8:$QJ$8, Q$2, Calculations!$I462:$QJ462) -> -179535.2561 | R117: =SUMIF(Calculations!$I$8:$QJ$8, R$2, Calculations!$I462:$QJ462) -> -168746.0663 | S117: =SUMIF(Calculations!$I$8:$QJ$8, S$2, Calculations!$I462:$QJ462) -> -157348.2813 | T117: =SUMIF(Calculations!$I$8:$QJ$8, T$2, Calculations!$I462:$QJ462) -> -145307.5716 | U117: =SUMIF(Calculations!$I$8:$QJ$8, U$2, Calculations!$I462:$QJ462) -> -132587.6713 | V117: =SUMIF(Calculations!$I$8:$QJ$8, V$2, Calculations!$I462:$QJ462) -> -119150.2687 | W117: =SUMIF(Calculations!$I$8:$QJ$8, W$2, Calculations!$I462:$QJ462) -> -104954.8909 | X117: =SUMIF(Calculations!$I$8:$QJ$8, X$2, Calculations!$I462:$QJ462) -> -89958.78219 | Y117: =SUMIF(Calculations!$I$8:$QJ$8, Y$2, Calculations!$I462:$QJ462) -> -74116.77509 | Z117: =SUMIF(Calculations!$I$8:$QJ$8, Z$2, Calculations!$I462:$QJ462) -> -57381.15428 | AA117: =SUMIF(Calculations!$I$8:$QJ$8, AA$2, Calculations!$I462:$QJ462) -> -39701.5129 | AB117: =SUMIF(Calculations!$I$8:$QJ$8, AB$2, Calculations!$I462:$QJ462) -> -21024.60078 | AC117: =SUMIF(Calculations!$I$8:$QJ$8, AC$2, Calculations!$I462:$QJ462) -> -2215.703393 | AD117: =SUMIF(Calculations!$I$8:$QJ$8, AD$2, Calculations!$I462:$QJ462) -> 0 | AE117: =SUMIF(Calculations!$I$8:$QJ$8, AE$2, Calculations!$I462:$QJ462) -> 0 | AF117: =SUMIF(Calculations!$I$8:$QJ$8, AF$2, Calculations!$I462:$QJ462) -> 0 | AG117: =SUMIF(Calculations!$I$8:$QJ$8, AG$2, Calculations!$I462:$QJ462) -> 0 | AH117: =SUMIF(Calculations!$I$8:$QJ$8, AH$2, Calculations!$I462:$QJ462) -> 0 | AI117: =SUMIF(Calculations!$I$8:$QJ$8, AI$2, Calculations!$I462:$QJ462) -> 0 | AJ117: =SUMIF(Calculations!$I$8:$QJ$8, AJ$2, Calculations!$I462:$QJ462) -> 0
C118: =Calculations!C463 -> add: Drawdown on Senior Debt | F118: =Calculations!E463 -> EUR | H118: 4150000 | I118: =SUMIF(Calculations!$I$8:$QJ$8, I$2, Calculations!$I463:$QJ463) -> 135000 | J118: =SUMIF(Calculations!$I$8:$QJ$8, J$2, Calculations!$I463:$QJ463) -> 2395000 | K118: =SUMIF(Calculations!$I$8:$QJ$8, K$2, Calculations!$I463:$QJ463) -> 1620000 | L118: =SUMIF(Calculations!$I$8:$QJ$8, L$2, Calculations!$I463:$QJ463) -> 0 | M118: =SUMIF(Calculations!$I$8:$QJ$8, M$2, Calculations!$I463:$QJ463) -> 0 | N118: =SUMIF(Calculations!$I$8:$QJ$8, N$2, Calculations!$I463:$QJ463) -> 0 | O118: =SUMIF(Calculations!$I$8:$QJ$8, O$2, Calculations!$I463:$QJ463) -> 0 | P118: =SUMIF(Calculations!$I$8:$QJ$8, P$2, Calculations!$I463:$QJ463) -> 0 | Q118: =SUMIF(Calculations!$I$8:$QJ$8, Q$2, Calculations!$I463:$QJ463) -> 0 | R118: =SUMIF(Calculations!$I$8:$QJ$8, R$2, Calculations!$I463:$QJ463) -> 0 | S118: =SUMIF(Calculations!$I$8:$QJ$8, S$2, Calculations!$I463:$QJ463) -> 0 | T118: =SUMIF(Calculations!$I$8:$QJ$8, T$2, Calculations!$I463:$QJ463) -> 0 | U118: =SUMIF(Calculations!$I$8:$QJ$8, U$2, Calculations!$I463:$QJ463) -> 0 | V118: =SUMIF(Calculations!$I$8:$QJ$8, V$2, Calculations!$I463:$QJ463) -> 0 | W118: =SUMIF(Calculations!$I$8:$QJ$8, W$2, Calculations!$I463:$QJ463) -> 0 | X118: =SUMIF(Calculations!$I$8:$QJ$8, X$2, Calculations!$I463:$QJ463) -> 0 | Y118: =SUMIF(Calculations!$I$8:$QJ$8, Y$2, Calculations!$I463:$QJ463) -> 0 | Z118: =SUMIF(Calculations!$I$8:$QJ$8, Z$2, Calculations!$I463:$QJ463) -> 0 | AA118: =SUMIF(Calculations!$I$8:$QJ$8, AA$2, Calculations!$I463:$QJ463) -> 0 | AB118: =SUMIF(Calculations!$I$8:$QJ$8, AB$2, Calculations!$I463:$QJ463) -> 0 | AC118: =SUMIF(Calculations!$I$8:$QJ$8, AC$2, Calculations!$I463:$QJ463) -> 0 | AD118: =SUMIF(Calculations!$I$8:$QJ$8, AD$2, Calculations!$I463:$QJ463) -> 0 | AE118: =SUMIF(Calculations!$I$8:$QJ$8, AE$2, Calculations!$I463:$QJ463) -> 0 | AF118: =SUMIF(Calculations!$I$8:$QJ$8, AF$2, Calculations!$I463:$QJ463) -> 0 | AG118: =SUMIF(Calculations!$I$8:$QJ$8, AG$2, Calculations!$I463:$QJ463) -> 0 | AH118: =SUMIF(Calculations!$I$8:$QJ$8, AH$2, Calculations!$I463:$QJ463) -> 0 | AI118: =SUMIF(Calculations!$I$8:$QJ$8, AI$2, Calculations!$I463:$QJ463) -> 0 | AJ118: =SUMIF(Calculations!$I$8:$QJ$8, AJ$2, Calculations!$I463:$QJ463) -> 0
C119: =Calculations!C464 -> less: Senior Debt Principal Repayment | F119: =Calculations!E464 -> EUR | H119: -3989594.251 | I119: =SUMIF(Calculations!$I$8:$QJ$8, I$2, Calculations!$I464:$QJ464) -> 0 | J119: =SUMIF(Calculations!$I$8:$QJ$8, J$2, Calculations!$I464:$QJ464) -> 0 | K119: =SUMIF(Calculations!$I$8:$QJ$8, K$2, Calculations!$I464:$QJ464) -> -16093.5665 | L119: =SUMIF(Calculations!$I$8:$QJ$8, L$2, Calculations!$I464:$QJ464) -> -145375.4556 | M119: =SUMIF(Calculations!$I$8:$QJ$8, M$2, Calculations!$I464:$QJ464) -> -153575.774 | N119: =SUMIF(Calculations!$I$8:$QJ$8, N$2, Calculations!$I464:$QJ464) -> -162238.6548 | O119: =SUMIF(Calculations!$I$8:$QJ$8, O$2, Calculations!$I464:$QJ464) -> -171390.1902 | P119: =SUMIF(Calculations!$I$8:$QJ$8, P$2, Calculations!$I464:$QJ464) -> -181057.9441 | Q119: =SUMIF(Calculations!$I$8:$QJ$8, Q$2, Calculations!$I464:$QJ464) -> -191271.0353 | R119: =SUMIF(Calculations!$I$8:$QJ$8, R$2, Calculations!$I464:$QJ464) -> -202060.2252 | S119: =SUMIF(Calculations!$I$8:$QJ$8, S$2, Calculations!$I464:$QJ464) -> -213458.0102 | T119: =SUMIF(Calculations!$I$8:$QJ$8, T$2, Calculations!$I464:$QJ464) -> -225498.7198 | U119: =SUMIF(Calculations!$I$8:$QJ$8, U$2, Calculations!$I464:$QJ464) -> -238218.6201 | V119: =SUMIF(Calculations!$I$8:$QJ$8, V$2, Calculations!$I464:$QJ464) -> -251656.0228 | W119: =SUMIF(Calculations!$I$8:$QJ$8, W$2, Calculations!$I464:$QJ464) -> -265851.4006 | X119: =SUMIF(Calculations!$I$8:$QJ$8, X$2, Calculations!$I464:$QJ464) -> -280847.5093 | Y119: =SUMIF(Calculations!$I$8:$QJ$8, Y$2, Calculations!$I464:$QJ464) -> -296689.5164 | Z119: =SUMIF(Calculations!$I$8:$QJ$8, Z$2, Calculations!$I464:$QJ464) -> -313425.1372 | AA119: =SUMIF(Calculations!$I$8:$QJ$8, AA$2, Calculations!$I464:$QJ464) -> -331104.7786 | AB119: =SUMIF(Calculations!$I$8:$QJ$8, AB$2, Calculations!$I464:$QJ464) -> -349781.6907 | AC119: =SUMIF(Calculations!$I$8:$QJ$8, AC$2, Calculations!$I464:$QJ464) -> 0 | AD119: =SUMIF(Calculations!$I$8:$QJ$8, AD$2, Calculations!$I464:$QJ464) -> 0 | AE119: =SUMIF(Calculations!$I$8:$QJ$8, AE$2, Calculations!$I464:$QJ464) -> 0 | AF119: =SUMIF(Calculations!$I$8:$QJ$8, AF$2, Calculations!$I464:$QJ464) -> 0 | AG119: =SUMIF(Calculations!$I$8:$QJ$8, AG$2, Calculations!$I464:$QJ464) -> 0 | AH119: =SUMIF(Calculations!$I$8:$QJ$8, AH$2, Calculations!$I464:$QJ464) -> 0 | AI119: =SUMIF(Calculations!$I$8:$QJ$8, AI$2, Calculations!$I464:$QJ464) -> 0 | AJ119: =SUMIF(Calculations!$I$8:$QJ$8, AJ$2, Calculations!$I464:$QJ464) -> 0
C120: =Calculations!C465 -> Cash Flow Available for Reserve Accounts | F120: =Calculations!E465 -> EUR | H120: 15845584.9 | I120: =SUMIF(Calculations!$I$8:$QJ$8, I$2, Calculations!$I465:$QJ465) -> 1898158.668 | J120: =SUMIF(Calculations!$I$8:$QJ$8, J$2, Calculations!$I465:$QJ465) -> 2591098.307 | K120: =SUMIF(Calculations!$I$8:$QJ$8, K$2, Calculations!$I465:$QJ465) -> 1944417.734 | L120: =SUMIF(Calculations!$I$8:$QJ$8, L$2, Calculations!$I465:$QJ465) -> 433379.5995 | M120: =SUMIF(Calculations!$I$8:$QJ$8, M$2, Calculations!$I465:$QJ465) -> 422104.7543 | N120: =SUMIF(Calculations!$I$8:$QJ$8, N$2, Calculations!$I465:$QJ465) -> 414664.073 | O120: =SUMIF(Calculations!$I$8:$QJ$8, O$2, Calculations!$I465:$QJ465) -> 405707.7843 | P120: =SUMIF(Calculations!$I$8:$QJ$8, P$2, Calculations!$I465:$QJ465) -> 398364.0326 | Q120: =SUMIF(Calculations!$I$8:$QJ$8, Q$2, Calculations!$I465:$QJ465) -> 389958.7712 | R120: =SUMIF(Calculations!$I$8:$QJ$8, R$2, Calculations!$I465:$QJ465) -> 380530.7257 | S120: =SUMIF(Calculations!$I$8:$QJ$8, S$2, Calculations!$I465:$QJ465) -> 370706.0146 | T120: =SUMIF(Calculations!$I$8:$QJ$8, T$2, Calculations!$I465:$QJ465) -> 361125.9666 | U120: =SUMIF(Calculations!$I$8:$QJ$8, U$2, Calculations!$I465:$QJ465) -> 351453.4229 | V120: =SUMIF(Calculations!$I$8:$QJ$8, V$2, Calculations!$I465:$QJ465) -> 341310.5641 | W120: =SUMIF(Calculations!$I$8:$QJ$8, W$2, Calculations!$I465:$QJ465) -> 331127.8252 | X120: =SUMIF(Calculations!$I$8:$QJ$8, X$2, Calculations!$I465:$QJ465) -> 320691.689 | Y120: =SUMIF(Calculations!$I$8:$QJ$8, Y$2, Calculations!$I465:$QJ465) -> 309946.1002 | Z120: =SUMIF(Calculations!$I$8:$QJ$8, Z$2, Calculations!$I465:$QJ465) -> 298471.7048 | AA120: =SUMIF(Calculations!$I$8:$QJ$8, AA$2, Calculations!$I465:$QJ465) -> 286944.392 | AB120: =SUMIF(Calculations!$I$8:$QJ$8, AB$2, Calculations!$I465:$QJ465) -> 275664.8276 | AC120: =SUMIF(Calculations!$I$8:$QJ$8, AC$2, Calculations!$I465:$QJ465) -> 632918.3098 | AD120: =SUMIF(Calculations!$I$8:$QJ$8, AD$2, Calculations!$I465:$QJ465) -> 566451.0574 | AE120: =SUMIF(Calculations!$I$8:$QJ$8, AE$2, Calculations!$I465:$QJ465) -> 519744.5345 | AF120: =SUMIF(Calculations!$I$8:$QJ$8, AF$2, Calculations!$I465:$QJ465) -> 502723.761 | AG120: =SUMIF(Calculations!$I$8:$QJ$8, AG$2, Calculations!$I465:$QJ465) -> 484700.7642 | AH120: =SUMIF(Calculations!$I$8:$QJ$8, AH$2, Calculations!$I465:$QJ465) -> 484875.1139 | AI120: =SUMIF(Calculations!$I$8:$QJ$8, AI$2, Calculations!$I465:$QJ465) -> 491916.5394 | AJ120: =SUMIF(Calculations!$I$8:$QJ$8, AJ$2, Calculations!$I465:$QJ465) -> -363572.1319
C121: =Calculations!C466 -> less: Change in DSRA | F121: =Calculations!E466 -> EUR | H121: 0 | I121: =SUMIF(Calculations!$I$8:$QJ$8, I$2, Calculations!$I466:$QJ466) -> 0 | J121: =SUMIF(Calculations!$I$8:$QJ$8, J$2, Calculations!$I466:$QJ466) -> 0 | K121: =SUMIF(Calculations!$I$8:$QJ$8, K$2, Calculations!$I466:$QJ466) -> -185403.1457 | L121: =SUMIF(Calculations!$I$8:$QJ$8, L$2, Calculations!$I466:$QJ466) -> 0 | M121: =SUMIF(Calculations!$I$8:$QJ$8, M$2, Calculations!$I466:$QJ466) -> 0 | N121: =SUMIF(Calculations!$I$8:$QJ$8, N$2, Calculations!$I466:$QJ466) -> 0 | O121: =SUMIF(Calculations!$I$8:$QJ$8, O$2, Calculations!$I466:$QJ466) -> 0 | P121: =SUMIF(Calculations!$I$8:$QJ$8, P$2, Calculations!$I466:$QJ466) -> 0 | Q121: =SUMIF(Calculations!$I$8:$QJ$8, Q$2, Calculations!$I466:$QJ466) -> 0 | R121: =SUMIF(Calculations!$I$8:$QJ$8, R$2, Calculations!$I466:$QJ466) -> 0 | S121: =SUMIF(Calculations!$I$8:$QJ$8, S$2, Calculations!$I466:$QJ466) -> 0 | T121: =SUMIF(Calculations!$I$8:$QJ$8, T$2, Calculations!$I466:$QJ466) -> 0 | U121: =SUMIF(Calculations!$I$8:$QJ$8, U$2, Calculations!$I466:$QJ466) -> 0 | V121: =SUMIF(Calculations!$I$8:$QJ$8, V$2, Calculations!$I466:$QJ466) -> 0 | W121: =SUMIF(Calculations!$I$8:$QJ$8, W$2, Calculations!$I466:$QJ466) -> 0 | X121: =SUMIF(Calculations!$I$8:$QJ$8, X$2, Calculations!$I466:$QJ466) -> 0 | Y121: =SUMIF(Calculations!$I$8:$QJ$8, Y$2, Calculations!$I466:$QJ466) -> 0 | Z121: =SUMIF(Calculations!$I$8:$QJ$8, Z$2, Calculations!$I466:$QJ466) -> 0 | AA121: =SUMIF(Calculations!$I$8:$QJ$8, AA$2, Calculations!$I466:$QJ466) -> 0 | AB121: =SUMIF(Calculations!$I$8:$QJ$8, AB$2, Calculations!$I466:$QJ466) -> 22781.69362 | AC121: =SUMIF(Calculations!$I$8:$QJ$8, AC$2, Calculations!$I466:$QJ466) -> 162621.4521 | AD121: =SUMIF(Calculations!$I$8:$QJ$8, AD$2, Calculations!$I466:$QJ466) -> 0 | AE121: =SUMIF(Calculations!$I$8:$QJ$8, AE$2, Calculations!$I466:$QJ466) -> 0 | AF121: =SUMIF(Calculations!$I$8:$QJ$8, AF$2, Calculations!$I466:$QJ466) -> 0 | AG121: =SUMIF(Calculations!$I$8:$QJ$8, AG$2, Calculations!$I466:$QJ466) -> 0 | AH121: =SUMIF(Calculations!$I$8:$QJ$8, AH$2, Calculations!$I466:$QJ466) -> 0 | AI121: =SUMIF(Calculations!$I$8:$QJ$8, AI$2, Calculations!$I466:$QJ466) -> 0 | AJ121: =SUMIF(Calculations!$I$8:$QJ$8, AJ$2, Calculations!$I466:$QJ466) -> 0
C122: =Calculations!C467 -> less: Change in MMRA | F122: =Calculations!E467 -> EUR | H122: 0 | I122: =SUMIF(Calculations!$I$8:$QJ$8, I$2, Calculations!$I467:$QJ467) -> 0 | J122: =SUMIF(Calculations!$I$8:$QJ$8, J$2, Calculations!$I467:$QJ467) -> 0 | K122: =SUMIF(Calculations!$I$8:$QJ$8, K$2, Calculations!$I467:$QJ467) -> 0 | L122: =SUMIF(Calculations!$I$8:$QJ$8, L$2, Calculations!$I467:$QJ467) -> 0 | M122: =SUMIF(Calculations!$I$8:$QJ$8, M$2, Calculations!$I467:$QJ467) -> 0 | N122: =SUMIF(Calculations!$I$8:$QJ$8, N$2, Calculations!$I467:$QJ467) -> 0 | O122: =SUMIF(Calculations!$I$8:$QJ$8, O$2, Calculations!$I467:$QJ467) -> 0 | P122: =SUMIF(Calculations!$I$8:$QJ$8, P$2, Calculations!$I467:$QJ467) -> 0 | Q122: =SUMIF(Calculations!$I$8:$QJ$8, Q$2, Calculations!$I467:$QJ467) -> 0 | R122: =SUMIF(Calculations!$I$8:$QJ$8, R$2, Calculations!$I467:$QJ467) -> 0 | S122: =SUMIF(Calculations!$I$8:$QJ$8, S$2, Calculations!$I467:$QJ467) -> 0 | T122: =SUMIF(Calculations!$I$8:$QJ$8, T$2, Calculations!$I467:$QJ467) -> 0 | U122: =SUMIF(Calculations!$I$8:$QJ$8, U$2, Calculations!$I467:$QJ467) -> 0 | V122: =SUMIF(Calculations!$I$8:$QJ$8, V$2, Calculations!$I467:$QJ467) -> 0 | W122: =SUMIF(Calculations!$I$8:$QJ$8, W$2, Calculations!$I467:$QJ467) -> 0 | X122: =SUMIF(Calculations!$I$8:$QJ$8, X$2, Calculations!$I467:$QJ467) -> 0 | Y122: =SUMIF(Calculations!$I$8:$QJ$8, Y$2, Calculations!$I467:$QJ467) -> 0 | Z122: =SUMIF(Calculations!$I$8:$QJ$8, Z$2, Calculations!$I467:$QJ467) -> 0 | AA122: =SUMIF(Calculations!$I$8:$QJ$8, AA$2, Calculations!$I467:$QJ467) -> 0 | AB122: =SUMIF(Calculations!$I$8:$QJ$8, AB$2, Calculations!$I467:$QJ467) -> 0 | AC122: =SUMIF(Calculations!$I$8:$QJ$8, AC$2, Calculations!$I467:$QJ467) -> 0 | AD122: =SUMIF(Calculations!$I$8:$QJ$8, AD$2, Calculations!$I467:$QJ467) -> 0 | AE122: =SUMIF(Calculations!$I$8:$QJ$8, AE$2, Calculations!$I467:$QJ467) -> 0 | AF122: =SUMIF(Calculations!$I$8:$QJ$8, AF$2, Calculations!$I467:$QJ467) -> 0 | AG122: =SUMIF(Calculations!$I$8:$QJ$8, AG$2, Calculations!$I467:$QJ467) -> 0 | AH122: =SUMIF(Calculations!$I$8:$QJ$8, AH$2, Calculations!$I467:$QJ467) -> 0 | AI122: =SUMIF(Calculations!$I$8:$QJ$8, AI$2, Calculations!$I467:$QJ467) -> 0 | AJ122: =SUMIF(Calculations!$I$8:$QJ$8, AJ$2, Calculations!$I467:$QJ467) -> 0
C123: =Calculations!C468 -> Cash Flow Available for Subordinated Debt | F123: =Calculations!E468 -> EUR | H123: 15845584.9 | I123: =SUMIF(Calculations!$I$8:$QJ$8, I$2, Calculations!$I468:$QJ468) -> 1898158.668 | J123: =SUMIF(Calculations!$I$8:$QJ$8, J$2, Calculations!$I468:$QJ468) -> 2591098.307 | K123: =SUMIF(Calculations!$I$8:$QJ$8, K$2, Calculations!$I468:$QJ468) -> 1759014.588 | L123: =SUMIF(Calculations!$I$8:$QJ$8, L$2, Calculations!$I468:$QJ468) -> 433379.5995 | M123: =SUMIF(Calculations!$I$8:$QJ$8, M$2, Calculations!$I468:$QJ468) -> 422104.7543 | N123: =SUMIF(Calculations!$I$8:$QJ$8, N$2, Calculations!$I468:$QJ468) -> 414664.073 | O123: =SUMIF(Calculations!$I$8:$QJ$8, O$2, Calculations!$I468:$QJ468) -> 405707.7843 | P123: =SUMIF(Calculations!$I$8:$QJ$8, P$2, Calculations!$I468:$QJ468) -> 398364.0326 | Q123: =SUMIF(Calculations!$I$8:$QJ$8, Q$2, Calculations!$I468:$QJ468) -> 389958.7712 | R123: =SUMIF(Calculations!$I$8:$QJ$8, R$2, Calculations!$I468:$QJ468) -> 380530.7257 | S123: =SUMIF(Calculations!$I$8:$QJ$8, S$2, Calculations!$I468:$QJ468) -> 370706.0146 | T123: =SUMIF(Calculations!$I$8:$QJ$8, T$2, Calculations!$I468:$QJ468) -> 361125.9666 | U123: =SUMIF(Calculations!$I$8:$QJ$8, U$2, Calculations!$I468:$QJ468) -> 351453.4229 | V123: =SUMIF(Calculations!$I$8:$QJ$8, V$2, Calculations!$I468:$QJ468) -> 341310.5641 | W123: =SUMIF(Calculations!$I$8:$QJ$8, W$2, Calculations!$I468:$QJ468) -> 331127.8252 | X123: =SUMIF(Calculations!$I$8:$QJ$8, X$2, Calculations!$I468:$QJ468) -> 320691.689 | Y123: =SUMIF(Calculations!$I$8:$QJ$8, Y$2, Calculations!$I468:$QJ468) -> 309946.1002 | Z123: =SUMIF(Calculations!$I$8:$QJ$8, Z$2, Calculations!$I468:$QJ468) -> 298471.7048 | AA123: =SUMIF(Calculations!$I$8:$QJ$8, AA$2, Calculations!$I468:$QJ468) -> 286944.392 | AB123: =SUMIF(Calculations!$I$8:$QJ$8, AB$2, Calculations!$I468:$QJ468) -> 298446.5212 | AC123: =SUMIF(Calculations!$I$8:$QJ$8, AC$2, Calculations!$I468:$QJ468) -> 795539.7619 | AD123: =SUMIF(Calculations!$I$8:$QJ$8, AD$2, Calculations!$I468:$QJ468) -> 566451.0574 | AE123: =SUMIF(Calculations!$I$8:$QJ$8, AE$2, Calculations!$I468:$QJ468) -> 519744.5345 | AF123: =SUMIF(Calculations!$I$8:$QJ$8, AF$2, Calculations!$I468:$QJ468) -> 502723.761 | AG123: =SUMIF(Calculations!$I$8:$QJ$8, AG$2, Calculations!$I468:$QJ468) -> 484700.7642 | AH123: =SUMIF(Calculations!$I$8:$QJ$8, AH$2, Calculations!$I468:$QJ468) -> 484875.1139 | AI123: =SUMIF(Calculations!$I$8:$QJ$8, AI$2, Calculations!$I468:$QJ468) -> 491916.5394 | AJ123: =SUMIF(Calculations!$I$8:$QJ$8, AJ$2, Calculations!$I468:$QJ468) -> -363572.1319
C124: =Calculations!C469 -> less: Subordinated Debt Interest Expense | F124: =Calculations!E469 -> EUR | H124: -2603950.281 | I124: =SUMIF(Calculations!$I$8:$QJ$8, I$2, Calculations!$I469:$QJ469) -> 0 | J124: =SUMIF(Calculations!$I$8:$QJ$8, J$2, Calculations!$I469:$QJ469) -> 0 | K124: =SUMIF(Calculations!$I$8:$QJ$8, K$2, Calculations!$I469:$QJ469) -> -84253.32075 | L124: =SUMIF(Calculations!$I$8:$QJ$8, L$2, Calculations!$I469:$QJ469) -> -248909.7059 | M124: =SUMIF(Calculations!$I$8:$QJ$8, M$2, Calculations!$I469:$QJ469) -> -244333.3157 | N124: =SUMIF(Calculations!$I$8:$QJ$8, N$2, Calculations!$I469:$QJ469) -> -239176.5247 | O124: =SUMIF(Calculations!$I$8:$QJ$8, O$2, Calculations!$I469:$QJ469) -> -233365.7235 | P124: =SUMIF(Calculations!$I$8:$QJ$8, P$2, Calculations!$I469:$QJ469) -> -226817.9673 | Q124: =SUMIF(Calculations!$I$8:$QJ$8, Q$2, Calculations!$I469:$QJ469) -> -219439.7917 | R124: =SUMIF(Calculations!$I$8:$QJ$8, R$2, Calculations!$I469:$QJ469) -> -211125.8788 | S124: =SUMIF(Calculations!$I$8:$QJ$8, S$2, Calculations!$I469:$QJ469) -> -201757.5536 | T124: =SUMIF(Calculations!$I$8:$QJ$8, T$2, Calculations!$I469:$QJ469) -> -191201.0903 | U124: =SUMIF(Calculations!$I$8:$QJ$8, U$2, Calculations!$I469:$QJ469) -> -179305.8032 | V124: =SUMIF(Calculations!$I$8:$QJ$8, V$2, Calculations!$I469:$QJ469) -> -165901.8959 | W124: =SUMIF(Calculations!$I$8:$QJ$8, W$2, Calculations!$I469:$QJ469) -> -150798.0377 | X124: =SUMIF(Calculations!$I$8:$QJ$8, X$2, Calculations!$I469:$QJ469) -> -133778.6323 | Y124: =SUMIF(Calculations!$I$8:$QJ$8, Y$2, Calculations!$I469:$QJ469) -> -114600.7402 | Z124: =SUMIF(Calculations!$I$8:$QJ$8, Z$2, Calculations!$I469:$QJ469) -> -92990.61139 | AA124: =SUMIF(Calculations!$I$8:$QJ$8, AA$2, Calculations!$I469:$QJ469) -> -68639.77735 | AB124: =SUMIF(Calculations!$I$8:$QJ$8, AB$2, Calculations!$I469:$QJ469) -> -41200.64805 | AC124: =SUMIF(Calculations!$I$8:$QJ$8, AC$2, Calculations!$I469:$QJ469) -> -10281.55034 | AD124: =SUMIF(Calculations!$I$8:$QJ$8, AD$2, Calculations!$I469:$QJ469) -> 24558.86286 | AE124: =SUMIF(Calculations!$I$8:$QJ$8, AE$2, Calculations!$I469:$QJ469) -> 63817.91252 | AF124: =SUMIF(Calculations!$I$8:$QJ$8, AF$2, Calculations!$I469:$QJ469) -> 108055.9923 | AG124: =SUMIF(Calculations!$I$8:$QJ$8, AG$2, Calculations!$I469:$QJ469) -> 157904.568 | AH124: =SUMIF(Calculations!$I$8:$QJ$8, AH$2, Calculations!$I469:$QJ469) -> 99590.95189 | AI124: =SUMIF(Calculations!$I$8:$QJ$8, AI$2, Calculations!$I469:$QJ469) -> 0 | AJ124: =SUMIF(Calculations!$I$8:$QJ$8, AJ$2, Calculations!$I469:$QJ469) -> 0
C125: =Calculations!C470 -> add: Drawdown on Subordinated Debt | F125: =Calculations!E470 -> EUR | H125: 2075000 | I125: =SUMIF(Calculations!$I$8:$QJ$8, I$2, Calculations!$I470:$QJ470) -> 1037500 | J125: =SUMIF(Calculations!$I$8:$QJ$8, J$2, Calculations!$I470:$QJ470) -> 1037500 | K125: =SUMIF(Calculations!$I$8:$QJ$8, K$2, Calculations!$I470:$QJ470) -> 0 | L125: =SUMIF(Calculations!$I$8:$QJ$8, L$2, Calculations!$I470:$QJ470) -> 0 | M125: =SUMIF(Calculations!$I$8:$QJ$8, M$2, Calculations!$I470:$QJ470) -> 0 | N125: =SUMIF(Calculations!$I$8:$QJ$8, N$2, Calculations!$I470:$QJ470) -> 0 | O125: =SUMIF(Calculations!$I$8:$QJ$8, O$2, Calculations!$I470:$QJ470) -> 0 | P125: =SUMIF(Calculations!$I$8:$QJ$8, P$2, Calculations!$I470:$QJ470) -> 0 | Q125: =SUMIF(Calculations!$I$8:$QJ$8, Q$2, Calculations!$I470:$QJ470) -> 0 | R125: =SUMIF(Calculations!$I$8:$QJ$8, R$2, Calculations!$I470:$QJ470) -> 0 | S125: =SUMIF(Calculations!$I$8:$QJ$8, S$2, Calculations!$I470:$QJ470) -> 0 | T125: =SUMIF(Calculations!$I$8:$QJ$8, T$2, Calculations!$I470:$QJ470) -> 0 | U125: =SUMIF(Calculations!$I$8:$QJ$8, U$2, Calculations!$I470:$QJ470) -> 0 | V125: =SUMIF(Calculations!$I$8:$QJ$8, V$2, Calculations!$I470:$QJ470) -> 0 | W125: =SUMIF(Calculations!$I$8:$QJ$8, W$2, Calculations!$I470:$QJ470) -> 0 | X125: =SUMIF(Calculations!$I$8:$QJ$8, X$2, Calculations!$I470:$QJ470) -> 0 | Y125: =SUMIF(Calculations!$I$8:$QJ$8, Y$2, Calculations!$I470:$QJ470) -> 0 | Z125: =SUMIF(Calculations!$I$8:$QJ$8, Z$2, Calculations!$I470:$QJ470) -> 0 | AA125: =SUMIF(Calculations!$I$8:$QJ$8, AA$2, Calculations!$I470:$QJ470) -> 0 | AB125: =SUMIF(Calculations!$I$8:$QJ$8, AB$2, Calculations!$I470:$QJ470) -> 0 | AC125: =SUMIF(Calculations!$I$8:$QJ$8, AC$2, Calculations!$I470:$QJ470) -> 0 | AD125: =SUMIF(Calculations!$I$8:$QJ$8, AD$2, Calculations!$I470:$QJ470) -> 0 | AE125: =SUMIF(Calculations!$I$8:$QJ$8, AE$2, Calculations!$I470:$QJ470) -> 0 | AF125: =SUMIF(Calculations!$I$8:$QJ$8, AF$2, Calculations!$I470:$QJ470) -> 0 | AG125: =SUMIF(Calculations!$I$8:$QJ$8, AG$2, Calculations!$I470:$QJ470) -> 0 | AH125: =SUMIF(Calculations!$I$8:$QJ$8, AH$2, Calculations!$I470:$QJ470) -> 0 | AI125: =SUMIF(Calculations!$I$8:$QJ$8, AI$2, Calculations!$I470:$QJ470) -> 0 | AJ125: =SUMIF(Calculations!$I$8:$QJ$8, AJ$2, Calculations!$I470:$QJ470) -> 0
C126: =Calculations!C471 -> less: Subordinated Debt Principal Repayment | F126: =Calculations!E471 -> EUR | H126: -2075000 | I126: =SUMIF(Calculations!$I$8:$QJ$8, I$2, Calculations!$I471:$QJ471) -> 0 | J126: =SUMIF(Calculations!$I$8:$QJ$8, J$2, Calculations!$I471:$QJ471) -> 0 | K126: =SUMIF(Calculations!$I$8:$QJ$8, K$2, Calculations!$I471:$QJ471) -> -8162.25129 | L126: =SUMIF(Calculations!$I$8:$QJ$8, L$2, Calculations!$I471:$QJ471) -> -36084.28225 | M126: =SUMIF(Calculations!$I$8:$QJ$8, M$2, Calculations!$I471:$QJ471) -> -40660.67244 | N126: =SUMIF(Calculations!$I$8:$QJ$8, N$2, Calculations!$I471:$QJ471) -> -45817.46344 | O126: =SUMIF(Calculations!$I$8:$QJ$8, O$2, Calculations!$I471:$QJ471) -> -51628.26463 | P126: =SUMIF(Calculations!$I$8:$QJ$8, P$2, Calculations!$I471:$QJ471) -> -58176.02084 | Q126: =SUMIF(Calculations!$I$8:$QJ$8, Q$2, Calculations!$I471:$QJ471) -> -65554.19644 | R126: =SUMIF(Calculations!$I$8:$QJ$8, R$2, Calculations!$I471:$QJ471) -> -73868.10938 | S126: =SUMIF(Calculations!$I$8:$QJ$8, S$2, Calculations!$I471:$QJ471) -> -83236.43457 | T126: =SUMIF(Calculations!$I$8:$QJ$8, T$2, Calculations!$I471:$QJ471) -> -93792.8979 | U126: =SUMIF(Calculations!$I$8:$QJ$8, U$2, Calculations!$I471:$QJ471) -> -105688.185 | V126: =SUMIF(Calculations!$I$8:$QJ$8, V$2, Calculations!$I471:$QJ471) -> -119092.0922 | W126: =SUMIF(Calculations!$I$8:$QJ$8, W$2, Calculations!$I471:$QJ471) -> -134195.9504 | X126: =SUMIF(Calculations!$I$8:$QJ$8, X$2, Calculations!$I471:$QJ471) -> -151215.3559 | Y126: =SUMIF(Calculations!$I$8:$QJ$8, Y$2, Calculations!$I471:$QJ471) -> -170393.248 | Z126: =SUMIF(Calculations!$I$8:$QJ$8, Z$2, Calculations!$I471:$QJ471) -> -192003.3768 | AA126: =SUMIF(Calculations!$I$8:$QJ$8, AA$2, Calculations!$I471:$QJ471) -> -216354.2108 | AB126: =SUMIF(Calculations!$I$8:$QJ$8, AB$2, Calculations!$I471:$QJ471) -> -243793.3401 | AC126: =SUMIF(Calculations!$I$8:$QJ$8, AC$2, Calculations!$I471:$QJ471) -> -274712.4378 | AD126: =SUMIF(Calculations!$I$8:$QJ$8, AD$2, Calculations!$I471:$QJ471) -> -309552.851 | AE126: =SUMIF(Calculations!$I$8:$QJ$8, AE$2, Calculations!$I471:$QJ471) -> -348811.9007 | AF126: =SUMIF(Calculations!$I$8:$QJ$8, AF$2, Calculations!$I471:$QJ471) -> -393049.9805 | AG126: =SUMIF(Calculations!$I$8:$QJ$8, AG$2, Calculations!$I471:$QJ471) -> -442898.5561 | AH126: =SUMIF(Calculations!$I$8:$QJ$8, AH$2, Calculations!$I471:$QJ471) -> 1583742.079 | AI126: =SUMIF(Calculations!$I$8:$QJ$8, AI$2, Calculations!$I471:$QJ471) -> 0 | AJ126: =SUMIF(Calculations!$I$8:$QJ$8, AJ$2, Calculations!$I471:$QJ471) -> 0
C127: =Calculations!C472 -> less: Capital Investment | F127: =Calculations!E472 -> EUR | H127: -9275325.914 | I127: =SUMIF(Calculations!$I$8:$QJ$8, I$2, Calculations!$I472:$QJ472) -> -2885765.331 | J127: =SUMIF(Calculations!$I$8:$QJ$8, J$2, Calculations!$I472:$QJ472) -> -3609294.334 | K127: =SUMIF(Calculations!$I$8:$QJ$8, K$2, Calculations!$I472:$QJ472) -> -1520434.394 | L127: =SUMIF(Calculations!$I$8:$QJ$8, L$2, Calculations!$I472:$QJ472) -> 0 | M127: =SUMIF(Calculations!$I$8:$QJ$8, M$2, Calculations!$I472:$QJ472) -> 0 | N127: =SUMIF(Calculations!$I$8:$QJ$8, N$2, Calculations!$I472:$QJ472) -> 0 | O127: =SUMIF(Calculations!$I$8:$QJ$8, O$2, Calculations!$I472:$QJ472) -> 0 | P127: =SUMIF(Calculations!$I$8:$QJ$8, P$2, Calculations!$I472:$QJ472) -> 0 | Q127: =SUMIF(Calculations!$I$8:$QJ$8, Q$2, Calculations!$I472:$QJ472) -> 0 | R127: =SUMIF(Calculations!$I$8:$QJ$8, R$2, Calculations!$I472:$QJ472) -> 0 | S127: =SUMIF(Calculations!$I$8:$QJ$8, S$2, Calculations!$I472:$QJ472) -> 0 | T127: =SUMIF(Calculations!$I$8:$QJ$8, T$2, Calculations!$I472:$QJ472) -> 0 | U127: =SUMIF(Calculations!$I$8:$QJ$8, U$2, Calculations!$I472:$QJ472) -> 0 | V127: =SUMIF(Calculations!$I$8:$QJ$8, V$2, Calculations!$I472:$QJ472) -> 0 | W127: =SUMIF(Calculations!$I$8:$QJ$8, W$2, Calculations!$I472:$QJ472) -> 0 | X127: =SUMIF(Calculations!$I$8:$QJ$8, X$2, Calculations!$I472:$QJ472) -> 0 | Y127: =SUMIF(Calculations!$I$8:$QJ$8, Y$2, Calculations!$I472:$QJ472) -> 0 | Z127: =SUMIF(Calculations!$I$8:$QJ$8, Z$2, Calculations!$I472:$QJ472) -> 0 | AA127: =SUMIF(Calculations!$I$8:$QJ$8, AA$2, Calculations!$I472:$QJ472) -> 0 | AB127: =SUMIF(Calculations!$I$8:$QJ$8, AB$2, Calculations!$I472:$QJ472) -> 0 | AC127: =SUMIF(Calculations!$I$8:$QJ$8, AC$2, Calculations!$I472:$QJ472) -> -1259831.855 | AD127: =SUMIF(Calculations!$I$8:$QJ$8, AD$2, Calculations!$I472:$QJ472) -> 0 | AE127: =SUMIF(Calculations!$I$8:$QJ$8, AE$2, Calculations!$I472:$QJ472) -> 0 | AF127: =SUMIF(Calculations!$I$8:$QJ$8, AF$2, Calculations!$I472:$QJ472) -> 0 | AG127: =SUMIF(Calculations!$I$8:$QJ$8, AG$2, Calculations!$I472:$QJ472) -> 0 | AH127: =SUMIF(Calculations!$I$8:$QJ$8, AH$2, Calculations!$I472:$QJ472) -> 0 | AI127: =SUMIF(Calculations!$I$8:$QJ$8, AI$2, Calculations!$I472:$QJ472) -> 0 | AJ127: =SUMIF(Calculations!$I$8:$QJ$8, AJ$2, Calculations!$I472:$QJ472) -> 0
C128: =Calculations!C473 -> Cash Flow Available for Dividends | F128: =Calculations!E473 -> EUR | H128: 3966308.71 | I128: =SUMIF(Calculations!$I$8:$QJ$8, I$2, Calculations!$I473:$QJ473) -> 49893.33765 | J128: =SUMIF(Calculations!$I$8:$QJ$8, J$2, Calculations!$I473:$QJ473) -> 19303.97244 | K128: =SUMIF(Calculations!$I$8:$QJ$8, K$2, Calculations!$I473:$QJ473) -> 146164.6218 | L128: =SUMIF(Calculations!$I$8:$QJ$8, L$2, Calculations!$I473:$QJ473) -> 148385.6113 | M128: =SUMIF(Calculations!$I$8:$QJ$8, M$2, Calculations!$I473:$QJ473) -> 137110.7661 | N128: =SUMIF(Calculations!$I$8:$QJ$8, N$2, Calculations!$I473:$QJ473) -> 129670.0849 | O128: =SUMIF(Calculations!$I$8:$QJ$8, O$2, Calculations!$I473:$QJ473) -> 120713.7962 | P128: =SUMIF(Calculations!$I$8:$QJ$8, P$2, Calculations!$I473:$QJ473) -> 113370.0445 | Q128: =SUMIF(Calculations!$I$8:$QJ$8, Q$2, Calculations!$I473:$QJ473) -> 104964.783 | R128: =SUMIF(Calculations!$I$8:$QJ$8, R$2, Calculations!$I473:$QJ473) -> 95536.73751 | S128: =SUMIF(Calculations!$I$8:$QJ$8, S$2, Calculations!$I473:$QJ473) -> 85712.02641 | T128: =SUMIF(Calculations!$I$8:$QJ$8, T$2, Calculations!$I473:$QJ473) -> 76131.97843 | U128: =SUMIF(Calculations!$I$8:$QJ$8, U$2, Calculations!$I473:$QJ473) -> 66459.43472 | V128: =SUMIF(Calculations!$I$8:$QJ$8, V$2, Calculations!$I473:$QJ473) -> 56316.57593 | W128: =SUMIF(Calculations!$I$8:$QJ$8, W$2, Calculations!$I473:$QJ473) -> 46133.83701 | X128: =SUMIF(Calculations!$I$8:$QJ$8, X$2, Calculations!$I473:$QJ473) -> 35697.70087 | Y128: =SUMIF(Calculations!$I$8:$QJ$8, Y$2, Calculations!$I473:$QJ473) -> 24952.11202 | Z128: =SUMIF(Calculations!$I$8:$QJ$8, Z$2, Calculations!$I473:$QJ473) -> 13477.7166 | AA128: =SUMIF(Calculations!$I$8:$QJ$8, AA$2, Calculations!$I473:$QJ473) -> 1950.403803 | AB128: =SUMIF(Calculations!$I$8:$QJ$8, AB$2, Calculations!$I473:$QJ473) -> 13452.53303 | AC128: =SUMIF(Calculations!$I$8:$QJ$8, AC$2, Calculations!$I473:$QJ473) -> -749286.0807 | AD128: =SUMIF(Calculations!$I$8:$QJ$8, AD$2, Calculations!$I473:$QJ473) -> 281457.0693 | AE128: =SUMIF(Calculations!$I$8:$QJ$8, AE$2, Calculations!$I473:$QJ473) -> 234750.5464 | AF128: =SUMIF(Calculations!$I$8:$QJ$8, AF$2, Calculations!$I473:$QJ473) -> 217729.7728 | AG128: =SUMIF(Calculations!$I$8:$QJ$8, AG$2, Calculations!$I473:$QJ473) -> 199706.776 | AH128: =SUMIF(Calculations!$I$8:$QJ$8, AH$2, Calculations!$I473:$QJ473) -> 2168208.144 | AI128: =SUMIF(Calculations!$I$8:$QJ$8, AI$2, Calculations!$I473:$QJ473) -> 491916.5394 | AJ128: =SUMIF(Calculations!$I$8:$QJ$8, AJ$2, Calculations!$I473:$QJ473) -> -363572.1319
C129: =Calculations!C474 -> Dividend | F129: =Calculations!E474 -> EUR | H129: 0 | I129: =SUMIF(Calculations!$I$8:$QJ$8, I$2, Calculations!$I474:$QJ474) -> 0 | J129: =SUMIF(Calculations!$I$8:$QJ$8, J$2, Calculations!$I474:$QJ474) -> 0 | K129: =SUMIF(Calculations!$I$8:$QJ$8, K$2, Calculations!$I474:$QJ474) -> 0 | L129: =SUMIF(Calculations!$I$8:$QJ$8, L$2, Calculations!$I474:$QJ474) -> 0 | M129: =SUMIF(Calculations!$I$8:$QJ$8, M$2, Calculations!$I474:$QJ474) -> 0 | N129: =SUMIF(Calculations!$I$8:$QJ$8, N$2, Calculations!$I474:$QJ474) -> 0 | O129: =SUMIF(Calculations!$I$8:$QJ$8, O$2, Calculations!$I474:$QJ474) -> 0 | P129: =SUMIF(Calculations!$I$8:$QJ$8, P$2, Calculations!$I474:$QJ474) -> 0 | Q129: =SUMIF(Calculations!$I$8:$QJ$8, Q$2, Calculations!$I474:$QJ474) -> 0 | R129: =SUMIF(Calculations!$I$8:$QJ$8, R$2, Calculations!$I474:$QJ474) -> 0 | S129: =SUMIF(Calculations!$I$8:$QJ$8, S$2, Calculations!$I474:$QJ474) -> 0 | T129: =SUMIF(Calculations!$I$8:$QJ$8, T$2, Calculations!$I474:$QJ474) -> 0 | U129: =SUMIF(Calculations!$I$8:$QJ$8, U$2, Calculations!$I474:$QJ474) -> 0 | V129: =SUMIF(Calculations!$I$8:$QJ$8, V$2, Calculations!$I474:$QJ474) -> 0 | W129: =SUMIF(Calculations!$I$8:$QJ$8, W$2, Calculations!$I474:$QJ474) -> 0 | X129: =SUMIF(Calculations!$I$8:$QJ$8, X$2, Calculations!$I474:$QJ474) -> 0 | Y129: =SUMIF(Calculations!$I$8:$QJ$8, Y$2, Calculations!$I474:$QJ474) -> 0 | Z129: =SUMIF(Calculations!$I$8:$QJ$8, Z$2, Calculations!$I474:$QJ474) -> 0 | AA129: =SUMIF(Calculations!$I$8:$QJ$8, AA$2, Calculations!$I474:$QJ474) -> 0 | AB129: =SUMIF(Calculations!$I$8:$QJ$8, AB$2, Calculations!$I474:$QJ474) -> 0 | AC129: =SUMIF(Calculations!$I$8:$QJ$8, AC$2, Calculations!$I474:$QJ474) -> 0 | AD129: =SUMIF(Calculations!$I$8:$QJ$8, AD$2, Calculations!$I474:$QJ474) -> 0 | AE129: =SUMIF(Calculations!$I$8:$QJ$8, AE$2, Calculations!$I474:$QJ474) -> 0 | AF129: =SUMIF(Calculations!$I$8:$QJ$8, AF$2, Calculations!$I474:$QJ474) -> 0 | AG129: =SUMIF(Calculations!$I$8:$QJ$8, AG$2, Calculations!$I474:$QJ474) -> 0 | AH129: =SUMIF(Calculations!$I$8:$QJ$8, AH$2, Calculations!$I474:$QJ474) -> 0 | AI129: =SUMIF(Calculations!$I$8:$QJ$8, AI$2, Calculations!$I474:$QJ474) -> 0 | AJ129: =SUMIF(Calculations!$I$8:$QJ$8, AJ$2, Calculations!$I474:$QJ474) -> 0
C130: =Calculations!C475 -> Net Movements in Cash | F130: =Calculations!E475 -> EUR | H130: 3966308.71 | I130: =SUMIF(Calculations!$I$8:$QJ$8, I$2, Calculations!$I475:$QJ475) -> 49893.33765 | J130: =SUMIF(Calculations!$I$8:$QJ$8, J$2, Calculations!$I475:$QJ475) -> 19303.97244 | K130: =SUMIF(Calculations!$I$8:$QJ$8, K$2, Calculations!$I475:$QJ475) -> 146164.6218 | L130: =SUMIF(Calculations!$I$8:$QJ$8, L$2, Calculations!$I475:$QJ475) -> 148385.6113 | M130: =SUMIF(Calculations!$I$8:$QJ$8, M$2, Calculations!$I475:$QJ475) -> 137110.7661 | N130: =SUMIF(Calculations!$I$8:$QJ$8, N$2, Calculations!$I475:$QJ475) -> 129670.0849 | O130: =SUMIF(Calculations!$I$8:$QJ$8, O$2, Calculations!$I475:$QJ475) -> 120713.7962 | P130: =SUMIF(Calculations!$I$8:$QJ$8, P$2, Calculations!$I475:$QJ475) -> 113370.0445 | Q130: =SUMIF(Calculations!$I$8:$QJ$8, Q$2, Calculations!$I475:$QJ475) -> 104964.783 | R130: =SUMIF(Calculations!$I$8:$QJ$8, R$2, Calculations!$I475:$QJ475) -> 95536.73751 | S130: =SUMIF(Calculations!$I$8:$QJ$8, S$2, Calculations!$I475:$QJ475) -> 85712.02641 | T130: =SUMIF(Calculations!$I$8:$QJ$8, T$2, Calculations!$I475:$QJ475) -> 76131.97843 | U130: =SUMIF(Calculations!$I$8:$QJ$8, U$2, Calculations!$I475:$QJ475) -> 66459.43472 | V130: =SUMIF(Calculations!$I$8:$QJ$8, V$2, Calculations!$I475:$QJ475) -> 56316.57593 | W130: =SUMIF(Calculations!$I$8:$QJ$8, W$2, Calculations!$I475:$QJ475) -> 46133.83701 | X130: =SUMIF(Calculations!$I$8:$QJ$8, X$2, Calculations!$I475:$QJ475) -> 35697.70087 | Y130: =SUMIF(Calculations!$I$8:$QJ$8, Y$2, Calculations!$I475:$QJ475) -> 24952.11202 | Z130: =SUMIF(Calculations!$I$8:$QJ$8, Z$2, Calculations!$I475:$QJ475) -> 13477.7166 | AA130: =SUMIF(Calculations!$I$8:$QJ$8, AA$2, Calculations!$I475:$QJ475) -> 1950.403803 | AB130: =SUMIF(Calculations!$I$8:$QJ$8, AB$2, Calculations!$I475:$QJ475) -> 13452.53303 | AC130: =SUMIF(Calculations!$I$8:$QJ$8, AC$2, Calculations!$I475:$QJ475) -> -749286.0807 | AD130: =SUMIF(Calculations!$I$8:$QJ$8, AD$2, Calculations!$I475:$QJ475) -> 281457.0693 | AE130: =SUMIF(Calculations!$I$8:$QJ$8, AE$2, Calculations!$I475:$QJ475) -> 234750.5464 | AF130: =SUMIF(Calculations!$I$8:$QJ$8, AF$2, Calculations!$I475:$QJ475) -> 217729.7728 | AG130: =SUMIF(Calculations!$I$8:$QJ$8, AG$2, Calculations!$I475:$QJ475) -> 199706.776 | AH130: =SUMIF(Calculations!$I$8:$QJ$8, AH$2, Calculations!$I475:$QJ475) -> 2168208.144 | AI130: =SUMIF(Calculations!$I$8:$QJ$8, AI$2, Calculations!$I475:$QJ475) -> 491916.5394 | AJ130: =SUMIF(Calculations!$I$8:$QJ$8, AJ$2, Calculations!$I475:$QJ475) -> -363572.1319
C132: =Calculations!C477 -> Beginning Cash Balance | F132: =Calculations!E477 -> EUR | I132: =H133 -> 0 | J132: =I133 -> 49893.33765 | K132: 69197.31009 | L132: 215361.9319 | M132: 363747.5432 | N132: =M133 -> 500858.3094 | O132: 630528.3942 | P132: 751242.1904 | Q132: 864612.2349 | R132: 969577.0179 | S132: 1065113.755 | T132: 1150825.782 | U132: 1226957.76 | V132: 1293417.195 | W132: 1349733.771 | X132: 1395867.608 | Y132: 1431565.309 | Z132: 1456517.421 | AA132: 1469995.137 | AB132: 1471945.541 | AC132: 1485398.074 | AD132: 736111.9935 | AE132: 1017569.063 | AF132: 1252319.609 | AG132: =AF133 -> 1470049.382 | AH132: 1669756.158 | AI132: 3837964.302 | AJ132: 4329880.842
C133: =Calculations!C478 -> Closing Cash Balance | F133: =Calculations!E478 -> EUR | H133: 0 | I133: =I130+I132 -> 49893.33765 | J133: =J130+J132 -> 69197.31009 | K133: =K130+K132 -> 215361.9319 | L133: 363747.5432 | M133: 500858.3094 | N133: 630528.3942 | O133: 751242.1904 | P133: 864612.2349 | Q133: 969577.0179 | R133: 1065113.755 | S133: 1150825.782 | T133: 1226957.76 | U133: 1293417.195 | V133: 1349733.771 | W133: 1395867.608 | X133: 1431565.309 | Y133: 1456517.421 | Z133: 1469995.137 | AA133: 1471945.541 | AB133: 1485398.074 | AC133: 736111.9935 | AD133: 1017569.063 | AE133: 1252319.609 | AF133: 1470049.382 | AG133: =AG130+AG132 -> 1669756.158 | AH133: 3837964.302 | AI133: 4329880.842 | AJ133: 3966308.71
C135: Annual = Monthly Check | F135: Check | G135: =IF(ROUND($H$28-Calculations!$H$369+$H$106-Calculations!$H$448, 0)=0, "OK", "NO") -> OK

Sheet QFS
A1: =Inputs!$D$6&" - Quarterly Financial Statements" -> Força Açoreana, S.A.: Azores Photovoltaic Energy Venture - Quarterly Financial Statements
C3: Year | H3: 2026 | I3: =H3 -> 2026 | J3: 2027 | K3: =J3 -> 2027 | L3: =H3+1 -> 2027 | M3: =I3+1 -> 2027 | N3: 2028 | O3: 2028 | P3: =L3+1 -> 2028 | Q3: =M3+1 -> 2028 | R3: =N3+1 -> 2029 | S3: =O3+1 -> 2029 | T3: =P3+1 -> 2029 | U3: =Q3+1 -> 2029 | V3: =R3+1 -> 2030 | W3: =S3+1 -> 2030 | X3: =T3+1 -> 2030 | Y3: =U3+1 -> 2030 | Z3: =V3+1 -> 2031 | AA3: =W3+1 -> 2031 | AB3: =X3+1 -> 2031 | AC3: =Y3+1 -> 2031 | AD3: =Z3+1 -> 2032 | AE3: =AA3+1 -> 2032 | AF3: =AB3+1 -> 2032 | AG3: =AC3+1 -> 2032 | AH3: =AD3+1 -> 2033 | AI3: =AE3+1 -> 2033 | AJ3: =AF3+1 -> 2033 | AK3: =AG3+1 -> 2033 | AL3: =AH3+1 -> 2034 | AM3: =AI3+1 -> 2034 | AN3: =AJ3+1 -> 2034 | AO3: =AK3+1 -> 2034 | AP3: =AL3+1 -> 2035 | AQ3: =AM3+1 -> 2035 | AR3: =AN3+1 -> 2035 | AS3: =AO3+1 -> 2035 | AT3: =AP3+1 -> 2036 | AU3: =AQ3+1 -> 2036 | AV3: =AR3+1 -> 2036 | AW3: =AS3+1 -> 2036 | AX3: =AT3+1 -> 2037 | AY3: =AU3+1 -> 2037 | AZ3: =AV3+1 -> 2037 | BA3: =AW3+1 -> 2037 | BB3: =AX3+1 -> 2038 | BC3: =AY3+1 -> 2038 | BD3: =AZ3+1 -> 2038 | BE3: =BA3+1 -> 2038 | BF3: =BB3+1 -> 2039 | BG3: =BC3+1 -> 2039 | BH3: =BD3+1 -> 2039 | BI3: =BE3+1 -> 2039 | BJ3: =BF3+1 -> 2040 | BK3: =BG3+1 -> 2040 | BL3: =BH3+1 -> 2040 | BM3: =BI3+1 -> 2040 | BN3: =BJ3+1 -> 2041 | BO3: =BK3+1 -> 2041 | BP3: =BL3+1 -> 2041 | BQ3: =BM3+1 -> 2041 | BR3: =BN3+1 -> 2042 | BS3: =BO3+1 -> 2042 | BT3: =BP3+1 -> 2042 | BU3: =BQ3+1 -> 2042 | BV3: =BR3+1 -> 2043 | BW3: =BS3+1 -> 2043 | BX3: =BT3+1 -> 2043 | BY3: =BU3+1 -> 2043 | BZ3: =BV3+1 -> 2044 | CA3: =BW3+1 -> 2044 | CB3: =BX3+1 -> 2044 | CC3: =BY3+1 -> 2044 | CD3: =BZ3+1 -> 2045 | CE3: =CA3+1 -> 2045 | CF3: =CB3+1 -> 2045 | CG3: =CC3+1 -> 2045 | CH3: =CD3+1 -> 2046 | CI3: =CE3+1 -> 2046 | CJ3: =CF3+1 -> 2046 | CK3: =CG3+1 -> 2046 | CL3: =CH3+1 -> 2047 | CM3: =CI3+1 -> 2047 | CN3: =CJ3+1 -> 2047 | CO3: =CK3+1 -> 2047 | CP3: =CL3+1 -> 2048 | CQ3: =CM3+1 -> 2048 | CR3: =CN3+1 -> 2048 | CS3: =CO3+1 -> 2048 | CT3: =CP3+1 -> 2049 | CU3: =CQ3+1 -> 2049 | CV3: =CR3+1 -> 2049 | CW3: =CS3+1 -> 2049 | CX3: =CT3+1 -> 2050 | CY3: =CU3+1 -> 2050 | CZ3: =CV3+1 -> 2050 | DA3: =CW3+1 -> 2050 | DB3: =CX3+1 -> 2051 | DC3: =CY3+1 -> 2051 | DD3: =CZ3+1 -> 2051 | DE3: =DA3+1 -> 2051 | DF3: =DB3+1 -> 2052 | DG3: =DC3+1 -> 2052 | DH3: =DD3+1 -> 2052 | DI3: =DE3+1 -> 2052 | DJ3: =DF3+1 -> 2053 | DK3: =DG3+1 -> 2053
C4: Quarter | H4: 3 | I4: 4 | J4: =IF(I4=4, 1, I4+1) -> 1 | K4: =IF(J4=4, 1, J4+1) -> 2 | L4: =IF(K4=4, 1, K4+1) -> 3 | M4: =IF(L4=4, 1, L4+1) -> 4 | N4: =IF(M4=4, 1, M4+1) -> 1 | O4: 2 | P4: 3 | Q4: 4 | R4: 1 | S4: 2 | T4: 3 | U4: 4 | V4: 1 | W4: 2 | X4: 3 | Y4: 4 | Z4: 1 | AA4: 2 | AB4: 3 | AC4: 4 | AD4: 1 | AE4: 2 | AF4: 3 | AG4: 4 | AH4: 1 | AI4: 2 | AJ4: 3 | AK4: 4 | AL4: 1 | AM4: 2 | AN4: 3 | AO4: 4 | AP4: 1 | AQ4: 2 | AR4: 3 | AS4: 4 | AT4: 1 | AU4: 2 | AV4: 3 | AW4: 4 | AX4: 1 | AY4: 2 | AZ4: 3 | BA4: 4 | BB4: 1 | BC4: 2 | BD4: 3 | BE4: 4 | BF4: 1 | BG4: 2 | BH4: 3 | BI4: 4 | BJ4: 1 | BK4: 2 | BL4: 3 | BM4: 4 | BN4: 1 | BO4: 2 | BP4: 3 | BQ4: 4 | BR4: 1 | BS4: 2 | BT4: 3 | BU4: 4 | BV4: 1 | BW4: 2 | BX4: 3 | BY4: 4 | BZ4: =IF(BY4=4, 1, BY4+1) -> 1 | CA4: 2 | CB4: 3 | CC4: 4 | CD4: 1 | CE4: 2 | CF4: 3 | CG4: 4 | CH4: 1 | CI4: 2 | CJ4: 3 | CK4: 4 | CL4: 1 | CM4: 2 | CN4: 3 | CO4: 4 | CP4: 1 | CQ4: 2 | CR4: 3 | CS4: 4 | CT4: 1 | CU4: 2 | CV4: 3 | CW4: 4 | CX4: 1 | CY4: 2 | CZ4: 3 | DA4: 4 | DB4: 1 | DC4: 2 | DD4: =IF(DC4=4, 1, DC4+1) -> 3 | DE4: 4 | DF4: 1 | DG4: 2 | DH4: 3 | DI4: 4 | DJ4: 1 | DK4: 2
C5: Period End | H5: =EOMONTH(DATE(H3, H4*3, 1), 0) -> 2026-09-30 | I5: =EOMONTH(DATE(I3, I4*3, 1), 0) -> 2026-12-31 | J5: =EOMONTH(DATE(J3, J4*3, 1), 0) -> 2027-03-31 | K5: 2027-06-30 | L5: 2027-09-30 | M5: 2027-12-31 | N5: 2028-03-31 | O5: 2028-06-30 | P5: 2028-09-30 | Q5: 2028-12-31 | R5: 2029-03-31 | S5: 2029-06-30 | T5: 2029-09-30 | U5: 2029-12-31 | V5: 2030-03-31 | W5: 2030-06-30 | X5: 2030-09-30 | Y5: 2030-12-31 | Z5: 2031-03-31 | AA5: 2031-06-30 | AB5: 2031-09-30 | AC5: 2031-12-31 | AD5: 2032-03-31 | AE5: 2032-06-30 | AF5: 2032-09-30 | AG5: 2032-12-31 | AH5: 2033-03-31 | AI5: 2033-06-30 | AJ5: 2033-09-30 | AK5: 2033-12-31 | AL5: 2034-03-31 | AM5: 2034-06-30 | AN5: 2034-09-30 | AO5: 2034-12-31 | AP5: 2035-03-31 | AQ5: 2035-06-30 | AR5: 2035-09-30 | AS5: 2035-12-31 | AT5: 2036-03-31 | AU5: 2036-06-30 | AV5: 2036-09-30 | AW5: 2036-12-31 | AX5: 2037-03-31 | AY5: 2037-06-30 | AZ5: 2037-09-30 | BA5: 2037-12-31 | BB5: 2038-03-31 | BC5: 2038-06-30 | BD5: 2038-09-30 | BE5: 2038-12-31 | BF5: 2039-03-31 | BG5: 2039-06-30 | BH5: 2039-09-30 | BI5: 2039-12-31 | BJ5: 2040-03-31 | BK5: 2040-06-30 | BL5: 2040-09-30 | BM5: 2040-12-31 | BN5: 2041-03-31 | BO5: 2041-06-30 | BP5: 2041-09-30 | BQ5: 2041-12-31 | BR5: 2042-03-31 | BS5: 2042-06-30 | BT5: 2042-09-30 | BU5: 2042-12-31 | BV5: =EOMONTH(DATE(BV3, BV4*3, 1), 0) -> 2043-03-31 | BW5: 2043-06-30 | BX5: 2043-09-30 | BY5: 2043-12-31 | BZ5: 2044-03-31 | CA5: 2044-06-30 | CB5: 2044-09-30 | CC5: 2044-12-31 | CD5: 2045-03-31 | CE5: 2045-06-30 | CF5: 2045-09-30 | CG5: 2045-12-31 | CH5: 2046-03-31 | CI5: 2046-06-30 | CJ5: 2046-09-30 | CK5: 2046-12-31 | CL5: 2047-03-31 | CM5: 2047-06-30 | CN5: 2047-09-30 | CO5: 2047-12-31 | CP5: 2048-03-31 | CQ5: 2048-06-30 | CR5: 2048-09-30 | CS5: 2048-12-31 | CT5: 2049-03-31 | CU5: 2049-06-30 | CV5: 2049-09-30 | CW5: 2049-12-31 | CX5: 2050-03-31 | CY5: 2050-06-30 | CZ5: 2050-09-30 | DA5: 2050-12-31 | DB5: 2051-03-31 | DC5: 2051-06-30 | DD5: =EOMONTH(DATE(DD3, DD4*3, 1), 0) -> 2051-09-30 | DE5: 2051-12-31 | DF5: 2052-03-31 | DG5: 2052-06-30 | DH5: 2052-09-30 | DI5: 2052-12-31 | DJ5: 2053-03-31 | DK5: 2053-06-30
A6: · | B6: Income Statement | E6: Unit
A7: =Summary!$C$49 -> OK
C8: Revenues | AG8: .
C9: =Calculations!C352 -> Production Sold | E9: EUR | G9: =SUM(H9:FC9) -> 23212266.87 | H9: =SUMIFS(Calculations!$I229:$QJ229, Calculations!$I$8:$QJ$8, H$3, Calculations!$I$10:$QJ$10, H$4) -> 0 | I9: =SUMIFS(Calculations!$I229:$QJ229, Calculations!$I$8:$QJ$8, I$3, Calculations!$I$10:$QJ$10, I$4) -> 0 | J9: =SUMIFS(Calculations!$I229:$QJ229, Calculations!$I$8:$QJ$8, J$3, Calculations!$I$10:$QJ$10, J$4) -> 0 | K9: =SUMIFS(Calculations!$I229:$QJ229, Calculations!$I$8:$QJ$8, K$3, Calculations!$I$10:$QJ$10, K$4) -> 0 | L9: =SUMIFS(Calculations!$I229:$QJ229, Calculations!$I$8:$QJ$8, L$3, Calculations!$I$10:$QJ$10, L$4) -> 0 | M9: =SUMIFS(Calculations!$I229:$QJ229, Calculations!$I$8:$QJ$8, M$3, Calculations!$I$10:$QJ$10, M$4) -> 0 | N9: =SUMIFS(Calculations!$I229:$QJ229, Calculations!$I$8:$QJ$8, N$3, Calculations!$I$10:$QJ$10, N$4) -> 0 | O9: =SUMIFS(Calculations!$I229:$QJ229, Calculations!$I$8:$QJ$8, O$3, Calculations!$I$10:$QJ$10, O$4) -> 0 | P9: =SUMIFS(Calculations!$I229:$QJ229, Calculations!$I$8:$QJ$8, P$3, Calculations!$I$10:$QJ$10, P$4) -> 342385.0425 | Q9: =SUMIFS(Calculations!$I229:$QJ229, Calculations!$I$8:$QJ$8, Q$3, Calculations!$I$10:$QJ$10, Q$4) -> 180972.7805 | R9: =SUMIFS(Calculations!$I229:$QJ229, Calculations!$I$8:$QJ$8, R$3, Calculations!$I$10:$QJ$10, R$4) -> 132919.0083 | S9: =SUMIFS(Calculations!$I229:$QJ229, Calculations!$I$8:$QJ$8, S$3, Calculations!$I$10:$QJ$10, S$4) -> 257941.7273 | T9: =SUMIFS(Calculations!$I229:$QJ229, Calculations!$I$8:$QJ$8, T$3, Calculations!$I$10:$QJ$10, T$4) -> 345808.8929 | U9: =SUMIFS(Calculations!$I229:$QJ229, Calculations!$I$8:$QJ$8, U$3, Calculations!$I$10:$QJ$10, U$4) -> 182520.4691 | V9: =SUMIFS(Calculations!$I229:$QJ229, Calculations!$I$8:$QJ$8, V$3, Calculations!$I$10:$QJ$10, V$4) -> 134248.1983 | W9: =SUMIFS(Calculations!$I229:$QJ229, Calculations!$I$8:$QJ$8, W$3, Calculations!$I$10:$QJ$10, W$4) -> 260521.1446 | X9: =SUMIFS(Calculations!$I229:$QJ229, Calculations!$I$8:$QJ$8, X$3, Calculations!$I$10:$QJ$10, X$4) -> 349266.9819 | Y9: =SUMIFS(Calculations!$I229:$QJ229, Calculations!$I$8:$QJ$8, Y$3, Calculations!$I$10:$QJ$10, Y$4) -> 183506.1272 | Z9: =SUMIFS(Calculations!$I229:$QJ229, Calculations!$I$8:$QJ$8, Z$3, Calculations!$I$10:$QJ$10, Z$4) -> 135590.6803 | AA9: =SUMIFS(Calculations!$I229:$QJ229, Calculations!$I$8:$QJ$8, AA$3, Calculations!$I$10:$QJ$10, AA$4) -> 263126.356 | AB9: =SUMIFS(Calculations!$I229:$QJ229, Calculations!$I$8:$QJ$8, AB$3, Calculations!$I$10:$QJ$10, AB$4) -> 352759.6517 | AC9: =SUMIFS(Calculations!$I229:$QJ229, Calculations!$I$8:$QJ$8, AC$3, Calculations!$I$10:$QJ$10, AC$4) -> 184510.2734 | AD9: =SUMIFS(Calculations!$I229:$QJ229, Calculations!$I$8:$QJ$8, AD$3, Calculations!$I$10:$QJ$10, AD$4) -> 136946.5871 | AE9: =SUMIFS(Calculations!$I229:$QJ229, Calculations!$I$8:$QJ$8, AE$3, Calculations!$I$10:$QJ$10, AE$4) -> 265757.6196 | AF9: =SUMIFS(Calculations!$I229:$QJ229, Calculations!$I$8:$QJ$8, AF$3, Calculations!$I$10:$QJ$10, AF$4) -> 356287.2482 | AG9: =SUMIFS(Calculations!$I229:$QJ229, Calculations!$I$8:$QJ$8, AG$3, Calculations!$I$10:$QJ$10, AG$4) -> 185533.0067 | AH9: =SUMIFS(Calculations!$I229:$QJ229, Calculations!$I$8:$QJ$8, AH$3, Calculations!$I$10:$QJ$10, AH$4) -> 138316.053 | AI9: =SUMIFS(Calculations!$I229:$QJ229, Calculations!$I$8:$QJ$8, AI$3, Calculations!$I$10:$QJ$10, AI$4) -> 268415.1958 | AJ9: =SUMIFS(Calculations!$I229:$QJ229, Calculations!$I$8:$QJ$8, AJ$3, Calculations!$I$10:$QJ$10, AJ$4) -> 359346.2417 | AK9: =SUMIFS(Calculations!$I229:$QJ229, Calculations!$I$8:$QJ$8, AK$3, Calculations!$I$10:$QJ$10, AK$4) -> 186574.4279 | AL9: =SUMIFS(Calculations!$I229:$QJ229, Calculations!$I$8:$QJ$8, AL$3, Calculations!$I$10:$QJ$10, AL$4) -> 139699.2135 | AM9: =SUMIFS(Calculations!$I229:$QJ229, Calculations!$I$8:$QJ$8, AM$3, Calculations!$I$10:$QJ$10, AM$4) -> 271099.3478 | AN9: =SUMIFS(Calculations!$I229:$QJ229, Calculations!$I$8:$QJ$8, AN$3, Calculations!$I$10:$QJ$10, AN$4) -> 358325.4344 | AO9: =SUMIFS(Calculations!$I229:$QJ229, Calculations!$I$8:$QJ$8, AO$3, Calculations!$I$10:$QJ$10, AO$4) -> 186382.8232 | AP9: =SUMIFS(Calculations!$I229:$QJ229, Calculations!$I$8:$QJ$8, AP$3, Calculations!$I$10:$QJ$10, AP$4) -> 141096.2057 | AQ9: =SUMIFS(Calculations!$I229:$QJ229, Calculations!$I$8:$QJ$8, AQ$3, Calculations!$I$10:$QJ$10, AQ$4) -> 273810.3412 | AR9: =SUMIFS(Calculations!$I229:$QJ229, Calculations!$I$8:$QJ$8, AR$3, Calculations!$I$10:$QJ$10, AR$4) -> 355482.8179 | AS9: =SUMIFS(Calculations!$I229:$QJ229, Calculations!$I$8:$QJ$8, AS$3, Calculations!$I$10:$QJ$10, AS$4) -> 184982.1673 | AT9: =SUMIFS(Calculations!$I229:$QJ229, Calculations!$I$8:$QJ$8, AT$3, Calculations!$I$10:$QJ$10, AT$4) -> 142507.1677 | AU9: =SUMIFS(Calculations!$I229:$QJ229, Calculations!$I$8:$QJ$8, AU$3, Calculations!$I$10:$QJ$10, AU$4) -> 276548.4446 | AV9: =SUMIFS(Calculations!$I229:$QJ229, Calculations!$I$8:$QJ$8, AV$3, Calculations!$I$10:$QJ$10, AV$4) -> 351862.7829 | AW9: =SUMIFS(Calculations!$I229:$QJ229, Calculations!$I$8:$QJ$8, AW$3, Calculations!$I$10:$QJ$10, AW$4) -> 183059.3459 | AX9: =SUMIFS(Calculations!$I229:$QJ229, Calculations!$I$8:$QJ$8, AX$3, Calculations!$I$10:$QJ$10, AX$4) -> 143932.2394 | AY9: =SUMIFS(Calculations!$I229:$QJ229, Calculations!$I$8:$QJ$8, AY$3, Calculations!$I$10:$QJ$10, AY$4) -> 279313.9291 | AZ9: =SUMIFS(Calculations!$I229:$QJ229, Calculations!$I$8:$QJ$8, AZ$3, Calculations!$I$10:$QJ$10, AZ$4) -> 348278.7828 | BA9: =SUMIFS(Calculations!$I229:$QJ229, Calculations!$I$8:$QJ$8, BA$3, Calculations!$I$10:$QJ$10, BA$4) -> 181155.6648 | BB9: =SUMIFS(Calculations!$I229:$QJ229, Calculations!$I$8:$QJ$8, BB$3, Calculations!$I$10:$QJ$10, BB$4) -> 145371.5618 | BC9: =SUMIFS(Calculations!$I229:$QJ229, Calculations!$I$8:$QJ$8, BC$3, Calculations!$I$10:$QJ$10, BC$4) -> 281865.8734 | BD9: =SUMIFS(Calculations!$I229:$QJ229, Calculations!$I$8:$QJ$8, BD$3, Calculations!$I$10:$QJ$10, BD$4) -> 344730.4588 | BE9: =SUMIFS(Calculations!$I229:$QJ229, Calculations!$I$8:$QJ$8, BE$3, Calculations!$I$10:$QJ$10, BE$4) -> 179270.9335 | BF9: =SUMIFS(Calculations!$I229:$QJ229, Calculations!$I$8:$QJ$8, BF$3, Calculations!$I$10:$QJ$10, BF$4) -> 146825.2774 | BG9: =SUMIFS(Calculations!$I229:$QJ229, Calculations!$I$8:$QJ$8, BG$3, Calculations!$I$10:$QJ$10, BG$4) -> 282372.3768 | BH9: =SUMIFS(Calculations!$I229:$QJ229, Calculations!$I$8:$QJ$8, BH$3, Calculations!$I$10:$QJ$10, BH$4) -> 341217.456 | BI9: =SUMIFS(Calculations!$I229:$QJ229, Calculations!$I$8:$QJ$8, BI$3, Calculations!$I$10:$QJ$10, BI$4) -> 177404.9633 | BJ9: =SUMIFS(Calculations!$I229:$QJ229, Calculations!$I$8:$QJ$8, BJ$3, Calculations!$I$10:$QJ$10, BJ$4) -> 148293.5302 | BK9: =SUMIFS(Calculations!$I229:$QJ229, Calculations!$I$8:$QJ$8, BK$3, Calculations!$I$10:$QJ$10, BK$4) -> 282907.2267 | BL9: =SUMIFS(Calculations!$I229:$QJ229, Calculations!$I$8:$QJ$8, BL$3, Calculations!$I$10:$QJ$10, BL$4) -> 337739.4226 | BM9: =SUMIFS(Calculations!$I229:$QJ229, Calculations!$I$8:$QJ$8, BM$3, Calculations!$I$10:$QJ$10, BM$4) -> 175557.5676 | BN9: =SUMIFS(Calculations!$I229:$QJ229, Calculations!$I$8:$QJ$8, BN$3, Calculations!$I$10:$QJ$10, BN$4) -> 149776.4655 | BO9: =SUMIFS(Calculations!$I229:$QJ229, Calculations!$I$8:$QJ$8, BO$3, Calculations!$I$10:$QJ$10, BO$4) -> 281508.8717 | BP9: =SUMIFS(Calculations!$I229:$QJ229, Calculations!$I$8:$QJ$8, BP$3, Calculations!$I$10:$QJ$10, BP$4) -> 334296.0105 | BQ9: =SUMIFS(Calculations!$I229:$QJ229, Calculations!$I$8:$QJ$8, BQ$3, Calculations!$I$10:$QJ$10, BQ$4) -> 173728.5614 | BR9: =SUMIFS(Calculations!$I229:$QJ229, Calculations!$I$8:$QJ$8, BR$3, Calculations!$I$10:$QJ$10, BR$4) -> 151274.2301 | BS9: =SUMIFS(Calculations!$I229:$QJ229, Calculations!$I$8:$QJ$8, BS$3, Calculations!$I$10:$QJ$10, BS$4) -> 280004.3304 | BT9: =SUMIFS(Calculations!$I229:$QJ229, Calculations!$I$8:$QJ$8, BT$3, Calculations!$I$10:$QJ$10, BT$4) -> 330886.8752 | BU9: =SUMIFS(Calculations!$I229:$QJ229, Calculations!$I$8:$QJ$8, BU$3, Calculations!$I$10:$QJ$10, BU$4) -> 171917.7616 | BV9: =SUMIFS(Calculations!$I229:$QJ229, Calculations!$I$8:$QJ$8, BV$3, Calculations!$I$10:$QJ$10, BV$4) -> 152786.9724 | BW9: =SUMIFS(Calculations!$I229:$QJ229, Calculations!$I$8:$QJ$8, BW$3, Calculations!$I$10:$QJ$10, BW$4) -> 278528.2826 | BX9: =SUMIFS(Calculations!$I229:$QJ229, Calculations!$I$8:$QJ$8, BX$3, Calculations!$I$10:$QJ$10, BX$4) -> 327511.6754 | BY9: =SUMIFS(Calculations!$I229:$QJ229, Calculations!$I$8:$QJ$8, BY$3, Calculations!$I$10:$QJ$10, BY$4) -> 170124.9871 | BZ9: =SUMIFS(Calculations!$I229:$QJ229, Calculations!$I$8:$QJ$8, BZ$3, Calculations!$I$10:$QJ$10, BZ$4) -> 154314.8422 | CA9: =SUMIFS(Calculations!$I229:$QJ229, Calculations!$I$8:$QJ$8, CA$3, Calculations!$I$10:$QJ$10, CA$4) -> 277080.5798 | CB9: =SUMIFS(Calculations!$I229:$QJ229, Calculations!$I$8:$QJ$8, CB$3, Calculations!$I$10:$QJ$10, CB$4) -> 324170.0734 | CC9: =SUMIFS(Calculations!$I229:$QJ229, Calculations!$I$8:$QJ$8, CC$3, Calculations!$I$10:$QJ$10, CC$4) -> 168350.0584 | CD9: =SUMIFS(Calculations!$I229:$QJ229, Calculations!$I$8:$QJ$8, CD$3, Calculations!$I$10:$QJ$10, CD$4) -> 155857.9906 | CE9: =SUMIFS(Calculations!$I229:$QJ229, Calculations!$I$8:$QJ$8, CE$3, Calculations!$I$10:$QJ$10, CE$4) -> 275661.0765 | CF9: =SUMIFS(Calculations!$I229:$QJ229, Calculations!$I$8:$QJ$8, CF$3, Calculations!$I$10:$QJ$10, CF$4) -> 320861.7346 | CG9: =SUMIFS(Calculations!$I229:$QJ229, Calculations!$I$8:$QJ$8, CG$3, Calculations!$I$10:$QJ$10, CG$4) -> 166592.7978 | CH9: =SUMIFS(Calculations!$I229:$QJ229, Calculations!$I$8:$QJ$8, CH$3, Calculations!$I$10:$QJ$10, CH$4) -> 157416.5705 | CI9: =SUMIFS(Calculations!$I229:$QJ229, Calculations!$I$8:$QJ$8, CI$3, Calculations!$I$10:$QJ$10, CI$4) -> 274269.6298 | CJ9: =SUMIFS(Calculations!$I229:$QJ229, Calculations!$I$8:$QJ$8, CJ$3, Calculations!$I$10:$QJ$10, CJ$4) -> 317586.3281 | CK9: =SUMIFS(Calculations!$I229:$QJ229, Calculations!$I$8:$QJ$8, CK$3, Calculations!$I$10:$QJ$10, CK$4) -> 164853.0296 | CL9: =SUMIFS(Calculations!$I229:$QJ229, Calculations!$I$8:$QJ$8, CL$3, Calculations!$I$10:$QJ$10, CL$4) -> 158990.7362 | CM9: =SUMIFS(Calculations!$I229:$QJ229, Calculations!$I$8:$QJ$8, CM$3, Calculations!$I$10:$QJ$10, CM$4) -> 272906.0997 | CN9: =SUMIFS(Calculations!$I229:$QJ229, Calculations!$I$8:$QJ$8, CN$3, Calculations!$I$10:$QJ$10, CN$4) -> 314343.5259 | CO9: =SUMIFS(Calculations!$I229:$QJ229, Calculations!$I$8:$QJ$8, CO$3, Calculations!$I$10:$QJ$10, CO$4) -> 163130.5795 | CP9: =SUMIFS(Calculations!$I229:$QJ229, Calculations!$I$8:$QJ$8, CP$3, Calculations!$I$10:$QJ$10, CP$4) -> 159515.9717 | CQ9: =SUMIFS(Calculations!$I229:$QJ229, Calculations!$I$8:$QJ$8, CQ$3, Calculations!$I$10:$QJ$10, CQ$4) -> 271570.349 | CR9: =SUMIFS(Calculations!$I229:$QJ229, Calculations!$I$8:$QJ$8, CR$3, Calculations!$I$10:$QJ$10, CR$4) -> 311133.0034 | CS9: =SUMIFS(Calculations!$I229:$QJ229, Calculations!$I$8:$QJ$8, CS$3, Calculations!$I$10:$QJ$10, CS$4) -> 161425.2751 | CT9: =SUMIFS(Calculations!$I229:$QJ229, Calculations!$I$8:$QJ$8, CT$3, Calculations!$I$10:$QJ$10, CT$4) -> 159522.0013 | CU9: =SUMIFS(Calculations!$I229:$QJ229, Calculations!$I$8:$QJ$8, CU$3, Calculations!$I$10:$QJ$10, CU$4) -> 270262.2431 | CV9: =SUMIFS(Calculations!$I229:$QJ229, Calculations!$I$8:$QJ$8, CV$3, Calculations!$I$10:$QJ$10, CV$4) -> 307954.4395 | CW9: =SUMIFS(Calculations!$I229:$QJ229, Calculations!$I$8:$QJ$8, CW$3, Calculations!$I$10:$QJ$10, CW$4) -> 159736.9459 | CX9: =SUMIFS(Calculations!$I229:$QJ229, Calculations!$I$8:$QJ$8, CX$3, Calculations!$I$10:$QJ$10, CX$4) -> 159544.1844 | CY9: =SUMIFS(Calculations!$I229:$QJ229, Calculations!$I$8:$QJ$8, CY$3, Calculations!$I$10:$QJ$10, CY$4) -> 268981.6505 | CZ9: =SUMIFS(Calculations!$I229:$QJ229, Calculations!$I$8:$QJ$8, CZ$3, Calculations!$I$10:$QJ$10, CZ$4) -> 304807.5159 | DA9: =SUMIFS(Calculations!$I229:$QJ229, Calculations!$I$8:$QJ$8, DA$3, Calculations!$I$10:$QJ$10, DA$4) -> 158065.4228 | DB9: =SUMIFS(Calculations!$I229:$QJ229, Calculations!$I$8:$QJ$8, DB$3, Calculations!$I$10:$QJ$10, DB$4) -> 159582.5223 | DC9: =SUMIFS(Calculations!$I229:$QJ229, Calculations!$I$8:$QJ$8, DC$3, Calculations!$I$10:$QJ$10, DC$4) -> 267728.4421 | DD9: =SUMIFS(Calculations!$I229:$QJ229, Calculations!$I$8:$QJ$8, DD$3, Calculations!$I$10:$QJ$10, DD$4) -> 301691.9178 | DE9: =SUMIFS(Calculations!$I229:$QJ229, Calculations!$I$8:$QJ$8, DE$3, Calculations!$I$10:$QJ$10, DE$4) -> 156410.5385 | DF9: =SUMIFS(Calculations!$I229:$QJ229, Calculations!$I$8:$QJ$8, DF$3, Calculations!$I$10:$QJ$10, DF$4) -> 159637.0179 | DG9: =SUMIFS(Calculations!$I229:$QJ229, Calculations!$I$8:$QJ$8, DG$3, Calculations!$I$10:$QJ$10, DG$4) -> 266502.4917 | DH9: =SUMIFS(Calculations!$I229:$QJ229, Calculations!$I$8:$QJ$8, DH$3, Calculations!$I$10:$QJ$10, DH$4) -> 298607.3332 | DI9: =SUMIFS(Calculations!$I229:$QJ229, Calculations!$I$8:$QJ$8, DI$3, Calculations!$I$10:$QJ$10, DI$4) -> 154772.1275 | DJ9: =SUMIFS(Calculations!$I229:$QJ229, Calculations!$I$8:$QJ$8, DJ$3, Calculations!$I$10:$QJ$10, DJ$4) -> 159707.6757 | DK9: =SUMIFS(Calculations!$I229:$QJ229, Calculations!$I$8:$QJ$8, DK$3, Calculations!$I$10:$QJ$10, DK$4) -> 262030.0503
C10: Storage | E10: EUR | G10: 7166139.064 | H10: =SUMIFS(Calculations!$I230:$QJ230, Calculations!$I$8:$QJ$8, H$3, Calculations!$I$10:$QJ$10, H$4) -> 0 | I10: =SUMIFS(Calculations!$I230:$QJ230, Calculations!$I$8:$QJ$8, I$3, Calculations!$I$10:$QJ$10, I$4) -> 0 | J10: =SUMIFS(Calculations!$I230:$QJ230, Calculations!$I$8:$QJ$8, J$3, Calculations!$I$10:$QJ$10, J$4) -> 0 | K10: =SUMIFS(Calculations!$I230:$QJ230, Calculations!$I$8:$QJ$8, K$3, Calculations!$I$10:$QJ$10, K$4) -> 0 | L10: =SUMIFS(Calculations!$I230:$QJ230, Calculations!$I$8:$QJ$8, L$3, Calculations!$I$10:$QJ$10, L$4) -> 0 | M10: =SUMIFS(Calculations!$I230:$QJ230, Calculations!$I$8:$QJ$8, M$3, Calculations!$I$10:$QJ$10, M$4) -> 0 | N10: =SUMIFS(Calculations!$I230:$QJ230, Calculations!$I$8:$QJ$8, N$3, Calculations!$I$10:$QJ$10, N$4) -> 0 | O10: =SUMIFS(Calculations!$I230:$QJ230, Calculations!$I$8:$QJ$8, O$3, Calculations!$I$10:$QJ$10, O$4) -> 0 | P10: =SUMIFS(Calculations!$I230:$QJ230, Calculations!$I$8:$QJ$8, P$3, Calculations!$I$10:$QJ$10, P$4) -> 83143.57988 | Q10: =SUMIFS(Calculations!$I230:$QJ230, Calculations!$I$8:$QJ$8, Q$3, Calculations!$I$10:$QJ$10, Q$4) -> 81706.68859 | R10: =SUMIFS(Calculations!$I230:$QJ230, Calculations!$I$8:$QJ$8, R$3, Calculations!$I$10:$QJ$10, R$4) -> 84348.28837 | S10: =SUMIFS(Calculations!$I230:$QJ230, Calculations!$I$8:$QJ$8, S$3, Calculations!$I$10:$QJ$10, S$4) -> 84356.53289 | T10: =SUMIFS(Calculations!$I230:$QJ230, Calculations!$I$8:$QJ$8, T$3, Calculations!$I$10:$QJ$10, T$4) -> 82004.24484 | U10: =SUMIFS(Calculations!$I230:$QJ230, Calculations!$I$8:$QJ$8, U$3, Calculations!$I$10:$QJ$10, U$4) -> 80674.68288 | V10: =SUMIFS(Calculations!$I230:$QJ230, Calculations!$I$8:$QJ$8, V$3, Calculations!$I$10:$QJ$10, V$4) -> 83304.64241 | W10: =SUMIFS(Calculations!$I230:$QJ230, Calculations!$I$8:$QJ$8, W$3, Calculations!$I$10:$QJ$10, W$4) -> 83215.29768 | X10: =SUMIFS(Calculations!$I230:$QJ230, Calculations!$I$8:$QJ$8, X$3, Calculations!$I$10:$QJ$10, X$4) -> 80670.71914 | Y10: =SUMIFS(Calculations!$I230:$QJ230, Calculations!$I$8:$QJ$8, Y$3, Calculations!$I$10:$QJ$10, Y$4) -> 79610.16298 | Z10: =SUMIFS(Calculations!$I230:$QJ230, Calculations!$I$8:$QJ$8, Z$3, Calculations!$I$10:$QJ$10, Z$4) -> 82223.54477 | AA10: =SUMIFS(Calculations!$I230:$QJ230, Calculations!$I$8:$QJ$8, AA$3, Calculations!$I$10:$QJ$10, AA$4) -> 82076.83591 | AB10: =SUMIFS(Calculations!$I230:$QJ230, Calculations!$I$8:$QJ$8, AB$3, Calculations!$I$10:$QJ$10, AB$4) -> 79346.16081 | AC10: =SUMIFS(Calculations!$I230:$QJ230, Calculations!$I$8:$QJ$8, AC$3, Calculations!$I$10:$QJ$10, AC$4) -> 78554.47327 | AD10: =SUMIFS(Calculations!$I230:$QJ230, Calculations!$I$8:$QJ$8, AD$3, Calculations!$I$10:$QJ$10, AD$4) -> 81991.82638 | AE10: =SUMIFS(Calculations!$I230:$QJ230, Calculations!$I$8:$QJ$8, AE$3, Calculations!$I$10:$QJ$10, AE$4) -> 80947.21823 | AF10: =SUMIFS(Calculations!$I230:$QJ230, Calculations!$I$8:$QJ$8, AF$3, Calculations!$I$10:$QJ$10, AF$4) -> 78030.43753 | AG10: =SUMIFS(Calculations!$I230:$QJ230, Calculations!$I$8:$QJ$8, AG$3, Calculations!$I$10:$QJ$10, AG$4) -> 77507.5082 | AH10: =SUMIFS(Calculations!$I230:$QJ230, Calculations!$I$8:$QJ$8, AH$3, Calculations!$I$10:$QJ$10, AH$4) -> 80088.51093 | AI10: =SUMIFS(Calculations!$I230:$QJ230, Calculations!$I$8:$QJ$8, AI$3, Calculations!$I$10:$QJ$10, AI$4) -> 79826.33171 | AJ10: =SUMIFS(Calculations!$I230:$QJ230, Calculations!$I$8:$QJ$8, AJ$3, Calculations!$I$10:$QJ$10, AJ$4) -> 76754.86789 | AK10: =SUMIFS(Calculations!$I230:$QJ230, Calculations!$I$8:$QJ$8, AK$3, Calculations!$I$10:$QJ$10, AK$4) -> 76469.16307 | AL10: =SUMIFS(Calculations!$I230:$QJ230, Calculations!$I$8:$QJ$8, AL$3, Calculations!$I$10:$QJ$10, AL$4) -> 79034.36124 | AM10: =SUMIFS(Calculations!$I230:$QJ230, Calculations!$I$8:$QJ$8, AM$3, Calculations!$I$10:$QJ$10, AM$4) -> 78714.0643 | AN10: =SUMIFS(Calculations!$I230:$QJ230, Calculations!$I$8:$QJ$8, AN$3, Calculations!$I$10:$QJ$10, AN$4) -> 75744.73937 | AO10: =SUMIFS(Calculations!$I230:$QJ230, Calculations!$I$8:$QJ$8, AO$3, Calculations!$I$10:$QJ$10, AO$4) -> 75517.46728 | AP10: =SUMIFS(Calculations!$I230:$QJ230, Calculations!$I$8:$QJ$8, AP$3, Calculations!$I$10:$QJ$10, AP$4) -> 77988.98218 | AQ10: =SUMIFS(Calculations!$I230:$QJ230, Calculations!$I$8:$QJ$8, AQ$3, Calculations!$I$10:$QJ$10, AQ$4) -> 77610.30483 | AR10: =SUMIFS(Calculations!$I230:$QJ230, Calculations!$I$8:$QJ$8, AR$3, Calculations!$I$10:$QJ$10, AR$4) -> 74859.00998 | AS10: =SUMIFS(Calculations!$I230:$QJ230, Calculations!$I$8:$QJ$8, AS$3, Calculations!$I$10:$QJ$10, AS$4) -> 74650.82795 | AT10: =SUMIFS(Calculations!$I230:$QJ230, Calculations!$I$8:$QJ$8, AT$3, Calculations!$I$10:$QJ$10, AT$4) -> 77755.8905 | AU10: =SUMIFS(Calculations!$I230:$QJ230, Calculations!$I$8:$QJ$8, AU$3, Calculations!$I$10:$QJ$10, AU$4) -> 76514.94297 | AV10: =SUMIFS(Calculations!$I230:$QJ230, Calculations!$I$8:$QJ$8, AV$3, Calculations!$I$10:$QJ$10, AV$4) -> 74032.38679 | AW10: =SUMIFS(Calculations!$I230:$QJ230, Calculations!$I$8:$QJ$8, AW$3, Calculations!$I$10:$QJ$10, AW$4) -> 73826.27706 | AX10: =SUMIFS(Calculations!$I230:$QJ230, Calculations!$I$8:$QJ$8, AX$3, Calculations!$I$10:$QJ$10, AX$4) -> 75924.11873 | AY10: =SUMIFS(Calculations!$I230:$QJ230, Calculations!$I$8:$QJ$8, AY$3, Calculations!$I$10:$QJ$10, AY$4) -> 75427.86922 | AZ10: =SUMIFS(Calculations!$I230:$QJ230, Calculations!$I$8:$QJ$8, AZ$3, Calculations!$I$10:$QJ$10, AZ$4) -> 73213.99205 | BA10: =SUMIFS(Calculations!$I230:$QJ230, Calculations!$I$8:$QJ$8, BA$3, Calculations!$I$10:$QJ$10, BA$4) -> 73009.934 | BB10: =SUMIFS(Calculations!$I230:$QJ230, Calculations!$I$8:$QJ$8, BB$3, Calculations!$I$10:$QJ$10, BB$4) -> 74904.42785 | BC10: =SUMIFS(Calculations!$I230:$QJ230, Calculations!$I$8:$QJ$8, BC$3, Calculations!$I$10:$QJ$10, BC$4) -> 74364.02932 | BD10: =SUMIFS(Calculations!$I230:$QJ230, Calculations!$I$8:$QJ$8, BD$3, Calculations!$I$10:$QJ$10, BD$4) -> 72403.74384 | BE10: =SUMIFS(Calculations!$I230:$QJ230, Calculations!$I$8:$QJ$8, BE$3, Calculations!$I$10:$QJ$10, BE$4) -> 72201.71705 | BF10: =SUMIFS(Calculations!$I230:$QJ230, Calculations!$I$8:$QJ$8, BF$3, Calculations!$I$10:$QJ$10, BF$4) -> 73893.09466 | BG10: =SUMIFS(Calculations!$I230:$QJ230, Calculations!$I$8:$QJ$8, BG$3, Calculations!$I$10:$QJ$10, BG$4) -> 73437.67237 | BH10: =SUMIFS(Calculations!$I230:$QJ230, Calculations!$I$8:$QJ$8, BH$3, Calculations!$I$10:$QJ$10, BH$4) -> 71601.56109 | BI10: =SUMIFS(Calculations!$I230:$QJ230, Calculations!$I$8:$QJ$8, BI$3, Calculations!$I$10:$QJ$10, BI$4) -> 71401.54533 | BJ10: =SUMIFS(Calculations!$I230:$QJ230, Calculations!$I$8:$QJ$8, BJ$3, Calculations!$I$10:$QJ$10, BJ$4) -> 73658.40923 | BK10: =SUMIFS(Calculations!$I230:$QJ230, Calculations!$I$8:$QJ$8, BK$3, Calculations!$I$10:$QJ$10, BK$4) -> 72519.27154 | BL10: =SUMIFS(Calculations!$I230:$QJ230, Calculations!$I$8:$QJ$8, BL$3, Calculations!$I$10:$QJ$10, BL$4) -> 70807.3635 | BM10: =SUMIFS(Calculations!$I230:$QJ230, Calculations!$I$8:$QJ$8, BM$3, Calculations!$I$10:$QJ$10, BM$4) -> 70609.33875 | BN10: =SUMIFS(Calculations!$I230:$QJ230, Calculations!$I$8:$QJ$8, BN$3, Calculations!$I$10:$QJ$10, BN$4) -> 71895.09765 | BO10: =SUMIFS(Calculations!$I230:$QJ230, Calculations!$I$8:$QJ$8, BO$3, Calculations!$I$10:$QJ$10, BO$4) -> 71731.17012 | BP10: =SUMIFS(Calculations!$I230:$QJ230, Calculations!$I$8:$QJ$8, BP$3, Calculations!$I$10:$QJ$10, BP$4) -> 70021.07159 | BQ10: =SUMIFS(Calculations!$I230:$QJ230, Calculations!$I$8:$QJ$8, BQ$3, Calculations!$I$10:$QJ$10, BQ$4) -> 69825.01804 | BR10: =SUMIFS(Calculations!$I230:$QJ230, Calculations!$I$8:$QJ$8, BR$3, Calculations!$I$10:$QJ$10, BR$4) -> 70908.23406 | BS10: =SUMIFS(Calculations!$I230:$QJ230, Calculations!$I$8:$QJ$8, BS$3, Calculations!$I$10:$QJ$10, BS$4) -> 70518.182 | BT10: =SUMIFS(Calculations!$I230:$QJ230, Calculations!$I$8:$QJ$8, BT$3, Calculations!$I$10:$QJ$10, BT$4) -> 69242.60665 | BU10: =SUMIFS(Calculations!$I230:$QJ230, Calculations!$I$8:$QJ$8, BU$3, Calculations!$I$10:$QJ$10, BU$4) -> 69048.50468 | BV10: =SUMIFS(Calculations!$I230:$QJ230, Calculations!$I$8:$QJ$8, BV$3, Calculations!$I$10:$QJ$10, BV$4) -> 69929.32859 | BW10: =SUMIFS(Calculations!$I230:$QJ230, Calculations!$I$8:$QJ$8, BW$3, Calculations!$I$10:$QJ$10, BW$4) -> 69648.78574 | BX10: =SUMIFS(Calculations!$I230:$QJ230, Calculations!$I$8:$QJ$8, BX$3, Calculations!$I$10:$QJ$10, BX$4) -> 68471.89079 | BY10: =SUMIFS(Calculations!$I230:$QJ230, Calculations!$I$8:$QJ$8, BY$3, Calculations!$I$10:$QJ$10, BY$4) -> 68279.72096 | BZ10: =SUMIFS(Calculations!$I230:$QJ230, Calculations!$I$8:$QJ$8, BZ$3, Calculations!$I$10:$QJ$10, BZ$4) -> 69692.82647 | CA10: =SUMIFS(Calculations!$I230:$QJ230, Calculations!$I$8:$QJ$8, CA$3, Calculations!$I$10:$QJ$10, CA$4) -> 68787.1916 | CB10: =SUMIFS(Calculations!$I230:$QJ230, Calculations!$I$8:$QJ$8, CB$3, Calculations!$I$10:$QJ$10, CB$4) -> 67708.84685 | CC10: =SUMIFS(Calculations!$I230:$QJ230, Calculations!$I$8:$QJ$8, CC$3, Calculations!$I$10:$QJ$10, CC$4) -> 67518.58994 | CD10: =SUMIFS(Calculations!$I230:$QJ230, Calculations!$I$8:$QJ$8, CD$3, Calculations!$I$10:$QJ$10, CD$4) -> 67995.0013 | CE10: =SUMIFS(Calculations!$I230:$QJ230, Calculations!$I$8:$QJ$8, CE$3, Calculations!$I$10:$QJ$10, CE$4) -> 67933.31339 | CF10: =SUMIFS(Calculations!$I230:$QJ230, Calculations!$I$8:$QJ$8, CF$3, Calculations!$I$10:$QJ$10, CF$4) -> 66953.39848 | CG10: =SUMIFS(Calculations!$I230:$QJ230, Calculations!$I$8:$QJ$8, CG$3, Calculations!$I$10:$QJ$10, CG$4) -> 66765.03545 | CH10: =SUMIFS(Calculations!$I230:$QJ230, Calculations!$I$8:$QJ$8, CH$3, Calculations!$I$10:$QJ$10, CH$4) -> 67039.38609 | CI10: =SUMIFS(Calculations!$I230:$QJ230, Calculations!$I$8:$QJ$8, CI$3, Calculations!$I$10:$QJ$10, CI$4) -> 67087.0657 | CJ10: =SUMIFS(Calculations!$I230:$QJ230, Calculations!$I$8:$QJ$8, CJ$3, Calculations!$I$10:$QJ$10, CJ$4) -> 66205.47007 | CK10: =SUMIFS(Calculations!$I230:$QJ230, Calculations!$I$8:$QJ$8, CK$3, Calculations!$I$10:$QJ$10, CK$4) -> 66018.98205 | CL10: =SUMIFS(Calculations!$I230:$QJ230, Calculations!$I$8:$QJ$8, CL$3, Calculations!$I$10:$QJ$10, CL$4) -> 66091.34221 | CM10: =SUMIFS(Calculations!$I230:$QJ230, Calculations!$I$8:$QJ$8, CM$3, Calculations!$I$10:$QJ$10, CM$4) -> 66248.36389 | CN10: =SUMIFS(Calculations!$I230:$QJ230, Calculations!$I$8:$QJ$8, CN$3, Calculations!$I$10:$QJ$10, CN$4) -> 65464.98675 | CO10: =SUMIFS(Calculations!$I230:$QJ230, Calculations!$I$8:$QJ$8, CO$3, Calculations!$I$10:$QJ$10, CO$4) -> 65280.35509 | CP10: =SUMIFS(Calculations!$I230:$QJ230, Calculations!$I$8:$QJ$8, CP$3, Calculations!$I$10:$QJ$10, CP$4) -> 65919.25002 | CQ10: =SUMIFS(Calculations!$I230:$QJ230, Calculations!$I$8:$QJ$8, CQ$3, Calculations!$I$10:$QJ$10, CQ$4) -> 65417.12406 | CR10: =SUMIFS(Calculations!$I230:$QJ230, Calculations!$I$8:$QJ$8, CR$3, Calculations!$I$10:$QJ$10, CR$4) -> 64731.87443 | CS10: =SUMIFS(Calculations!$I230:$QJ230, Calculations!$I$8:$QJ$8, CS$3, Calculations!$I$10:$QJ$10, CS$4) -> 64549.08064 | CT10: =SUMIFS(Calculations!$I230:$QJ230, Calculations!$I$8:$QJ$8, CT$3, Calculations!$I$10:$QJ$10, CT$4) -> 64383.89388 | CU10: =SUMIFS(Calculations!$I230:$QJ230, Calculations!$I$8:$QJ$8, CU$3, Calculations!$I$10:$QJ$10, CU$4) -> 64593.26306 | CV10: =SUMIFS(Calculations!$I230:$QJ230, Calculations!$I$8:$QJ$8, CV$3, Calculations!$I$10:$QJ$10, CV$4) -> 64006.05971 | CW10: =SUMIFS(Calculations!$I230:$QJ230, Calculations!$I$8:$QJ$8, CW$3, Calculations!$I$10:$QJ$10, CW$4) -> 63825.08551 | CX10: =SUMIFS(Calculations!$I230:$QJ230, Calculations!$I$8:$QJ$8, CX$3, Calculations!$I$10:$QJ$10, CX$4) -> 63557.84376 | CY10: =SUMIFS(Calculations!$I230:$QJ230, Calculations!$I$8:$QJ$8, CY$3, Calculations!$I$10:$QJ$10, CY$4) -> 63776.69849 | CZ10: =SUMIFS(Calculations!$I230:$QJ230, Calculations!$I$8:$QJ$8, CZ$3, Calculations!$I$10:$QJ$10, CZ$4) -> 63287.46998 | DA10: =SUMIFS(Calculations!$I230:$QJ230, Calculations!$I$8:$QJ$8, DA$3, Calculations!$I$10:$QJ$10, DA$4) -> 63108.29725 | DB10: =SUMIFS(Calculations!$I230:$QJ230, Calculations!$I$8:$QJ$8, DB$3, Calculations!$I$10:$QJ$10, DB$4) -> 62738.99429 | DC10: =SUMIFS(Calculations!$I230:$QJ230, Calculations!$I$8:$QJ$8, DC$3, Calculations!$I$10:$QJ$10, DC$4) -> 62967.34867 | DD10: =SUMIFS(Calculations!$I230:$QJ230, Calculations!$I$8:$QJ$8, DD$3, Calculations!$I$10:$QJ$10, DD$4) -> 62576.03329 | DE10: =SUMIFS(Calculations!$I230:$QJ230, Calculations!$I$8:$QJ$8, DE$3, Calculations!$I$10:$QJ$10, DE$4) -> 62398.6441 | DF10: =SUMIFS(Calculations!$I230:$QJ230, Calculations!$I$8:$QJ$8, DF$3, Calculations!$I$10:$QJ$10, DF$4) -> 62598.04161 | DG10: =SUMIFS(Calculations!$I230:$QJ230, Calculations!$I$8:$QJ$8, DG$3, Calculations!$I$10:$QJ$10, DG$4) -> 62165.13266 | DH10: =SUMIFS(Calculations!$I230:$QJ230, Calculations!$I$8:$QJ$8, DH$3, Calculations!$I$10:$QJ$10, DH$4) -> 61871.67845 | DI10: =SUMIFS(Calculations!$I230:$QJ230, Calculations!$I$8:$QJ$8, DI$3, Calculations!$I$10:$QJ$10, DI$4) -> 61696.05505 | DJ10: =SUMIFS(Calculations!$I230:$QJ230, Calculations!$I$8:$QJ$8, DJ$3, Calculations!$I$10:$QJ$10, DJ$4) -> 61122.57041 | DK10: =SUMIFS(Calculations!$I230:$QJ230, Calculations!$I$8:$QJ$8, DK$3, Calculations!$I$10:$QJ$10, DK$4) -> 60059.79761
C11: less: Purchased from EDA | E11: EUR | G11: -4538580.922 | H11: =SUMIFS(Calculations!$I354:$QJ354, Calculations!$I$8:$QJ$8, H$3, Calculations!$I$10:$QJ$10, H$4) -> 0 | I11: =SUMIFS(Calculations!$I354:$QJ354, Calculations!$I$8:$QJ$8, I$3, Calculations!$I$10:$QJ$10, I$4) -> 0 | J11: =SUMIFS(Calculations!$I354:$QJ354, Calculations!$I$8:$QJ$8, J$3, Calculations!$I$10:$QJ$10, J$4) -> 0 | K11: =SUMIFS(Calculations!$I354:$QJ354, Calculations!$I$8:$QJ$8, K$3, Calculations!$I$10:$QJ$10, K$4) -> 0 | L11: =SUMIFS(Calculations!$I354:$QJ354, Calculations!$I$8:$QJ$8, L$3, Calculations!$I$10:$QJ$10, L$4) -> 0 | M11: =SUMIFS(Calculations!$I354:$QJ354, Calculations!$I$8:$QJ$8, M$3, Calculations!$I$10:$QJ$10, M$4) -> 0 | N11: =SUMIFS(Calculations!$I354:$QJ354, Calculations!$I$8:$QJ$8, N$3, Calculations!$I$10:$QJ$10, N$4) -> 0 | O11: =SUMIFS(Calculations!$I354:$QJ354, Calculations!$I$8:$QJ$8, O$3, Calculations!$I$10:$QJ$10, O$4) -> 0 | P11: =SUMIFS(Calculations!$I354:$QJ354, Calculations!$I$8:$QJ$8, P$3, Calculations!$I$10:$QJ$10, P$4) -> -45724.57753 | Q11: =SUMIFS(Calculations!$I354:$QJ354, Calculations!$I$8:$QJ$8, Q$3, Calculations!$I$10:$QJ$10, Q$4) -> -58705.47738 | R11: =SUMIFS(Calculations!$I354:$QJ354, Calculations!$I$8:$QJ$8, R$3, Calculations!$I$10:$QJ$10, R$4) -> -6937.688982 | S11: =SUMIFS(Calculations!$I354:$QJ354, Calculations!$I$8:$QJ$8, S$3, Calculations!$I$10:$QJ$10, S$4) -> -16513.99322 | T11: =SUMIFS(Calculations!$I354:$QJ354, Calculations!$I$8:$QJ$8, T$3, Calculations!$I$10:$QJ$10, T$4) -> -47708.8783 | U11: =SUMIFS(Calculations!$I354:$QJ354, Calculations!$I$8:$QJ$8, U$3, Calculations!$I$10:$QJ$10, U$4) -> -59550.89279 | V11: =SUMIFS(Calculations!$I354:$QJ354, Calculations!$I$8:$QJ$8, V$3, Calculations!$I$10:$QJ$10, V$4) -> -8159.869453 | W11: =SUMIFS(Calculations!$I354:$QJ354, Calculations!$I$8:$QJ$8, W$3, Calculations!$I$10:$QJ$10, W$4) -> -18954.44644 | X11: =SUMIFS(Calculations!$I354:$QJ354, Calculations!$I$8:$QJ$8, X$3, Calculations!$I$10:$QJ$10, X$4) -> -51904.192 | Y11: =SUMIFS(Calculations!$I354:$QJ354, Calculations!$I$8:$QJ$8, Y$3, Calculations!$I$10:$QJ$10, Y$4) -> -60852.2873 | Z11: =SUMIFS(Calculations!$I354:$QJ354, Calculations!$I$8:$QJ$8, Z$3, Calculations!$I$10:$QJ$10, Z$4) -> -9889.125964 | AA11: =SUMIFS(Calculations!$I354:$QJ354, Calculations!$I$8:$QJ$8, AA$3, Calculations!$I$10:$QJ$10, AA$4) -> -21463.804 | AB11: =SUMIFS(Calculations!$I354:$QJ354, Calculations!$I$8:$QJ$8, AB$3, Calculations!$I$10:$QJ$10, AB$4) -> -56104.49006 | AC11: =SUMIFS(Calculations!$I354:$QJ354, Calculations!$I$8:$QJ$8, AC$3, Calculations!$I$10:$QJ$10, AC$4) -> -62159.89863 | AD11: =SUMIFS(Calculations!$I354:$QJ354, Calculations!$I$8:$QJ$8, AD$3, Calculations!$I$10:$QJ$10, AD$4) -> -12414.7647 | AE11: =SUMIFS(Calculations!$I354:$QJ354, Calculations!$I$8:$QJ$8, AE$3, Calculations!$I$10:$QJ$10, AE$4) -> -23975.19188 | AF11: =SUMIFS(Calculations!$I354:$QJ354, Calculations!$I$8:$QJ$8, AF$3, Calculations!$I$10:$QJ$10, AF$4) -> -60310.19032 | AG11: =SUMIFS(Calculations!$I354:$QJ354, Calculations!$I$8:$QJ$8, AG$3, Calculations!$I$10:$QJ$10, AG$4) -> -63473.85659 | AH11: =SUMIFS(Calculations!$I354:$QJ354, Calculations!$I$8:$QJ$8, AH$3, Calculations!$I$10:$QJ$10, AH$4) -> -13350.61277 | AI11: =SUMIFS(Calculations!$I354:$QJ354, Calculations!$I$8:$QJ$8, AI$3, Calculations!$I$10:$QJ$10, AI$4) -> -26488.85997 | AJ11: =SUMIFS(Calculations!$I354:$QJ354, Calculations!$I$8:$QJ$8, AJ$3, Calculations!$I$10:$QJ$10, AJ$4) -> -64180.36442 | AK11: =SUMIFS(Calculations!$I354:$QJ354, Calculations!$I$8:$QJ$8, AK$3, Calculations!$I$10:$QJ$10, AK$4) -> -64794.29164 | AL11: =SUMIFS(Calculations!$I354:$QJ354, Calculations!$I$8:$QJ$8, AL$3, Calculations!$I$10:$QJ$10, AL$4) -> -15083.18753 | AM11: =SUMIFS(Calculations!$I354:$QJ354, Calculations!$I$8:$QJ$8, AM$3, Calculations!$I$10:$QJ$10, AM$4) -> -29005.05837 | AN11: =SUMIFS(Calculations!$I354:$QJ354, Calculations!$I$8:$QJ$8, AN$3, Calculations!$I$10:$QJ$10, AN$4) -> -65268.82977 | AO11: =SUMIFS(Calculations!$I354:$QJ354, Calculations!$I$8:$QJ$8, AO$3, Calculations!$I$10:$QJ$10, AO$4) -> -65273.30687 | AP11: =SUMIFS(Calculations!$I354:$QJ354, Calculations!$I$8:$QJ$8, AP$3, Calculations!$I$10:$QJ$10, AP$4) -> -16817.213 | AQ11: =SUMIFS(Calculations!$I354:$QJ354, Calculations!$I$8:$QJ$8, AQ$3, Calculations!$I$10:$QJ$10, AQ$4) -> -31524.03741 | AR11: =SUMIFS(Calculations!$I354:$QJ354, Calculations!$I$8:$QJ$8, AR$3, Calculations!$I$10:$QJ$10, AR$4) -> -65105.4139 | AS11: =SUMIFS(Calculations!$I354:$QJ354, Calculations!$I$8:$QJ$8, AS$3, Calculations!$I$10:$QJ$10, AS$4) -> -64927.20466 | AT11: =SUMIFS(Calculations!$I354:$QJ354, Calculations!$I$8:$QJ$8, AT$3, Calculations!$I$10:$QJ$10, AT$4) -> -19316.92096 | AU11: =SUMIFS(Calculations!$I354:$QJ354, Calculations!$I$8:$QJ$8, AU$3, Calculations!$I$10:$QJ$10, AU$4) -> -34046.0477 | AV11: =SUMIFS(Calculations!$I354:$QJ354, Calculations!$I$8:$QJ$8, AV$3, Calculations!$I$10:$QJ$10, AV$4) -> -64397.80294 | AW11: =SUMIFS(Calculations!$I354:$QJ354, Calculations!$I$8:$QJ$8, AW$3, Calculations!$I$10:$QJ$10, AW$4) -> -64221.36766 | AX11: =SUMIFS(Calculations!$I354:$QJ354, Calculations!$I$8:$QJ$8, AX$3, Calculations!$I$10:$QJ$10, AX$4) -> -20290.30641 | AY11: =SUMIFS(Calculations!$I354:$QJ354, Calculations!$I$8:$QJ$8, AY$3, Calculations!$I$10:$QJ$10, AY$4) -> -36571.3401 | AZ11: =SUMIFS(Calculations!$I354:$QJ354, Calculations!$I$8:$QJ$8, AZ$3, Calculations!$I$10:$QJ$10, AZ$4) -> -63697.23576 | BA11: =SUMIFS(Calculations!$I354:$QJ354, Calculations!$I$8:$QJ$8, BA$3, Calculations!$I$10:$QJ$10, BA$4) -> -63522.55676 | BB11: =SUMIFS(Calculations!$I354:$QJ354, Calculations!$I$8:$QJ$8, BB$3, Calculations!$I$10:$QJ$10, BB$4) -> -22029.71988 | BC11: =SUMIFS(Calculations!$I354:$QJ354, Calculations!$I$8:$QJ$8, BC$3, Calculations!$I$10:$QJ$10, BC$4) -> -38936.77116 | BD11: =SUMIFS(Calculations!$I354:$QJ354, Calculations!$I$8:$QJ$8, BD$3, Calculations!$I$10:$QJ$10, BD$4) -> -63003.64223 | BE11: =SUMIFS(Calculations!$I354:$QJ354, Calculations!$I$8:$QJ$8, BE$3, Calculations!$I$10:$QJ$10, BE$4) -> -62830.70204 | BF11: =SUMIFS(Calculations!$I354:$QJ354, Calculations!$I$8:$QJ$8, BF$3, Calculations!$I$10:$QJ$10, BF$4) -> -23771.27518 | BG11: =SUMIFS(Calculations!$I354:$QJ354, Calculations!$I$8:$QJ$8, BG$3, Calculations!$I$10:$QJ$10, BG$4) -> -39901.40605 | BH11: =SUMIFS(Calculations!$I354:$QJ354, Calculations!$I$8:$QJ$8, BH$3, Calculations!$I$10:$QJ$10, BH$4) -> -62316.95293 | BI11: =SUMIFS(Calculations!$I354:$QJ354, Calculations!$I$8:$QJ$8, BI$3, Calculations!$I$10:$QJ$10, BI$4) -> -62145.73423 | BJ11: =SUMIFS(Calculations!$I354:$QJ354, Calculations!$I$8:$QJ$8, BJ$3, Calculations!$I$10:$QJ$10, BJ$4) -> -26249.04693 | BK11: =SUMIFS(Calculations!$I354:$QJ354, Calculations!$I$8:$QJ$8, BK$3, Calculations!$I$10:$QJ$10, BK$4) -> -40870.1697 | BL11: =SUMIFS(Calculations!$I354:$QJ354, Calculations!$I$8:$QJ$8, BL$3, Calculations!$I$10:$QJ$10, BL$4) -> -61637.09914 | BM11: =SUMIFS(Calculations!$I354:$QJ354, Calculations!$I$8:$QJ$8, BM$3, Calculations!$I$10:$QJ$10, BM$4) -> -61467.5848 | BN11: =SUMIFS(Calculations!$I354:$QJ354, Calculations!$I$8:$QJ$8, BN$3, Calculations!$I$10:$QJ$10, BN$4) -> -27261.50448 | BO11: =SUMIFS(Calculations!$I354:$QJ354, Calculations!$I$8:$QJ$8, BO$3, Calculations!$I$10:$QJ$10, BO$4) -> -40514.29392 | BP11: =SUMIFS(Calculations!$I354:$QJ354, Calculations!$I$8:$QJ$8, BP$3, Calculations!$I$10:$QJ$10, BP$4) -> -60964.01281 | BQ11: =SUMIFS(Calculations!$I354:$QJ354, Calculations!$I$8:$QJ$8, BQ$3, Calculations!$I$10:$QJ$10, BQ$4) -> -60796.18587 | BR11: =SUMIFS(Calculations!$I354:$QJ354, Calculations!$I$8:$QJ$8, BR$3, Calculations!$I$10:$QJ$10, BR$4) -> -29010.52564 | BS11: =SUMIFS(Calculations!$I354:$QJ354, Calculations!$I$8:$QJ$8, BS$3, Calculations!$I$10:$QJ$10, BS$4) -> -39866.29385 | BT11: =SUMIFS(Calculations!$I354:$QJ354, Calculations!$I$8:$QJ$8, BT$3, Calculations!$I$10:$QJ$10, BT$4) -> -60297.62658 | BU11: =SUMIFS(Calculations!$I354:$QJ354, Calculations!$I$8:$QJ$8, BU$3, Calculations!$I$10:$QJ$10, BU$4) -> -60131.47024 | BV11: =SUMIFS(Calculations!$I354:$QJ354, Calculations!$I$8:$QJ$8, BV$3, Calculations!$I$10:$QJ$10, BV$4) -> -30762.38302 | BW11: =SUMIFS(Calculations!$I354:$QJ354, Calculations!$I$8:$QJ$8, BW$3, Calculations!$I$10:$QJ$10, BW$4) -> -40353.40324 | BX11: =SUMIFS(Calculations!$I354:$QJ354, Calculations!$I$8:$QJ$8, BX$3, Calculations!$I$10:$QJ$10, BX$4) -> -59637.87375 | BY11: =SUMIFS(Calculations!$I354:$QJ354, Calculations!$I$8:$QJ$8, BY$3, Calculations!$I$10:$QJ$10, BY$4) -> -59473.37138 | BZ11: =SUMIFS(Calculations!$I354:$QJ354, Calculations!$I$8:$QJ$8, BZ$3, Calculations!$I$10:$QJ$10, BZ$4) -> -33222.17734 | CA11: =SUMIFS(Calculations!$I354:$QJ354, Calculations!$I$8:$QJ$8, CA$3, Calculations!$I$10:$QJ$10, CA$4) -> -40844.91221 | CB11: =SUMIFS(Calculations!$I354:$QJ354, Calculations!$I$8:$QJ$8, CB$3, Calculations!$I$10:$QJ$10, CB$4) -> -58984.6883 | CC11: =SUMIFS(Calculations!$I354:$QJ354, Calculations!$I$8:$QJ$8, CC$3, Calculations!$I$10:$QJ$10, CC$4) -> -58821.82344 | CD11: =SUMIFS(Calculations!$I354:$QJ354, Calculations!$I$8:$QJ$8, CD$3, Calculations!$I$10:$QJ$10, CD$4) -> -34275.3036 | CE11: =SUMIFS(Calculations!$I354:$QJ354, Calculations!$I$8:$QJ$8, CE$3, Calculations!$I$10:$QJ$10, CE$4) -> -41340.86947 | CF11: =SUMIFS(Calculations!$I354:$QJ354, Calculations!$I$8:$QJ$8, CF$3, Calculations!$I$10:$QJ$10, CF$4) -> -58338.00485 | CG11: =SUMIFS(Calculations!$I354:$QJ354, Calculations!$I$8:$QJ$8, CG$3, Calculations!$I$10:$QJ$10, CG$4) -> -58176.76119 | CH11: =SUMIFS(Calculations!$I354:$QJ354, Calculations!$I$8:$QJ$8, CH$3, Calculations!$I$10:$QJ$10, CH$4) -> -36036.71617 | CI11: =SUMIFS(Calculations!$I354:$QJ354, Calculations!$I$8:$QJ$8, CI$3, Calculations!$I$10:$QJ$10, CI$4) -> -41841.32413 | CJ11: =SUMIFS(Calculations!$I354:$QJ354, Calculations!$I$8:$QJ$8, CJ$3, Calculations!$I$10:$QJ$10, CJ$4) -> -57697.75868 | CK11: =SUMIFS(Calculations!$I354:$QJ354, Calculations!$I$8:$QJ$8, CK$3, Calculations!$I$10:$QJ$10, CK$4) -> -57538.12008 | CL11: =SUMIFS(Calculations!$I354:$QJ354, Calculations!$I$8:$QJ$8, CL$3, Calculations!$I$10:$QJ$10, CL$4) -> -37801.66368 | CM11: =SUMIFS(Calculations!$I354:$QJ354, Calculations!$I$8:$QJ$8, CM$3, Calculations!$I$10:$QJ$10, CM$4) -> -42346.32577 | CN11: =SUMIFS(Calculations!$I354:$QJ354, Calculations!$I$8:$QJ$8, CN$3, Calculations!$I$10:$QJ$10, CN$4) -> -57063.8857 | CO11: =SUMIFS(Calculations!$I354:$QJ354, Calculations!$I$8:$QJ$8, CO$3, Calculations!$I$10:$QJ$10, CO$4) -> -56905.8362 | CP11: =SUMIFS(Calculations!$I354:$QJ354, Calculations!$I$8:$QJ$8, CP$3, Calculations!$I$10:$QJ$10, CP$4) -> -39526.16074 | CQ11: =SUMIFS(Calculations!$I354:$QJ354, Calculations!$I$8:$QJ$8, CQ$3, Calculations!$I$10:$QJ$10, CQ$4) -> -42855.92443 | CR11: =SUMIFS(Calculations!$I354:$QJ354, Calculations!$I$8:$QJ$8, CR$3, Calculations!$I$10:$QJ$10, CR$4) -> -56436.32248 | CS11: =SUMIFS(Calculations!$I354:$QJ354, Calculations!$I$8:$QJ$8, CS$3, Calculations!$I$10:$QJ$10, CS$4) -> -56279.84625 | CT11: =SUMIFS(Calculations!$I354:$QJ354, Calculations!$I$8:$QJ$8, CT$3, Calculations!$I$10:$QJ$10, CT$4) -> -39537.86727 | CU11: =SUMIFS(Calculations!$I354:$QJ354, Calculations!$I$8:$QJ$8, CU$3, Calculations!$I$10:$QJ$10, CU$4) -> -43370.17057 | CV11: =SUMIFS(Calculations!$I354:$QJ354, Calculations!$I$8:$QJ$8, CV$3, Calculations!$I$10:$QJ$10, CV$4) -> -55815.00621 | CW11: =SUMIFS(Calculations!$I354:$QJ354, Calculations!$I$8:$QJ$8, CW$3, Calculations!$I$10:$QJ$10, CW$4) -> -55660.08759 | CX11: =SUMIFS(Calculations!$I354:$QJ354, Calculations!$I$8:$QJ$8, CX$3, Calculations!$I$10:$QJ$10, CX$4) -> -40230.78918 | CY11: =SUMIFS(Calculations!$I354:$QJ354, Calculations!$I$8:$QJ$8, CY$3, Calculations!$I$10:$QJ$10, CY$4) -> -43889.11514 | CZ11: =SUMIFS(Calculations!$I354:$QJ354, Calculations!$I$8:$QJ$8, CZ$3, Calculations!$I$10:$QJ$10, CZ$4) -> -55199.87471 | DA11: =SUMIFS(Calculations!$I354:$QJ354, Calculations!$I$8:$QJ$8, DA$3, Calculations!$I$10:$QJ$10, DA$4) -> -55046.49819 | DB11: =SUMIFS(Calculations!$I354:$QJ354, Calculations!$I$8:$QJ$8, DB$3, Calculations!$I$10:$QJ$10, DB$4) -> -40927.90698 | DC11: =SUMIFS(Calculations!$I354:$QJ354, Calculations!$I$8:$QJ$8, DC$3, Calculations!$I$10:$QJ$10, DC$4) -> -44412.80954 | DD11: =SUMIFS(Calculations!$I354:$QJ354, Calculations!$I$8:$QJ$8, DD$3, Calculations!$I$10:$QJ$10, DD$4) -> -54590.8664 | DE11: =SUMIFS(Calculations!$I354:$QJ354, Calculations!$I$8:$QJ$8, DE$3, Calculations!$I$10:$QJ$10, DE$4) -> -54439.01664 | DF11: =SUMIFS(Calculations!$I354:$QJ354, Calculations!$I$8:$QJ$8, DF$3, Calculations!$I$10:$QJ$10, DF$4) -> -42279.63181 | DG11: =SUMIFS(Calculations!$I354:$QJ354, Calculations!$I$8:$QJ$8, DG$3, Calculations!$I$10:$QJ$10, DG$4) -> -44941.30565 | DH11: =SUMIFS(Calculations!$I354:$QJ354, Calculations!$I$8:$QJ$8, DH$3, Calculations!$I$10:$QJ$10, DH$4) -> -53987.92035 | DI11: =SUMIFS(Calculations!$I354:$QJ354, Calculations!$I$8:$QJ$8, DI$3, Calculations!$I$10:$QJ$10, DI$4) -> -53837.58214 | DJ11: =SUMIFS(Calculations!$I354:$QJ354, Calculations!$I$8:$QJ$8, DJ$3, Calculations!$I$10:$QJ$10, DJ$4) -> -42335.00736 | DK11: =SUMIFS(Calculations!$I354:$QJ354, Calculations!$I$8:$QJ$8, DK$3, Calculations!$I$10:$QJ$10, DK$4) -> -44830.40868
C12: Total Revenues | G12: 25839825.01 | H12: =+H9+H10+H11 -> 0 | I12: =+I9+I10+I11 -> 0 | J12: 0 | K12: 0 | L12: 0 | M12: 0 | N12: 0 | O12: 0 | P12: 379804.0449 | Q12: 203973.9917 | R12: 210329.6076 | S12: 325784.267 | T12: 380104.2595 | U12: 203644.2592 | V12: 209392.9713 | W12: 324781.9958 | X12: 378033.509 | Y12: 202264.0028 | Z12: 207925.0991 | AA12: 323739.388 | AB12: 376001.3224 | AC12: 200904.848 | AD12: 206523.6488 | AE12: 322729.646 | AF12: 374007.4954 | AG12: 199566.6583 | AH12: 205053.9512 | AI12: 321752.6675 | AJ12: 371920.7452 | AK12: 198249.2993 | AL12: 203650.3872 | AM12: 320808.3537 | AN12: 368801.344 | AO12: 196626.9836 | AP12: 202267.9748 | AQ12: 319896.6087 | AR12: 365236.414 | AS12: 194705.7906 | AT12: 200946.1373 | AU12: 319017.3399 | AV12: 361497.3667 | AW12: 192664.2553 | AX12: 199566.0517 | AY12: 318170.4582 | AZ12: 357795.539 | BA12: 190643.042 | BB12: 198246.2698 | BC12: 317293.1315 | BD12: 354130.5604 | BE12: 188641.9485 | BF12: 196947.0969 | BG12: 315908.6431 | BH12: 350502.0641 | BI12: 186660.7744 | BJ12: 195702.8925 | BK12: 314556.3285 | BL12: 346909.6869 | BM12: 184699.3215 | BN12: 194410.0587 | BO12: 312725.7479 | BP12: 343353.0693 | BQ12: 182757.3935 | BR12: 193171.9386 | BS12: 310656.2185 | BT12: 339831.8553 | BU12: =+BU9+BU10+BU11 -> 180834.796 | BV12: 191953.918 | BW12: 307823.6651 | BX12: 336345.6925 | BY12: 178931.3367 | BZ12: 190785.4913 | CA12: 305022.8592 | CB12: 332894.232 | CC12: 177046.8249 | CD12: 189577.6883 | CE12: 302253.5204 | CF12: 329477.1283 | CG12: 175181.0721 | CH12: 188419.2404 | CI12: 299515.3714 | CJ12: 326094.0395 | CK12: 173333.8915 | CL12: 187280.4147 | CM12: 296808.1378 | CN12: 322744.6269 | CO12: 171505.0983 | CP12: 185909.0609 | CQ12: 294131.5486 | CR12: 319428.5554 | CS12: 169694.5095 | CT12: 184368.0279 | CU12: 291485.3356 | CV12: 316145.493 | CW12: 167901.9438 | CX12: 182871.239 | CY12: 288869.2338 | CZ12: 312895.1112 | DA12: 166127.2219 | DB12: 181393.6096 | DC12: 286282.9812 | DD12: 309677.0847 | DE12: 164370.166 | DF12: 179955.4277 | DG12: 283726.3187 | DH12: 306491.0913 | DI12: 162630.6004 | DJ12: 178495.2387 | DK12: 277259.4392
C13: =Calculations!C356 -> less: Operating Expenses | E13: =Calculations!E356 -> EUR | G13: -9096610.233 | H13: =SUMIFS(Calculations!$I356:$QJ356, Calculations!$I$8:$QJ$8, H$3, Calculations!$I$10:$QJ$10, H$4) -> 0 | I13: =SUMIFS(Calculations!$I356:$QJ356, Calculations!$I$8:$QJ$8, I$3, Calculations!$I$10:$QJ$10, I$4) -> 0 | J13: =SUMIFS(Calculations!$I356:$QJ356, Calculations!$I$8:$QJ$8, J$3, Calculations!$I$10:$QJ$10, J$4) -> 0 | K13: =SUMIFS(Calculations!$I356:$QJ356, Calculations!$I$8:$QJ$8, K$3, Calculations!$I$10:$QJ$10, K$4) -> 0 | L13: =SUMIFS(Calculations!$I356:$QJ356, Calculations!$I$8:$QJ$8, L$3, Calculations!$I$10:$QJ$10, L$4) -> 0 | M13: =SUMIFS(Calculations!$I356:$QJ356, Calculations!$I$8:$QJ$8, M$3, Calculations!$I$10:$QJ$10, M$4) -> 0 | N13: =SUMIFS(Calculations!$I356:$QJ356, Calculations!$I$8:$QJ$8, N$3, Calculations!$I$10:$QJ$10, N$4) -> 0 | O13: =SUMIFS(Calculations!$I356:$QJ356, Calculations!$I$8:$QJ$8, O$3, Calculations!$I$10:$QJ$10, O$4) -> 0 | P13: =SUMIFS(Calculations!$I356:$QJ356, Calculations!$I$8:$QJ$8, P$3, Calculations!$I$10:$QJ$10, P$4) -> -81375.44975 | Q13: =SUMIFS(Calculations!$I356:$QJ356, Calculations!$I$8:$QJ$8, Q$3, Calculations!$I$10:$QJ$10, Q$4) -> -87608.84868 | R13: =SUMIFS(Calculations!$I356:$QJ356, Calculations!$I$8:$QJ$8, R$3, Calculations!$I$10:$QJ$10, R$4) -> -75995.9354 | S13: =SUMIFS(Calculations!$I356:$QJ356, Calculations!$I$8:$QJ$8, S$3, Calculations!$I$10:$QJ$10, S$4) -> -78435.04139 | T13: =SUMIFS(Calculations!$I356:$QJ356, Calculations!$I$8:$QJ$8, T$3, Calculations!$I$10:$QJ$10, T$4) -> -82548.02857 | U13: =SUMIFS(Calculations!$I356:$QJ356, Calculations!$I$8:$QJ$8, U$3, Calculations!$I$10:$QJ$10, U$4) -> -79018.82856 | V13: =SUMIFS(Calculations!$I356:$QJ356, Calculations!$I$8:$QJ$8, V$3, Calculations!$I$10:$QJ$10, V$4) -> -78873.7772 | W13: =SUMIFS(Calculations!$I356:$QJ356, Calculations!$I$8:$QJ$8, W$3, Calculations!$I$10:$QJ$10, W$4) -> -81311.57049 | X13: =SUMIFS(Calculations!$I356:$QJ356, Calculations!$I$8:$QJ$8, X$3, Calculations!$I$10:$QJ$10, X$4) -> -82913.10245 | Y13: =SUMIFS(Calculations!$I356:$QJ356, Calculations!$I$8:$QJ$8, Y$3, Calculations!$I$10:$QJ$10, Y$4) -> -79397.71232 | Z13: =SUMIFS(Calculations!$I356:$QJ356, Calculations!$I$8:$QJ$8, Z$3, Calculations!$I$10:$QJ$10, Z$4) -> -79250.90865 | AA13: =SUMIFS(Calculations!$I356:$QJ356, Calculations!$I$8:$QJ$8, AA$3, Calculations!$I$10:$QJ$10, AA$4) -> -81697.20723 | AB13: =SUMIFS(Calculations!$I356:$QJ356, Calculations!$I$8:$QJ$8, AB$3, Calculations!$I$10:$QJ$10, AB$4) -> -83289.10983 | AC13: =SUMIFS(Calculations!$I356:$QJ356, Calculations!$I$8:$QJ$8, AC$3, Calculations!$I$10:$QJ$10, AC$4) -> -79787.18034 | AD13: =SUMIFS(Calculations!$I356:$QJ356, Calculations!$I$8:$QJ$8, AD$3, Calculations!$I$10:$QJ$10, AD$4) -> -80144.54355 | AE13: =SUMIFS(Calculations!$I356:$QJ356, Calculations!$I$8:$QJ$8, AE$3, Calculations!$I$10:$QJ$10, AE$4) -> -82468.6635 | AF13: =SUMIFS(Calculations!$I356:$QJ356, Calculations!$I$8:$QJ$8, AF$3, Calculations!$I$10:$QJ$10, AF$4) -> -84051.30068 | AG13: =SUMIFS(Calculations!$I356:$QJ356, Calculations!$I$8:$QJ$8, AG$3, Calculations!$I$10:$QJ$10, AG$4) -> -80562.48393 | AH13: =SUMIFS(Calculations!$I356:$QJ356, Calculations!$I$8:$QJ$8, AH$3, Calculations!$I$10:$QJ$10, AH$4) -> -80412.20419 | AI13: =SUMIFS(Calculations!$I356:$QJ356, Calculations!$I$8:$QJ$8, AI$3, Calculations!$I$10:$QJ$10, AI$4) -> -82876.19132 | AJ13: =SUMIFS(Calculations!$I356:$QJ356, Calculations!$I$8:$QJ$8, AJ$3, Calculations!$I$10:$QJ$10, AJ$4) -> -84447.30975 | AK13: =SUMIFS(Calculations!$I356:$QJ356, Calculations!$I$8:$QJ$8, AK$3, Calculations!$I$10:$QJ$10, AK$4) -> -80973.88083 | AL13: =SUMIFS(Calculations!$I356:$QJ356, Calculations!$I$8:$QJ$8, AL$3, Calculations!$I$10:$QJ$10, AL$4) -> -80821.87699 | AM13: =SUMIFS(Calculations!$I356:$QJ356, Calculations!$I$8:$QJ$8, AM$3, Calculations!$I$10:$QJ$10, AM$4) -> -83295.04912 | AN13: =SUMIFS(Calculations!$I356:$QJ356, Calculations!$I$8:$QJ$8, AN$3, Calculations!$I$10:$QJ$10, AN$4) -> -84833.6094 | AO13: =SUMIFS(Calculations!$I356:$QJ356, Calculations!$I$8:$QJ$8, AO$3, Calculations!$I$10:$QJ$10, AO$4) -> -81390.12219 | AP13: =SUMIFS(Calculations!$I356:$QJ356, Calculations!$I$8:$QJ$8, AP$3, Calculations!$I$10:$QJ$10, AP$4) -> -81242.91642 | AQ13: =SUMIFS(Calculations!$I356:$QJ356, Calculations!$I$8:$QJ$8, AQ$3, Calculations!$I$10:$QJ$10, AQ$4) -> -83725.50189 | AR13: =SUMIFS(Calculations!$I356:$QJ356, Calculations!$I$8:$QJ$8, AR$3, Calculations!$I$10:$QJ$10, AR$4) -> -85222.21567 | AS13: =SUMIFS(Calculations!$I356:$QJ356, Calculations!$I$8:$QJ$8, AS$3, Calculations!$I$10:$QJ$10, AS$4) -> -81811.6032 | AT13: =SUMIFS(Calculations!$I356:$QJ356, Calculations!$I$8:$QJ$8, AT$3, Calculations!$I$10:$QJ$10, AT$4) -> -81806.39733 | AU13: =SUMIFS(Calculations!$I356:$QJ356, Calculations!$I$8:$QJ$8, AU$3, Calculations!$I$10:$QJ$10, AU$4) -> -84167.82139 | AV13: =SUMIFS(Calculations!$I356:$QJ356, Calculations!$I$8:$QJ$8, AV$3, Calculations!$I$10:$QJ$10, AV$4) -> -85618.83721 | AW13: =SUMIFS(Calculations!$I356:$QJ356, Calculations!$I$8:$QJ$8, AW$3, Calculations!$I$10:$QJ$10, AW$4) -> -82242.17498 | AX13: =SUMIFS(Calculations!$I356:$QJ356, Calculations!$I$8:$QJ$8, AX$3, Calculations!$I$10:$QJ$10, AX$4) -> -82120.18531 | AY13: =SUMIFS(Calculations!$I356:$QJ356, Calculations!$I$8:$QJ$8, AY$3, Calculations!$I$10:$QJ$10, AY$4) -> -84622.28624 | AZ13: =SUMIFS(Calculations!$I356:$QJ356, Calculations!$I$8:$QJ$8, AZ$3, Calculations!$I$10:$QJ$10, AZ$4) -> -86027.98821 | BA13: =SUMIFS(Calculations!$I356:$QJ356, Calculations!$I$8:$QJ$8, BA$3, Calculations!$I$10:$QJ$10, BA$4) -> -82684.93827 | BB13: =SUMIFS(Calculations!$I356:$QJ356, Calculations!$I$8:$QJ$8, BB$3, Calculations!$I$10:$QJ$10, BB$4) -> -82576.97723 | BC13: =SUMIFS(Calculations!$I356:$QJ356, Calculations!$I$8:$QJ$8, BC$3, Calculations!$I$10:$QJ$10, BC$4) -> -85087.92726 | BD13: =SUMIFS(Calculations!$I356:$QJ356, Calculations!$I$8:$QJ$8, BD$3, Calculations!$I$10:$QJ$10, BD$4) -> -86449.95588 | BE13: =SUMIFS(Calculations!$I356:$QJ356, Calculations!$I$8:$QJ$8, BE$3, Calculations!$I$10:$QJ$10, BE$4) -> -83140.18364 | BF13: =SUMIFS(Calculations!$I356:$QJ356, Calculations!$I$8:$QJ$8, BF$3, Calculations!$I$10:$QJ$10, BF$4) -> -83046.26101 | BG13: =SUMIFS(Calculations!$I356:$QJ356, Calculations!$I$8:$QJ$8, BG$3, Calculations!$I$10:$QJ$10, BG$4) -> -85555.50473 | BH13: =SUMIFS(Calculations!$I356:$QJ356, Calculations!$I$8:$QJ$8, BH$3, Calculations!$I$10:$QJ$10, BH$4) -> -86885.03488 | BI13: =SUMIFS(Calculations!$I356:$QJ356, Calculations!$I$8:$QJ$8, BI$3, Calculations!$I$10:$QJ$10, BI$4) -> -83608.20908 | BJ13: =SUMIFS(Calculations!$I356:$QJ356, Calculations!$I$8:$QJ$8, BJ$3, Calculations!$I$10:$QJ$10, BJ$4) -> -83659.03864 | BK13: =SUMIFS(Calculations!$I356:$QJ356, Calculations!$I$8:$QJ$8, BK$3, Calculations!$I$10:$QJ$10, BK$4) -> -86036.10737 | BL13: =SUMIFS(Calculations!$I356:$QJ356, Calculations!$I$8:$QJ$8, BL$3, Calculations!$I$10:$QJ$10, BL$4) -> -87333.52748 | BM13: =SUMIFS(Calculations!$I356:$QJ356, Calculations!$I$8:$QJ$8, BM$3, Calculations!$I$10:$QJ$10, BM$4) -> -84089.32017 | BN13: =SUMIFS(Calculations!$I356:$QJ356, Calculations!$I$8:$QJ$8, BN$3, Calculations!$I$10:$QJ$10, BN$4) -> -84023.50931 | BO13: =SUMIFS(Calculations!$I356:$QJ356, Calculations!$I$8:$QJ$8, BO$3, Calculations!$I$10:$QJ$10, BO$4) -> -86519.8359 | BP13: =SUMIFS(Calculations!$I356:$QJ356, Calculations!$I$8:$QJ$8, BP$3, Calculations!$I$10:$QJ$10, BP$4) -> -87795.74377 | BQ13: =SUMIFS(Calculations!$I356:$QJ356, Calculations!$I$8:$QJ$8, BQ$3, Calculations!$I$10:$QJ$10, BQ$4) -> -84583.83026 | BR13: =SUMIFS(Calculations!$I356:$QJ356, Calculations!$I$8:$QJ$8, BR$3, Calculations!$I$10:$QJ$10, BR$4) -> -84532.09556 | BS13: =SUMIFS(Calculations!$I356:$QJ356, Calculations!$I$8:$QJ$8, BS$3, Calculations!$I$10:$QJ$10, BS$4) -> -87011.79396 | BT13: =SUMIFS(Calculations!$I356:$QJ356, Calculations!$I$8:$QJ$8, BT$3, Calculations!$I$10:$QJ$10, BT$4) -> -88272.00186 | BU13: =SUMIFS(Calculations!$I356:$QJ356, Calculations!$I$8:$QJ$8, BU$3, Calculations!$I$10:$QJ$10, BU$4) -> -85092.06067 | BV13: =SUMIFS(Calculations!$I356:$QJ356, Calculations!$I$8:$QJ$8, BV$3, Calculations!$I$10:$QJ$10, BV$4) -> -85054.41751 | BW13: =SUMIFS(Calculations!$I356:$QJ356, Calculations!$I$8:$QJ$8, BW$3, Calculations!$I$10:$QJ$10, BW$4) -> -87501.82526 | BX13: =SUMIFS(Calculations!$I356:$QJ356, Calculations!$I$8:$QJ$8, BX$3, Calculations!$I$10:$QJ$10, BX$4) -> -88762.62803 | BY13: =SUMIFS(Calculations!$I356:$QJ356, Calculations!$I$8:$QJ$8, BY$3, Calculations!$I$10:$QJ$10, BY$4) -> -85614.34091 | BZ13: =SUMIFS(Calculations!$I356:$QJ356, Calculations!$I$8:$QJ$8, BZ$3, Calculations!$I$10:$QJ$10, BZ$4) -> -85721.4112 | CA13: =SUMIFS(Calculations!$I356:$QJ356, Calculations!$I$8:$QJ$8, CA$3, Calculations!$I$10:$QJ$10, CA$4) -> -88006.15856 | CB13: =SUMIFS(Calculations!$I356:$QJ356, Calculations!$I$8:$QJ$8, CB$3, Calculations!$I$10:$QJ$10, CB$4) -> -89267.95698 | CC13: =SUMIFS(Calculations!$I356:$QJ356, Calculations!$I$8:$QJ$8, CC$3, Calculations!$I$10:$QJ$10, CC$4) -> -86151.00884 | CD13: =SUMIFS(Calculations!$I356:$QJ356, Calculations!$I$8:$QJ$8, CD$3, Calculations!$I$10:$QJ$10, CD$4) -> -86141.6005 | CE13: =SUMIFS(Calculations!$I356:$QJ356, Calculations!$I$8:$QJ$8, CE$3, Calculations!$I$10:$QJ$10, CE$4) -> -88525.12995 | CF13: =SUMIFS(Calculations!$I356:$QJ356, Calculations!$I$8:$QJ$8, CF$3, Calculations!$I$10:$QJ$10, CF$4) -> -89788.33202 | CG13: =SUMIFS(Calculations!$I356:$QJ356, Calculations!$I$8:$QJ$8, CG$3, Calculations!$I$10:$QJ$10, CG$4) -> -86702.41089 | CH13: =SUMIFS(Calculations!$I356:$QJ356, Calculations!$I$8:$QJ$8, CH$3, Calculations!$I$10:$QJ$10, CH$4) -> -86707.14866 | CI13: =SUMIFS(Calculations!$I356:$QJ356, Calculations!$I$8:$QJ$8, CI$3, Calculations!$I$10:$QJ$10, CI$4) -> -89059.08408 | CJ13: =SUMIFS(Calculations!$I356:$QJ356, Calculations!$I$8:$QJ$8, CJ$3, Calculations!$I$10:$QJ$10, CJ$4) -> -90324.10528 | CK13: =SUMIFS(Calculations!$I356:$QJ356, Calculations!$I$8:$QJ$8, CK$3, Calculations!$I$10:$QJ$10, CK$4) -> -87268.90232 | CL13: =SUMIFS(Calculations!$I356:$QJ356, Calculations!$I$8:$QJ$8, CL$3, Calculations!$I$10:$QJ$10, CL$4) -> -87287.80719 | CM13: =SUMIFS(Calculations!$I356:$QJ356, Calculations!$I$8:$QJ$8, CM$3, Calculations!$I$10:$QJ$10, CM$4) -> -89608.37445 | CN13: =SUMIFS(Calculations!$I356:$QJ356, Calculations!$I$8:$QJ$8, CN$3, Calculations!$I$10:$QJ$10, CN$4) -> -90875.63795 | CO13: =SUMIFS(Calculations!$I356:$QJ356, Calculations!$I$8:$QJ$8, CO$3, Calculations!$I$10:$QJ$10, CO$4) -> -87850.84738 | CP13: =SUMIFS(Calculations!$I356:$QJ356, Calculations!$I$8:$QJ$8, CP$3, Calculations!$I$10:$QJ$10, CP$4) -> -88008.91383 | CQ13: =SUMIFS(Calculations!$I356:$QJ356, Calculations!$I$8:$QJ$8, CQ$3, Calculations!$I$10:$QJ$10, CQ$4) -> -90173.36358 | CR13: =SUMIFS(Calculations!$I356:$QJ356, Calculations!$I$8:$QJ$8, CR$3, Calculations!$I$10:$QJ$10, CR$4) -> -91443.30046 | CS13: =SUMIFS(Calculations!$I356:$QJ356, Calculations!$I$8:$QJ$8, CS$3, Calculations!$I$10:$QJ$10, CS$4) -> -88448.61954 | CT13: =SUMIFS(Calculations!$I356:$QJ356, Calculations!$I$8:$QJ$8, CT$3, Calculations!$I$10:$QJ$10, CT$4) -> -88482.06431 | CU13: =SUMIFS(Calculations!$I356:$QJ356, Calculations!$I$8:$QJ$8, CU$3, Calculations!$I$10:$QJ$10, CU$4) -> -90754.42327 | CV13: =SUMIFS(Calculations!$I356:$QJ356, Calculations!$I$8:$QJ$8, CV$3, Calculations!$I$10:$QJ$10, CV$4) -> -92027.47275 | CW13: =SUMIFS(Calculations!$I356:$QJ356, Calculations!$I$8:$QJ$8, CW$3, Calculations!$I$10:$QJ$10, CW$4) -> -89062.60177 | CX13: =SUMIFS(Calculations!$I356:$QJ356, Calculations!$I$8:$QJ$8, CX$3, Calculations!$I$10:$QJ$10, CX$4) -> -89101.96207 | CY13: =SUMIFS(Calculations!$I356:$QJ356, Calculations!$I$8:$QJ$8, CY$3, Calculations!$I$10:$QJ$10, CY$4) -> -91351.93477 | CZ13: =SUMIFS(Calculations!$I356:$QJ356, Calculations!$I$8:$QJ$8, CZ$3, Calculations!$I$10:$QJ$10, CZ$4) -> -92628.54449 | DA13: =SUMIFS(Calculations!$I356:$QJ356, Calculations!$I$8:$QJ$8, DA$3, Calculations!$I$10:$QJ$10, DA$4) -> -89693.18671 | DB13: =SUMIFS(Calculations!$I356:$QJ356, Calculations!$I$8:$QJ$8, DB$3, Calculations!$I$10:$QJ$10, DB$4) -> -89738.48886 | DC13: =SUMIFS(Calculations!$I356:$QJ356, Calculations!$I$8:$QJ$8, DC$3, Calculations!$I$10:$QJ$10, DC$4) -> -91966.28909 | DD13: =SUMIFS(Calculations!$I356:$QJ356, Calculations!$I$8:$QJ$8, DD$3, Calculations!$I$10:$QJ$10, DD$4) -> -93246.91533 | DE13: =SUMIFS(Calculations!$I356:$QJ356, Calculations!$I$8:$QJ$8, DE$3, Calculations!$I$10:$QJ$10, DE$4) -> -90340.77695 | DF13: =SUMIFS(Calculations!$I356:$QJ356, Calculations!$I$8:$QJ$8, DF$3, Calculations!$I$10:$QJ$10, DF$4) -> -90522.46939 | DG13: =SUMIFS(Calculations!$I356:$QJ356, Calculations!$I$8:$QJ$8, DG$3, Calculations!$I$10:$QJ$10, DG$4) -> -92597.88721 | DH13: =SUMIFS(Calculations!$I356:$QJ356, Calculations!$I$8:$QJ$8, DH$3, Calculations!$I$10:$QJ$10, DH$4) -> -93882.9951 | DI13: =SUMIFS(Calculations!$I356:$QJ356, Calculations!$I$8:$QJ$8, DI$3, Calculations!$I$10:$QJ$10, DI$4) -> -91005.78529 | DJ13: =SUMIFS(Calculations!$I356:$QJ356, Calculations!$I$8:$QJ$8, DJ$3, Calculations!$I$10:$QJ$10, DJ$4) -> -91063.05245 | DK13: =SUMIFS(Calculations!$I356:$QJ356, Calculations!$I$8:$QJ$8, DK$3, Calculations!$I$10:$QJ$10, DK$4) -> -610478.3365
C14: =Calculations!C357 -> EBITDA | G14: 16743214.78 | H14: =SUM(H12:H13) -> 0 | I14: 0 | J14: 0 | K14: 0 | L14: 0 | M14: 0 | N14: 0 | O14: 0 | P14: 298428.5951 | Q14: 116365.143 | R14: 134333.6722 | S14: 247349.2256 | T14: 297556.2309 | U14: 124625.4306 | V14: 130519.1941 | W14: 243470.4253 | X14: 295120.4066 | Y14: 122866.2905 | Z14: 128674.1905 | AA14: 242042.1807 | AB14: 292712.2126 | AC14: 121117.6677 | AD14: 126379.1053 | AE14: 240260.9825 | AF14: 289956.1947 | AG14: 119004.1744 | AH14: 124641.747 | AI14: 238876.4762 | AJ14: 287473.4355 | AK14: 117275.4185 | AL14: 122828.5103 | AM14: 237513.3046 | AN14: =SUM(AN12:AN13) -> 283967.7346 | AO14: 115236.8614 | AP14: 121025.0584 | AQ14: 236171.1068 | AR14: 280014.1983 | AS14: 112894.1874 | AT14: 119139.7399 | AU14: 234849.5185 | AV14: 275878.5295 | AW14: 110422.0803 | AX14: 117445.8664 | AY14: 233548.172 | AZ14: 271767.5508 | BA14: 107958.1037 | BB14: 115669.2925 | BC14: 232205.2043 | BD14: 267680.6046 | BE14: 105501.7648 | BF14: 113900.8359 | BG14: 230353.1384 | BH14: 263617.0293 | BI14: 103052.5653 | BJ14: 112043.8538 | BK14: 228520.2212 | BL14: 259576.1594 | BM14: 100610.0013 | BN14: 110386.5493 | BO14: 226205.912 | BP14: 255557.3255 | BQ14: 98173.56326 | BR14: 108639.843 | BS14: 223644.4246 | BT14: =SUM(BT12:BT13) -> 251559.8534 | BU14: 95742.73536 | BV14: 106899.5005 | BW14: 220321.8398 | BX14: 247583.0644 | BY14: 93316.99575 | BZ14: 105064.0801 | CA14: 217016.7006 | CB14: 243626.275 | CC14: 90895.81604 | CD14: 103436.0878 | CE14: 213728.3905 | CF14: 239688.7963 | CG14: 88478.66118 | CH14: 101712.0918 | CI14: 210456.2873 | CJ14: 235769.9342 | CK14: 86064.9892 | CL14: 99992.60753 | CM14: 207199.7634 | CN14: 231868.989 | CO14: 83654.25097 | CP14: 97900.14711 | CQ14: 203958.185 | CR14: 227985.2549 | CS14: 81245.88998 | CT14: 95885.96363 | CU14: 200730.9123 | CV14: 224118.0203 | CW14: 78839.34206 | CX14: 93769.27693 | CY14: 197517.2991 | CZ14: =SUM(CZ12:CZ13) -> 220266.5667 | DA14: 76434.03515 | DB14: 91655.12072 | DC14: 194316.6921 | DD14: 216430.1693 | DE14: 74029.38904 | DF14: 89432.95827 | DG14: 191128.4315 | DH14: 212608.0962 | DI14: 71624.81509 | DJ14: 87432.18629 | DK14: -333218.8972
C16: =Calculations!C359 -> less: Depreciation and Amortization | E16: =Calculations!E359 -> EUR | G16: =SUM(H16:FC16) -> -7711481.978 | H16: =SUMIFS(Calculations!$I359:$QJ359, Calculations!$I$8:$QJ$8, H$3, Calculations!$I$10:$QJ$10, H$4) -> 0 | I16: =SUMIFS(Calculations!$I359:$QJ359, Calculations!$I$8:$QJ$8, I$3, Calculations!$I$10:$QJ$10, I$4) -> 0 | J16: =SUMIFS(Calculations!$I359:$QJ359, Calculations!$I$8:$QJ$8, J$3, Calculations!$I$10:$QJ$10, J$4) -> 0 | K16: =SUMIFS(Calculations!$I359:$QJ359, Calculations!$I$8:$QJ$8, K$3, Calculations!$I$10:$QJ$10, K$4) -> 0 | L16: =SUMIFS(Calculations!$I359:$QJ359, Calculations!$I$8:$QJ$8, L$3, Calculations!$I$10:$QJ$10, L$4) -> 0 | M16: =SUMIFS(Calculations!$I359:$QJ359, Calculations!$I$8:$QJ$8, M$3, Calculations!$I$10:$QJ$10, M$4) -> 0 | N16: =SUMIFS(Calculations!$I359:$QJ359, Calculations!$I$8:$QJ$8, N$3, Calculations!$I$10:$QJ$10, N$4) -> 0 | O16: =SUMIFS(Calculations!$I359:$QJ359, Calculations!$I$8:$QJ$8, O$3, Calculations!$I$10:$QJ$10, O$4) -> 0 | P16: =SUMIFS(Calculations!$I359:$QJ359, Calculations!$I$8:$QJ$8, P$3, Calculations!$I$10:$QJ$10, P$4) -> -149743.9882 | Q16: =SUMIFS(Calculations!$I359:$QJ359, Calculations!$I$8:$QJ$8, Q$3, Calculations!$I$10:$QJ$10, Q$4) -> -149743.9882 | R16: =SUMIFS(Calculations!$I359:$QJ359, Calculations!$I$8:$QJ$8, R$3, Calculations!$I$10:$QJ$10, R$4) -> -149743.9882 | S16: =SUMIFS(Calculations!$I359:$QJ359, Calculations!$I$8:$QJ$8, S$3, Calculations!$I$10:$QJ$10, S$4) -> -149743.9882 | T16: =SUMIFS(Calculations!$I359:$QJ359, Calculations!$I$8:$QJ$8, T$3, Calculations!$I$10:$QJ$10, T$4) -> -149743.9882 | U16: =SUMIFS(Calculations!$I359:$QJ359, Calculations!$I$8:$QJ$8, U$3, Calculations!$I$10:$QJ$10, U$4) -> -149743.9882 | V16: =SUMIFS(Calculations!$I359:$QJ359, Calculations!$I$8:$QJ$8, V$3, Calculations!$I$10:$QJ$10, V$4) -> -149743.9882 | W16: =SUMIFS(Calculations!$I359:$QJ359, Calculations!$I$8:$QJ$8, W$3, Calculations!$I$10:$QJ$10, W$4) -> -149743.9882 | X16: =SUMIFS(Calculations!$I359:$QJ359, Calculations!$I$8:$QJ$8, X$3, Calculations!$I$10:$QJ$10, X$4) -> -149743.9882 | Y16: =SUMIFS(Calculations!$I359:$QJ359, Calculations!$I$8:$QJ$8, Y$3, Calculations!$I$10:$QJ$10, Y$4) -> -149743.9882 | Z16: =SUMIFS(Calculations!$I359:$QJ359, Calculations!$I$8:$QJ$8, Z$3, Calculations!$I$10:$QJ$10, Z$4) -> -149743.9882 | AA16: =SUMIFS(Calculations!$I359:$QJ359, Calculations!$I$8:$QJ$8, AA$3, Calculations!$I$10:$QJ$10, AA$4) -> -149743.9882 | AB16: =SUMIFS(Calculations!$I359:$QJ359, Calculations!$I$8:$QJ$8, AB$3, Calculations!$I$10:$QJ$10, AB$4) -> -149743.9882 | AC16: =SUMIFS(Calculations!$I359:$QJ359, Calculations!$I$8:$QJ$8, AC$3, Calculations!$I$10:$QJ$10, AC$4) -> -149743.9882 | AD16: =SUMIFS(Calculations!$I359:$QJ359, Calculations!$I$8:$QJ$8, AD$3, Calculations!$I$10:$QJ$10, AD$4) -> -149743.9882 | AE16: =SUMIFS(Calculations!$I359:$QJ359, Calculations!$I$8:$QJ$8, AE$3, Calculations!$I$10:$QJ$10, AE$4) -> -149743.9882 | AF16: =SUMIFS(Calculations!$I359:$QJ359, Calculations!$I$8:$QJ$8, AF$3, Calculations!$I$10:$QJ$10, AF$4) -> -149743.9882 | AG16: =SUMIFS(Calculations!$I359:$QJ359, Calculations!$I$8:$QJ$8, AG$3, Calculations!$I$10:$QJ$10, AG$4) -> -149743.9882 | AH16: =SUMIFS(Calculations!$I359:$QJ359, Calculations!$I$8:$QJ$8, AH$3, Calculations!$I$10:$QJ$10, AH$4) -> -149743.9882 | AI16: =SUMIFS(Calculations!$I359:$QJ359, Calculations!$I$8:$QJ$8, AI$3, Calculations!$I$10:$QJ$10, AI$4) -> -149743.9882 | AJ16: =SUMIFS(Calculations!$I359:$QJ359, Calculations!$I$8:$QJ$8, AJ$3, Calculations!$I$10:$QJ$10, AJ$4) -> -144218.9882 | AK16: =SUMIFS(Calculations!$I359:$QJ359, Calculations!$I$8:$QJ$8, AK$3, Calculations!$I$10:$QJ$10, AK$4) -> -144218.9882 | AL16: =SUMIFS(Calculations!$I359:$QJ359, Calculations!$I$8:$QJ$8, AL$3, Calculations!$I$10:$QJ$10, AL$4) -> -144218.9882 | AM16: =SUMIFS(Calculations!$I359:$QJ359, Calculations!$I$8:$QJ$8, AM$3, Calculations!$I$10:$QJ$10, AM$4) -> -144218.9882 | AN16: =SUMIFS(Calculations!$I359:$QJ359, Calculations!$I$8:$QJ$8, AN$3, Calculations!$I$10:$QJ$10, AN$4) -> -144218.9882 | AO16: =SUMIFS(Calculations!$I359:$QJ359, Calculations!$I$8:$QJ$8, AO$3, Calculations!$I$10:$QJ$10, AO$4) -> -144218.9882 | AP16: =SUMIFS(Calculations!$I359:$QJ359, Calculations!$I$8:$QJ$8, AP$3, Calculations!$I$10:$QJ$10, AP$4) -> -144218.9882 | AQ16: =SUMIFS(Calculations!$I359:$QJ359, Calculations!$I$8:$QJ$8, AQ$3, Calculations!$I$10:$QJ$10, AQ$4) -> -144218.9882 | AR16: =SUMIFS(Calculations!$I359:$QJ359, Calculations!$I$8:$QJ$8, AR$3, Calculations!$I$10:$QJ$10, AR$4) -> -91459.88896 | AS16: =SUMIFS(Calculations!$I359:$QJ359, Calculations!$I$8:$QJ$8, AS$3, Calculations!$I$10:$QJ$10, AS$4) -> -91459.88896 | AT16: =SUMIFS(Calculations!$I359:$QJ359, Calculations!$I$8:$QJ$8, AT$3, Calculations!$I$10:$QJ$10, AT$4) -> -91459.88896 | AU16: =SUMIFS(Calculations!$I359:$QJ359, Calculations!$I$8:$QJ$8, AU$3, Calculations!$I$10:$QJ$10, AU$4) -> -91459.88896 | AV16: =SUMIFS(Calculations!$I359:$QJ359, Calculations!$I$8:$QJ$8, AV$3, Calculations!$I$10:$QJ$10, AV$4) -> -91459.88896 | AW16: =SUMIFS(Calculations!$I359:$QJ359, Calculations!$I$8:$QJ$8, AW$3, Calculations!$I$10:$QJ$10, AW$4) -> -91459.88896 | AX16: =SUMIFS(Calculations!$I359:$QJ359, Calculations!$I$8:$QJ$8, AX$3, Calculations!$I$10:$QJ$10, AX$4) -> -91459.88896 | AY16: =SUMIFS(Calculations!$I359:$QJ359, Calculations!$I$8:$QJ$8, AY$3, Calculations!$I$10:$QJ$10, AY$4) -> -91459.88896 | AZ16: =SUMIFS(Calculations!$I359:$QJ359, Calculations!$I$8:$QJ$8, AZ$3, Calculations!$I$10:$QJ$10, AZ$4) -> -91459.88896 | BA16: =SUMIFS(Calculations!$I359:$QJ359, Calculations!$I$8:$QJ$8, BA$3, Calculations!$I$10:$QJ$10, BA$4) -> -91459.88896 | BB16: =SUMIFS(Calculations!$I359:$QJ359, Calculations!$I$8:$QJ$8, BB$3, Calculations!$I$10:$QJ$10, BB$4) -> -91349.88896 | BC16: =SUMIFS(Calculations!$I359:$QJ359, Calculations!$I$8:$QJ$8, BC$3, Calculations!$I$10:$QJ$10, BC$4) -> -91349.88896 | BD16: =SUMIFS(Calculations!$I359:$QJ359, Calculations!$I$8:$QJ$8, BD$3, Calculations!$I$10:$QJ$10, BD$4) -> -54013.86681 | BE16: =SUMIFS(Calculations!$I359:$QJ359, Calculations!$I$8:$QJ$8, BE$3, Calculations!$I$10:$QJ$10, BE$4) -> -54013.86681 | BF16: =SUMIFS(Calculations!$I359:$QJ359, Calculations!$I$8:$QJ$8, BF$3, Calculations!$I$10:$QJ$10, BF$4) -> -54013.86681 | BG16: =SUMIFS(Calculations!$I359:$QJ359, Calculations!$I$8:$QJ$8, BG$3, Calculations!$I$10:$QJ$10, BG$4) -> -54013.86681 | BH16: =SUMIFS(Calculations!$I359:$QJ359, Calculations!$I$8:$QJ$8, BH$3, Calculations!$I$10:$QJ$10, BH$4) -> -54013.86681 | BI16: =SUMIFS(Calculations!$I359:$QJ359, Calculations!$I$8:$QJ$8, BI$3, Calculations!$I$10:$QJ$10, BI$4) -> -54013.86681 | BJ16: =SUMIFS(Calculations!$I359:$QJ359, Calculations!$I$8:$QJ$8, BJ$3, Calculations!$I$10:$QJ$10, BJ$4) -> -54013.86681 | BK16: =SUMIFS(Calculations!$I359:$QJ359, Calculations!$I$8:$QJ$8, BK$3, Calculations!$I$10:$QJ$10, BK$4) -> -54013.86681 | BL16: =SUMIFS(Calculations!$I359:$QJ359, Calculations!$I$8:$QJ$8, BL$3, Calculations!$I$10:$QJ$10, BL$4) -> -54013.86681 | BM16: =SUMIFS(Calculations!$I359:$QJ359, Calculations!$I$8:$QJ$8, BM$3, Calculations!$I$10:$QJ$10, BM$4) -> -54013.86681 | BN16: =SUMIFS(Calculations!$I359:$QJ359, Calculations!$I$8:$QJ$8, BN$3, Calculations!$I$10:$QJ$10, BN$4) -> -38480.92396 | BO16: =SUMIFS(Calculations!$I359:$QJ359, Calculations!$I$8:$QJ$8, BO$3, Calculations!$I$10:$QJ$10, BO$4) -> -38480.92396 | BP16: =SUMIFS(Calculations!$I359:$QJ359, Calculations!$I$8:$QJ$8, BP$3, Calculations!$I$10:$QJ$10, BP$4) -> -38480.92396 | BQ16: =SUMIFS(Calculations!$I359:$QJ359, Calculations!$I$8:$QJ$8, BQ$3, Calculations!$I$10:$QJ$10, BQ$4) -> -38480.92396 | BR16: =SUMIFS(Calculations!$I359:$QJ359, Calculations!$I$8:$QJ$8, BR$3, Calculations!$I$10:$QJ$10, BR$4) -> -38480.92396 | BS16: =SUMIFS(Calculations!$I359:$QJ359, Calculations!$I$8:$QJ$8, BS$3, Calculations!$I$10:$QJ$10, BS$4) -> -38480.92396 | BT16: =SUMIFS(Calculations!$I359:$QJ359, Calculations!$I$8:$QJ$8, BT$3, Calculations!$I$10:$QJ$10, BT$4) -> -38480.92396 | BU16: =SUMIFS(Calculations!$I359:$QJ359, Calculations!$I$8:$QJ$8, BU$3, Calculations!$I$10:$QJ$10, BU$4) -> -38480.92396 | BV16: =SUMIFS(Calculations!$I359:$QJ359, Calculations!$I$8:$QJ$8, BV$3, Calculations!$I$10:$QJ$10, BV$4) -> -38480.92396 | BW16: =SUMIFS(Calculations!$I359:$QJ359, Calculations!$I$8:$QJ$8, BW$3, Calculations!$I$10:$QJ$10, BW$4) -> -38480.92396 | BX16: =SUMIFS(Calculations!$I359:$QJ359, Calculations!$I$8:$QJ$8, BX$3, Calculations!$I$10:$QJ$10, BX$4) -> -38480.92396 | BY16: =SUMIFS(Calculations!$I359:$QJ359, Calculations!$I$8:$QJ$8, BY$3, Calculations!$I$10:$QJ$10, BY$4) -> -38480.92396 | BZ16: =SUMIFS(Calculations!$I359:$QJ359, Calculations!$I$8:$QJ$8, BZ$3, Calculations!$I$10:$QJ$10, BZ$4) -> -38480.92396 | CA16: =SUMIFS(Calculations!$I359:$QJ359, Calculations!$I$8:$QJ$8, CA$3, Calculations!$I$10:$QJ$10, CA$4) -> -38480.92396 | CB16: =SUMIFS(Calculations!$I359:$QJ359, Calculations!$I$8:$QJ$8, CB$3, Calculations!$I$10:$QJ$10, CB$4) -> -38480.92396 | CC16: =SUMIFS(Calculations!$I359:$QJ359, Calculations!$I$8:$QJ$8, CC$3, Calculations!$I$10:$QJ$10, CC$4) -> -38480.92396 | CD16: =SUMIFS(Calculations!$I359:$QJ359, Calculations!$I$8:$QJ$8, CD$3, Calculations!$I$10:$QJ$10, CD$4) -> -38480.92396 | CE16: =SUMIFS(Calculations!$I359:$QJ359, Calculations!$I$8:$QJ$8, CE$3, Calculations!$I$10:$QJ$10, CE$4) -> -38480.92396 | CF16: =SUMIFS(Calculations!$I359:$QJ359, Calculations!$I$8:$QJ$8, CF$3, Calculations!$I$10:$QJ$10, CF$4) -> -38480.92396 | CG16: =SUMIFS(Calculations!$I359:$QJ359, Calculations!$I$8:$QJ$8, CG$3, Calculations!$I$10:$QJ$10, CG$4) -> -38480.92396 | CH16: =SUMIFS(Calculations!$I359:$QJ359, Calculations!$I$8:$QJ$8, CH$3, Calculations!$I$10:$QJ$10, CH$4) -> -38526.48315 | CI16: =SUMIFS(Calculations!$I359:$QJ359, Calculations!$I$8:$QJ$8, CI$3, Calculations!$I$10:$QJ$10, CI$4) -> -38526.48315 | CJ16: =SUMIFS(Calculations!$I359:$QJ359, Calculations!$I$8:$QJ$8, CJ$3, Calculations!$I$10:$QJ$10, CJ$4) -> -38526.48315 | CK16: =SUMIFS(Calculations!$I359:$QJ359, Calculations!$I$8:$QJ$8, CK$3, Calculations!$I$10:$QJ$10, CK$4) -> -38526.48315 | CL16: =SUMIFS(Calculations!$I359:$QJ359, Calculations!$I$8:$QJ$8, CL$3, Calculations!$I$10:$QJ$10, CL$4) -> -38526.48315 | CM16: =SUMIFS(Calculations!$I359:$QJ359, Calculations!$I$8:$QJ$8, CM$3, Calculations!$I$10:$QJ$10, CM$4) -> -38526.48315 | CN16: =SUMIFS(Calculations!$I359:$QJ359, Calculations!$I$8:$QJ$8, CN$3, Calculations!$I$10:$QJ$10, CN$4) -> -38526.48315 | CO16: =SUMIFS(Calculations!$I359:$QJ359, Calculations!$I$8:$QJ$8, CO$3, Calculations!$I$10:$QJ$10, CO$4) -> -38526.48315 | CP16: =SUMIFS(Calculations!$I359:$QJ359, Calculations!$I$8:$QJ$8, CP$3, Calculations!$I$10:$QJ$10, CP$4) -> -38526.48315 | CQ16: =SUMIFS(Calculations!$I359:$QJ359, Calculations!$I$8:$QJ$8, CQ$3, Calculations!$I$10:$QJ$10, CQ$4) -> -38526.48315 | CR16: =SUMIFS(Calculations!$I359:$QJ359, Calculations!$I$8:$QJ$8, CR$3, Calculations!$I$10:$QJ$10, CR$4) -> -38526.48315 | CS16: =SUMIFS(Calculations!$I359:$QJ359, Calculations!$I$8:$QJ$8, CS$3, Calculations!$I$10:$QJ$10, CS$4) -> -38526.48315 | CT16: =SUMIFS(Calculations!$I359:$QJ359, Calculations!$I$8:$QJ$8, CT$3, Calculations!$I$10:$QJ$10, CT$4) -> -38526.48315 | CU16: =SUMIFS(Calculations!$I359:$QJ359, Calculations!$I$8:$QJ$8, CU$3, Calculations!$I$10:$QJ$10, CU$4) -> -38526.48315 | CV16: =SUMIFS(Calculations!$I359:$QJ359, Calculations!$I$8:$QJ$8, CV$3, Calculations!$I$10:$QJ$10, CV$4) -> -38526.48315 | CW16: =SUMIFS(Calculations!$I359:$QJ359, Calculations!$I$8:$QJ$8, CW$3, Calculations!$I$10:$QJ$10, CW$4) -> -38526.48315 | CX16: =SUMIFS(Calculations!$I359:$QJ359, Calculations!$I$8:$QJ$8, CX$3, Calculations!$I$10:$QJ$10, CX$4) -> -38526.48315 | CY16: =SUMIFS(Calculations!$I359:$QJ359, Calculations!$I$8:$QJ$8, CY$3, Calculations!$I$10:$QJ$10, CY$4) -> -38526.48315 | CZ16: =SUMIFS(Calculations!$I359:$QJ359, Calculations!$I$8:$QJ$8, CZ$3, Calculations!$I$10:$QJ$10, CZ$4) -> -38526.48315 | DA16: =SUMIFS(Calculations!$I359:$QJ359, Calculations!$I$8:$QJ$8, DA$3, Calculations!$I$10:$QJ$10, DA$4) -> -38526.48315 | DB16: =SUMIFS(Calculations!$I359:$QJ359, Calculations!$I$8:$QJ$8, DB$3, Calculations!$I$10:$QJ$10, DB$4) -> -38526.48315 | DC16: =SUMIFS(Calculations!$I359:$QJ359, Calculations!$I$8:$QJ$8, DC$3, Calculations!$I$10:$QJ$10, DC$4) -> -38526.48315 | DD16: =SUMIFS(Calculations!$I359:$QJ359, Calculations!$I$8:$QJ$8, DD$3, Calculations!$I$10:$QJ$10, DD$4) -> -38526.48315 | DE16: =SUMIFS(Calculations!$I359:$QJ359, Calculations!$I$8:$QJ$8, DE$3, Calculations!$I$10:$QJ$10, DE$4) -> -38526.48315 | DF16: =SUMIFS(Calculations!$I359:$QJ359, Calculations!$I$8:$QJ$8, DF$3, Calculations!$I$10:$QJ$10, DF$4) -> -38526.48315 | DG16: =SUMIFS(Calculations!$I359:$QJ359, Calculations!$I$8:$QJ$8, DG$3, Calculations!$I$10:$QJ$10, DG$4) -> -38526.48315 | DH16: =SUMIFS(Calculations!$I359:$QJ359, Calculations!$I$8:$QJ$8, DH$3, Calculations!$I$10:$QJ$10, DH$4) -> -38526.48315 | DI16: =SUMIFS(Calculations!$I359:$QJ359, Calculations!$I$8:$QJ$8, DI$3, Calculations!$I$10:$QJ$10, DI$4) -> -38526.48315 | DJ16: =SUMIFS(Calculations!$I359:$QJ359, Calculations!$I$8:$QJ$8, DJ$3, Calculations!$I$10:$QJ$10, DJ$4) -> -38526.48315 | DK16: =SUMIFS(Calculations!$I359:$QJ359, Calculations!$I$8:$QJ$8, DK$3, Calculations!$I$10:$QJ$10, DK$4) -> -38526.48315
C17: =Calculations!C360 -> EBIT | E17: =Calculations!E360 -> EUR | G17: =SUM(H17:FC17) -> 9031732.797 | H17: =H14+H16 -> 0 | I17: =I14+I16 -> 0 | J17: 0 | K17: 0 | L17: 0 | M17: 0 | N17: 0 | O17: 0 | P17: 148684.6069 | Q17: -33378.84519 | R17: -15410.31593 | S17: 97605.23744 | T17: 147812.2427 | U17: -25118.55755 | V17: -19224.79407 | W17: 93726.43717 | X17: 145376.4184 | Y17: -26877.69766 | Z17: -21069.79769 | AA17: 92298.19257 | AB17: 142968.2244 | AC17: -28626.32049 | AD17: -23364.88291 | AE17: 90516.99429 | AF17: 140212.2066 | AG17: -30739.81381 | AH17: -25102.2412 | AI17: 89132.48805 | AJ17: 143254.4473 | AK17: -26943.56966 | AL17: -21390.47792 | AM17: 93294.3164 | AN17: 139748.7464 | AO17: -28982.12677 | AP17: -23193.92974 | AQ17: 91952.11859 | AR17: 188554.3093 | AS17: 21434.29847 | AT17: 27679.85097 | AU17: 143389.6296 | AV17: 184418.6405 | AW17: 18962.19135 | AX17: 25985.97744 | AY17: 142088.283 | AZ17: 180307.6619 | BA17: 16498.21477 | BB17: 24319.40358 | BC17: 140855.3153 | BD17: 213666.7378 | BE17: 51487.89801 | BF17: 59886.96907 | BG17: 176339.2715 | BH17: 209603.1624 | BI17: 49038.6985 | BJ17: 58029.98703 | BK17: 174506.3544 | BL17: 205562.2926 | BM17: 46596.13454 | BN17: 71905.62539 | BO17: 187724.9881 | BP17: 217076.4016 | BQ17: 59692.6393 | BR17: 70158.91904 | BS17: 185163.5006 | BT17: 213078.9295 | BU17: =BU14+BU16 -> 57261.81141 | BV17: 68418.57654 | BW17: 181840.9159 | BX17: 209102.1405 | BY17: 54836.07179 | BZ17: 66583.15613 | CA17: 178535.7767 | CB17: 205145.351 | CC17: 52414.89208 | CD17: 64955.16382 | CE17: 175247.4665 | CF17: 201207.8723 | CG17: 49997.73722 | CH17: 63185.6086 | CI17: 171929.8041 | CJ17: 197243.451 | CK17: 47538.50604 | CL17: 61466.12438 | CM17: 168673.2802 | CN17: 193342.5058 | CO17: 45127.76782 | CP17: 59373.66396 | CQ17: 165431.7019 | CR17: 189458.7718 | CS17: 42719.40683 | CT17: 57359.48048 | CU17: 162204.4292 | CV17: 185591.5371 | CW17: 40312.8589 | CX17: 55242.79378 | CY17: 158990.8159 | CZ17: 181740.0836 | DA17: 37907.552 | DB17: 53128.63757 | DC17: 155790.209 | DD17: =DD14+DD16 -> 177903.6862 | DE17: 35502.90589 | DF17: 50906.47511 | DG17: 152601.9484 | DH17: 174081.613 | DI17: 33098.33194 | DJ17: 48905.70314 | DK17: -371745.3804
C19: =Calculations!C362 -> less: Senior Debt Interest Expense | E19: =Calculations!E362 -> EUR | G19: =SUM(H19:FC19) -> -2409029.98 | H19: =SUMIFS(Calculations!$I362:$QJ362, Calculations!$I$8:$QJ$8, H$3, Calculations!$I$10:$QJ$10, H$4) -> 0 | I19: =SUMIFS(Calculations!$I362:$QJ362, Calculations!$I$8:$QJ$8, I$3, Calculations!$I$10:$QJ$10, I$4) -> 0 | J19: =SUMIFS(Calculations!$I362:$QJ362, Calculations!$I$8:$QJ$8, J$3, Calculations!$I$10:$QJ$10, J$4) -> 0 | K19: =SUMIFS(Calculations!$I362:$QJ362, Calculations!$I$8:$QJ$8, K$3, Calculations!$I$10:$QJ$10, K$4) -> 0 | L19: =SUMIFS(Calculations!$I362:$QJ362, Calculations!$I$8:$QJ$8, L$3, Calculations!$I$10:$QJ$10, L$4) -> 0 | M19: =SUMIFS(Calculations!$I362:$QJ362, Calculations!$I$8:$QJ$8, M$3, Calculations!$I$10:$QJ$10, M$4) -> 0 | N19: =SUMIFS(Calculations!$I362:$QJ362, Calculations!$I$8:$QJ$8, N$3, Calculations!$I$10:$QJ$10, N$4) -> 0 | O19: =SUMIFS(Calculations!$I362:$QJ362, Calculations!$I$8:$QJ$8, O$3, Calculations!$I$10:$QJ$10, O$4) -> 0 | P19: =SUMIFS(Calculations!$I362:$QJ362, Calculations!$I$8:$QJ$8, P$3, Calculations!$I$10:$QJ$10, P$4) -> -57324.43603 | Q19: =SUMIFS(Calculations!$I362:$QJ362, Calculations!$I$8:$QJ$8, Q$3, Calculations!$I$10:$QJ$10, Q$4) -> -57264.55338 | R19: =SUMIFS(Calculations!$I362:$QJ362, Calculations!$I$8:$QJ$8, R$3, Calculations!$I$10:$QJ$10, R$4) -> -56775.05768 | S19: =SUMIFS(Calculations!$I362:$QJ362, Calculations!$I$8:$QJ$8, S$3, Calculations!$I$10:$QJ$10, S$4) -> -56278.80052 | T19: =SUMIFS(Calculations!$I362:$QJ362, Calculations!$I$8:$QJ$8, T$3, Calculations!$I$10:$QJ$10, T$4) -> -55775.6885 | U19: =SUMIFS(Calculations!$I362:$QJ362, Calculations!$I$8:$QJ$8, U$3, Calculations!$I$10:$QJ$10, U$4) -> -55265.62693 | V19: =SUMIFS(Calculations!$I362:$QJ362, Calculations!$I$8:$QJ$8, V$3, Calculations!$I$10:$QJ$10, V$4) -> -54748.51983 | W19: =SUMIFS(Calculations!$I362:$QJ362, Calculations!$I$8:$QJ$8, W$3, Calculations!$I$10:$QJ$10, W$4) -> -54224.26986 | X19: =SUMIFS(Calculations!$I362:$QJ362, Calculations!$I$8:$QJ$8, X$3, Calculations!$I$10:$QJ$10, X$4) -> -53692.77837 | Y19: =SUMIFS(Calculations!$I362:$QJ362, Calculations!$I$8:$QJ$8, Y$3, Calculations!$I$10:$QJ$10, Y$4) -> -53153.94532 | Z19: =SUMIFS(Calculations!$I362:$QJ362, Calculations!$I$8:$QJ$8, Z$3, Calculations!$I$10:$QJ$10, Z$4) -> -52607.66931 | AA19: =SUMIFS(Calculations!$I362:$QJ362, Calculations!$I$8:$QJ$8, AA$3, Calculations!$I$10:$QJ$10, AA$4) -> -52053.84753 | AB19: =SUMIFS(Calculations!$I362:$QJ362, Calculations!$I$8:$QJ$8, AB$3, Calculations!$I$10:$QJ$10, AB$4) -> -51492.37574 | AC19: =SUMIFS(Calculations!$I362:$QJ362, Calculations!$I$8:$QJ$8, AC$3, Calculations!$I$10:$QJ$10, AC$4) -> -50923.14827 | AD19: =SUMIFS(Calculations!$I362:$QJ362, Calculations!$I$8:$QJ$8, AD$3, Calculations!$I$10:$QJ$10, AD$4) -> -50346.058 | AE19: =SUMIFS(Calculations!$I362:$QJ362, Calculations!$I$8:$QJ$8, AE$3, Calculations!$I$10:$QJ$10, AE$4) -> -49760.99631 | AF19: =SUMIFS(Calculations!$I362:$QJ362, Calculations!$I$8:$QJ$8, AF$3, Calculations!$I$10:$QJ$10, AF$4) -> -49167.8531 | AG19: =SUMIFS(Calculations!$I362:$QJ362, Calculations!$I$8:$QJ$8, AG$3, Calculations!$I$10:$QJ$10, AG$4) -> -48566.51673 | AH19: =SUMIFS(Calculations!$I362:$QJ362, Calculations!$I$8:$QJ$8, AH$3, Calculations!$I$10:$QJ$10, AH$4) -> -47956.87403 | AI19: =SUMIFS(Calculations!$I362:$QJ362, Calculations!$I$8:$QJ$8, AI$3, Calculations!$I$10:$QJ$10, AI$4) -> -47338.81026 | AJ19: =SUMIFS(Calculations!$I362:$QJ362, Calculations!$I$8:$QJ$8, AJ$3, Calculations!$I$10:$QJ$10, AJ$4) -> -46712.20911 | AK19: =SUMIFS(Calculations!$I362:$QJ362, Calculations!$I$8:$QJ$8, AK$3, Calculations!$I$10:$QJ$10, AK$4) -> -46076.95264 | AL19: =SUMIFS(Calculations!$I362:$QJ362, Calculations!$I$8:$QJ$8, AL$3, Calculations!$I$10:$QJ$10, AL$4) -> -45432.9213 | AM19: =SUMIFS(Calculations!$I362:$QJ362, Calculations!$I$8:$QJ$8, AM$3, Calculations!$I$10:$QJ$10, AM$4) -> -44779.99388 | AN19: =SUMIFS(Calculations!$I362:$QJ362, Calculations!$I$8:$QJ$8, AN$3, Calculations!$I$10:$QJ$10, AN$4) -> -44118.0475 | AO19: =SUMIFS(Calculations!$I362:$QJ362, Calculations!$I$8:$QJ$8, AO$3, Calculations!$I$10:$QJ$10, AO$4) -> -43446.95758 | AP19: =SUMIFS(Calculations!$I362:$QJ362, Calculations!$I$8:$QJ$8, AP$3, Calculations!$I$10:$QJ$10, AP$4) -> -42766.59781 | AQ19: =SUMIFS(Calculations!$I362:$QJ362, Calculations!$I$8:$QJ$8, AQ$3, Calculations!$I$10:$QJ$10, AQ$4) -> -42076.84015 | AR19: =SUMIFS(Calculations!$I362:$QJ362, Calculations!$I$8:$QJ$8, AR$3, Calculations!$I$10:$QJ$10, AR$4) -> -41377.55479 | AS19: =SUMIFS(Calculations!$I362:$QJ362, Calculations!$I$8:$QJ$8, AS$3, Calculations!$I$10:$QJ$10, AS$4) -> -40668.61011 | AT19: =SUMIFS(Calculations!$I362:$QJ362, Calculations!$I$8:$QJ$8, AT$3, Calculations!$I$10:$QJ$10, AT$4) -> -39949.8727 | AU19: =SUMIFS(Calculations!$I362:$QJ362, Calculations!$I$8:$QJ$8, AU$3, Calculations!$I$10:$QJ$10, AU$4) -> -39221.20729 | AV19: =SUMIFS(Calculations!$I362:$QJ362, Calculations!$I$8:$QJ$8, AV$3, Calculations!$I$10:$QJ$10, AV$4) -> -38482.47674 | AW19: =SUMIFS(Calculations!$I362:$QJ362, Calculations!$I$8:$QJ$8, AW$3, Calculations!$I$10:$QJ$10, AW$4) -> -37733.54201 | AX19: =SUMIFS(Calculations!$I362:$QJ362, Calculations!$I$8:$QJ$8, AX$3, Calculations!$I$10:$QJ$10, AX$4) -> -36974.26217 | AY19: =SUMIFS(Calculations!$I362:$QJ362, Calculations!$I$8:$QJ$8, AY$3, Calculations!$I$10:$QJ$10, AY$4) -> -36204.4943 | AZ19: =SUMIFS(Calculations!$I362:$QJ362, Calculations!$I$8:$QJ$8, AZ$3, Calculations!$I$10:$QJ$10, AZ$4) -> -35424.09353 | BA19: =SUMIFS(Calculations!$I362:$QJ362, Calculations!$I$8:$QJ$8, BA$3, Calculations!$I$10:$QJ$10, BA$4) -> -34632.913 | BB19: =SUMIFS(Calculations!$I362:$QJ362, Calculations!$I$8:$QJ$8, BB$3, Calculations!$I$10:$QJ$10, BB$4) -> -33830.80381 | BC19: =SUMIFS(Calculations!$I362:$QJ362, Calculations!$I$8:$QJ$8, BC$3, Calculations!$I$10:$QJ$10, BC$4) -> -33017.61498 | BD19: =SUMIFS(Calculations!$I362:$QJ362, Calculations!$I$8:$QJ$8, BD$3, Calculations!$I$10:$QJ$10, BD$4) -> -32193.19348 | BE19: =SUMIFS(Calculations!$I362:$QJ362, Calculations!$I$8:$QJ$8, BE$3, Calculations!$I$10:$QJ$10, BE$4) -> -31357.38415 | BF19: =SUMIFS(Calculations!$I362:$QJ362, Calculations!$I$8:$QJ$8, BF$3, Calculations!$I$10:$QJ$10, BF$4) -> -30510.02968 | BG19: =SUMIFS(Calculations!$I362:$QJ362, Calculations!$I$8:$QJ$8, BG$3, Calculations!$I$10:$QJ$10, BG$4) -> -29650.97061 | BH19: =SUMIFS(Calculations!$I362:$QJ362, Calculations!$I$8:$QJ$8, BH$3, Calculations!$I$10:$QJ$10, BH$4) -> -28780.04526 | BI19: =SUMIFS(Calculations!$I362:$QJ362, Calculations!$I$8:$QJ$8, BI$3, Calculations!$I$10:$QJ$10, BI$4) -> -27897.08971 | BJ19: =SUMIFS(Calculations!$I362:$QJ362, Calculations!$I$8:$QJ$8, BJ$3, Calculations!$I$10:$QJ$10, BJ$4) -> -27001.9378 | BK19: =SUMIFS(Calculations!$I362:$QJ362, Calculations!$I$8:$QJ$8, BK$3, Calculations!$I$10:$QJ$10, BK$4) -> -26094.42105 | BL19: =SUMIFS(Calculations!$I362:$QJ362, Calculations!$I$8:$QJ$8, BL$3, Calculations!$I$10:$QJ$10, BL$4) -> -25174.36866 | BM19: =SUMIFS(Calculations!$I362:$QJ362, Calculations!$I$8:$QJ$8, BM$3, Calculations!$I$10:$QJ$10, BM$4) -> -24241.60748 | BN19: =SUMIFS(Calculations!$I362:$QJ362, Calculations!$I$8:$QJ$8, BN$3, Calculations!$I$10:$QJ$10, BN$4) -> -23295.96196 | BO19: =SUMIFS(Calculations!$I362:$QJ362, Calculations!$I$8:$QJ$8, BO$3, Calculations!$I$10:$QJ$10, BO$4) -> -22337.25412 | BP19: =SUMIFS(Calculations!$I362:$QJ362, Calculations!$I$8:$QJ$8, BP$3, Calculations!$I$10:$QJ$10, BP$4) -> -21365.30355 | BQ19: =SUMIFS(Calculations!$I362:$QJ362, Calculations!$I$8:$QJ$8, BQ$3, Calculations!$I$10:$QJ$10, BQ$4) -> -20379.92731 | BR19: =SUMIFS(Calculations!$I362:$QJ362, Calculations!$I$8:$QJ$8, BR$3, Calculations!$I$10:$QJ$10, BR$4) -> -19380.93995 | BS19: =SUMIFS(Calculations!$I362:$QJ362, Calculations!$I$8:$QJ$8, BS$3, Calculations!$I$10:$QJ$10, BS$4) -> -18368.15346 | BT19: =SUMIFS(Calculations!$I362:$QJ362, Calculations!$I$8:$QJ$8, BT$3, Calculations!$I$10:$QJ$10, BT$4) -> -17341.37723 | BU19: =SUMIFS(Calculations!$I362:$QJ362, Calculations!$I$8:$QJ$8, BU$3, Calculations!$I$10:$QJ$10, BU$4) -> -16300.41802 | BV19: =SUMIFS(Calculations!$I362:$QJ362, Calculations!$I$8:$QJ$8, BV$3, Calculations!$I$10:$QJ$10, BV$4) -> -15245.07992 | BW19: =SUMIFS(Calculations!$I362:$QJ362, Calculations!$I$8:$QJ$8, BW$3, Calculations!$I$10:$QJ$10, BW$4) -> -14175.16431 | BX19: =SUMIFS(Calculations!$I362:$QJ362, Calculations!$I$8:$QJ$8, BX$3, Calculations!$I$10:$QJ$10, BX$4) -> -13090.46984 | BY19: =SUMIFS(Calculations!$I362:$QJ362, Calculations!$I$8:$QJ$8, BY$3, Calculations!$I$10:$QJ$10, BY$4) -> -11990.79235 | BZ19: =SUMIFS(Calculations!$I362:$QJ362, Calculations!$I$8:$QJ$8, BZ$3, Calculations!$I$10:$QJ$10, BZ$4) -> -10875.92488 | CA19: =SUMIFS(Calculations!$I362:$QJ362, Calculations!$I$8:$QJ$8, CA$3, Calculations!$I$10:$QJ$10, CA$4) -> -9745.657623 | CB19: =SUMIFS(Calculations!$I362:$QJ362, Calculations!$I$8:$QJ$8, CB$3, Calculations!$I$10:$QJ$10, CB$4) -> -8599.77785 | CC19: =SUMIFS(Calculations!$I362:$QJ362, Calculations!$I$8:$QJ$8, CC$3, Calculations!$I$10:$QJ$10, CC$4) -> -7438.069906 | CD19: =SUMIFS(Calculations!$I362:$QJ362, Calculations!$I$8:$QJ$8, CD$3, Calculations!$I$10:$QJ$10, CD$4) -> -6260.315154 | CE19: =SUMIFS(Calculations!$I362:$QJ362, Calculations!$I$8:$QJ$8, CE$3, Calculations!$I$10:$QJ$10, CE$4) -> -5066.291938 | CF19: =SUMIFS(Calculations!$I362:$QJ362, Calculations!$I$8:$QJ$8, CF$3, Calculations!$I$10:$QJ$10, CF$4) -> -3855.775539 | CG19: =SUMIFS(Calculations!$I362:$QJ362, Calculations!$I$8:$QJ$8, CG$3, Calculations!$I$10:$QJ$10, CG$4) -> -2628.538135 | CH19: =SUMIFS(Calculations!$I362:$QJ362, Calculations!$I$8:$QJ$8, CH$3, Calculations!$I$10:$QJ$10, CH$4) -> -741.9477284 | CI19: =SUMIFS(Calculations!$I362:$QJ362, Calculations!$I$8:$QJ$8, CI$3, Calculations!$I$10:$QJ$10, CI$4) -> 0 | CJ19: =SUMIFS(Calculations!$I362:$QJ362, Calculations!$I$8:$QJ$8, CJ$3, Calculations!$I$10:$QJ$10, CJ$4) -> 0 | CK19: =SUMIFS(Calculations!$I362:$QJ362, Calculations!$I$8:$QJ$8, CK$3, Calculations!$I$10:$QJ$10, CK$4) -> 0 | CL19: =SUMIFS(Calculations!$I362:$QJ362, Calculations!$I$8:$QJ$8, CL$3, Calculations!$I$10:$QJ$10, CL$4) -> 0 | CM19: =SUMIFS(Calculations!$I362:$QJ362, Calculations!$I$8:$QJ$8, CM$3, Calculations!$I$10:$QJ$10, CM$4) -> 0 | CN19: =SUMIFS(Calculations!$I362:$QJ362, Calculations!$I$8:$QJ$8, CN$3, Calculations!$I$10:$QJ$10, CN$4) -> 0 | CO19: =SUMIFS(Calculations!$I362:$QJ362, Calculations!$I$8:$QJ$8, CO$3, Calculations!$I$10:$QJ$10, CO$4) -> 0 | CP19: =SUMIFS(Calculations!$I362:$QJ362, Calculations!$I$8:$QJ$8, CP$3, Calculations!$I$10:$QJ$10, CP$4) -> 0 | CQ19: =SUMIFS(Calculations!$I362:$QJ362, Calculations!$I$8:$QJ$8, CQ$3, Calculations!$I$10:$QJ$10, CQ$4) -> 0 | CR19: =SUMIFS(Calculations!$I362:$QJ362, Calculations!$I$8:$QJ$8, CR$3, Calculations!$I$10:$QJ$10, CR$4) -> 0 | CS19: =SUMIFS(Calculations!$I362:$QJ362, Calculations!$I$8:$QJ$8, CS$3, Calculations!$I$10:$QJ$10, CS$4) -> 0 | CT19: =SUMIFS(Calculations!$I362:$QJ362, Calculations!$I$8:$QJ$8, CT$3, Calculations!$I$10:$QJ$10, CT$4) -> 0 | CU19: =SUMIFS(Calculations!$I362:$QJ362, Calculations!$I$8:$QJ$8, CU$3, Calculations!$I$10:$QJ$10, CU$4) -> 0 | CV19: =SUMIFS(Calculations!$I362:$QJ362, Calculations!$I$8:$QJ$8, CV$3, Calculations!$I$10:$QJ$10, CV$4) -> 0 | CW19: =SUMIFS(Calculations!$I362:$QJ362, Calculations!$I$8:$QJ$8, CW$3, Calculations!$I$10:$QJ$10, CW$4) -> 0 | CX19: =SUMIFS(Calculations!$I362:$QJ362, Calculations!$I$8:$QJ$8, CX$3, Calculations!$I$10:$QJ$10, CX$4) -> 0 | CY19: =SUMIFS(Calculations!$I362:$QJ362, Calculations!$I$8:$QJ$8, CY$3, Calculations!$I$10:$QJ$10, CY$4) -> 0 | CZ19: =SUMIFS(Calculations!$I362:$QJ362, Calculations!$I$8:$QJ$8, CZ$3, Calculations!$I$10:$QJ$10, CZ$4) -> 0 | DA19: =SUMIFS(Calculations!$I362:$QJ362, Calculations!$I$8:$QJ$8, DA$3, Calculations!$I$10:$QJ$10, DA$4) -> 0 | DB19: =SUMIFS(Calculations!$I362:$QJ362, Calculations!$I$8:$QJ$8, DB$3, Calculations!$I$10:$QJ$10, DB$4) -> 0 | DC19: =SUMIFS(Calculations!$I362:$QJ362, Calculations!$I$8:$QJ$8, DC$3, Calculations!$I$10:$QJ$10, DC$4) -> 0 | DD19: =SUMIFS(Calculations!$I362:$QJ362, Calculations!$I$8:$QJ$8, DD$3, Calculations!$I$10:$QJ$10, DD$4) -> 0 | DE19: =SUMIFS(Calculations!$I362:$QJ362, Calculations!$I$8:$QJ$8, DE$3, Calculations!$I$10:$QJ$10, DE$4) -> 0 | DF19: =SUMIFS(Calculations!$I362:$QJ362, Calculations!$I$8:$QJ$8, DF$3, Calculations!$I$10:$QJ$10, DF$4) -> 0 | DG19: =SUMIFS(Calculations!$I362:$QJ362, Calculations!$I$8:$QJ$8, DG$3, Calculations!$I$10:$QJ$10, DG$4) -> 0 | DH19: =SUMIFS(Calculations!$I362:$QJ362, Calculations!$I$8:$QJ$8, DH$3, Calculations!$I$10:$QJ$10, DH$4) -> 0 | DI19: =SUMIFS(Calculations!$I362:$QJ362, Calculations!$I$8:$QJ$8, DI$3, Calculations!$I$10:$QJ$10, DI$4) -> 0 | DJ19: =SUMIFS(Calculations!$I362:$QJ362, Calculations!$I$8:$QJ$8, DJ$3, Calculations!$I$10:$QJ$10, DJ$4) -> 0 | DK19: =SUMIFS(Calculations!$I362:$QJ362, Calculations!$I$8:$QJ$8, DK$3, Calculations!$I$10:$QJ$10, DK$4) -> 0
C20: =Calculations!C363 -> less: Subordinated Debt Interest Expense | E20: =Calculations!E363 -> EUR | G20: =SUM(H20:FC20) -> -2603950.281 | H20: =SUMIFS(Calculations!$I363:$QJ363, Calculations!$I$8:$QJ$8, H$3, Calculations!$I$10:$QJ$10, H$4) -> 0 | I20: =SUMIFS(Calculations!$I363:$QJ363, Calculations!$I$8:$QJ$8, I$3, Calculations!$I$10:$QJ$10, I$4) -> 0 | J20: =SUMIFS(Calculations!$I363:$QJ363, Calculations!$I$8:$QJ$8, J$3, Calculations!$I$10:$QJ$10, J$4) -> 0 | K20: =SUMIFS(Calculations!$I363:$QJ363, Calculations!$I$8:$QJ$8, K$3, Calculations!$I$10:$QJ$10, K$4) -> 0 | L20: =SUMIFS(Calculations!$I363:$QJ363, Calculations!$I$8:$QJ$8, L$3, Calculations!$I$10:$QJ$10, L$4) -> 0 | M20: =SUMIFS(Calculations!$I363:$QJ363, Calculations!$I$8:$QJ$8, M$3, Calculations!$I$10:$QJ$10, M$4) -> 0 | N20: =SUMIFS(Calculations!$I363:$QJ363, Calculations!$I$8:$QJ$8, N$3, Calculations!$I$10:$QJ$10, N$4) -> 0 | O20: =SUMIFS(Calculations!$I363:$QJ363, Calculations!$I$8:$QJ$8, O$3, Calculations!$I$10:$QJ$10, O$4) -> 0 | P20: =SUMIFS(Calculations!$I363:$QJ363, Calculations!$I$8:$QJ$8, P$3, Calculations!$I$10:$QJ$10, P$4) -> -62874.575 | Q20: =SUMIFS(Calculations!$I363:$QJ363, Calculations!$I$8:$QJ$8, Q$3, Calculations!$I$10:$QJ$10, Q$4) -> -62922.1845 | R20: =SUMIFS(Calculations!$I363:$QJ363, Calculations!$I$8:$QJ$8, R$3, Calculations!$I$10:$QJ$10, R$4) -> -62453.96357 | S20: =SUMIFS(Calculations!$I363:$QJ363, Calculations!$I$8:$QJ$8, S$3, Calculations!$I$10:$QJ$10, S$4) -> -62187.48041 | T20: =SUMIFS(Calculations!$I363:$QJ363, Calculations!$I$8:$QJ$8, T$3, Calculations!$I$10:$QJ$10, T$4) -> -61912.92255 | U20: =SUMIFS(Calculations!$I363:$QJ363, Calculations!$I$8:$QJ$8, U$3, Calculations!$I$10:$QJ$10, U$4) -> -61630.0453 | V20: =SUMIFS(Calculations!$I363:$QJ363, Calculations!$I$8:$QJ$8, V$3, Calculations!$I$10:$QJ$10, V$4) -> -61338.5966 | W20: =SUMIFS(Calculations!$I363:$QJ363, Calculations!$I$8:$QJ$8, W$3, Calculations!$I$10:$QJ$10, W$4) -> -61038.31671 | X20: =SUMIFS(Calculations!$I363:$QJ363, Calculations!$I$8:$QJ$8, X$3, Calculations!$I$10:$QJ$10, X$4) -> -60728.93803 | Y20: =SUMIFS(Calculations!$I363:$QJ363, Calculations!$I$8:$QJ$8, Y$3, Calculations!$I$10:$QJ$10, Y$4) -> -60410.18487 | Z20: =SUMIFS(Calculations!$I363:$QJ363, Calculations!$I$8:$QJ$8, Z$3, Calculations!$I$10:$QJ$10, Z$4) -> -60081.77318 | AA20: =SUMIFS(Calculations!$I363:$QJ363, Calculations!$I$8:$QJ$8, AA$3, Calculations!$I$10:$QJ$10, AA$4) -> -59743.41028 | AB20: =SUMIFS(Calculations!$I363:$QJ363, Calculations!$I$8:$QJ$8, AB$3, Calculations!$I$10:$QJ$10, AB$4) -> -59394.79464 | AC20: =SUMIFS(Calculations!$I363:$QJ363, Calculations!$I$8:$QJ$8, AC$3, Calculations!$I$10:$QJ$10, AC$4) -> -59035.61561 | AD20: =SUMIFS(Calculations!$I363:$QJ363, Calculations!$I$8:$QJ$8, AD$3, Calculations!$I$10:$QJ$10, AD$4) -> -58665.55309 | AE20: =SUMIFS(Calculations!$I363:$QJ363, Calculations!$I$8:$QJ$8, AE$3, Calculations!$I$10:$QJ$10, AE$4) -> -58284.2773 | AF20: =SUMIFS(Calculations!$I363:$QJ363, Calculations!$I$8:$QJ$8, AF$3, Calculations!$I$10:$QJ$10, AF$4) -> -57891.44848 | AG20: =SUMIFS(Calculations!$I363:$QJ363, Calculations!$I$8:$QJ$8, AG$3, Calculations!$I$10:$QJ$10, AG$4) -> -57486.71655 | AH20: =SUMIFS(Calculations!$I363:$QJ363, Calculations!$I$8:$QJ$8, AH$3, Calculations!$I$10:$QJ$10, AH$4) -> -57069.72084 | AI20: =SUMIFS(Calculations!$I363:$QJ363, Calculations!$I$8:$QJ$8, AI$3, Calculations!$I$10:$QJ$10, AI$4) -> -56640.08974 | AJ20: =SUMIFS(Calculations!$I363:$QJ363, Calculations!$I$8:$QJ$8, AJ$3, Calculations!$I$10:$QJ$10, AJ$4) -> -56197.44039 | AK20: =SUMIFS(Calculations!$I363:$QJ363, Calculations!$I$8:$QJ$8, AK$3, Calculations!$I$10:$QJ$10, AK$4) -> -55741.37833 | AL20: =SUMIFS(Calculations!$I363:$QJ363, Calculations!$I$8:$QJ$8, AL$3, Calculations!$I$10:$QJ$10, AL$4) -> -55271.49712 | AM20: =SUMIFS(Calculations!$I363:$QJ363, Calculations!$I$8:$QJ$8, AM$3, Calculations!$I$10:$QJ$10, AM$4) -> -54787.37805 | AN20: =SUMIFS(Calculations!$I363:$QJ363, Calculations!$I$8:$QJ$8, AN$3, Calculations!$I$10:$QJ$10, AN$4) -> -54288.58968 | AO20: =SUMIFS(Calculations!$I363:$QJ363, Calculations!$I$8:$QJ$8, AO$3, Calculations!$I$10:$QJ$10, AO$4) -> -53774.68753 | AP20: =SUMIFS(Calculations!$I363:$QJ363, Calculations!$I$8:$QJ$8, AP$3, Calculations!$I$10:$QJ$10, AP$4) -> -53245.21362 | AQ20: =SUMIFS(Calculations!$I363:$QJ363, Calculations!$I$8:$QJ$8, AQ$3, Calculations!$I$10:$QJ$10, AQ$4) -> -52699.69613 | AR20: =SUMIFS(Calculations!$I363:$QJ363, Calculations!$I$8:$QJ$8, AR$3, Calculations!$I$10:$QJ$10, AR$4) -> -52137.64892 | AS20: =SUMIFS(Calculations!$I363:$QJ363, Calculations!$I$8:$QJ$8, AS$3, Calculations!$I$10:$QJ$10, AS$4) -> -51558.57111 | AT20: =SUMIFS(Calculations!$I363:$QJ363, Calculations!$I$8:$QJ$8, AT$3, Calculations!$I$10:$QJ$10, AT$4) -> -50961.94666 | AU20: =SUMIFS(Calculations!$I363:$QJ363, Calculations!$I$8:$QJ$8, AU$3, Calculations!$I$10:$QJ$10, AU$4) -> -50347.2439 | AV20: =SUMIFS(Calculations!$I363:$QJ363, Calculations!$I$8:$QJ$8, AV$3, Calculations!$I$10:$QJ$10, AV$4) -> -49713.91503 | AW20: =SUMIFS(Calculations!$I363:$QJ363, Calculations!$I$8:$QJ$8, AW$3, Calculations!$I$10:$QJ$10, AW$4) -> -49061.39566 | AX20: =SUMIFS(Calculations!$I363:$QJ363, Calculations!$I$8:$QJ$8, AX$3, Calculations!$I$10:$QJ$10, AX$4) -> -48389.1043 | AY20: =SUMIFS(Calculations!$I363:$QJ363, Calculations!$I$8:$QJ$8, AY$3, Calculations!$I$10:$QJ$10, AY$4) -> -47696.44184 | AZ20: =SUMIFS(Calculations!$I363:$QJ363, Calculations!$I$8:$QJ$8, AZ$3, Calculations!$I$10:$QJ$10, AZ$4) -> -46982.79102 | BA20: =SUMIFS(Calculations!$I363:$QJ363, Calculations!$I$8:$QJ$8, BA$3, Calculations!$I$10:$QJ$10, BA$4) -> -46247.51586 | BB20: =SUMIFS(Calculations!$I363:$QJ363, Calculations!$I$8:$QJ$8, BB$3, Calculations!$I$10:$QJ$10, BB$4) -> -45489.96113 | BC20: =SUMIFS(Calculations!$I363:$QJ363, Calculations!$I$8:$QJ$8, BC$3, Calculations!$I$10:$QJ$10, BC$4) -> -44709.45173 | BD20: =SUMIFS(Calculations!$I363:$QJ363, Calculations!$I$8:$QJ$8, BD$3, Calculations!$I$10:$QJ$10, BD$4) -> -43905.29212 | BE20: =SUMIFS(Calculations!$I363:$QJ363, Calculations!$I$8:$QJ$8, BE$3, Calculations!$I$10:$QJ$10, BE$4) -> -43076.76567 | BF20: =SUMIFS(Calculations!$I363:$QJ363, Calculations!$I$8:$QJ$8, BF$3, Calculations!$I$10:$QJ$10, BF$4) -> -42223.13403 | BG20: =SUMIFS(Calculations!$I363:$QJ363, Calculations!$I$8:$QJ$8, BG$3, Calculations!$I$10:$QJ$10, BG$4) -> -41343.63651 | BH20: =SUMIFS(Calculations!$I363:$QJ363, Calculations!$I$8:$QJ$8, BH$3, Calculations!$I$10:$QJ$10, BH$4) -> -40437.48933 | BI20: =SUMIFS(Calculations!$I363:$QJ363, Calculations!$I$8:$QJ$8, BI$3, Calculations!$I$10:$QJ$10, BI$4) -> -39503.88499 | BJ20: =SUMIFS(Calculations!$I363:$QJ363, Calculations!$I$8:$QJ$8, BJ$3, Calculations!$I$10:$QJ$10, BJ$4) -> -38541.9915 | BK20: =SUMIFS(Calculations!$I363:$QJ363, Calculations!$I$8:$QJ$8, BK$3, Calculations!$I$10:$QJ$10, BK$4) -> -37550.95167 | BL20: =SUMIFS(Calculations!$I363:$QJ363, Calculations!$I$8:$QJ$8, BL$3, Calculations!$I$10:$QJ$10, BL$4) -> -36529.88235 | BM20: =SUMIFS(Calculations!$I363:$QJ363, Calculations!$I$8:$QJ$8, BM$3, Calculations!$I$10:$QJ$10, BM$4) -> -35477.87361 | BN20: =SUMIFS(Calculations!$I363:$QJ363, Calculations!$I$8:$QJ$8, BN$3, Calculations!$I$10:$QJ$10, BN$4) -> -34393.98794 | BO20: =SUMIFS(Calculations!$I363:$QJ363, Calculations!$I$8:$QJ$8, BO$3, Calculations!$I$10:$QJ$10, BO$4) -> -33277.25946 | BP20: =SUMIFS(Calculations!$I363:$QJ363, Calculations!$I$8:$QJ$8, BP$3, Calculations!$I$10:$QJ$10, BP$4) -> -32126.69299 | BQ20: =SUMIFS(Calculations!$I363:$QJ363, Calculations!$I$8:$QJ$8, BQ$3, Calculations!$I$10:$QJ$10, BQ$4) -> -30941.26321 | BR20: =SUMIFS(Calculations!$I363:$QJ363, Calculations!$I$8:$QJ$8, BR$3, Calculations!$I$10:$QJ$10, BR$4) -> -29719.91372 | BS20: =SUMIFS(Calculations!$I363:$QJ363, Calculations!$I$8:$QJ$8, BS$3, Calculations!$I$10:$QJ$10, BS$4) -> -28461.55612 | BT20: =SUMIFS(Calculations!$I363:$QJ363, Calculations!$I$8:$QJ$8, BT$3, Calculations!$I$10:$QJ$10, BT$4) -> -27165.06902 | BU20: =SUMIFS(Calculations!$I363:$QJ363, Calculations!$I$8:$QJ$8, BU$3, Calculations!$I$10:$QJ$10, BU$4) -> -25829.29707 | BV20: =SUMIFS(Calculations!$I363:$QJ363, Calculations!$I$8:$QJ$8, BV$3, Calculations!$I$10:$QJ$10, BV$4) -> -24453.04989 | BW20: =SUMIFS(Calculations!$I363:$QJ363, Calculations!$I$8:$QJ$8, BW$3, Calculations!$I$10:$QJ$10, BW$4) -> -23035.10104 | BX20: =SUMIFS(Calculations!$I363:$QJ363, Calculations!$I$8:$QJ$8, BX$3, Calculations!$I$10:$QJ$10, BX$4) -> -21574.18693 | BY20: =SUMIFS(Calculations!$I363:$QJ363, Calculations!$I$8:$QJ$8, BY$3, Calculations!$I$10:$QJ$10, BY$4) -> -20069.00566 | BZ20: =SUMIFS(Calculations!$I363:$QJ363, Calculations!$I$8:$QJ$8, BZ$3, Calculations!$I$10:$QJ$10, BZ$4) -> -18518.21589 | CA20: =SUMIFS(Calculations!$I363:$QJ363, Calculations!$I$8:$QJ$8, CA$3, Calculations!$I$10:$QJ$10, CA$4) -> -16920.43564 | CB20: =SUMIFS(Calculations!$I363:$QJ363, Calculations!$I$8:$QJ$8, CB$3, Calculations!$I$10:$QJ$10, CB$4) -> -15274.24105 | CC20: =SUMIFS(Calculations!$I363:$QJ363, Calculations!$I$8:$QJ$8, CC$3, Calculations!$I$10:$QJ$10, CC$4) -> -13578.16512 | CD20: =SUMIFS(Calculations!$I363:$QJ363, Calculations!$I$8:$QJ$8, CD$3, Calculations!$I$10:$QJ$10, CD$4) -> -11830.6964 | CE20: =SUMIFS(Calculations!$I363:$QJ363, Calculations!$I$8:$QJ$8, CE$3, Calculations!$I$10:$QJ$10, CE$4) -> -10030.27762 | CF20: =SUMIFS(Calculations!$I363:$QJ363, Calculations!$I$8:$QJ$8, CF$3, Calculations!$I$10:$QJ$10, CF$4) -> -8175.304353 | CG20: =SUMIFS(Calculations!$I363:$QJ363, Calculations!$I$8:$QJ$8, CG$3, Calculations!$I$10:$QJ$10, CG$4) -> -6264.123541 | CH20: =SUMIFS(Calculations!$I363:$QJ363, Calculations!$I$8:$QJ$8, CH$3, Calculations!$I$10:$QJ$10, CH$4) -> -4295.03204 | CI20: =SUMIFS(Calculations!$I363:$QJ363, Calculations!$I$8:$QJ$8, CI$3, Calculations!$I$10:$QJ$10, CI$4) -> -2266.275097 | CJ20: =SUMIFS(Calculations!$I363:$QJ363, Calculations!$I$8:$QJ$8, CJ$3, Calculations!$I$10:$QJ$10, CJ$4) -> -176.0447894 | CK20: =SUMIFS(Calculations!$I363:$QJ363, Calculations!$I$8:$QJ$8, CK$3, Calculations!$I$10:$QJ$10, CK$4) -> 1977.521586 | CL20: =SUMIFS(Calculations!$I363:$QJ363, Calculations!$I$8:$QJ$8, CL$3, Calculations!$I$10:$QJ$10, CL$4) -> 4196.343177 | CM20: =SUMIFS(Calculations!$I363:$QJ363, Calculations!$I$8:$QJ$8, CM$3, Calculations!$I$10:$QJ$10, CM$4) -> 6482.39728 | CN20: =SUMIFS(Calculations!$I363:$QJ363, Calculations!$I$8:$QJ$8, CN$3, Calculations!$I$10:$QJ$10, CN$4) -> 8837.721109 | CO20: =SUMIFS(Calculations!$I363:$QJ363, Calculations!$I$8:$QJ$8, CO$3, Calculations!$I$10:$QJ$10, CO$4) -> 11264.4136 | CP20: =SUMIFS(Calculations!$I363:$QJ363, Calculations!$I$8:$QJ$8, CP$3, Calculations!$I$10:$QJ$10, CP$4) -> 13764.63731 | CQ20: =SUMIFS(Calculations!$I363:$QJ363, Calculations!$I$8:$QJ$8, CQ$3, Calculations!$I$10:$QJ$10, CQ$4) -> 16340.62029 | CR20: =SUMIFS(Calculations!$I363:$QJ363, Calculations!$I$8:$QJ$8, CR$3, Calculations!$I$10:$QJ$10, CR$4) -> 18994.65814 | CS20: =SUMIFS(Calculations!$I363:$QJ363, Calculations!$I$8:$QJ$8, CS$3, Calculations!$I$10:$QJ$10, CS$4) -> 21729.11598 | CT20: =SUMIFS(Calculations!$I363:$QJ363, Calculations!$I$8:$QJ$8, CT$3, Calculations!$I$10:$QJ$10, CT$4) -> 24546.43064 | CU20: =SUMIFS(Calculations!$I363:$QJ363, Calculations!$I$8:$QJ$8, CU$3, Calculations!$I$10:$QJ$10, CU$4) -> 27449.11274 | CV20: =SUMIFS(Calculations!$I363:$QJ363, Calculations!$I$8:$QJ$8, CV$3, Calculations!$I$10:$QJ$10, CV$4) -> 30439.74901 | CW20: =SUMIFS(Calculations!$I363:$QJ363, Calculations!$I$8:$QJ$8, CW$3, Calculations!$I$10:$QJ$10, CW$4) -> 33521.00456 | CX20: =SUMIFS(Calculations!$I363:$QJ363, Calculations!$I$8:$QJ$8, CX$3, Calculations!$I$10:$QJ$10, CX$4) -> 36695.62523 | CY20: =SUMIFS(Calculations!$I363:$QJ363, Calculations!$I$8:$QJ$8, CY$3, Calculations!$I$10:$QJ$10, CY$4) -> 39966.44007 | CZ20: =SUMIFS(Calculations!$I363:$QJ363, Calculations!$I$8:$QJ$8, CZ$3, Calculations!$I$10:$QJ$10, CZ$4) -> 43336.36388 | DA20: =SUMIFS(Calculations!$I363:$QJ363, Calculations!$I$8:$QJ$8, DA$3, Calculations!$I$10:$QJ$10, DA$4) -> 46808.39975 | DB20: =SUMIFS(Calculations!$I363:$QJ363, Calculations!$I$8:$QJ$8, DB$3, Calculations!$I$10:$QJ$10, DB$4) -> 50385.64178 | DC20: =SUMIFS(Calculations!$I363:$QJ363, Calculations!$I$8:$QJ$8, DC$3, Calculations!$I$10:$QJ$10, DC$4) -> 17372.09433 | DD20: =SUMIFS(Calculations!$I363:$QJ363, Calculations!$I$8:$QJ$8, DD$3, Calculations!$I$10:$QJ$10, DD$4) -> 0 | DE20: =SUMIFS(Calculations!$I363:$QJ363, Calculations!$I$8:$QJ$8, DE$3, Calculations!$I$10:$QJ$10, DE$4) -> 0 | DF20: =SUMIFS(Calculations!$I363:$QJ363, Calculations!$I$8:$QJ$8, DF$3, Calculations!$I$10:$QJ$10, DF$4) -> 0 | DG20: =SUMIFS(Calculations!$I363:$QJ363, Calculations!$I$8:$QJ$8, DG$3, Calculations!$I$10:$QJ$10, DG$4) -> 0 | DH20: =SUMIFS(Calculations!$I363:$QJ363, Calculations!$I$8:$QJ$8, DH$3, Calculations!$I$10:$QJ$10, DH$4) -> 0 | DI20: =SUMIFS(Calculations!$I363:$QJ363, Calculations!$I$8:$QJ$8, DI$3, Calculations!$I$10:$QJ$10, DI$4) -> 0 | DJ20: =SUMIFS(Calculations!$I363:$QJ363, Calculations!$I$8:$QJ$8, DJ$3, Calculations!$I$10:$QJ$10, DJ$4) -> 0 | DK20: =SUMIFS(Calculations!$I363:$QJ363, Calculations!$I$8:$QJ$8, DK$3, Calculations!$I$10:$QJ$10, DK$4) -> 0
